Workbook

Sheet Inmeetaanvraag
C2: Verzoek om inmeting
K3: TRUE
B4: TRUE | C4: Aanhef | D4: Voorl. | E4: Achternaam
B5: Naam klant/contactpers.:
B6: Organisatie:
B7: Montage-adres:
B8: Postcode/Wplts.:
B9: Land:
B10: E-mailadres:
C11: Landcode | D11: Tel.nr.
B12: Telefoon 1:
B13: Telefoon 2:
B15: Uw projectomschrijving: | H15: Klaar met uw verzoek? Sla het op, klik op deze link en stuur dit vervolgens als bijlage bij een e-mailbericht naar info@mforcurtains.com
B18: Vertrek | C18: Artikelsoort | D18: Plooi | E18: Railtype | F18: Railkleur | G18: Bevest. | H18: Artikelomschrijving | I18: Merk (indien relevant/bekend) | J18: Opmerkingen

Sheet Toelichting
B2: Plooien | D2: Terug
E4: Enkel
E14: Dubbel
E24: Triple
E34: Dubbel retour
E44: Wave
B55: Railtype | D55: Terug
E57: KS
E67: DS
E77: Interstil Square
E87: Interstil Round
E97: Interstil Flat

Sheet Inmeetformulier (hidden)
C2: Inmeetformulier
C4: Aanhef | D4: Voorl. | E4: Achternaam
B5: Naam klant/contactpers.: | C5: =Inmeetaanvraag!C5 -> 0 | D5: =Inmeetaanvraag!D5 -> 0 | E5: =Inmeetaanvraag!E5 -> 0
B6: Organisatie: | C6: =Inmeetaanvraag!C6 -> 0
B7: Montage-adres: | C7: =Inmeetaanvraag!C7 -> 0
B8: Postcode/Wplts.: | C8: =Inmeetaanvraag!C8 -> 0 | D8: =Inmeetaanvraag!D8 -> 0
B9: Land: | C9: =Inmeetaanvraag!C9 -> 0
B10: E-mailadres: | C10: =Inmeetaanvraag!C10 -> 0
C11: Landcode | D11: Tel.nr.
B12: Telefoon 1: | C12: =Inmeetaanvraag!C12 -> 0 | D12: =Inmeetaanvraag!D12 -> 0
B13: Telefoon 2: | C13: =Inmeetaanvraag!C13 -> 0 | D13: =Inmeetaanvraag!D13 -> 0
B15: Inmeetdatum 1: | E15: van | G15: u tot | I15: u
B16: Inmeetdatum 2: | E16: van | G16: u tot | I16: u
B18: Projectomschrijving klant: | C18: =Inmeetaanvraag!C15 -> 0 | K18: Korte projectomschrijving: | L18: =IF(C18=0,"",LEFT(C18,20)) ->  | Q18: =CONCATENATE(" ",LEN(L18)," tekens (max. 20 tekens)") -> 0 tekens (max. 20 tekens)
C19: =Inmeetaanvraag!C16 -> 0 | K19: Bestandlocatie (evt.):
C20: =Inmeetaanvraag!C17 -> 0
B22: Totale breedte/hoogte 4 | D22: =SUBTOTAL(9,D25:D1025) -> 0 | E22: =SUBTOTAL(9,E25:E1025) -> 0 | G22: Totale raillengte4 | I22: =SUBTOTAL(9,I25:I1025) -> 0
B24: Vertrek | C24: Artikelsoort | D24: Breedte (cm) | E24: Hoogte (cm) | F24: Strak/ Blijv. | G24: Stel/ Stuk | H24: Plooi | I24: Rail-lngt. (cm) | J24: Rail- type | K24: Rail- kleur | L24: Bevest. | M24: Mate- riaal | N24: Bedie- ning | O24: Hoofdje | P24: Artikelomschrijving | Q24: Merk | R24: Hoeveelh. stof (cm) | S24: Opmerkingen
A25: =IF(B25="","",$L$18) -> 
A26: =IF(B26="","",$L$18) -> 
A90: =IF(B90="","",$L$18) -> 

Sheet Tijd (hidden)
A1: 00:00:00
A2: 00:15:00
A3: 00:30:00
A4: 00:45:00
A5: 01:00:00
A6: 01:15:00
A7: 01:30:00
A8: 01:45:00
A9: 02:00:00
A10: 02:15:00
A11: 02:30:00
A12: 02:45:00
A13: 03:00:00
A14: 03:15:00
A15: 03:30:00
A16: 03:45:00
A17: 04:00:00
A18: 04:15:00
A19: 04:30:00
A20: 04:45:00
A21: 05:00:00
A22: 05:15:00
A23: 05:30:00
A24: 05:45:00
A25: 06:00:00
A26: 06:15:00
A27: 06:30:00
A28: 06:45:00
A29: 07:00:00
A30: 07:15:00
A31: 07:30:00
A32: 07:45:00
A33: 08:00:00
A34: 08:15:00
A35: 08:30:00
A36: 08:45:00
A37: 09:00:00
A38: 09:15:00
A39: 09:30:00
A40: 09:45:00
A41: 10:00:00
A42: 10:15:00
A43: 10:30:00
A44: 10:45:00
A45: 11:00:00
A46: 11:15:00
A47: 11:30:00
A48: 11:45:00
A49: 12:00:00
A50: 12:15:00
A51: 12:30:00
A52: 12:45:00
A53: 13:00:00
A54: 13:15:00
A55: 13:30:00
A56: 13:45:00
A57: 14:00:00
A58: 14:15:00
A59: 14:30:00
A60: 14:45:00
A61: 15:00:00
A62: 15:15:00
A63: 15:30:00
A64: 15:45:00
A65: 16:00:00
A66: 16:15:00
A67: 16:30:00
A68: 16:45:00
A69: 17:00:00
A70: 17:15:00
A71: 17:30:00
A72: 17:45:00
A73: 18:00:00
A74: 18:15:00
A75: 18:30:00
A76: 18:45:00
A77: 19:00:00
A78: 19:15:00
A79: 19:30:00
A80: 19:45:00
A81: 20:00:00
A82: 20:15:00
A83: 20:30:00
A84: 20:45:00
A85: 21:00:00
A86: 21:15:00
A87: 21:30:00
A88: 21:45:00
A89: 22:00:00
A90: 22:15:00
A91: 22:30:00
A92: 22:45:00
A93: 23:00:00
A94: 23:15:00
A95: 23:30:00
A96: 23:45:00

Sheet Offerte goederen (hidden)
C2: Offerte / Goederen
C4: Aanhef | D4: Voorl. | E4: Achternaam
B5: Naam klant/contactpers.: | C5: =Inmeetformulier!C5 -> 0 | D5: =Inmeetformulier!D5 -> 0 | E5: =Inmeetformulier!E5 -> 0
B6: Organisatie: | C6: =Inmeetformulier!C6 -> 0
B7: Montage-adres: | C7: =Inmeetformulier!C7 -> 0
B8: Postcode/Wplts.: | C8: =Inmeetformulier!C8 -> 0 | D8: =Inmeetformulier!D8 -> 0
B9: Land: | C9: =Inmeetformulier!C9 -> 0
B10: E-mailadres: | C10: =Inmeetformulier!C10 -> 0
C11: Landcode | D11: Tel.nr.
B12: Telefoon 1: | C12: =Inmeetformulier!C12 -> 0 | D12: =Inmeetformulier!D12 -> 0
B13: Telefoon 2: | C13: =Inmeetformulier!C13 -> 0 | D13: =Inmeetformulier!D13 -> 0
B15: Ingemeten op (1): | C15: =Inmeetformulier!C15 -> 00:00:00 | F15: Offertedatum:
B16: Ingemeten op (2): | C16: =Inmeetformulier!C16 -> 00:00:00 | F16: Geldig t/m: | G16: =IF(G15="","",EDATE(G15,1)) -> 
B18: Projectomschrijving klant: | C18: =Inmeetformulier!C18 -> 0 | P18: =IF(X19=TRUE,"Totaalbedrag goederen (excl. BTW): ","Totaalbedrag goederen (BTW verlegd): ") -> Totaalbedrag goederen (excl. BTW): | U18: =SUM($W25:$W125) -> 0
C19: =Inmeetformulier!C19 -> 0 | P19: =IF(X19=TRUE,CONCATENATE("+ BTW (",100*Formulierdata!A29,"%): "),"") -> + BTW (21%): | U19: =IF(X19=TRUE,Formulierdata!A29*U18,"") -> 0 | X19: TRUE
C20: =Inmeetformulier!C20 -> 0 | P20: =IF(X19=TRUE,"Totaalbedrag goederen (incl. BTW): ","") -> Totaalbedrag goederen (incl. BTW): | U20: =IF(X19=TRUE,SUM(U18:W19),"") -> 0
W22: 2
B24: Vertrek | C24: Artikelsoort | D24: B (cm) | E24: H (cm) | F24: Strak/Blijv. | G24: Stel/Stuk | H24: Plooi | I24: Raillngt. | J24: Railtype | K24: Railkleur | L24: Bevest. | M24: Bediening | N24: Artikelomschrijving | O24: Merk | P24: Opmerkingen | R24: =IF($W$22=1,"Prijs (incl. BTW)","Prijs (excl. BTW)") -> Prijs (excl. BTW) | S24: per | U24: Aantal eenh. | W24: Bedrag (excl. BTW) | Y24: Bedrag (incl. BTW)
B25: =Inmeetformulier!B25 -> 0 | C25: =Inmeetformulier!C25 -> 0 | D25: =Inmeetformulier!D25 -> 0 | E25: =Inmeetformulier!E25 -> 0 | F25: =Inmeetformulier!F25 -> 0 | G25: =Inmeetformulier!G25 -> 0 | H25: =Inmeetformulier!H25 -> 0 | I25: =Inmeetformulier!I25 -> 0 | J25: =Inmeetformulier!J25 -> 0 | K25: =Inmeetformulier!K25 -> 0 | L25: =Inmeetformulier!L25 -> 0 | M25: =Inmeetformulier!N25 -> 0 | N25: =Inmeetformulier!P25 -> 0 | O25: =Inmeetformulier!Q25 -> 0 | P25: =Inmeetformulier!S25 -> 0 | W25: =IF(Y25="","",(1/(1+Formulierdata!$A$29))*Y25) ->  | Y25: =IF($W$22=1,IF(R25="","",IF(OR(U25="",U25=0,U25=1),R25,R25*U25)),IF(R25="","",IF(OR(U25="",U25=0,U25=1),R25*(1+Formulierdata!$A$29),R25*(1+Formulierdata!$A$29)*U25))) -> 
B26: =Inmeetformulier!B26 -> 0 | C26: =Inmeetformulier!C26 -> 0 | D26: =Inmeetformulier!D26 -> 0 | E26: =Inmeetformulier!E26 -> 0 | F26: =Inmeetformulier!F26 -> 0 | G26: =Inmeetformulier!G26 -> 0 | H26: =Inmeetformulier!H26 -> 0 | I26: =Inmeetformulier!I26 -> 0 | J26: =Inmeetformulier!J26 -> 0 | K26: =Inmeetformulier!K26 -> 0 | L26: =Inmeetformulier!L26 -> 0 | M26: =Inmeetformulier!N26 -> 0 | N26: =Inmeetformulier!P26 -> 0 | O26: =Inmeetformulier!Q26 -> 0 | P26: =Inmeetformulier!S26 -> 0 | W26: =IF(Y26="","",(1/(1+Formulierdata!$A$29))*Y26) ->  | Y26: =IF($W$22=1,IF(R26="","",IF(OR(U26="",U26=0,U26=1),R26,R26*U26)),IF(R26="","",IF(OR(U26="",U26=0,U26=1),R26*(1+Formulierdata!$A$29),R26*(1+Formulierdata!$A$29)*U26))) -> 
B27: =Inmeetformulier!B27 -> 0 | C27: =Inmeetformulier!C27 -> 0 | D27: =Inmeetformulier!D27 -> 0 | E27: =Inmeetformulier!E27 -> 0 | F27: =Inmeetformulier!F27 -> 0 | G27: =Inmeetformulier!G27 -> 0 | H27: =Inmeetformulier!H27 -> 0 | I27: =Inmeetformulier!I27 -> 0 | J27: =Inmeetformulier!J27 -> 0 | K27: =Inmeetformulier!K27 -> 0 | L27: =Inmeetformulier!L27 -> 0 | M27: =Inmeetformulier!N27 -> 0 | N27: =Inmeetformulier!P27 -> 0 | O27: =Inmeetformulier!Q27 -> 0 | P27: =Inmeetformulier!S27 -> 0 | W27: =IF(Y27="","",(1/(1+Formulierdata!$A$29))*Y27) ->  | Y27: =IF($W$22=1,IF(R27="","",IF(OR(U27="",U27=0,U27=1),R27,R27*U27)),IF(R27="","",IF(OR(U27="",U27=0,U27=1),R27*(1+Formulierdata!$A$29),R27*(1+Formulierdata!$A$29)*U27))) -> 
B28: =Inmeetformulier!B28 -> 0 | C28: =Inmeetformulier!C28 -> 0 | D28: =Inmeetformulier!D28 -> 0 | E28: =Inmeetformulier!E28 -> 0 | F28: =Inmeetformulier!F28 -> 0 | G28: =Inmeetformulier!G28 -> 0 | H28: =Inmeetformulier!H28 -> 0 | I28: =Inmeetformulier!I28 -> 0 | J28: =Inmeetformulier!J28 -> 0 | K28: =Inmeetformulier!K28 -> 0 | L28: =Inmeetformulier!L28 -> 0 | M28: =Inmeetformulier!N28 -> 0 | N28: =Inmeetformulier!P28 -> 0 | O28: =Inmeetformulier!Q28 -> 0 | P28: =Inmeetformulier!S28 -> 0 | W28: =IF(Y28="","",(1/(1+Formulierdata!$A$29))*Y28) ->  | Y28: =IF($W$22=1,IF(R28="","",IF(OR(U28="",U28=0,U28=1),R28,R28*U28)),IF(R28="","",IF(OR(U28="",U28=0,U28=1),R28*(1+Formulierdata!$A$29),R28*(1+Formulierdata!$A$29)*U28))) -> 
B29: =Inmeetformulier!B29 -> 0 | C29: =Inmeetformulier!C29 -> 0 | D29: =Inmeetformulier!D29 -> 0 | E29: =Inmeetformulier!E29 -> 0 | F29: =Inmeetformulier!F29 -> 0 | G29: =Inmeetformulier!G29 -> 0 | H29: =Inmeetformulier!H29 -> 0 | I29: =Inmeetformulier!I29 -> 0 | J29: =Inmeetformulier!J29 -> 0 | K29: =Inmeetformulier!K29 -> 0 | L29: =Inmeetformulier!L29 -> 0 | M29: =Inmeetformulier!N29 -> 0 | N29: =Inmeetformulier!P29 -> 0 | O29: =Inmeetformulier!Q29 -> 0 | P29: =Inmeetformulier!S29 -> 0 | W29: =IF(Y29="","",(1/(1+Formulierdata!$A$29))*Y29) ->  | Y29: =IF($W$22=1,IF(R29="","",IF(OR(U29="",U29=0,U29=1),R29,R29*U29)),IF(R29="","",IF(OR(U29="",U29=0,U29=1),R29*(1+Formulierdata!$A$29),R29*(1+Formulierdata!$A$29)*U29))) -> 
B30: =Inmeetformulier!B30 -> 0 | C30: =Inmeetformulier!C30 -> 0 | D30: =Inmeetformulier!D30 -> 0 | E30: =Inmeetformulier!E30 -> 0 | F30: =Inmeetformulier!F30 -> 0 | G30: =Inmeetformulier!G30 -> 0 | H30: =Inmeetformulier!H30 -> 0 | I30: =Inmeetformulier!I30 -> 0 | J30: =Inmeetformulier!J30 -> 0 | K30: =Inmeetformulier!K30 -> 0 | L30: =Inmeetformulier!L30 -> 0 | M30: =Inmeetformulier!N30 -> 0 | N30: =Inmeetformulier!P30 -> 0 | O30: =Inmeetformulier!Q30 -> 0 | P30: =Inmeetformulier!S30 -> 0 | W30: =IF(Y30="","",(1/(1+Formulierdata!$A$29))*Y30) ->  | Y30: =IF($W$22=1,IF(R30="","",IF(OR(U30="",U30=0,U30=1),R30,R30*U30)),IF(R30="","",IF(OR(U30="",U30=0,U30=1),R30*(1+Formulierdata!$A$29),R30*(1+Formulierdata!$A$29)*U30))) -> 
B31: =Inmeetformulier!B31 -> 0 | C31: =Inmeetformulier!C31 -> 0 | D31: =Inmeetformulier!D31 -> 0 | E31: =Inmeetformulier!E31 -> 0 | F31: =Inmeetformulier!F31 -> 0 | G31: =Inmeetformulier!G31 -> 0 | H31: =Inmeetformulier!H31 -> 0 | I31: =Inmeetformulier!I31 -> 0 | J31: =Inmeetformulier!J31 -> 0 | K31: =Inmeetformulier!K31 -> 0 | L31: =Inmeetformulier!L31 -> 0 | M31: =Inmeetformulier!N31 -> 0 | N31: =Inmeetformulier!P31 -> 0 | O31: =Inmeetformulier!Q31 -> 0 | P31: =Inmeetformulier!S31 -> 0 | W31: =IF(Y31="","",(1/(1+Formulierdata!$A$29))*Y31) ->  | Y31: =IF($W$22=1,IF(R31="","",IF(OR(U31="",U31=0,U31=1),R31,R31*U31)),IF(R31="","",IF(OR(U31="",U31=0,U31=1),R31*(1+Formulierdata!$A$29),R31*(1+Formulierdata!$A$29)*U31))) -> 
B32: =Inmeetformulier!B32 -> 0 | C32: =Inmeetformulier!C32 -> 0 | D32: =Inmeetformulier!D32 -> 0 | E32: =Inmeetformulier!E32 -> 0 | F32: =Inmeetformulier!F32 -> 0 | G32: =Inmeetformulier!G32 -> 0 | H32: =Inmeetformulier!H32 -> 0 | I32: =Inmeetformulier!I32 -> 0 | J32: =Inmeetformulier!J32 -> 0 | K32: =Inmeetformulier!K32 -> 0 | L32: =Inmeetformulier!L32 -> 0 | M32: =Inmeetformulier!N32 -> 0 | N32: =Inmeetformulier!P32 -> 0 | O32: =Inmeetformulier!Q32 -> 0 | P32: =Inmeetformulier!S32 -> 0 | W32: =IF(Y32="","",(1/(1+Formulierdata!$A$29))*Y32) ->  | Y32: =IF($W$22=1,IF(R32="","",IF(OR(U32="",U32=0,U32=1),R32,R32*U32)),IF(R32="","",IF(OR(U32="",U32=0,U32=1),R32*(1+Formulierdata!$A$29),R32*(1+Formulierdata!$A$29)*U32))) -> 
B33: =Inmeetformulier!B33 -> 0 | C33: =Inmeetformulier!C33 -> 0 | D33: =Inmeetformulier!D33 -> 0 | E33: =Inmeetformulier!E33 -> 0 | F33: =Inmeetformulier!F33 -> 0 | G33: =Inmeetformulier!G33 -> 0 | H33: =Inmeetformulier!H33 -> 0 | I33: =Inmeetformulier!I33 -> 0 | J33: =Inmeetformulier!J33 -> 0 | K33: =Inmeetformulier!K33 -> 0 | L33: =Inmeetformulier!L33 -> 0 | M33: =Inmeetformulier!N33 -> 0 | N33: =Inmeetformulier!P33 -> 0 | O33: =Inmeetformulier!Q33 -> 0 | P33: =Inmeetformulier!S33 -> 0 | W33: =IF(Y33="","",(1/(1+Formulierdata!$A$29))*Y33) ->  | Y33: =IF($W$22=1,IF(R33="","",IF(OR(U33="",U33=0,U33=1),R33,R33*U33)),IF(R33="","",IF(OR(U33="",U33=0,U33=1),R33*(1+Formulierdata!$A$29),R33*(1+Formulierdata!$A$29)*U33))) -> 
B34: =Inmeetformulier!B34 -> 0 | C34: =Inmeetformulier!C34 -> 0 | D34: =Inmeetformulier!D34 -> 0 | E34: =Inmeetformulier!E34 -> 0 | F34: =Inmeetformulier!F34 -> 0 | G34: =Inmeetformulier!G34 -> 0 | H34: =Inmeetformulier!H34 -> 0 | I34: =Inmeetformulier!I34 -> 0 | J34: =Inmeetformulier!J34 -> 0 | K34: =Inmeetformulier!K34 -> 0 | L34: =Inmeetformulier!L34 -> 0 | M34: =Inmeetformulier!N34 -> 0 | N34: =Inmeetformulier!P34 -> 0 | O34: =Inmeetformulier!Q34 -> 0 | P34: =Inmeetformulier!S34 -> 0 | W34: =IF(Y34="","",(1/(1+Formulierdata!$A$29))*Y34) ->  | Y34: =IF($W$22=1,IF(R34="","",IF(OR(U34="",U34=0,U34=1),R34,R34*U34)),IF(R34="","",IF(OR(U34="",U34=0,U34=1),R34*(1+Formulierdata!$A$29),R34*(1+Formulierdata!$A$29)*U34))) -> 
B35: =Inmeetformulier!B35 -> 0 | C35: =Inmeetformulier!C35 -> 0 | D35: =Inmeetformulier!D35 -> 0 | E35: =Inmeetformulier!E35 -> 0 | F35: =Inmeetformulier!F35 -> 0 | G35: =Inmeetformulier!G35 -> 0 | H35: =Inmeetformulier!H35 -> 0 | I35: =Inmeetformulier!I35 -> 0 | J35: =Inmeetformulier!J35 -> 0 | K35: =Inmeetformulier!K35 -> 0 | L35: =Inmeetformulier!L35 -> 0 | M35: =Inmeetformulier!N35 -> 0 | N35: =Inmeetformulier!P35 -> 0 | O35: =Inmeetformulier!Q35 -> 0 | P35: =Inmeetformulier!S35 -> 0 | W35: =IF(Y35="","",(1/(1+Formulierdata!$A$29))*Y35) ->  | Y35: =IF($W$22=1,IF(R35="","",IF(OR(U35="",U35=0,U35=1),R35,R35*U35)),IF(R35="","",IF(OR(U35="",U35=0,U35=1),R35*(1+Formulierdata!$A$29),R35*(1+Formulierdata!$A$29)*U35))) -> 
B36: =Inmeetformulier!B36 -> 0 | C36: =Inmeetformulier!C36 -> 0 | D36: =Inmeetformulier!D36 -> 0 | E36: =Inmeetformulier!E36 -> 0 | F36: =Inmeetformulier!F36 -> 0 | G36: =Inmeetformulier!G36 -> 0 | H36: =Inmeetformulier!H36 -> 0 | I36: =Inmeetformulier!I36 -> 0 | J36: =Inmeetformulier!J36 -> 0 | K36: =Inmeetformulier!K36 -> 0 | L36: =Inmeetformulier!L36 -> 0 | M36: =Inmeetformulier!N36 -> 0 | N36: =Inmeetformulier!P36 -> 0 | O36: =Inmeetformulier!Q36 -> 0 | P36: =Inmeetformulier!S36 -> 0 | W36: =IF(Y36="","",(1/(1+Formulierdata!$A$29))*Y36) ->  | Y36: =IF($W$22=1,IF(R36="","",IF(OR(U36="",U36=0,U36=1),R36,R36*U36)),IF(R36="","",IF(OR(U36="",U36=0,U36=1),R36*(1+Formulierdata!$A$29),R36*(1+Formulierdata!$A$29)*U36))) -> 
B37: =Inmeetformulier!B37 -> 0 | C37: =Inmeetformulier!C37 -> 0 | D37: =Inmeetformulier!D37 -> 0 | E37: =Inmeetformulier!E37 -> 0 | F37: =Inmeetformulier!F37 -> 0 | G37: =Inmeetformulier!G37 -> 0 | H37: =Inmeetformulier!H37 -> 0 | I37: =Inmeetformulier!I37 -> 0 | J37: =Inmeetformulier!J37 -> 0 | K37: =Inmeetformulier!K37 -> 0 | L37: =Inmeetformulier!L37 -> 0 | M37: =Inmeetformulier!N37 -> 0 | N37: =Inmeetformulier!P37 -> 0 | O37: =Inmeetformulier!Q37 -> 0 | P37: =Inmeetformulier!S37 -> 0 | W37: =IF(Y37="","",(1/(1+Formulierdata!$A$29))*Y37) ->  | Y37: =IF($W$22=1,IF(R37="","",IF(OR(U37="",U37=0,U37=1),R37,R37*U37)),IF(R37="","",IF(OR(U37="",U37=0,U37=1),R37*(1+Formulierdata!$A$29),R37*(1+Formulierdata!$A$29)*U37))) -> 
B38: =Inmeetformulier!B38 -> 0 | C38: =Inmeetformulier!C38 -> 0 | D38: =Inmeetformulier!D38 -> 0 | E38: =Inmeetformulier!E38 -> 0 | F38: =Inmeetformulier!F38 -> 0 | G38: =Inmeetformulier!G38 -> 0 | H38: =Inmeetformulier!H38 -> 0 | I38: =Inmeetformulier!I38 -> 0 | J38: =Inmeetformulier!J38 -> 0 | K38: =Inmeetformulier!K38 -> 0 | L38: =Inmeetformulier!L38 -> 0 | M38: =Inmeetformulier!N38 -> 0 | N38: =Inmeetformulier!P38 -> 0 | O38: =Inmeetformulier!Q38 -> 0 | P38: =Inmeetformulier!S38 -> 0 | W38: =IF(Y38="","",(1/(1+Formulierdata!$A$29))*Y38) ->  | Y38: =IF($W$22=1,IF(R38="","",IF(OR(U38="",U38=0,U38=1),R38,R38*U38)),IF(R38="","",IF(OR(U38="",U38=0,U38=1),R38*(1+Formulierdata!$A$29),R38*(1+Formulierdata!$A$29)*U38))) -> 
B39: =Inmeetformulier!B39 -> 0 | C39: =Inmeetformulier!C39 -> 0 | D39: =Inmeetformulier!D39 -> 0 | E39: =Inmeetformulier!E39 -> 0 | F39: =Inmeetformulier!F39 -> 0 | G39: =Inmeetformulier!G39 -> 0 | H39: =Inmeetformulier!H39 -> 0 | I39: =Inmeetformulier!I39 -> 0 | J39: =Inmeetformulier!J39 -> 0 | K39: =Inmeetformulier!K39 -> 0 | L39: =Inmeetformulier!L39 -> 0 | M39: =Inmeetformulier!N39 -> 0 | N39: =Inmeetformulier!P39 -> 0 | O39: =Inmeetformulier!Q39 -> 0 | P39: =Inmeetformulier!S39 -> 0 | W39: =IF(Y39="","",(1/(1+Formulierdata!$A$29))*Y39) ->  | Y39: =IF($W$22=1,IF(R39="","",IF(OR(U39="",U39=0,U39=1),R39,R39*U39)),IF(R39="","",IF(OR(U39="",U39=0,U39=1),R39*(1+Formulierdata!$A$29),R39*(1+Formulierdata!$A$29)*U39))) -> 
B40: =Inmeetformulier!B40 -> 0 | C40: =Inmeetformulier!C40 -> 0 | D40: =Inmeetformulier!D40 -> 0 | E40: =Inmeetformulier!E40 -> 0 | F40: =Inmeetformulier!F40 -> 0 | G40: =Inmeetformulier!G40 -> 0 | H40: =Inmeetformulier!H40 -> 0 | I40: =Inmeetformulier!I40 -> 0 | J40: =Inmeetformulier!J40 -> 0 | K40: =Inmeetformulier!K40 -> 0 | L40: =Inmeetformulier!L40 -> 0 | M40: =Inmeetformulier!N40 -> 0 | N40: =Inmeetformulier!P40 -> 0 | O40: =Inmeetformulier!Q40 -> 0 | P40: =Inmeetformulier!S40 -> 0 | W40: =IF(Y40="","",(1/(1+Formulierdata!$A$29))*Y40) ->  | Y40: =IF($W$22=1,IF(R40="","",IF(OR(U40="",U40=0,U40=1),R40,R40*U40)),IF(R40="","",IF(OR(U40="",U40=0,U40=1),R40*(1+Formulierdata!$A$29),R40*(1+Formulierdata!$A$29)*U40))) -> 
B41: =Inmeetformulier!B41 -> 0 | C41: =Inmeetformulier!C41 -> 0 | D41: =Inmeetformulier!D41 -> 0 | E41: =Inmeetformulier!E41 -> 0 | F41: =Inmeetformulier!F41 -> 0 | G41: =Inmeetformulier!G41 -> 0 | H41: =Inmeetformulier!H41 -> 0 | I41: =Inmeetformulier!I41 -> 0 | J41: =Inmeetformulier!J41 -> 0 | K41: =Inmeetformulier!K41 -> 0 | L41: =Inmeetformulier!L41 -> 0 | M41: =Inmeetformulier!N41 -> 0 | N41: =Inmeetformulier!P41 -> 0 | O41: =Inmeetformulier!Q41 -> 0 | P41: =Inmeetformulier!S41 -> 0 | W41: =IF(Y41="","",(1/(1+Formulierdata!$A$29))*Y41) ->  | Y41: =IF($W$22=1,IF(R41="","",IF(OR(U41="",U41=0,U41=1),R41,R41*U41)),IF(R41="","",IF(OR(U41="",U41=0,U41=1),R41*(1+Formulierdata!$A$29),R41*(1+Formulierdata!$A$29)*U41))) -> 
B42: =Inmeetformulier!B42 -> 0 | C42: =Inmeetformulier!C42 -> 0 | D42: =Inmeetformulier!D42 -> 0 | E42: =Inmeetformulier!E42 -> 0 | F42: =Inmeetformulier!F42 -> 0 | G42: =Inmeetformulier!G42 -> 0 | H42: =Inmeetformulier!H42 -> 0 | I42: =Inmeetformulier!I42 -> 0 | J42: =Inmeetformulier!J42 -> 0 | K42: =Inmeetformulier!K42 -> 0 | L42: =Inmeetformulier!L42 -> 0 | M42: =Inmeetformulier!N42 -> 0 | N42: =Inmeetformulier!P42 -> 0 | O42: =Inmeetformulier!Q42 -> 0 | P42: =Inmeetformulier!S42 -> 0 | W42: =IF(Y42="","",(1/(1+Formulierdata!$A$29))*Y42) ->  | Y42: =IF($W$22=1,IF(R42="","",IF(OR(U42="",U42=0,U42=1),R42,R42*U42)),IF(R42="","",IF(OR(U42="",U42=0,U42=1),R42*(1+Formulierdata!$A$29),R42*(1+Formulierdata!$A$29)*U42))) -> 
B43: =Inmeetformulier!B43 -> 0 | C43: =Inmeetformulier!C43 -> 0 | D43: =Inmeetformulier!D43 -> 0 | E43: =Inmeetformulier!E43 -> 0 | F43: =Inmeetformulier!F43 -> 0 | G43: =Inmeetformulier!G43 -> 0 | H43: =Inmeetformulier!H43 -> 0 | I43: =Inmeetformulier!I43 -> 0 | J43: =Inmeetformulier!J43 -> 0 | K43: =Inmeetformulier!K43 -> 0 | L43: =Inmeetformulier!L43 -> 0 | M43: =Inmeetformulier!N43 -> 0 | N43: =Inmeetformulier!P43 -> 0 | O43: =Inmeetformulier!Q43 -> 0 | P43: =Inmeetformulier!S43 -> 0 | W43: =IF(Y43="","",(1/(1+Formulierdata!$A$29))*Y43) ->  | Y43: =IF($W$22=1,IF(R43="","",IF(OR(U43="",U43=0,U43=1),R43,R43*U43)),IF(R43="","",IF(OR(U43="",U43=0,U43=1),R43*(1+Formulierdata!$A$29),R43*(1+Formulierdata!$A$29)*U43))) -> 
B44: =Inmeetformulier!B44 -> 0 | C44: =Inmeetformulier!C44 -> 0 | D44: =Inmeetformulier!D44 -> 0 | E44: =Inmeetformulier!E44 -> 0 | F44: =Inmeetformulier!F44 -> 0 | G44: =Inmeetformulier!G44 -> 0 | H44: =Inmeetformulier!H44 -> 0 | I44: =Inmeetformulier!I44 -> 0 | J44: =Inmeetformulier!J44 -> 0 | K44: =Inmeetformulier!K44 -> 0 | L44: =Inmeetformulier!L44 -> 0 | M44: =Inmeetformulier!N44 -> 0 | N44: =Inmeetformulier!P44 -> 0 | O44: =Inmeetformulier!Q44 -> 0 | P44: =Inmeetformulier!S44 -> 0 | W44: =IF(Y44="","",(1/(1+Formulierdata!$A$29))*Y44) ->  | Y44: =IF($W$22=1,IF(R44="","",IF(OR(U44="",U44=0,U44=1),R44,R44*U44)),IF(R44="","",IF(OR(U44="",U44=0,U44=1),R44*(1+Formulierdata!$A$29),R44*(1+Formulierdata!$A$29)*U44))) -> 
B45: =Inmeetformulier!B45 -> 0 | C45: =Inmeetformulier!C45 -> 0 | D45: =Inmeetformulier!D45 -> 0 | E45: =Inmeetformulier!E45 -> 0 | F45: =Inmeetformulier!F45 -> 0 | G45: =Inmeetformulier!G45 -> 0 | H45: =Inmeetformulier!H45 -> 0 | I45: =Inmeetformulier!I45 -> 0 | J45: =Inmeetformulier!J45 -> 0 | K45: =Inmeetformulier!K45 -> 0 | L45: =Inmeetformulier!L45 -> 0 | M45: =Inmeetformulier!N45 -> 0 | N45: =Inmeetformulier!P45 -> 0 | O45: =Inmeetformulier!Q45 -> 0 | P45: =Inmeetformulier!S45 -> 0 | W45: =IF(Y45="","",(1/(1+Formulierdata!$A$29))*Y45) ->  | Y45: =IF($W$22=1,IF(R45="","",IF(OR(U45="",U45=0,U45=1),R45,R45*U45)),IF(R45="","",IF(OR(U45="",U45=0,U45=1),R45*(1+Formulierdata!$A$29),R45*(1+Formulierdata!$A$29)*U45))) -> 
B46: =Inmeetformulier!B46 -> 0 | C46: =Inmeetformulier!C46 -> 0 | D46: =Inmeetformulier!D46 -> 0 | E46: =Inmeetformulier!E46 -> 0 | F46: =Inmeetformulier!F46 -> 0 | G46: =Inmeetformulier!G46 -> 0 | H46: =Inmeetformulier!H46 -> 0 | I46: =Inmeetformulier!I46 -> 0 | J46: =Inmeetformulier!J46 -> 0 | K46: =Inmeetformulier!K46 -> 0 | L46: =Inmeetformulier!L46 -> 0 | M46: =Inmeetformulier!N46 -> 0 | N46: =Inmeetformulier!P46 -> 0 | O46: =Inmeetformulier!Q46 -> 0 | P46: =Inmeetformulier!S46 -> 0 | W46: =IF(Y46="","",(1/(1+Formulierdata!$A$29))*Y46) ->  | Y46: =IF($W$22=1,IF(R46="","",IF(OR(U46="",U46=0,U46=1),R46,R46*U46)),IF(R46="","",IF(OR(U46="",U46=0,U46=1),R46*(1+Formulierdata!$A$29),R46*(1+Formulierdata!$A$29)*U46))) -> 
B47: =Inmeetformulier!B47 -> 0 | C47: =Inmeetformulier!C47 -> 0 | D47: =Inmeetformulier!D47 -> 0 | E47: =Inmeetformulier!E47 -> 0 | F47: =Inmeetformulier!F47 -> 0 | G47: =Inmeetformulier!G47 -> 0 | H47: =Inmeetformulier!H47 -> 0 | I47: =Inmeetformulier!I47 -> 0 | J47: =Inmeetformulier!J47 -> 0 | K47: =Inmeetformulier!K47 -> 0 | L47: =Inmeetformulier!L47 -> 0 | M47: =Inmeetformulier!N47 -> 0 | N47: =Inmeetformulier!P47 -> 0 | O47: =Inmeetformulier!Q47 -> 0 | P47: =Inmeetformulier!S47 -> 0 | W47: =IF(Y47="","",(1/(1+Formulierdata!$A$29))*Y47) ->  | Y47: =IF($W$22=1,IF(R47="","",IF(OR(U47="",U47=0,U47=1),R47,R47*U47)),IF(R47="","",IF(OR(U47="",U47=0,U47=1),R47*(1+Formulierdata!$A$29),R47*(1+Formulierdata!$A$29)*U47))) -> 
B48: =Inmeetformulier!B48 -> 0 | C48: =Inmeetformulier!C48 -> 0 | D48: =Inmeetformulier!D48 -> 0 | E48: =Inmeetformulier!E48 -> 0 | F48: =Inmeetformulier!F48 -> 0 | G48: =Inmeetformulier!G48 -> 0 | H48: =Inmeetformulier!H48 -> 0 | I48: =Inmeetformulier!I48 -> 0 | J48: =Inmeetformulier!J48 -> 0 | K48: =Inmeetformulier!K48 -> 0 | L48: =Inmeetformulier!L48 -> 0 | M48: =Inmeetformulier!N48 -> 0 | N48: =Inmeetformulier!P48 -> 0 | O48: =Inmeetformulier!Q48 -> 0 | P48: =Inmeetformulier!S48 -> 0 | W48: =IF(Y48="","",(1/(1+Formulierdata!$A$29))*Y48) ->  | Y48: =IF($W$22=1,IF(R48="","",IF(OR(U48="",U48=0,U48=1),R48,R48*U48)),IF(R48="","",IF(OR(U48="",U48=0,U48=1),R48*(1+Formulierdata!$A$29),R48*(1+Formulierdata!$A$29)*U48))) -> 
B49: =Inmeetformulier!B49 -> 0 | C49: =Inmeetformulier!C49 -> 0 | D49: =Inmeetformulier!D49 -> 0 | E49: =Inmeetformulier!E49 -> 0 | F49: =Inmeetformulier!F49 -> 0 | G49: =Inmeetformulier!G49 -> 0 | H49: =Inmeetformulier!H49 -> 0 | I49: =Inmeetformulier!I49 -> 0 | J49: =Inmeetformulier!J49 -> 0 | K49: =Inmeetformulier!K49 -> 0 | L49: =Inmeetformulier!L49 -> 0 | M49: =Inmeetformulier!N49 -> 0 | N49: =Inmeetformulier!P49 -> 0 | O49: =Inmeetformulier!Q49 -> 0 | P49: =Inmeetformulier!S49 -> 0 | W49: =IF(Y49="","",(1/(1+Formulierdata!$A$29))*Y49) ->  | Y49: =IF($W$22=1,IF(R49="","",IF(OR(U49="",U49=0,U49=1),R49,R49*U49)),IF(R49="","",IF(OR(U49="",U49=0,U49=1),R49*(1+Formulierdata!$A$29),R49*(1+Formulierdata!$A$29)*U49))) -> 
B50: =Inmeetformulier!B50 -> 0 | C50: =Inmeetformulier!C50 -> 0 | D50: =Inmeetformulier!D50 -> 0 | E50: =Inmeetformulier!E50 -> 0 | F50: =Inmeetformulier!F50 -> 0 | G50: =Inmeetformulier!G50 -> 0 | H50: =Inmeetformulier!H50 -> 0 | I50: =Inmeetformulier!I50 -> 0 | J50: =Inmeetformulier!J50 -> 0 | K50: =Inmeetformulier!K50 -> 0 | L50: =Inmeetformulier!L50 -> 0 | M50: =Inmeetformulier!N50 -> 0 | N50: =Inmeetformulier!P50 -> 0 | O50: =Inmeetformulier!Q50 -> 0 | P50: =Inmeetformulier!S50 -> 0 | W50: =IF(Y50="","",(1/(1+Formulierdata!$A$29))*Y50) ->  | Y50: =IF($W$22=1,IF(R50="","",IF(OR(U50="",U50=0,U50=1),R50,R50*U50)),IF(R50="","",IF(OR(U50="",U50=0,U50=1),R50*(1+Formulierdata!$A$29),R50*(1+Formulierdata!$A$29)*U50))) -> 
B51: =Inmeetformulier!B51 -> 0 | C51: =Inmeetformulier!C51 -> 0 | D51: =Inmeetformulier!D51 -> 0 | E51: =Inmeetformulier!E51 -> 0 | F51: =Inmeetformulier!F51 -> 0 | G51: =Inmeetformulier!G51 -> 0 | H51: =Inmeetformulier!H51 -> 0 | I51: =Inmeetformulier!I51 -> 0 | J51: =Inmeetformulier!J51 -> 0 | K51: =Inmeetformulier!K51 -> 0 | L51: =Inmeetformulier!L51 -> 0 | M51: =Inmeetformulier!N51 -> 0 | N51: =Inmeetformulier!P51 -> 0 | O51: =Inmeetformulier!Q51 -> 0 | P51: =Inmeetformulier!S51 -> 0 | W51: =IF(Y51="","",(1/(1+Formulierdata!$A$29))*Y51) ->  | Y51: =IF($W$22=1,IF(R51="","",IF(OR(U51="",U51=0,U51=1),R51,R51*U51)),IF(R51="","",IF(OR(U51="",U51=0,U51=1),R51*(1+Formulierdata!$A$29),R51*(1+Formulierdata!$A$29)*U51))) -> 
B52: =Inmeetformulier!B52 -> 0 | C52: =Inmeetformulier!C52 -> 0 | D52: =Inmeetformulier!D52 -> 0 | E52: =Inmeetformulier!E52 -> 0 | F52: =Inmeetformulier!F52 -> 0 | G52: =Inmeetformulier!G52 -> 0 | H52: =Inmeetformulier!H52 -> 0 | I52: =Inmeetformulier!I52 -> 0 | J52: =Inmeetformulier!J52 -> 0 | K52: =Inmeetformulier!K52 -> 0 | L52: =Inmeetformulier!L52 -> 0 | M52: =Inmeetformulier!N52 -> 0 | N52: =Inmeetformulier!P52 -> 0 | O52: =Inmeetformulier!Q52 -> 0 | P52: =Inmeetformulier!S52 -> 0 | W52: =IF(Y52="","",(1/(1+Formulierdata!$A$29))*Y52) ->  | Y52: =IF($W$22=1,IF(R52="","",IF(OR(U52="",U52=0,U52=1),R52,R52*U52)),IF(R52="","",IF(OR(U52="",U52=0,U52=1),R52*(1+Formulierdata!$A$29),R52*(1+Formulierdata!$A$29)*U52))) -> 
B53: =Inmeetformulier!B53 -> 0 | C53: =Inmeetformulier!C53 -> 0 | D53: =Inmeetformulier!D53 -> 0 | E53: =Inmeetformulier!E53 -> 0 | F53: =Inmeetformulier!F53 -> 0 | G53: =Inmeetformulier!G53 -> 0 | H53: =Inmeetformulier!H53 -> 0 | I53: =Inmeetformulier!I53 -> 0 | J53: =Inmeetformulier!J53 -> 0 | K53: =Inmeetformulier!K53 -> 0 | L53: =Inmeetformulier!L53 -> 0 | M53: =Inmeetformulier!N53 -> 0 | N53: =Inmeetformulier!P53 -> 0 | O53: =Inmeetformulier!Q53 -> 0 | P53: =Inmeetformulier!S53 -> 0 | W53: =IF(Y53="","",(1/(1+Formulierdata!$A$29))*Y53) ->  | Y53: =IF($W$22=1,IF(R53="","",IF(OR(U53="",U53=0,U53=1),R53,R53*U53)),IF(R53="","",IF(OR(U53="",U53=0,U53=1),R53*(1+Formulierdata!$A$29),R53*(1+Formulierdata!$A$29)*U53))) -> 
B54: =Inmeetformulier!B54 -> 0 | C54: =Inmeetformulier!C54 -> 0 | D54: =Inmeetformulier!D54 -> 0 | E54: =Inmeetformulier!E54 -> 0 | F54: =Inmeetformulier!F54 -> 0 | G54: =Inmeetformulier!G54 -> 0 | H54: =Inmeetformulier!H54 -> 0 | I54: =Inmeetformulier!I54 -> 0 | J54: =Inmeetformulier!J54 -> 0 | K54: =Inmeetformulier!K54 -> 0 | L54: =Inmeetformulier!L54 -> 0 | M54: =Inmeetformulier!N54 -> 0 | N54: =Inmeetformulier!P54 -> 0 | O54: =Inmeetformulier!Q54 -> 0 | P54: =Inmeetformulier!S54 -> 0 | W54: =IF(Y54="","",(1/(1+Formulierdata!$A$29))*Y54) ->  | Y54: =IF($W$22=1,IF(R54="","",IF(OR(U54="",U54=0,U54=1),R54,R54*U54)),IF(R54="","",IF(OR(U54="",U54=0,U54=1),R54*(1+Formulierdata!$A$29),R54*(1+Formulierdata!$A$29)*U54))) -> 
B55: =Inmeetformulier!B55 -> 0 | C55: =Inmeetformulier!C55 -> 0 | D55: =Inmeetformulier!D55 -> 0 | E55: =Inmeetformulier!E55 -> 0 | F55: =Inmeetformulier!F55 -> 0 | G55: =Inmeetformulier!G55 -> 0 | H55: =Inmeetformulier!H55 -> 0 | I55: =Inmeetformulier!I55 -> 0 | J55: =Inmeetformulier!J55 -> 0 | K55: =Inmeetformulier!K55 -> 0 | L55: =Inmeetformulier!L55 -> 0 | M55: =Inmeetformulier!N55 -> 0 | N55: =Inmeetformulier!P55 -> 0 | O55: =Inmeetformulier!Q55 -> 0 | P55: =Inmeetformulier!S55 -> 0 | W55: =IF(Y55="","",(1/(1+Formulierdata!$A$29))*Y55) ->  | Y55: =IF($W$22=1,IF(R55="","",IF(OR(U55="",U55=0,U55=1),R55,R55*U55)),IF(R55="","",IF(OR(U55="",U55=0,U55=1),R55*(1+Formulierdata!$A$29),R55*(1+Formulierdata!$A$29)*U55))) -> 
B56: =Inmeetformulier!B56 -> 0 | C56: =Inmeetformulier!C56 -> 0 | D56: =Inmeetformulier!D56 -> 0 | E56: =Inmeetformulier!E56 -> 0 | F56: =Inmeetformulier!F56 -> 0 | G56: =Inmeetformulier!G56 -> 0 | H56: =Inmeetformulier!H56 -> 0 | I56: =Inmeetformulier!I56 -> 0 | J56: =Inmeetformulier!J56 -> 0 | K56: =Inmeetformulier!K56 -> 0 | L56: =Inmeetformulier!L56 -> 0 | M56: =Inmeetformulier!N56 -> 0 | N56: =Inmeetformulier!P56 -> 0 | O56: =Inmeetformulier!Q56 -> 0 | P56: =Inmeetformulier!S56 -> 0 | W56: =IF(Y56="","",(1/(1+Formulierdata!$A$29))*Y56) ->  | Y56: =IF($W$22=1,IF(R56="","",IF(OR(U56="",U56=0,U56=1),R56,R56*U56)),IF(R56="","",IF(OR(U56="",U56=0,U56=1),R56*(1+Formulierdata!$A$29),R56*(1+Formulierdata!$A$29)*U56))) -> 
B57: =Inmeetformulier!B57 -> 0 | C57: =Inmeetformulier!C57 -> 0 | D57: =Inmeetformulier!D57 -> 0 | E57: =Inmeetformulier!E57 -> 0 | F57: =Inmeetformulier!F57 -> 0 | G57: =Inmeetformulier!G57 -> 0 | H57: =Inmeetformulier!H57 -> 0 | I57: =Inmeetformulier!I57 -> 0 | J57: =Inmeetformulier!J57 -> 0 | K57: =Inmeetformulier!K57 -> 0 | L57: =Inmeetformulier!L57 -> 0 | M57: =Inmeetformulier!N57 -> 0 | N57: =Inmeetformulier!P57 -> 0 | O57: =Inmeetformulier!Q57 -> 0 | P57: =Inmeetformulier!S57 -> 0 | W57: =IF(Y57="","",(1/(1+Formulierdata!$A$29))*Y57) ->  | Y57: =IF($W$22=1,IF(R57="","",IF(OR(U57="",U57=0,U57=1),R57,R57*U57)),IF(R57="","",IF(OR(U57="",U57=0,U57=1),R57*(1+Formulierdata!$A$29),R57*(1+Formulierdata!$A$29)*U57))) -> 
B58: =Inmeetformulier!B58 -> 0 | C58: =Inmeetformulier!C58 -> 0 | D58: =Inmeetformulier!D58 -> 0 | E58: =Inmeetformulier!E58 -> 0 | F58: =Inmeetformulier!F58 -> 0 | G58: =Inmeetformulier!G58 -> 0 | H58: =Inmeetformulier!H58 -> 0 | I58: =Inmeetformulier!I58 -> 0 | J58: =Inmeetformulier!J58 -> 0 | K58: =Inmeetformulier!K58 -> 0 | L58: =Inmeetformulier!L58 -> 0 | M58: =Inmeetformulier!N58 -> 0 | N58: =Inmeetformulier!P58 -> 0 | O58: =Inmeetformulier!Q58 -> 0 | P58: =Inmeetformulier!S58 -> 0 | W58: =IF(Y58="","",(1/(1+Formulierdata!$A$29))*Y58) ->  | Y58: =IF($W$22=1,IF(R58="","",IF(OR(U58="",U58=0,U58=1),R58,R58*U58)),IF(R58="","",IF(OR(U58="",U58=0,U58=1),R58*(1+Formulierdata!$A$29),R58*(1+Formulierdata!$A$29)*U58))) -> 
B59: =Inmeetformulier!B59 -> 0 | C59: =Inmeetformulier!C59 -> 0 | D59: =Inmeetformulier!D59 -> 0 | E59: =Inmeetformulier!E59 -> 0 | F59: =Inmeetformulier!F59 -> 0 | G59: =Inmeetformulier!G59 -> 0 | H59: =Inmeetformulier!H59 -> 0 | I59: =Inmeetformulier!I59 -> 0 | J59: =Inmeetformulier!J59 -> 0 | K59: =Inmeetformulier!K59 -> 0 | L59: =Inmeetformulier!L59 -> 0 | M59: =Inmeetformulier!N59 -> 0 | N59: =Inmeetformulier!P59 -> 0 | O59: =Inmeetformulier!Q59 -> 0 | P59: =Inmeetformulier!S59 -> 0 | W59: =IF(Y59="","",(1/(1+Formulierdata!$A$29))*Y59) ->  | Y59: =IF($W$22=1,IF(R59="","",IF(OR(U59="",U59=0,U59=1),R59,R59*U59)),IF(R59="","",IF(OR(U59="",U59=0,U59=1),R59*(1+Formulierdata!$A$29),R59*(1+Formulierdata!$A$29)*U59))) -> 
B60: =Inmeetformulier!B60 -> 0 | C60: =Inmeetformulier!C60 -> 0 | D60: =Inmeetformulier!D60 -> 0 | E60: =Inmeetformulier!E60 -> 0 | F60: =Inmeetformulier!F60 -> 0 | G60: =Inmeetformulier!G60 -> 0 | H60: =Inmeetformulier!H60 -> 0 | I60: =Inmeetformulier!I60 -> 0 | J60: =Inmeetformulier!J60 -> 0 | K60: =Inmeetformulier!K60 -> 0 | L60: =Inmeetformulier!L60 -> 0 | M60: =Inmeetformulier!N60 -> 0 | N60: =Inmeetformulier!P60 -> 0 | O60: =Inmeetformulier!Q60 -> 0 | P60: =Inmeetformulier!S60 -> 0 | W60: =IF(Y60="","",(1/(1+Formulierdata!$A$29))*Y60) ->  | Y60: =IF($W$22=1,IF(R60="","",IF(OR(U60="",U60=0,U60=1),R60,R60*U60)),IF(R60="","",IF(OR(U60="",U60=0,U60=1),R60*(1+Formulierdata!$A$29),R60*(1+Formulierdata!$A$29)*U60))) -> 
B61: =Inmeetformulier!B61 -> 0 | C61: =Inmeetformulier!C61 -> 0 | D61: =Inmeetformulier!D61 -> 0 | E61: =Inmeetformulier!E61 -> 0 | F61: =Inmeetformulier!F61 -> 0 | G61: =Inmeetformulier!G61 -> 0 | H61: =Inmeetformulier!H61 -> 0 | I61: =Inmeetformulier!I61 -> 0 | J61: =Inmeetformulier!J61 -> 0 | K61: =Inmeetformulier!K61 -> 0 | L61: =Inmeetformulier!L61 -> 0 | M61: =Inmeetformulier!N61 -> 0 | N61: =Inmeetformulier!P61 -> 0 | O61: =Inmeetformulier!Q61 -> 0 | P61: =Inmeetformulier!S61 -> 0 | W61: =IF(Y61="","",(1/(1+Formulierdata!$A$29))*Y61) ->  | Y61: =IF($W$22=1,IF(R61="","",IF(OR(U61="",U61=0,U61=1),R61,R61*U61)),IF(R61="","",IF(OR(U61="",U61=0,U61=1),R61*(1+Formulierdata!$A$29),R61*(1+Formulierdata!$A$29)*U61))) -> 
B62: =Inmeetformulier!B62 -> 0 | C62: =Inmeetformulier!C62 -> 0 | D62: =Inmeetformulier!D62 -> 0 | E62: =Inmeetformulier!E62 -> 0 | F62: =Inmeetformulier!F62 -> 0 | G62: =Inmeetformulier!G62 -> 0 | H62: =Inmeetformulier!H62 -> 0 | I62: =Inmeetformulier!I62 -> 0 | J62: =Inmeetformulier!J62 -> 0 | K62: =Inmeetformulier!K62 -> 0 | L62: =Inmeetformulier!L62 -> 0 | M62: =Inmeetformulier!N62 -> 0 | N62: =Inmeetformulier!P62 -> 0 | O62: =Inmeetformulier!Q62 -> 0 | P62: =Inmeetformulier!S62 -> 0 | W62: =IF(Y62="","",(1/(1+Formulierdata!$A$29))*Y62) ->  | Y62: =IF($W$22=1,IF(R62="","",IF(OR(U62="",U62=0,U62=1),R62,R62*U62)),IF(R62="","",IF(OR(U62="",U62=0,U62=1),R62*(1+Formulierdata!$A$29),R62*(1+Formulierdata!$A$29)*U62))) -> 
B63: =Inmeetformulier!B63 -> 0 | C63: =Inmeetformulier!C63 -> 0 | D63: =Inmeetformulier!D63 -> 0 | E63: =Inmeetformulier!E63 -> 0 | F63: =Inmeetformulier!F63 -> 0 | G63: =Inmeetformulier!G63 -> 0 | H63: =Inmeetformulier!H63 -> 0 | I63: =Inmeetformulier!I63 -> 0 | J63: =Inmeetformulier!J63 -> 0 | K63: =Inmeetformulier!K63 -> 0 | L63: =Inmeetformulier!L63 -> 0 | M63: =Inmeetformulier!N63 -> 0 | N63: =Inmeetformulier!P63 -> 0 | O63: =Inmeetformulier!Q63 -> 0 | P63: =Inmeetformulier!S63 -> 0 | W63: =IF(Y63="","",(1/(1+Formulierdata!$A$29))*Y63) ->  | Y63: =IF($W$22=1,IF(R63="","",IF(OR(U63="",U63=0,U63=1),R63,R63*U63)),IF(R63="","",IF(OR(U63="",U63=0,U63=1),R63*(1+Formulierdata!$A$29),R63*(1+Formulierdata!$A$29)*U63))) -> 
B64: =Inmeetformulier!B64 -> 0 | C64: =Inmeetformulier!C64 -> 0 | D64: =Inmeetformulier!D64 -> 0 | E64: =Inmeetformulier!E64 -> 0 | F64: =Inmeetformulier!F64 -> 0 | G64: =Inmeetformulier!G64 -> 0 | H64: =Inmeetformulier!H64 -> 0 | I64: =Inmeetformulier!I64 -> 0 | J64: =Inmeetformulier!J64 -> 0 | K64: =Inmeetformulier!K64 -> 0 | L64: =Inmeetformulier!L64 -> 0 | M64: =Inmeetformulier!N64 -> 0 | N64: =Inmeetformulier!P64 -> 0 | O64: =Inmeetformulier!Q64 -> 0 | P64: =Inmeetformulier!S64 -> 0 | W64: =IF(Y64="","",(1/(1+Formulierdata!$A$29))*Y64) ->  | Y64: =IF($W$22=1,IF(R64="","",IF(OR(U64="",U64=0,U64=1),R64,R64*U64)),IF(R64="","",IF(OR(U64="",U64=0,U64=1),R64*(1+Formulierdata!$A$29),R64*(1+Formulierdata!$A$29)*U64))) -> 
B65: =Inmeetformulier!B65 -> 0 | C65: =Inmeetformulier!C65 -> 0 | D65: =Inmeetformulier!D65 -> 0 | E65: =Inmeetformulier!E65 -> 0 | F65: =Inmeetformulier!F65 -> 0 | G65: =Inmeetformulier!G65 -> 0 | H65: =Inmeetformulier!H65 -> 0 | I65: =Inmeetformulier!I65 -> 0 | J65: =Inmeetformulier!J65 -> 0 | K65: =Inmeetformulier!K65 -> 0 | L65: =Inmeetformulier!L65 -> 0 | M65: =Inmeetformulier!N65 -> 0 | N65: =Inmeetformulier!P65 -> 0 | O65: =Inmeetformulier!Q65 -> 0 | P65: =Inmeetformulier!S65 -> 0 | W65: =IF(Y65="","",(1/(1+Formulierdata!$A$29))*Y65) ->  | Y65: =IF($W$22=1,IF(R65="","",IF(OR(U65="",U65=0,U65=1),R65,R65*U65)),IF(R65="","",IF(OR(U65="",U65=0,U65=1),R65*(1+Formulierdata!$A$29),R65*(1+Formulierdata!$A$29)*U65))) -> 
B66: =Inmeetformulier!B66 -> 0 | C66: =Inmeetformulier!C66 -> 0 | D66: =Inmeetformulier!D66 -> 0 | E66: =Inmeetformulier!E66 -> 0 | F66: =Inmeetformulier!F66 -> 0 | G66: =Inmeetformulier!G66 -> 0 | H66: =Inmeetformulier!H66 -> 0 | I66: =Inmeetformulier!I66 -> 0 | J66: =Inmeetformulier!J66 -> 0 | K66: =Inmeetformulier!K66 -> 0 | L66: =Inmeetformulier!L66 -> 0 | M66: =Inmeetformulier!N66 -> 0 | N66: =Inmeetformulier!P66 -> 0 | O66: =Inmeetformulier!Q66 -> 0 | P66: =Inmeetformulier!S66 -> 0 | W66: =IF(Y66="","",(1/(1+Formulierdata!$A$29))*Y66) ->  | Y66: =IF($W$22=1,IF(R66="","",IF(OR(U66="",U66=0,U66=1),R66,R66*U66)),IF(R66="","",IF(OR(U66="",U66=0,U66=1),R66*(1+Formulierdata!$A$29),R66*(1+Formulierdata!$A$29)*U66))) -> 
B67: =Inmeetformulier!B67 -> 0 | C67: =Inmeetformulier!C67 -> 0 | D67: =Inmeetformulier!D67 -> 0 | E67: =Inmeetformulier!E67 -> 0 | F67: =Inmeetformulier!F67 -> 0 | G67: =Inmeetformulier!G67 -> 0 | H67: =Inmeetformulier!H67 -> 0 | I67: =Inmeetformulier!I67 -> 0 | J67: =Inmeetformulier!J67 -> 0 | K67: =Inmeetformulier!K67 -> 0 | L67: =Inmeetformulier!L67 -> 0 | M67: =Inmeetformulier!N67 -> 0 | N67: =Inmeetformulier!P67 -> 0 | O67: =Inmeetformulier!Q67 -> 0 | P67: =Inmeetformulier!S67 -> 0 | W67: =IF(Y67="","",(1/(1+Formulierdata!$A$29))*Y67) ->  | Y67: =IF($W$22=1,IF(R67="","",IF(OR(U67="",U67=0,U67=1),R67,R67*U67)),IF(R67="","",IF(OR(U67="",U67=0,U67=1),R67*(1+Formulierdata!$A$29),R67*(1+Formulierdata!$A$29)*U67))) -> 
B68: =Inmeetformulier!B68 -> 0 | C68: =Inmeetformulier!C68 -> 0 | D68: =Inmeetformulier!D68 -> 0 | E68: =Inmeetformulier!E68 -> 0 | F68: =Inmeetformulier!F68 -> 0 | G68: =Inmeetformulier!G68 -> 0 | H68: =Inmeetformulier!H68 -> 0 | I68: =Inmeetformulier!I68 -> 0 | J68: =Inmeetformulier!J68 -> 0 | K68: =Inmeetformulier!K68 -> 0 | L68: =Inmeetformulier!L68 -> 0 | M68: =Inmeetformulier!N68 -> 0 | N68: =Inmeetformulier!P68 -> 0 | O68: =Inmeetformulier!Q68 -> 0 | P68: =Inmeetformulier!S68 -> 0 | W68: =IF(Y68="","",(1/(1+Formulierdata!$A$29))*Y68) ->  | Y68: =IF($W$22=1,IF(R68="","",IF(OR(U68="",U68=0,U68=1),R68,R68*U68)),IF(R68="","",IF(OR(U68="",U68=0,U68=1),R68*(1+Formulierdata!$A$29),R68*(1+Formulierdata!$A$29)*U68))) -> 
B69: =Inmeetformulier!B69 -> 0 | C69: =Inmeetformulier!C69 -> 0 | D69: =Inmeetformulier!D69 -> 0 | E69: =Inmeetformulier!E69 -> 0 | F69: =Inmeetformulier!F69 -> 0 | G69: =Inmeetformulier!G69 -> 0 | H69: =Inmeetformulier!H69 -> 0 | I69: =Inmeetformulier!I69 -> 0 | J69: =Inmeetformulier!J69 -> 0 | K69: =Inmeetformulier!K69 -> 0 | L69: =Inmeetformulier!L69 -> 0 | M69: =Inmeetformulier!N69 -> 0 | N69: =Inmeetformulier!P69 -> 0 | O69: =Inmeetformulier!Q69 -> 0 | P69: =Inmeetformulier!S69 -> 0 | W69: =IF(Y69="","",(1/(1+Formulierdata!$A$29))*Y69) ->  | Y69: =IF($W$22=1,IF(R69="","",IF(OR(U69="",U69=0,U69=1),R69,R69*U69)),IF(R69="","",IF(OR(U69="",U69=0,U69=1),R69*(1+Formulierdata!$A$29),R69*(1+Formulierdata!$A$29)*U69))) -> 
B70: =Inmeetformulier!B70 -> 0 | C70: =Inmeetformulier!C70 -> 0 | D70: =Inmeetformulier!D70 -> 0 | E70: =Inmeetformulier!E70 -> 0 | F70: =Inmeetformulier!F70 -> 0 | G70: =Inmeetformulier!G70 -> 0 | H70: =Inmeetformulier!H70 -> 0 | I70: =Inmeetformulier!I70 -> 0 | J70: =Inmeetformulier!J70 -> 0 | K70: =Inmeetformulier!K70 -> 0 | L70: =Inmeetformulier!L70 -> 0 | M70: =Inmeetformulier!N70 -> 0 | N70: =Inmeetformulier!P70 -> 0 | O70: =Inmeetformulier!Q70 -> 0 | P70: =Inmeetformulier!S70 -> 0 | W70: =IF(Y70="","",(1/(1+Formulierdata!$A$29))*Y70) ->  | Y70: =IF($W$22=1,IF(R70="","",IF(OR(U70="",U70=0,U70=1),R70,R70*U70)),IF(R70="","",IF(OR(U70="",U70=0,U70=1),R70*(1+Formulierdata!$A$29),R70*(1+Formulierdata!$A$29)*U70))) -> 
B71: =Inmeetformulier!B71 -> 0 | C71: =Inmeetformulier!C71 -> 0 | D71: =Inmeetformulier!D71 -> 0 | E71: =Inmeetformulier!E71 -> 0 | F71: =Inmeetformulier!F71 -> 0 | G71: =Inmeetformulier!G71 -> 0 | H71: =Inmeetformulier!H71 -> 0 | I71: =Inmeetformulier!I71 -> 0 | J71: =Inmeetformulier!J71 -> 0 | K71: =Inmeetformulier!K71 -> 0 | L71: =Inmeetformulier!L71 -> 0 | M71: =Inmeetformulier!N71 -> 0 | N71: =Inmeetformulier!P71 -> 0 | O71: =Inmeetformulier!Q71 -> 0 | P71: =Inmeetformulier!S71 -> 0 | W71: =IF(Y71="","",(1/(1+Formulierdata!$A$29))*Y71) ->  | Y71: =IF($W$22=1,IF(R71="","",IF(OR(U71="",U71=0,U71=1),R71,R71*U71)),IF(R71="","",IF(OR(U71="",U71=0,U71=1),R71*(1+Formulierdata!$A$29),R71*(1+Formulierdata!$A$29)*U71))) -> 
B72: =Inmeetformulier!B72 -> 0 | C72: =Inmeetformulier!C72 -> 0 | D72: =Inmeetformulier!D72 -> 0 | E72: =Inmeetformulier!E72 -> 0 | F72: =Inmeetformulier!F72 -> 0 | G72: =Inmeetformulier!G72 -> 0 | H72: =Inmeetformulier!H72 -> 0 | I72: =Inmeetformulier!I72 -> 0 | J72: =Inmeetformulier!J72 -> 0 | K72: =Inmeetformulier!K72 -> 0 | L72: =Inmeetformulier!L72 -> 0 | M72: =Inmeetformulier!N72 -> 0 | N72: =Inmeetformulier!P72 -> 0 | O72: =Inmeetformulier!Q72 -> 0 | P72: =Inmeetformulier!S72 -> 0 | W72: =IF(Y72="","",(1/(1+Formulierdata!$A$29))*Y72) ->  | Y72: =IF($W$22=1,IF(R72="","",IF(OR(U72="",U72=0,U72=1),R72,R72*U72)),IF(R72="","",IF(OR(U72="",U72=0,U72=1),R72*(1+Formulierdata!$A$29),R72*(1+Formulierdata!$A$29)*U72))) -> 
B73: =Inmeetformulier!B73 -> 0 | C73: =Inmeetformulier!C73 -> 0 | D73: =Inmeetformulier!D73 -> 0 | E73: =Inmeetformulier!E73 -> 0 | F73: =Inmeetformulier!F73 -> 0 | G73: =Inmeetformulier!G73 -> 0 | H73: =Inmeetformulier!H73 -> 0 | I73: =Inmeetformulier!I73 -> 0 | J73: =Inmeetformulier!J73 -> 0 | K73: =Inmeetformulier!K73 -> 0 | L73: =Inmeetformulier!L73 -> 0 | M73: =Inmeetformulier!N73 -> 0 | N73: =Inmeetformulier!P73 -> 0 | O73: =Inmeetformulier!Q73 -> 0 | P73: =Inmeetformulier!S73 -> 0 | W73: =IF(Y73="","",(1/(1+Formulierdata!$A$29))*Y73) ->  | Y73: =IF($W$22=1,IF(R73="","",IF(OR(U73="",U73=0,U73=1),R73,R73*U73)),IF(R73="","",IF(OR(U73="",U73=0,U73=1),R73*(1+Formulierdata!$A$29),R73*(1+Formulierdata!$A$29)*U73))) -> 
B74: =Inmeetformulier!B74 -> 0 | C74: =Inmeetformulier!C74 -> 0 | D74: =Inmeetformulier!D74 -> 0 | E74: =Inmeetformulier!E74 -> 0 | F74: =Inmeetformulier!F74 -> 0 | G74: =Inmeetformulier!G74 -> 0 | H74: =Inmeetformulier!H74 -> 0 | I74: =Inmeetformulier!I74 -> 0 | J74: =Inmeetformulier!J74 -> 0 | K74: =Inmeetformulier!K74 -> 0 | L74: =Inmeetformulier!L74 -> 0 | M74: =Inmeetformulier!N74 -> 0 | N74: =Inmeetformulier!P74 -> 0 | O74: =Inmeetformulier!Q74 -> 0 | P74: =Inmeetformulier!S74 -> 0 | W74: =IF(Y74="","",(1/(1+Formulierdata!$A$29))*Y74) ->  | Y74: =IF($W$22=1,IF(R74="","",IF(OR(U74="",U74=0,U74=1),R74,R74*U74)),IF(R74="","",IF(OR(U74="",U74=0,U74=1),R74*(1+Formulierdata!$A$29),R74*(1+Formulierdata!$A$29)*U74))) -> 
B75: =Inmeetformulier!B75 -> 0 | C75: =Inmeetformulier!C75 -> 0 | D75: =Inmeetformulier!D75 -> 0 | E75: =Inmeetformulier!E75 -> 0 | F75: =Inmeetformulier!F75 -> 0 | G75: =Inmeetformulier!G75 -> 0 | H75: =Inmeetformulier!H75 -> 0 | I75: =Inmeetformulier!I75 -> 0 | J75: =Inmeetformulier!J75 -> 0 | K75: =Inmeetformulier!K75 -> 0 | L75: =Inmeetformulier!L75 -> 0 | M75: =Inmeetformulier!N75 -> 0 | N75: =Inmeetformulier!P75 -> 0 | O75: =Inmeetformulier!Q75 -> 0 | P75: =Inmeetformulier!S75 -> 0 | W75: =IF(Y75="","",(1/(1+Formulierdata!$A$29))*Y75) ->  | Y75: =IF($W$22=1,IF(R75="","",IF(OR(U75="",U75=0,U75=1),R75,R75*U75)),IF(R75="","",IF(OR(U75="",U75=0,U75=1),R75*(1+Formulierdata!$A$29),R75*(1+Formulierdata!$A$29)*U75))) -> 
B76: =Inmeetformulier!B76 -> 0 | C76: =Inmeetformulier!C76 -> 0 | D76: =Inmeetformulier!D76 -> 0 | E76: =Inmeetformulier!E76 -> 0 | F76: =Inmeetformulier!F76 -> 0 | G76: =Inmeetformulier!G76 -> 0 | H76: =Inmeetformulier!H76 -> 0 | I76: =Inmeetformulier!I76 -> 0 | J76: =Inmeetformulier!J76 -> 0 | K76: =Inmeetformulier!K76 -> 0 | L76: =Inmeetformulier!L76 -> 0 | M76: =Inmeetformulier!N76 -> 0 | N76: =Inmeetformulier!P76 -> 0 | O76: =Inmeetformulier!Q76 -> 0 | P76: =Inmeetformulier!S76 -> 0 | W76: =IF(Y76="","",(1/(1+Formulierdata!$A$29))*Y76) ->  | Y76: =IF($W$22=1,IF(R76="","",IF(OR(U76="",U76=0,U76=1),R76,R76*U76)),IF(R76="","",IF(OR(U76="",U76=0,U76=1),R76*(1+Formulierdata!$A$29),R76*(1+Formulierdata!$A$29)*U76))) -> 
B77: =Inmeetformulier!B77 -> 0 | C77: =Inmeetformulier!C77 -> 0 | D77: =Inmeetformulier!D77 -> 0 | E77: =Inmeetformulier!E77 -> 0 | F77: =Inmeetformulier!F77 -> 0 | G77: =Inmeetformulier!G77 -> 0 | H77: =Inmeetformulier!H77 -> 0 | I77: =Inmeetformulier!I77 -> 0 | J77: =Inmeetformulier!J77 -> 0 | K77: =Inmeetformulier!K77 -> 0 | L77: =Inmeetformulier!L77 -> 0 | M77: =Inmeetformulier!N77 -> 0 | N77: =Inmeetformulier!P77 -> 0 | O77: =Inmeetformulier!Q77 -> 0 | P77: =Inmeetformulier!S77 -> 0 | W77: =IF(Y77="","",(1/(1+Formulierdata!$A$29))*Y77) ->  | Y77: =IF($W$22=1,IF(R77="","",IF(OR(U77="",U77=0,U77=1),R77,R77*U77)),IF(R77="","",IF(OR(U77="",U77=0,U77=1),R77*(1+Formulierdata!$A$29),R77*(1+Formulierdata!$A$29)*U77))) -> 
B78: =Inmeetformulier!B78 -> 0 | C78: =Inmeetformulier!C78 -> 0 | D78: =Inmeetformulier!D78 -> 0 | E78: =Inmeetformulier!E78 -> 0 | F78: =Inmeetformulier!F78 -> 0 | G78: =Inmeetformulier!G78 -> 0 | H78: =Inmeetformulier!H78 -> 0 | I78: =Inmeetformulier!I78 -> 0 | J78: =Inmeetformulier!J78 -> 0 | K78: =Inmeetformulier!K78 -> 0 | L78: =Inmeetformulier!L78 -> 0 | M78: =Inmeetformulier!N78 -> 0 | N78: =Inmeetformulier!P78 -> 0 | O78: =Inmeetformulier!Q78 -> 0 | P78: =Inmeetformulier!S78 -> 0 | W78: =IF(Y78="","",(1/(1+Formulierdata!$A$29))*Y78) ->  | Y78: =IF($W$22=1,IF(R78="","",IF(OR(U78="",U78=0,U78=1),R78,R78*U78)),IF(R78="","",IF(OR(U78="",U78=0,U78=1),R78*(1+Formulierdata!$A$29),R78*(1+Formulierdata!$A$29)*U78))) -> 
B79: =Inmeetformulier!B79 -> 0 | C79: =Inmeetformulier!C79 -> 0 | D79: =Inmeetformulier!D79 -> 0 | E79: =Inmeetformulier!E79 -> 0 | F79: =Inmeetformulier!F79 -> 0 | G79: =Inmeetformulier!G79 -> 0 | H79: =Inmeetformulier!H79 -> 0 | I79: =Inmeetformulier!I79 -> 0 | J79: =Inmeetformulier!J79 -> 0 | K79: =Inmeetformulier!K79 -> 0 | L79: =Inmeetformulier!L79 -> 0 | M79: =Inmeetformulier!N79 -> 0 | N79: =Inmeetformulier!P79 -> 0 | O79: =Inmeetformulier!Q79 -> 0 | P79: =Inmeetformulier!S79 -> 0 | W79: =IF(Y79="","",(1/(1+Formulierdata!$A$29))*Y79) ->  | Y79: =IF($W$22=1,IF(R79="","",IF(OR(U79="",U79=0,U79=1),R79,R79*U79)),IF(R79="","",IF(OR(U79="",U79=0,U79=1),R79*(1+Formulierdata!$A$29),R79*(1+Formulierdata!$A$29)*U79))) -> 
B80: =Inmeetformulier!B80 -> 0 | C80: =Inmeetformulier!C80 -> 0 | D80: =Inmeetformulier!D80 -> 0 | E80: =Inmeetformulier!E80 -> 0 | F80: =Inmeetformulier!F80 -> 0 | G80: =Inmeetformulier!G80 -> 0 | H80: =Inmeetformulier!H80 -> 0 | I80: =Inmeetformulier!I80 -> 0 | J80: =Inmeetformulier!J80 -> 0 | K80: =Inmeetformulier!K80 -> 0 | L80: =Inmeetformulier!L80 -> 0 | M80: =Inmeetformulier!N80 -> 0 | N80: =Inmeetformulier!P80 -> 0 | O80: =Inmeetformulier!Q80 -> 0 | P80: =Inmeetformulier!S80 -> 0 | W80: =IF(Y80="","",(1/(1+Formulierdata!$A$29))*Y80) ->  | Y80: =IF($W$22=1,IF(R80="","",IF(OR(U80="",U80=0,U80=1),R80,R80*U80)),IF(R80="","",IF(OR(U80="",U80=0,U80=1),R80*(1+Formulierdata!$A$29),R80*(1+Formulierdata!$A$29)*U80))) -> 
B81: =Inmeetformulier!B81 -> 0 | C81: =Inmeetformulier!C81 -> 0 | D81: =Inmeetformulier!D81 -> 0 | E81: =Inmeetformulier!E81 -> 0 | F81: =Inmeetformulier!F81 -> 0 | G81: =Inmeetformulier!G81 -> 0 | H81: =Inmeetformulier!H81 -> 0 | I81: =Inmeetformulier!I81 -> 0 | J81: =Inmeetformulier!J81 -> 0 | K81: =Inmeetformulier!K81 -> 0 | L81: =Inmeetformulier!L81 -> 0 | M81: =Inmeetformulier!N81 -> 0 | N81: =Inmeetformulier!P81 -> 0 | O81: =Inmeetformulier!Q81 -> 0 | P81: =Inmeetformulier!S81 -> 0 | W81: =IF(Y81="","",(1/(1+Formulierdata!$A$29))*Y81) ->  | Y81: =IF($W$22=1,IF(R81="","",IF(OR(U81="",U81=0,U81=1),R81,R81*U81)),IF(R81="","",IF(OR(U81="",U81=0,U81=1),R81*(1+Formulierdata!$A$29),R81*(1+Formulierdata!$A$29)*U81))) -> 
B82: =Inmeetformulier!B82 -> 0 | C82: =Inmeetformulier!C82 -> 0 | D82: =Inmeetformulier!D82 -> 0 | E82: =Inmeetformulier!E82 -> 0 | F82: =Inmeetformulier!F82 -> 0 | G82: =Inmeetformulier!G82 -> 0 | H82: =Inmeetformulier!H82 -> 0 | I82: =Inmeetformulier!I82 -> 0 | J82: =Inmeetformulier!J82 -> 0 | K82: =Inmeetformulier!K82 -> 0 | L82: =Inmeetformulier!L82 -> 0 | M82: =Inmeetformulier!N82 -> 0 | N82: =Inmeetformulier!P82 -> 0 | O82: =Inmeetformulier!Q82 -> 0 | P82: =Inmeetformulier!S82 -> 0 | W82: =IF(Y82="","",(1/(1+Formulierdata!$A$29))*Y82) ->  | Y82: =IF($W$22=1,IF(R82="","",IF(OR(U82="",U82=0,U82=1),R82,R82*U82)),IF(R82="","",IF(OR(U82="",U82=0,U82=1),R82*(1+Formulierdata!$A$29),R82*(1+Formulierdata!$A$29)*U82))) -> 
B83: =Inmeetformulier!B83 -> 0 | C83: =Inmeetformulier!C83 -> 0 | D83: =Inmeetformulier!D83 -> 0 | E83: =Inmeetformulier!E83 -> 0 | F83: =Inmeetformulier!F83 -> 0 | G83: =Inmeetformulier!G83 -> 0 | H83: =Inmeetformulier!H83 -> 0 | I83: =Inmeetformulier!I83 -> 0 | J83: =Inmeetformulier!J83 -> 0 | K83: =Inmeetformulier!K83 -> 0 | L83: =Inmeetformulier!L83 -> 0 | M83: =Inmeetformulier!N83 -> 0 | N83: =Inmeetformulier!P83 -> 0 | O83: =Inmeetformulier!Q83 -> 0 | P83: =Inmeetformulier!S83 -> 0 | W83: =IF(Y83="","",(1/(1+Formulierdata!$A$29))*Y83) ->  | Y83: =IF($W$22=1,IF(R83="","",IF(OR(U83="",U83=0,U83=1),R83,R83*U83)),IF(R83="","",IF(OR(U83="",U83=0,U83=1),R83*(1+Formulierdata!$A$29),R83*(1+Formulierdata!$A$29)*U83))) -> 
B84: =Inmeetformulier!B84 -> 0 | C84: =Inmeetformulier!C84 -> 0 | D84: =Inmeetformulier!D84 -> 0 | E84: =Inmeetformulier!E84 -> 0 | F84: =Inmeetformulier!F84 -> 0 | G84: =Inmeetformulier!G84 -> 0 | H84: =Inmeetformulier!H84 -> 0 | I84: =Inmeetformulier!I84 -> 0 | J84: =Inmeetformulier!J84 -> 0 | K84: =Inmeetformulier!K84 -> 0 | L84: =Inmeetformulier!L84 -> 0 | M84: =Inmeetformulier!N84 -> 0 | N84: =Inmeetformulier!P84 -> 0 | O84: =Inmeetformulier!Q84 -> 0 | P84: =Inmeetformulier!S84 -> 0 | W84: =IF(Y84="","",(1/(1+Formulierdata!$A$29))*Y84) ->  | Y84: =IF($W$22=1,IF(R84="","",IF(OR(U84="",U84=0,U84=1),R84,R84*U84)),IF(R84="","",IF(OR(U84="",U84=0,U84=1),R84*(1+Formulierdata!$A$29),R84*(1+Formulierdata!$A$29)*U84))) -> 
B85: =Inmeetformulier!B85 -> 0 | C85: =Inmeetformulier!C85 -> 0 | D85: =Inmeetformulier!D85 -> 0 | E85: =Inmeetformulier!E85 -> 0 | F85: =Inmeetformulier!F85 -> 0 | G85: =Inmeetformulier!G85 -> 0 | H85: =Inmeetformulier!H85 -> 0 | I85: =Inmeetformulier!I85 -> 0 | J85: =Inmeetformulier!J85 -> 0 | K85: =Inmeetformulier!K85 -> 0 | L85: =Inmeetformulier!L85 -> 0 | M85: =Inmeetformulier!N85 -> 0 | N85: =Inmeetformulier!P85 -> 0 | O85: =Inmeetformulier!Q85 -> 0 | P85: =Inmeetformulier!S85 -> 0 | W85: =IF(Y85="","",(1/(1+Formulierdata!$A$29))*Y85) ->  | Y85: =IF($W$22=1,IF(R85="","",IF(OR(U85="",U85=0,U85=1),R85,R85*U85)),IF(R85="","",IF(OR(U85="",U85=0,U85=1),R85*(1+Formulierdata!$A$29),R85*(1+Formulierdata!$A$29)*U85))) -> 
B86: =Inmeetformulier!B86 -> 0 | C86: =Inmeetformulier!C86 -> 0 | D86: =Inmeetformulier!D86 -> 0 | E86: =Inmeetformulier!E86 -> 0 | F86: =Inmeetformulier!F86 -> 0 | G86: =Inmeetformulier!G86 -> 0 | H86: =Inmeetformulier!H86 -> 0 | I86: =Inmeetformulier!I86 -> 0 | J86: =Inmeetformulier!J86 -> 0 | K86: =Inmeetformulier!K86 -> 0 | L86: =Inmeetformulier!L86 -> 0 | M86: =Inmeetformulier!N86 -> 0 | N86: =Inmeetformulier!P86 -> 0 | O86: =Inmeetformulier!Q86 -> 0 | P86: =Inmeetformulier!S86 -> 0 | W86: =IF(Y86="","",(1/(1+Formulierdata!$A$29))*Y86) ->  | Y86: =IF($W$22=1,IF(R86="","",IF(OR(U86="",U86=0,U86=1),R86,R86*U86)),IF(R86="","",IF(OR(U86="",U86=0,U86=1),R86*(1+Formulierdata!$A$29),R86*(1+Formulierdata!$A$29)*U86))) -> 
B87: =Inmeetformulier!B87 -> 0 | C87: =Inmeetformulier!C87 -> 0 | D87: =Inmeetformulier!D87 -> 0 | E87: =Inmeetformulier!E87 -> 0 | F87: =Inmeetformulier!F87 -> 0 | G87: =Inmeetformulier!G87 -> 0 | H87: =Inmeetformulier!H87 -> 0 | I87: =Inmeetformulier!I87 -> 0 | J87: =Inmeetformulier!J87 -> 0 | K87: =Inmeetformulier!K87 -> 0 | L87: =Inmeetformulier!L87 -> 0 | M87: =Inmeetformulier!N87 -> 0 | N87: =Inmeetformulier!P87 -> 0 | O87: =Inmeetformulier!Q87 -> 0 | P87: =Inmeetformulier!S87 -> 0 | W87: =IF(Y87="","",(1/(1+Formulierdata!$A$29))*Y87) ->  | Y87: =IF($W$22=1,IF(R87="","",IF(OR(U87="",U87=0,U87=1),R87,R87*U87)),IF(R87="","",IF(OR(U87="",U87=0,U87=1),R87*(1+Formulierdata!$A$29),R87*(1+Formulierdata!$A$29)*U87))) -> 
B88: =Inmeetformulier!B88 -> 0 | C88: =Inmeetformulier!C88 -> 0 | D88: =Inmeetformulier!D88 -> 0 | E88: =Inmeetformulier!E88 -> 0 | F88: =Inmeetformulier!F88 -> 0 | G88: =Inmeetformulier!G88 -> 0 | H88: =Inmeetformulier!H88 -> 0 | I88: =Inmeetformulier!I88 -> 0 | J88: =Inmeetformulier!J88 -> 0 | K88: =Inmeetformulier!K88 -> 0 | L88: =Inmeetformulier!L88 -> 0 | M88: =Inmeetformulier!N88 -> 0 | N88: =Inmeetformulier!P88 -> 0 | O88: =Inmeetformulier!Q88 -> 0 | P88: =Inmeetformulier!S88 -> 0 | W88: =IF(Y88="","",(1/(1+Formulierdata!$A$29))*Y88) ->  | Y88: =IF($W$22=1,IF(R88="","",IF(OR(U88="",U88=0,U88=1),R88,R88*U88)),IF(R88="","",IF(OR(U88="",U88=0,U88=1),R88*(1+Formulierdata!$A$29),R88*(1+Formulierdata!$A$29)*U88))) -> 
B89: =Inmeetformulier!B89 -> 0 | C89: =Inmeetformulier!C89 -> 0 | D89: =Inmeetformulier!D89 -> 0 | E89: =Inmeetformulier!E89 -> 0 | F89: =Inmeetformulier!F89 -> 0 | G89: =Inmeetformulier!G89 -> 0 | H89: =Inmeetformulier!H89 -> 0 | I89: =Inmeetformulier!I89 -> 0 | J89: =Inmeetformulier!J89 -> 0 | K89: =Inmeetformulier!K89 -> 0 | L89: =Inmeetformulier!L89 -> 0 | M89: =Inmeetformulier!N89 -> 0 | N89: =Inmeetformulier!P89 -> 0 | O89: =Inmeetformulier!Q89 -> 0 | P89: =Inmeetformulier!S89 -> 0 | W89: =IF(Y89="","",(1/(1+Formulierdata!$A$29))*Y89) ->  | Y89: =IF($W$22=1,IF(R89="","",IF(OR(U89="",U89=0,U89=1),R89,R89*U89)),IF(R89="","",IF(OR(U89="",U89=0,U89=1),R89*(1+Formulierdata!$A$29),R89*(1+Formulierdata!$A$29)*U89))) -> 
B90: =Inmeetformulier!B90 -> 0 | C90: =Inmeetformulier!C90 -> 0 | D90: =Inmeetformulier!D90 -> 0 | E90: =Inmeetformulier!E90 -> 0 | F90: =Inmeetformulier!F90 -> 0 | G90: =Inmeetformulier!G90 -> 0 | H90: =Inmeetformulier!H90 -> 0 | I90: =Inmeetformulier!I90 -> 0 | J90: =Inmeetformulier!J90 -> 0 | K90: =Inmeetformulier!K90 -> 0 | L90: =Inmeetformulier!L90 -> 0 | M90: =Inmeetformulier!N90 -> 0 | N90: =Inmeetformulier!P90 -> 0 | O90: =Inmeetformulier!Q90 -> 0 | P90: =Inmeetformulier!S90 -> 0 | W90: =IF(Y90="","",(1/(1+Formulierdata!$A$29))*Y90) ->  | Y90: =IF($W$22=1,IF(R90="","",IF(OR(U90="",U90=0,U90=1),R90,R90*U90)),IF(R90="","",IF(OR(U90="",U90=0,U90=1),R90*(1+Formulierdata!$A$29),R90*(1+Formulierdata!$A$29)*U90))) -> 
B91: =Inmeetformulier!B91 -> 0 | C91: =Inmeetformulier!C91 -> 0 | D91: =Inmeetformulier!D91 -> 0 | E91: =Inmeetformulier!E91 -> 0 | F91: =Inmeetformulier!F91 -> 0 | G91: =Inmeetformulier!G91 -> 0 | H91: =Inmeetformulier!H91 -> 0 | I91: =Inmeetformulier!I91 -> 0 | J91: =Inmeetformulier!J91 -> 0 | K91: =Inmeetformulier!K91 -> 0 | L91: =Inmeetformulier!L91 -> 0 | M91: =Inmeetformulier!N91 -> 0 | N91: =Inmeetformulier!P91 -> 0 | O91: =Inmeetformulier!Q91 -> 0 | P91: =Inmeetformulier!S91 -> 0 | W91: =IF(Y91="","",(1/(1+Formulierdata!$A$29))*Y91) ->  | Y91: =IF($W$22=1,IF(R91="","",IF(OR(U91="",U91=0,U91=1),R91,R91*U91)),IF(R91="","",IF(OR(U91="",U91=0,U91=1),R91*(1+Formulierdata!$A$29),R91*(1+Formulierdata!$A$29)*U91))) -> 
B92: =Inmeetformulier!B92 -> 0 | C92: =Inmeetformulier!C92 -> 0 | D92: =Inmeetformulier!D92 -> 0 | E92: =Inmeetformulier!E92 -> 0 | F92: =Inmeetformulier!F92 -> 0 | G92: =Inmeetformulier!G92 -> 0 | H92: =Inmeetformulier!H92 -> 0 | I92: =Inmeetformulier!I92 -> 0 | J92: =Inmeetformulier!J92 -> 0 | K92: =Inmeetformulier!K92 -> 0 | L92: =Inmeetformulier!L92 -> 0 | M92: =Inmeetformulier!N92 -> 0 | N92: =Inmeetformulier!P92 -> 0 | O92: =Inmeetformulier!Q92 -> 0 | P92: =Inmeetformulier!S92 -> 0 | W92: =IF(Y92="","",(1/(1+Formulierdata!$A$29))*Y92) ->  | Y92: =IF($W$22=1,IF(R92="","",IF(OR(U92="",U92=0,U92=1),R92,R92*U92)),IF(R92="","",IF(OR(U92="",U92=0,U92=1),R92*(1+Formulierdata!$A$29),R92*(1+Formulierdata!$A$29)*U92))) -> 
B93: =Inmeetformulier!B93 -> 0 | C93: =Inmeetformulier!C93 -> 0 | D93: =Inmeetformulier!D93 -> 0 | E93: =Inmeetformulier!E93 -> 0 | F93: =Inmeetformulier!F93 -> 0 | G93: =Inmeetformulier!G93 -> 0 | H93: =Inmeetformulier!H93 -> 0 | I93: =Inmeetformulier!I93 -> 0 | J93: =Inmeetformulier!J93 -> 0 | K93: =Inmeetformulier!K93 -> 0 | L93: =Inmeetformulier!L93 -> 0 | M93: =Inmeetformulier!N93 -> 0 | N93: =Inmeetformulier!P93 -> 0 | O93: =Inmeetformulier!Q93 -> 0 | P93: =Inmeetformulier!S93 -> 0 | W93: =IF(Y93="","",(1/(1+Formulierdata!$A$29))*Y93) ->  | Y93: =IF($W$22=1,IF(R93="","",IF(OR(U93="",U93=0,U93=1),R93,R93*U93)),IF(R93="","",IF(OR(U93="",U93=0,U93=1),R93*(1+Formulierdata!$A$29),R93*(1+Formulierdata!$A$29)*U93))) -> 
B94: =Inmeetformulier!B94 -> 0 | C94: =Inmeetformulier!C94 -> 0 | D94: =Inmeetformulier!D94 -> 0 | E94: =Inmeetformulier!E94 -> 0 | F94: =Inmeetformulier!F94 -> 0 | G94: =Inmeetformulier!G94 -> 0 | H94: =Inmeetformulier!H94 -> 0 | I94: =Inmeetformulier!I94 -> 0 | J94: =Inmeetformulier!J94 -> 0 | K94: =Inmeetformulier!K94 -> 0 | L94: =Inmeetformulier!L94 -> 0 | M94: =Inmeetformulier!N94 -> 0 | N94: =Inmeetformulier!P94 -> 0 | O94: =Inmeetformulier!Q94 -> 0 | P94: =Inmeetformulier!S94 -> 0 | W94: =IF(Y94="","",(1/(1+Formulierdata!$A$29))*Y94) ->  | Y94: =IF($W$22=1,IF(R94="","",IF(OR(U94="",U94=0,U94=1),R94,R94*U94)),IF(R94="","",IF(OR(U94="",U94=0,U94=1),R94*(1+Formulierdata!$A$29),R94*(1+Formulierdata!$A$29)*U94))) -> 
B95: =Inmeetformulier!B95 -> 0 | C95: =Inmeetformulier!C95 -> 0 | D95: =Inmeetformulier!D95 -> 0 | E95: =Inmeetformulier!E95 -> 0 | F95: =Inmeetformulier!F95 -> 0 | G95: =Inmeetformulier!G95 -> 0 | H95: =Inmeetformulier!H95 -> 0 | I95: =Inmeetformulier!I95 -> 0 | J95: =Inmeetformulier!J95 -> 0 | K95: =Inmeetformulier!K95 -> 0 | L95: =Inmeetformulier!L95 -> 0 | M95: =Inmeetformulier!N95 -> 0 | N95: =Inmeetformulier!P95 -> 0 | O95: =Inmeetformulier!Q95 -> 0 | P95: =Inmeetformulier!S95 -> 0 | W95: =IF(Y95="","",(1/(1+Formulierdata!$A$29))*Y95) ->  | Y95: =IF($W$22=1,IF(R95="","",IF(OR(U95="",U95=0,U95=1),R95,R95*U95)),IF(R95="","",IF(OR(U95="",U95=0,U95=1),R95*(1+Formulierdata!$A$29),R95*(1+Formulierdata!$A$29)*U95))) -> 
B96: =Inmeetformulier!B96 -> 0 | C96: =Inmeetformulier!C96 -> 0 | D96: =Inmeetformulier!D96 -> 0 | E96: =Inmeetformulier!E96 -> 0 | F96: =Inmeetformulier!F96 -> 0 | G96: =Inmeetformulier!G96 -> 0 | H96: =Inmeetformulier!H96 -> 0 | I96: =Inmeetformulier!I96 -> 0 | J96: =Inmeetformulier!J96 -> 0 | K96: =Inmeetformulier!K96 -> 0 | L96: =Inmeetformulier!L96 -> 0 | M96: =Inmeetformulier!N96 -> 0 | N96: =Inmeetformulier!P96 -> 0 | O96: =Inmeetformulier!Q96 -> 0 | P96: =Inmeetformulier!S96 -> 0 | W96: =IF(Y96="","",(1/(1+Formulierdata!$A$29))*Y96) ->  | Y96: =IF($W$22=1,IF(R96="","",IF(OR(U96="",U96=0,U96=1),R96,R96*U96)),IF(R96="","",IF(OR(U96="",U96=0,U96=1),R96*(1+Formulierdata!$A$29),R96*(1+Formulierdata!$A$29)*U96))) -> 
B97: =Inmeetformulier!B97 -> 0 | C97: =Inmeetformulier!C97 -> 0 | D97: =Inmeetformulier!D97 -> 0 | E97: =Inmeetformulier!E97 -> 0 | F97: =Inmeetformulier!F97 -> 0 | G97: =Inmeetformulier!G97 -> 0 | H97: =Inmeetformulier!H97 -> 0 | I97: =Inmeetformulier!I97 -> 0 | J97: =Inmeetformulier!J97 -> 0 | K97: =Inmeetformulier!K97 -> 0 | L97: =Inmeetformulier!L97 -> 0 | M97: =Inmeetformulier!N97 -> 0 | N97: =Inmeetformulier!P97 -> 0 | O97: =Inmeetformulier!Q97 -> 0 | P97: =Inmeetformulier!S97 -> 0 | W97: =IF(Y97="","",(1/(1+Formulierdata!$A$29))*Y97) ->  | Y97: =IF($W$22=1,IF(R97="","",IF(OR(U97="",U97=0,U97=1),R97,R97*U97)),IF(R97="","",IF(OR(U97="",U97=0,U97=1),R97*(1+Formulierdata!$A$29),R97*(1+Formulierdata!$A$29)*U97))) -> 
B98: =Inmeetformulier!B98 -> 0 | C98: =Inmeetformulier!C98 -> 0 | D98: =Inmeetformulier!D98 -> 0 | E98: =Inmeetformulier!E98 -> 0 | F98: =Inmeetformulier!F98 -> 0 | G98: =Inmeetformulier!G98 -> 0 | H98: =Inmeetformulier!H98 -> 0 | I98: =Inmeetformulier!I98 -> 0 | J98: =Inmeetformulier!J98 -> 0 | K98: =Inmeetformulier!K98 -> 0 | L98: =Inmeetformulier!L98 -> 0 | M98: =Inmeetformulier!N98 -> 0 | N98: =Inmeetformulier!P98 -> 0 | O98: =Inmeetformulier!Q98 -> 0 | P98: =Inmeetformulier!S98 -> 0 | W98: =IF(Y98="","",(1/(1+Formulierdata!$A$29))*Y98) ->  | Y98: =IF($W$22=1,IF(R98="","",IF(OR(U98="",U98=0,U98=1),R98,R98*U98)),IF(R98="","",IF(OR(U98="",U98=0,U98=1),R98*(1+Formulierdata!$A$29),R98*(1+Formulierdata!$A$29)*U98))) -> 
B99: =Inmeetformulier!B99 -> 0 | C99: =Inmeetformulier!C99 -> 0 | D99: =Inmeetformulier!D99 -> 0 | E99: =Inmeetformulier!E99 -> 0 | F99: =Inmeetformulier!F99 -> 0 | G99: =Inmeetformulier!G99 -> 0 | H99: =Inmeetformulier!H99 -> 0 | I99: =Inmeetformulier!I99 -> 0 | J99: =Inmeetformulier!J99 -> 0 | K99: =Inmeetformulier!K99 -> 0 | L99: =Inmeetformulier!L99 -> 0 | M99: =Inmeetformulier!N99 -> 0 | N99: =Inmeetformulier!P99 -> 0 | O99: =Inmeetformulier!Q99 -> 0 | P99: =Inmeetformulier!S99 -> 0 | W99: =IF(Y99="","",(1/(1+Formulierdata!$A$29))*Y99) ->  | Y99: =IF($W$22=1,IF(R99="","",IF(OR(U99="",U99=0,U99=1),R99,R99*U99)),IF(R99="","",IF(OR(U99="",U99=0,U99=1),R99*(1+Formulierdata!$A$29),R99*(1+Formulierdata!$A$29)*U99))) -> 
B100: =Inmeetformulier!B100 -> 0 | C100: =Inmeetformulier!C100 -> 0 | D100: =Inmeetformulier!D100 -> 0 | E100: =Inmeetformulier!E100 -> 0 | F100: =Inmeetformulier!F100 -> 0 | G100: =Inmeetformulier!G100 -> 0 | H100: =Inmeetformulier!H100 -> 0 | I100: =Inmeetformulier!I100 -> 0 | J100: =Inmeetformulier!J100 -> 0 | K100: =Inmeetformulier!K100 -> 0 | L100: =Inmeetformulier!L100 -> 0 | M100: =Inmeetformulier!N100 -> 0 | N100: =Inmeetformulier!P100 -> 0 | O100: =Inmeetformulier!Q100 -> 0 | P100: =Inmeetformulier!S100 -> 0 | W100: =IF(Y100="","",(1/(1+Formulierdata!$A$29))*Y100) ->  | Y100: =IF($W$22=1,IF(R100="","",IF(OR(U100="",U100=0,U100=1),R100,R100*U100)),IF(R100="","",IF(OR(U100="",U100=0,U100=1),R100*(1+Formulierdata!$A$29),R100*(1+Formulierdata!$A$29)*U100))) -> 
B101: =Inmeetformulier!B101 -> 0 | C101: =Inmeetformulier!C101 -> 0 | D101: =Inmeetformulier!D101 -> 0 | E101: =Inmeetformulier!E101 -> 0 | F101: =Inmeetformulier!F101 -> 0 | G101: =Inmeetformulier!G101 -> 0 | H101: =Inmeetformulier!H101 -> 0 | I101: =Inmeetformulier!I101 -> 0 | J101: =Inmeetformulier!J101 -> 0 | K101: =Inmeetformulier!K101 -> 0 | L101: =Inmeetformulier!L101 -> 0 | M101: =Inmeetformulier!N101 -> 0 | N101: =Inmeetformulier!P101 -> 0 | O101: =Inmeetformulier!Q101 -> 0 | P101: =Inmeetformulier!S101 -> 0 | W101: =IF(Y101="","",(1/(1+Formulierdata!$A$29))*Y101) ->  | Y101: =IF($W$22=1,IF(R101="","",IF(OR(U101="",U101=0,U101=1),R101,R101*U101)),IF(R101="","",IF(OR(U101="",U101=0,U101=1),R101*(1+Formulierdata!$A$29),R101*(1+Formulierdata!$A$29)*U101))) -> 
B102: =Inmeetformulier!B102 -> 0 | C102: =Inmeetformulier!C102 -> 0 | D102: =Inmeetformulier!D102 -> 0 | E102: =Inmeetformulier!E102 -> 0 | F102: =Inmeetformulier!F102 -> 0 | G102: =Inmeetformulier!G102 -> 0 | H102: =Inmeetformulier!H102 -> 0 | I102: =Inmeetformulier!I102 -> 0 | J102: =Inmeetformulier!J102 -> 0 | K102: =Inmeetformulier!K102 -> 0 | L102: =Inmeetformulier!L102 -> 0 | M102: =Inmeetformulier!N102 -> 0 | N102: =Inmeetformulier!P102 -> 0 | O102: =Inmeetformulier!Q102 -> 0 | P102: =Inmeetformulier!S102 -> 0 | W102: =IF(Y102="","",(1/(1+Formulierdata!$A$29))*Y102) ->  | Y102: =IF($W$22=1,IF(R102="","",IF(OR(U102="",U102=0,U102=1),R102,R102*U102)),IF(R102="","",IF(OR(U102="",U102=0,U102=1),R102*(1+Formulierdata!$A$29),R102*(1+Formulierdata!$A$29)*U102))) -> 
B103: =Inmeetformulier!B103 -> 0 | C103: =Inmeetformulier!C103 -> 0 | D103: =Inmeetformulier!D103 -> 0 | E103: =Inmeetformulier!E103 -> 0 | F103: =Inmeetformulier!F103 -> 0 | G103: =Inmeetformulier!G103 -> 0 | H103: =Inmeetformulier!H103 -> 0 | I103: =Inmeetformulier!I103 -> 0 | J103: =Inmeetformulier!J103 -> 0 | K103: =Inmeetformulier!K103 -> 0 | L103: =Inmeetformulier!L103 -> 0 | M103: =Inmeetformulier!N103 -> 0 | N103: =Inmeetformulier!P103 -> 0 | O103: =Inmeetformulier!Q103 -> 0 | P103: =Inmeetformulier!S103 -> 0 | W103: =IF(Y103="","",(1/(1+Formulierdata!$A$29))*Y103) ->  | Y103: =IF($W$22=1,IF(R103="","",IF(OR(U103="",U103=0,U103=1),R103,R103*U103)),IF(R103="","",IF(OR(U103="",U103=0,U103=1),R103*(1+Formulierdata!$A$29),R103*(1+Formulierdata!$A$29)*U103))) -> 
B104: =Inmeetformulier!B104 -> 0 | C104: =Inmeetformulier!C104 -> 0 | D104: =Inmeetformulier!D104 -> 0 | E104: =Inmeetformulier!E104 -> 0 | F104: =Inmeetformulier!F104 -> 0 | G104: =Inmeetformulier!G104 -> 0 | H104: =Inmeetformulier!H104 -> 0 | I104: =Inmeetformulier!I104 -> 0 | J104: =Inmeetformulier!J104 -> 0 | K104: =Inmeetformulier!K104 -> 0 | L104: =Inmeetformulier!L104 -> 0 | M104: =Inmeetformulier!N104 -> 0 | N104: =Inmeetformulier!P104 -> 0 | O104: =Inmeetformulier!Q104 -> 0 | P104: =Inmeetformulier!S104 -> 0 | W104: =IF(Y104="","",(1/(1+Formulierdata!$A$29))*Y104) ->  | Y104: =IF($W$22=1,IF(R104="","",IF(OR(U104="",U104=0,U104=1),R104,R104*U104)),IF(R104="","",IF(OR(U104="",U104=0,U104=1),R104*(1+Formulierdata!$A$29),R104*(1+Formulierdata!$A$29)*U104))) -> 
B105: =Inmeetformulier!B105 -> 0 | C105: =Inmeetformulier!C105 -> 0 | D105: =Inmeetformulier!D105 -> 0 | E105: =Inmeetformulier!E105 -> 0 | F105: =Inmeetformulier!F105 -> 0 | G105: =Inmeetformulier!G105 -> 0 | H105: =Inmeetformulier!H105 -> 0 | I105: =Inmeetformulier!I105 -> 0 | J105: =Inmeetformulier!J105 -> 0 | K105: =Inmeetformulier!K105 -> 0 | L105: =Inmeetformulier!L105 -> 0 | M105: =Inmeetformulier!N105 -> 0 | N105: =Inmeetformulier!P105 -> 0 | O105: =Inmeetformulier!Q105 -> 0 | P105: =Inmeetformulier!S105 -> 0 | W105: =IF(Y105="","",(1/(1+Formulierdata!$A$29))*Y105) ->  | Y105: =IF($W$22=1,IF(R105="","",IF(OR(U105="",U105=0,U105=1),R105,R105*U105)),IF(R105="","",IF(OR(U105="",U105=0,U105=1),R105*(1+Formulierdata!$A$29),R105*(1+Formulierdata!$A$29)*U105))) -> 
B106: =Inmeetformulier!B106 -> 0 | C106: =Inmeetformulier!C106 -> 0 | D106: =Inmeetformulier!D106 -> 0 | E106: =Inmeetformulier!E106 -> 0 | F106: =Inmeetformulier!F106 -> 0 | G106: =Inmeetformulier!G106 -> 0 | H106: =Inmeetformulier!H106 -> 0 | I106: =Inmeetformulier!I106 -> 0 | J106: =Inmeetformulier!J106 -> 0 | K106: =Inmeetformulier!K106 -> 0 | L106: =Inmeetformulier!L106 -> 0 | M106: =Inmeetformulier!N106 -> 0 | N106: =Inmeetformulier!P106 -> 0 | O106: =Inmeetformulier!Q106 -> 0 | P106: =Inmeetformulier!S106 -> 0 | W106: =IF(Y106="","",(1/(1+Formulierdata!$A$29))*Y106) ->  | Y106: =IF($W$22=1,IF(R106="","",IF(OR(U106="",U106=0,U106=1),R106,R106*U106)),IF(R106="","",IF(OR(U106="",U106=0,U106=1),R106*(1+Formulierdata!$A$29),R106*(1+Formulierdata!$A$29)*U106))) -> 
B107: =Inmeetformulier!B107 -> 0 | C107: =Inmeetformulier!C107 -> 0 | D107: =Inmeetformulier!D107 -> 0 | E107: =Inmeetformulier!E107 -> 0 | F107: =Inmeetformulier!F107 -> 0 | G107: =Inmeetformulier!G107 -> 0 | H107: =Inmeetformulier!H107 -> 0 | I107: =Inmeetformulier!I107 -> 0 | J107: =Inmeetformulier!J107 -> 0 | K107: =Inmeetformulier!K107 -> 0 | L107: =Inmeetformulier!L107 -> 0 | M107: =Inmeetformulier!N107 -> 0 | N107: =Inmeetformulier!P107 -> 0 | O107: =Inmeetformulier!Q107 -> 0 | P107: =Inmeetformulier!S107 -> 0 | W107: =IF(Y107="","",(1/(1+Formulierdata!$A$29))*Y107) ->  | Y107: =IF($W$22=1,IF(R107="","",IF(OR(U107="",U107=0,U107=1),R107,R107*U107)),IF(R107="","",IF(OR(U107="",U107=0,U107=1),R107*(1+Formulierdata!$A$29),R107*(1+Formulierdata!$A$29)*U107))) -> 
B108: =Inmeetformulier!B108 -> 0 | C108: =Inmeetformulier!C108 -> 0 | D108: =Inmeetformulier!D108 -> 0 | E108: =Inmeetformulier!E108 -> 0 | F108: =Inmeetformulier!F108 -> 0 | G108: =Inmeetformulier!G108 -> 0 | H108: =Inmeetformulier!H108 -> 0 | I108: =Inmeetformulier!I108 -> 0 | J108: =Inmeetformulier!J108 -> 0 | K108: =Inmeetformulier!K108 -> 0 | L108: =Inmeetformulier!L108 -> 0 | M108: =Inmeetformulier!N108 -> 0 | N108: =Inmeetformulier!P108 -> 0 | O108: =Inmeetformulier!Q108 -> 0 | P108: =Inmeetformulier!S108 -> 0 | W108: =IF(Y108="","",(1/(1+Formulierdata!$A$29))*Y108) ->  | Y108: =IF($W$22=1,IF(R108="","",IF(OR(U108="",U108=0,U108=1),R108,R108*U108)),IF(R108="","",IF(OR(U108="",U108=0,U108=1),R108*(1+Formulierdata!$A$29),R108*(1+Formulierdata!$A$29)*U108))) -> 
B109: =Inmeetformulier!B109 -> 0 | C109: =Inmeetformulier!C109 -> 0 | D109: =Inmeetformulier!D109 -> 0 | E109: =Inmeetformulier!E109 -> 0 | F109: =Inmeetformulier!F109 -> 0 | G109: =Inmeetformulier!G109 -> 0 | H109: =Inmeetformulier!H109 -> 0 | I109: =Inmeetformulier!I109 -> 0 | J109: =Inmeetformulier!J109 -> 0 | K109: =Inmeetformulier!K109 -> 0 | L109: =Inmeetformulier!L109 -> 0 | M109: =Inmeetformulier!N109 -> 0 | N109: =Inmeetformulier!P109 -> 0 | O109: =Inmeetformulier!Q109 -> 0 | P109: =Inmeetformulier!S109 -> 0 | W109: =IF(Y109="","",(1/(1+Formulierdata!$A$29))*Y109) ->  | Y109: =IF($W$22=1,IF(R109="","",IF(OR(U109="",U109=0,U109=1),R109,R109*U109)),IF(R109="","",IF(OR(U109="",U109=0,U109=1),R109*(1+Formulierdata!$A$29),R109*(1+Formulierdata!$A$29)*U109))) -> 
B110: =Inmeetformulier!B110 -> 0 | C110: =Inmeetformulier!C110 -> 0 | D110: =Inmeetformulier!D110 -> 0 | E110: =Inmeetformulier!E110 -> 0 | F110: =Inmeetformulier!F110 -> 0 | G110: =Inmeetformulier!G110 -> 0 | H110: =Inmeetformulier!H110 -> 0 | I110: =Inmeetformulier!I110 -> 0 | J110: =Inmeetformulier!J110 -> 0 | K110: =Inmeetformulier!K110 -> 0 | L110: =Inmeetformulier!L110 -> 0 | M110: =Inmeetformulier!N110 -> 0 | N110: =Inmeetformulier!P110 -> 0 | O110: =Inmeetformulier!Q110 -> 0 | P110: =Inmeetformulier!S110 -> 0 | W110: =IF(Y110="","",(1/(1+Formulierdata!$A$29))*Y110) ->  | Y110: =IF($W$22=1,IF(R110="","",IF(OR(U110="",U110=0,U110=1),R110,R110*U110)),IF(R110="","",IF(OR(U110="",U110=0,U110=1),R110*(1+Formulierdata!$A$29),R110*(1+Formulierdata!$A$29)*U110))) -> 
B111: =Inmeetformulier!B111 -> 0 | C111: =Inmeetformulier!C111 -> 0 | D111: =Inmeetformulier!D111 -> 0 | E111: =Inmeetformulier!E111 -> 0 | F111: =Inmeetformulier!F111 -> 0 | G111: =Inmeetformulier!G111 -> 0 | H111: =Inmeetformulier!H111 -> 0 | I111: =Inmeetformulier!I111 -> 0 | J111: =Inmeetformulier!J111 -> 0 | K111: =Inmeetformulier!K111 -> 0 | L111: =Inmeetformulier!L111 -> 0 | M111: =Inmeetformulier!N111 -> 0 | N111: =Inmeetformulier!P111 -> 0 | O111: =Inmeetformulier!Q111 -> 0 | P111: =Inmeetformulier!S111 -> 0 | W111: =IF(Y111="","",(1/(1+Formulierdata!$A$29))*Y111) ->  | Y111: =IF($W$22=1,IF(R111="","",IF(OR(U111="",U111=0,U111=1),R111,R111*U111)),IF(R111="","",IF(OR(U111="",U111=0,U111=1),R111*(1+Formulierdata!$A$29),R111*(1+Formulierdata!$A$29)*U111))) -> 
B112: =Inmeetformulier!B112 -> 0 | C112: =Inmeetformulier!C112 -> 0 | D112: =Inmeetformulier!D112 -> 0 | E112: =Inmeetformulier!E112 -> 0 | F112: =Inmeetformulier!F112 -> 0 | G112: =Inmeetformulier!G112 -> 0 | H112: =Inmeetformulier!H112 -> 0 | I112: =Inmeetformulier!I112 -> 0 | J112: =Inmeetformulier!J112 -> 0 | K112: =Inmeetformulier!K112 -> 0 | L112: =Inmeetformulier!L112 -> 0 | M112: =Inmeetformulier!N112 -> 0 | N112: =Inmeetformulier!P112 -> 0 | O112: =Inmeetformulier!Q112 -> 0 | P112: =Inmeetformulier!S112 -> 0 | W112: =IF(Y112="","",(1/(1+Formulierdata!$A$29))*Y112) ->  | Y112: =IF($W$22=1,IF(R112="","",IF(OR(U112="",U112=0,U112=1),R112,R112*U112)),IF(R112="","",IF(OR(U112="",U112=0,U112=1),R112*(1+Formulierdata!$A$29),R112*(1+Formulierdata!$A$29)*U112))) -> 
B113: =Inmeetformulier!B113 -> 0 | C113: =Inmeetformulier!C113 -> 0 | D113: =Inmeetformulier!D113 -> 0 | E113: =Inmeetformulier!E113 -> 0 | F113: =Inmeetformulier!F113 -> 0 | G113: =Inmeetformulier!G113 -> 0 | H113: =Inmeetformulier!H113 -> 0 | I113: =Inmeetformulier!I113 -> 0 | J113: =Inmeetformulier!J113 -> 0 | K113: =Inmeetformulier!K113 -> 0 | L113: =Inmeetformulier!L113 -> 0 | M113: =Inmeetformulier!N113 -> 0 | N113: =Inmeetformulier!P113 -> 0 | O113: =Inmeetformulier!Q113 -> 0 | P113: =Inmeetformulier!S113 -> 0 | W113: =IF(Y113="","",(1/(1+Formulierdata!$A$29))*Y113) ->  | Y113: =IF($W$22=1,IF(R113="","",IF(OR(U113="",U113=0,U113=1),R113,R113*U113)),IF(R113="","",IF(OR(U113="",U113=0,U113=1),R113*(1+Formulierdata!$A$29),R113*(1+Formulierdata!$A$29)*U113))) -> 
B114: =Inmeetformulier!B114 -> 0 | C114: =Inmeetformulier!C114 -> 0 | D114: =Inmeetformulier!D114 -> 0 | E114: =Inmeetformulier!E114 -> 0 | F114: =Inmeetformulier!F114 -> 0 | G114: =Inmeetformulier!G114 -> 0 | H114: =Inmeetformulier!H114 -> 0 | I114: =Inmeetformulier!I114 -> 0 | J114: =Inmeetformulier!J114 -> 0 | K114: =Inmeetformulier!K114 -> 0 | L114: =Inmeetformulier!L114 -> 0 | M114: =Inmeetformulier!N114 -> 0 | N114: =Inmeetformulier!P114 -> 0 | O114: =Inmeetformulier!Q114 -> 0 | P114: =Inmeetformulier!S114 -> 0 | W114: =IF(Y114="","",(1/(1+Formulierdata!$A$29))*Y114) ->  | Y114: =IF($W$22=1,IF(R114="","",IF(OR(U114="",U114=0,U114=1),R114,R114*U114)),IF(R114="","",IF(OR(U114="",U114=0,U114=1),R114*(1+Formulierdata!$A$29),R114*(1+Formulierdata!$A$29)*U114))) -> 
B115: =Inmeetformulier!B115 -> 0 | C115: =Inmeetformulier!C115 -> 0 | D115: =Inmeetformulier!D115 -> 0 | E115: =Inmeetformulier!E115 -> 0 | F115: =Inmeetformulier!F115 -> 0 | G115: =Inmeetformulier!G115 -> 0 | H115: =Inmeetformulier!H115 -> 0 | I115: =Inmeetformulier!I115 -> 0 | J115: =Inmeetformulier!J115 -> 0 | K115: =Inmeetformulier!K115 -> 0 | L115: =Inmeetformulier!L115 -> 0 | M115: =Inmeetformulier!N115 -> 0 | N115: =Inmeetformulier!P115 -> 0 | O115: =Inmeetformulier!Q115 -> 0 | P115: =Inmeetformulier!S115 -> 0 | W115: =IF(Y115="","",(1/(1+Formulierdata!$A$29))*Y115) ->  | Y115: =IF($W$22=1,IF(R115="","",IF(OR(U115="",U115=0,U115=1),R115,R115*U115)),IF(R115="","",IF(OR(U115="",U115=0,U115=1),R115*(1+Formulierdata!$A$29),R115*(1+Formulierdata!$A$29)*U115))) -> 
B116: =Inmeetformulier!B116 -> 0 | C116: =Inmeetformulier!C116 -> 0 | D116: =Inmeetformulier!D116 -> 0 | E116: =Inmeetformulier!E116 -> 0 | F116: =Inmeetformulier!F116 -> 0 | G116: =Inmeetformulier!G116 -> 0 | H116: =Inmeetformulier!H116 -> 0 | I116: =Inmeetformulier!I116 -> 0 | J116: =Inmeetformulier!J116 -> 0 | K116: =Inmeetformulier!K116 -> 0 | L116: =Inmeetformulier!L116 -> 0 | M116: =Inmeetformulier!N116 -> 0 | N116: =Inmeetformulier!P116 -> 0 | O116: =Inmeetformulier!Q116 -> 0 | P116: =Inmeetformulier!S116 -> 0 | W116: =IF(Y116="","",(1/(1+Formulierdata!$A$29))*Y116) ->  | Y116: =IF($W$22=1,IF(R116="","",IF(OR(U116="",U116=0,U116=1),R116,R116*U116)),IF(R116="","",IF(OR(U116="",U116=0,U116=1),R116*(1+Formulierdata!$A$29),R116*(1+Formulierdata!$A$29)*U116))) -> 
B117: =Inmeetformulier!B117 -> 0 | C117: =Inmeetformulier!C117 -> 0 | D117: =Inmeetformulier!D117 -> 0 | E117: =Inmeetformulier!E117 -> 0 | F117: =Inmeetformulier!F117 -> 0 | G117: =Inmeetformulier!G117 -> 0 | H117: =Inmeetformulier!H117 -> 0 | I117: =Inmeetformulier!I117 -> 0 | J117: =Inmeetformulier!J117 -> 0 | K117: =Inmeetformulier!K117 -> 0 | L117: =Inmeetformulier!L117 -> 0 | M117: =Inmeetformulier!N117 -> 0 | N117: =Inmeetformulier!P117 -> 0 | O117: =Inmeetformulier!Q117 -> 0 | P117: =Inmeetformulier!S117 -> 0 | W117: =IF(Y117="","",(1/(1+Formulierdata!$A$29))*Y117) ->  | Y117: =IF($W$22=1,IF(R117="","",IF(OR(U117="",U117=0,U117=1),R117,R117*U117)),IF(R117="","",IF(OR(U117="",U117=0,U117=1),R117*(1+Formulierdata!$A$29),R117*(1+Formulierdata!$A$29)*U117))) -> 
B118: =Inmeetformulier!B118 -> 0 | C118: =Inmeetformulier!C118 -> 0 | D118: =Inmeetformulier!D118 -> 0 | E118: =Inmeetformulier!E118 -> 0 | F118: =Inmeetformulier!F118 -> 0 | G118: =Inmeetformulier!G118 -> 0 | H118: =Inmeetformulier!H118 -> 0 | I118: =Inmeetformulier!I118 -> 0 | J118: =Inmeetformulier!J118 -> 0 | K118: =Inmeetformulier!K118 -> 0 | L118: =Inmeetformulier!L118 -> 0 | M118: =Inmeetformulier!N118 -> 0 | N118: =Inmeetformulier!P118 -> 0 | O118: =Inmeetformulier!Q118 -> 0 | P118: =Inmeetformulier!S118 -> 0 | W118: =IF(Y118="","",(1/(1+Formulierdata!$A$29))*Y118) ->  | Y118: =IF($W$22=1,IF(R118="","",IF(OR(U118="",U118=0,U118=1),R118,R118*U118)),IF(R118="","",IF(OR(U118="",U118=0,U118=1),R118*(1+Formulierdata!$A$29),R118*(1+Formulierdata!$A$29)*U118))) -> 
B119: =Inmeetformulier!B119 -> 0 | C119: =Inmeetformulier!C119 -> 0 | D119: =Inmeetformulier!D119 -> 0 | E119: =Inmeetformulier!E119 -> 0 | F119: =Inmeetformulier!F119 -> 0 | G119: =Inmeetformulier!G119 -> 0 | H119: =Inmeetformulier!H119 -> 0 | I119: =Inmeetformulier!I119 -> 0 | J119: =Inmeetformulier!J119 -> 0 | K119: =Inmeetformulier!K119 -> 0 | L119: =Inmeetformulier!L119 -> 0 | M119: =Inmeetformulier!N119 -> 0 | N119: =Inmeetformulier!P119 -> 0 | O119: =Inmeetformulier!Q119 -> 0 | P119: =Inmeetformulier!S119 -> 0 | W119: =IF(Y119="","",(1/(1+Formulierdata!$A$29))*Y119) ->  | Y119: =IF($W$22=1,IF(R119="","",IF(OR(U119="",U119=0,U119=1),R119,R119*U119)),IF(R119="","",IF(OR(U119="",U119=0,U119=1),R119*(1+Formulierdata!$A$29),R119*(1+Formulierdata!$A$29)*U119))) -> 
B120: =Inmeetformulier!B120 -> 0 | C120: =Inmeetformulier!C120 -> 0 | D120: =Inmeetformulier!D120 -> 0 | E120: =Inmeetformulier!E120 -> 0 | F120: =Inmeetformulier!F120 -> 0 | G120: =Inmeetformulier!G120 -> 0 | H120: =Inmeetformulier!H120 -> 0 | I120: =Inmeetformulier!I120 -> 0 | J120: =Inmeetformulier!J120 -> 0 | K120: =Inmeetformulier!K120 -> 0 | L120: =Inmeetformulier!L120 -> 0 | M120: =Inmeetformulier!N120 -> 0 | N120: =Inmeetformulier!P120 -> 0 | O120: =Inmeetformulier!Q120 -> 0 | P120: =Inmeetformulier!S120 -> 0 | W120: =IF(Y120="","",(1/(1+Formulierdata!$A$29))*Y120) ->  | Y120: =IF($W$22=1,IF(R120="","",IF(OR(U120="",U120=0,U120=1),R120,R120*U120)),IF(R120="","",IF(OR(U120="",U120=0,U120=1),R120*(1+Formulierdata!$A$29),R120*(1+Formulierdata!$A$29)*U120))) -> 
B121: =Inmeetformulier!B121 -> 0 | C121: =Inmeetformulier!C121 -> 0 | D121: =Inmeetformulier!D121 -> 0 | E121: =Inmeetformulier!E121 -> 0 | F121: =Inmeetformulier!F121 -> 0 | G121: =Inmeetformulier!G121 -> 0 | H121: =Inmeetformulier!H121 -> 0 | I121: =Inmeetformulier!I121 -> 0 | J121: =Inmeetformulier!J121 -> 0 | K121: =Inmeetformulier!K121 -> 0 | L121: =Inmeetformulier!L121 -> 0 | M121: =Inmeetformulier!N121 -> 0 | N121: =Inmeetformulier!P121 -> 0 | O121: =Inmeetformulier!Q121 -> 0 | P121: =Inmeetformulier!S121 -> 0 | W121: =IF(Y121="","",(1/(1+Formulierdata!$A$29))*Y121) ->  | Y121: =IF($W$22=1,IF(R121="","",IF(OR(U121="",U121=0,U121=1),R121,R121*U121)),IF(R121="","",IF(OR(U121="",U121=0,U121=1),R121*(1+Formulierdata!$A$29),R121*(1+Formulierdata!$A$29)*U121))) -> 
B122: =Inmeetformulier!B122 -> 0 | C122: =Inmeetformulier!C122 -> 0 | D122: =Inmeetformulier!D122 -> 0 | E122: =Inmeetformulier!E122 -> 0 | F122: =Inmeetformulier!F122 -> 0 | G122: =Inmeetformulier!G122 -> 0 | H122: =Inmeetformulier!H122 -> 0 | I122: =Inmeetformulier!I122 -> 0 | J122: =Inmeetformulier!J122 -> 0 | K122: =Inmeetformulier!K122 -> 0 | L122: =Inmeetformulier!L122 -> 0 | M122: =Inmeetformulier!N122 -> 0 | N122: =Inmeetformulier!P122 -> 0 | O122: =Inmeetformulier!Q122 -> 0 | P122: =Inmeetformulier!S122 -> 0 | W122: =IF(Y122="","",(1/(1+Formulierdata!$A$29))*Y122) ->  | Y122: =IF($W$22=1,IF(R122="","",IF(OR(U122="",U122=0,U122=1),R122,R122*U122)),IF(R122="","",IF(OR(U122="",U122=0,U122=1),R122*(1+Formulierdata!$A$29),R122*(1+Formulierdata!$A$29)*U122))) -> 
B123: =Inmeetformulier!B123 -> 0 | C123: =Inmeetformulier!C123 -> 0 | D123: =Inmeetformulier!D123 -> 0 | E123: =Inmeetformulier!E123 -> 0 | F123: =Inmeetformulier!F123 -> 0 | G123: =Inmeetformulier!G123 -> 0 | H123: =Inmeetformulier!H123 -> 0 | I123: =Inmeetformulier!I123 -> 0 | J123: =Inmeetformulier!J123 -> 0 | K123: =Inmeetformulier!K123 -> 0 | L123: =Inmeetformulier!L123 -> 0 | M123: =Inmeetformulier!N123 -> 0 | N123: =Inmeetformulier!P123 -> 0 | O123: =Inmeetformulier!Q123 -> 0 | P123: =Inmeetformulier!S123 -> 0 | W123: =IF(Y123="","",(1/(1+Formulierdata!$A$29))*Y123) ->  | Y123: =IF($W$22=1,IF(R123="","",IF(OR(U123="",U123=0,U123=1),R123,R123*U123)),IF(R123="","",IF(OR(U123="",U123=0,U123=1),R123*(1+Formulierdata!$A$29),R123*(1+Formulierdata!$A$29)*U123))) -> 
B124: =Inmeetformulier!B124 -> 0 | C124: =Inmeetformulier!C124 -> 0 | D124: =Inmeetformulier!D124 -> 0 | E124: =Inmeetformulier!E124 -> 0 | F124: =Inmeetformulier!F124 -> 0 | G124: =Inmeetformulier!G124 -> 0 | H124: =Inmeetformulier!H124 -> 0 | I124: =Inmeetformulier!I124 -> 0 | J124: =Inmeetformulier!J124 -> 0 | K124: =Inmeetformulier!K124 -> 0 | L124: =Inmeetformulier!L124 -> 0 | M124: =Inmeetformulier!N124 -> 0 | N124: =Inmeetformulier!P124 -> 0 | O124: =Inmeetformulier!Q124 -> 0 | P124: =Inmeetformulier!S124 -> 0 | W124: =IF(Y124="","",(1/(1+Formulierdata!$A$29))*Y124) ->  | Y124: =IF($W$22=1,IF(R124="","",IF(OR(U124="",U124=0,U124=1),R124,R124*U124)),IF(R124="","",IF(OR(U124="",U124=0,U124=1),R124*(1+Formulierdata!$A$29),R124*(1+Formulierdata!$A$29)*U124))) -> 
B125: =Inmeetformulier!B125 -> 0 | C125: =Inmeetformulier!C125 -> 0 | D125: =Inmeetformulier!D125 -> 0 | E125: =Inmeetformulier!E125 -> 0 | F125: =Inmeetformulier!F125 -> 0 | G125: =Inmeetformulier!G125 -> 0 | H125: =Inmeetformulier!H125 -> 0 | I125: =Inmeetformulier!I125 -> 0 | J125: =Inmeetformulier!J125 -> 0 | K125: =Inmeetformulier!K125 -> 0 | L125: =Inmeetformulier!L125 -> 0 | M125: =Inmeetformulier!N125 -> 0 | N125: =Inmeetformulier!P125 -> 0 | O125: =Inmeetformulier!Q125 -> 0 | P125: =Inmeetformulier!S125 -> 0 | W125: =IF(Y125="","",(1/(1+Formulierdata!$A$29))*Y125) ->  | Y125: =IF($W$22=1,IF(R125="","",IF(OR(U125="",U125=0,U125=1),R125,R125*U125)),IF(R125="","",IF(OR(U125="",U125=0,U125=1),R125*(1+Formulierdata!$A$29),R125*(1+Formulierdata!$A$29)*U125))) -> 

Sheet Offerte montage (hidden)
C2: Offerte / Montage- en overige kosten
C4: Aanhef | D4: Voorl. | E4: Achternaam
B5: Naam klant/contactpers.: | C5: ='Offerte goederen'!C5 -> 0 | D5: ='Offerte goederen'!D5 -> 0 | E5: ='Offerte goederen'!E5 -> 0
B6: Organisatie: | C6: ='Offerte goederen'!C6 -> 0
B7: Montage-adres: | C7: ='Offerte goederen'!C7 -> 0
B8: Postcode/Wplts.: | C8: ='Offerte goederen'!C8 -> 0 | D8: ='Offerte goederen'!D8 -> 0
B9: Land: | C9: ='Offerte goederen'!C9 -> 0
B10: E-mailadres: | C10: ='Offerte goederen'!C10 -> 0
C11: Landcode | D11: Tel.nr.
B12: Telefoon 1: | C12: ='Offerte goederen'!C12 -> 0 | D12: ='Offerte goederen'!D12 -> 0
B13: Telefoon 2: | C13: ='Offerte goederen'!C13 -> 0 | D13: ='Offerte goederen'!D13 -> 0
B15: Ingemeten op (1): | C15: ='Offerte goederen'!C15 -> 00:00:00 | E15: Offertedatum: | G15: ='Offerte goederen'!G15 -> 00:00:00
B16: Ingemeten op (2): | C16: ='Offerte goederen'!C16 -> 00:00:00 | E16: Geldig t/m: | G16: ='Offerte goederen'!G16 -> 
B18: Projectomschrijving klant: | C18: ='Offerte goederen'!C18 -> 0 | J18: =IF(R19=TRUE,"Totaalbedrag montage- en overige kosten (excl. BTW): ","Totaalbedrag montage- en overige kosten (BTW verlegd): ") -> Totaalbedrag montage- en overige kosten (excl. BTW): | O18: =SUM($Q25:$Q125) -> 0
C19: ='Offerte goederen'!C19 -> 0 | J19: =IF(R19=TRUE,CONCATENATE("+ BTW (",100*Formulierdata!A29,"%): "),"") -> + BTW (21%): | O19: =IF(R19=TRUE,Formulierdata!A29*O18,"") -> 0 | R19: TRUE
C20: ='Offerte goederen'!C20 -> 0 | M20: =IF(R19=TRUE,"Totaalbedrag montage- en overige kosten (incl. BTW): ","") -> Totaalbedrag montage- en overige kosten (incl. BTW): | O20: =IF(R19=TRUE,SUM(O18:Q19),"") -> 0
B24: Vertrek | C24: Montage- en overige kosten | I24: # | J24: Toelichting (evt.) | L24: ='Offerte goederen'!R24 -> Prijs (excl. BTW) | M24: per | O24: Aantal eenh. | Q24: Bedrag (excl. BTW) | S24: Bedrag (incl. BTW)
C25: =IF(I25="","",IF(ISERROR(VLOOKUP(I25,Prijslijst!A:B,2,FALSE)),"Itemnummer onbekend",VLOOKUP(I25,Prijslijst!A:B,2,FALSE))) ->  | L25: =IF($I25="","",IF('Offerte goederen'!$W$22=1,VLOOKUP($I25,Prijslijst!A:E,5,FALSE),VLOOKUP($I25,Prijslijst!A:E,3,FALSE))) ->  | M25: =IF(I25="","",VLOOKUP($I25,Prijslijst!A:D,4,FALSE)) ->  | Q25: =IF(S25="","",(1/(1+Formulierdata!$A$29))*S25) ->  | S25: =IF('Offerte goederen'!$W$22=1,IF(L25="","",IF(OR(O25="",O25=0,O25=1),L25,L25*O25)),IF(L25="","",IF(OR(O25="",O25=0,O25=1),L25*(1+Formulierdata!$A$29),L25*(1+Formulierdata!$A$29)*O25))) -> 
C26: =IF(I26="","",IF(ISERROR(VLOOKUP(I26,Prijslijst!A:B,2,FALSE)),"Itemnummer onbekend",VLOOKUP(I26,Prijslijst!A:B,2,FALSE))) ->  | L26: =IF($I26="","",IF('Offerte goederen'!$W$22=1,VLOOKUP($I26,Prijslijst!A:E,5,FALSE),VLOOKUP($I26,Prijslijst!A:E,3,FALSE))) ->  | M26: =IF(I26="","",VLOOKUP($I26,Prijslijst!A:D,4,FALSE)) ->  | Q26: =IF(S26="","",(1/(1+Formulierdata!$A$29))*S26) ->  | S26: =IF('Offerte goederen'!$W$22=1,IF(L26="","",IF(OR(O26="",O26=0,O26=1),L26,L26*O26)),IF(L26="","",IF(OR(O26="",O26=0,O26=1),L26*(1+Formulierdata!$A$29),L26*(1+Formulierdata!$A$29)*O26))) -> 
C27: =IF(I27="","",IF(ISERROR(VLOOKUP(I27,Prijslijst!A:B,2,FALSE)),"Itemnummer onbekend",VLOOKUP(I27,Prijslijst!A:B,2,FALSE))) ->  | L27: =IF($I27="","",IF('Offerte goederen'!$W$22=1,VLOOKUP($I27,Prijslijst!A:E,5,FALSE),VLOOKUP($I27,Prijslijst!A:E,3,FALSE))) ->  | M27: =IF(I27="","",VLOOKUP($I27,Prijslijst!A:D,4,FALSE)) ->  | Q27: =IF(S27="","",(1/(1+Formulierdata!$A$29))*S27) ->  | S27: =IF('Offerte goederen'!$W$22=1,IF(L27="","",IF(OR(O27="",O27=0,O27=1),L27,L27*O27)),IF(L27="","",IF(OR(O27="",O27=0,O27=1),L27*(1+Formulierdata!$A$29),L27*(1+Formulierdata!$A$29)*O27))) -> 
C28: =IF(I28="","",IF(ISERROR(VLOOKUP(I28,Prijslijst!A:B,2,FALSE)),"Itemnummer onbekend",VLOOKUP(I28,Prijslijst!A:B,2,FALSE))) ->  | L28: =IF($I28="","",IF('Offerte goederen'!$W$22=1,VLOOKUP($I28,Prijslijst!A:E,5,FALSE),VLOOKUP($I28,Prijslijst!A:E,3,FALSE))) ->  | M28: =IF(I28="","",VLOOKUP($I28,Prijslijst!A:D,4,FALSE)) ->  | Q28: =IF(S28="","",(1/(1+Formulierdata!$A$29))*S28) ->  | S28: =IF('Offerte goederen'!$W$22=1,IF(L28="","",IF(OR(O28="",O28=0,O28=1),L28,L28*O28)),IF(L28="","",IF(OR(O28="",O28=0,O28=1),L28*(1+Formulierdata!$A$29),L28*(1+Formulierdata!$A$29)*O28))) -> 
C29: =IF(I29="","",IF(ISERROR(VLOOKUP(I29,Prijslijst!A:B,2,FALSE)),"Itemnummer onbekend",VLOOKUP(I29,Prijslijst!A:B,2,FALSE))) ->  | L29: =IF($I29="","",IF('Offerte goederen'!$W$22=1,VLOOKUP($I29,Prijslijst!A:E,5,FALSE),VLOOKUP($I29,Prijslijst!A:E,3,FALSE))) ->  | M29: =IF(I29="","",VLOOKUP($I29,Prijslijst!A:D,4,FALSE)) ->  | Q29: =IF(S29="","",(1/(1+Formulierdata!$A$29))*S29) ->  | S29: =IF('Offerte goederen'!$W$22=1,IF(L29="","",IF(OR(O29="",O29=0,O29=1),L29,L29*O29)),IF(L29="","",IF(OR(O29="",O29=0,O29=1),L29*(1+Formulierdata!$A$29),L29*(1+Formulierdata!$A$29)*O29))) -> 
C30: =IF(I30="","",IF(ISERROR(VLOOKUP(I30,Prijslijst!A:B,2,FALSE)),"Itemnummer onbekend",VLOOKUP(I30,Prijslijst!A:B,2,FALSE))) ->  | L30: =IF($I30="","",IF('Offerte goederen'!$W$22=1,VLOOKUP($I30,Prijslijst!A:E,5,FALSE),VLOOKUP($I30,Prijslijst!A:E,3,FALSE))) ->  | M30: =IF(I30="","",VLOOKUP($I30,Prijslijst!A:D,4,FALSE)) ->  | Q30: =IF(S30="","",(1/(1+Formulierdata!$A$29))*S30) ->  | S30: =IF('Offerte goederen'!$W$22=1,IF(L30="","",IF(OR(O30="",O30=0,O30=1),L30,L30*O30)),IF(L30="","",IF(OR(O30="",O30=0,O30=1),L30*(1+Formulierdata!$A$29),L30*(1+Formulierdata!$A$29)*O30))) -> 
C31: =IF(I31="","",IF(ISERROR(VLOOKUP(I31,Prijslijst!A:B,2,FALSE)),"Itemnummer onbekend",VLOOKUP(I31,Prijslijst!A:B,2,FALSE))) ->  | L31: =IF($I31="","",IF('Offerte goederen'!$W$22=1,VLOOKUP($I31,Prijslijst!A:E,5,FALSE),VLOOKUP($I31,Prijslijst!A:E,3,FALSE))) ->  | M31: =IF(I31="","",VLOOKUP($I31,Prijslijst!A:D,4,FALSE)) ->  | Q31: =IF(S31="","",(1/(1+Formulierdata!$A$29))*S31) ->  | S31: =IF('Offerte goederen'!$W$22=1,IF(L31="","",IF(OR(O31="",O31=0,O31=1),L31,L31*O31)),IF(L31="","",IF(OR(O31="",O31=0,O31=1),L31*(1+Formulierdata!$A$29),L31*(1+Formulierdata!$A$29)*O31))) -> 
C32: =IF(I32="","",IF(ISERROR(VLOOKUP(I32,Prijslijst!A:B,2,FALSE)),"Itemnummer onbekend",VLOOKUP(I32,Prijslijst!A:B,2,FALSE))) ->  | L32: =IF($I32="","",IF('Offerte goederen'!$W$22=1,VLOOKUP($I32,Prijslijst!A:E,5,FALSE),VLOOKUP($I32,Prijslijst!A:E,3,FALSE))) ->  | M32: =IF(I32="","",VLOOKUP($I32,Prijslijst!A:D,4,FALSE)) ->  | Q32: =IF(S32="","",(1/(1+Formulierdata!$A$29))*S32) ->  | S32: =IF('Offerte goederen'!$W$22=1,IF(L32="","",IF(OR(O32="",O32=0,O32=1),L32,L32*O32)),IF(L32="","",IF(OR(O32="",O32=0,O32=1),L32*(1+Formulierdata!$A$29),L32*(1+Formulierdata!$A$29)*O32))) -> 
C33: =IF(I33="","",IF(ISERROR(VLOOKUP(I33,Prijslijst!A:B,2,FALSE)),"Itemnummer onbekend",VLOOKUP(I33,Prijslijst!A:B,2,FALSE))) ->  | L33: =IF($I33="","",IF('Offerte goederen'!$W$22=1,VLOOKUP($I33,Prijslijst!A:E,5,FALSE),VLOOKUP($I33,Prijslijst!A:E,3,FALSE))) ->  | M33: =IF(I33="","",VLOOKUP($I33,Prijslijst!A:D,4,FALSE)) ->  | Q33: =IF(S33="","",(1/(1+Formulierdata!$A$29))*S33) ->  | S33: =IF('Offerte goederen'!$W$22=1,IF(L33="","",IF(OR(O33="",O33=0,O33=1),L33,L33*O33)),IF(L33="","",IF(OR(O33="",O33=0,O33=1),L33*(1+Formulierdata!$A$29),L33*(1+Formulierdata!$A$29)*O33))) -> 
C34: =IF(I34="","",IF(ISERROR(VLOOKUP(I34,Prijslijst!A:B,2,FALSE)),"Itemnummer onbekend",VLOOKUP(I34,Prijslijst!A:B,2,FALSE))) ->  | L34: =IF($I34="","",IF('Offerte goederen'!$W$22=1,VLOOKUP($I34,Prijslijst!A:E,5,FALSE),VLOOKUP($I34,Prijslijst!A:E,3,FALSE))) ->  | M34: =IF(I34="","",VLOOKUP($I34,Prijslijst!A:D,4,FALSE)) ->  | Q34: =IF(S34="","",(1/(1+Formulierdata!$A$29))*S34) ->  | S34: =IF('Offerte goederen'!$W$22=1,IF(L34="","",IF(OR(O34="",O34=0,O34=1),L34,L34*O34)),IF(L34="","",IF(OR(O34="",O34=0,O34=1),L34*(1+Formulierdata!$A$29),L34*(1+Formulierdata!$A$29)*O34))) -> 
C35: =IF(I35="","",IF(ISERROR(VLOOKUP(I35,Prijslijst!A:B,2,FALSE)),"Itemnummer onbekend",VLOOKUP(I35,Prijslijst!A:B,2,FALSE))) ->  | L35: =IF($I35="","",IF('Offerte goederen'!$W$22=1,VLOOKUP($I35,Prijslijst!A:E,5,FALSE),VLOOKUP($I35,Prijslijst!A:E,3,FALSE))) ->  | M35: =IF(I35="","",VLOOKUP($I35,Prijslijst!A:D,4,FALSE)) ->  | Q35: =IF(S35="","",(1/(1+Formulierdata!$A$29))*S35) ->  | S35: =IF('Offerte goederen'!$W$22=1,IF(L35="","",IF(OR(O35="",O35=0,O35=1),L35,L35*O35)),IF(L35="","",IF(OR(O35="",O35=0,O35=1),L35*(1+Formulierdata!$A$29),L35*(1+Formulierdata!$A$29)*O35))) -> 
C36: =IF(I36="","",IF(ISERROR(VLOOKUP(I36,Prijslijst!A:B,2,FALSE)),"Itemnummer onbekend",VLOOKUP(I36,Prijslijst!A:B,2,FALSE))) ->  | L36: =IF($I36="","",IF('Offerte goederen'!$W$22=1,VLOOKUP($I36,Prijslijst!A:E,5,FALSE),VLOOKUP($I36,Prijslijst!A:E,3,FALSE))) ->  | M36: =IF(I36="","",VLOOKUP($I36,Prijslijst!A:D,4,FALSE)) ->  | Q36: =IF(S36="","",(1/(1+Formulierdata!$A$29))*S36) ->  | S36: =IF('Offerte goederen'!$W$22=1,IF(L36="","",IF(OR(O36="",O36=0,O36=1),L36,L36*O36)),IF(L36="","",IF(OR(O36="",O36=0,O36=1),L36*(1+Formulierdata!$A$29),L36*(1+Formulierdata!$A$29)*O36))) -> 
C37: =IF(I37="","",IF(ISERROR(VLOOKUP(I37,Prijslijst!A:B,2,FALSE)),"Itemnummer onbekend",VLOOKUP(I37,Prijslijst!A:B,2,FALSE))) ->  | L37: =IF($I37="","",IF('Offerte goederen'!$W$22=1,VLOOKUP($I37,Prijslijst!A:E,5,FALSE),VLOOKUP($I37,Prijslijst!A:E,3,FALSE))) ->  | M37: =IF(I37="","",VLOOKUP($I37,Prijslijst!A:D,4,FALSE)) ->  | Q37: =IF(S37="","",(1/(1+Formulierdata!$A$29))*S37) ->  | S37: =IF('Offerte goederen'!$W$22=1,IF(L37="","",IF(OR(O37="",O37=0,O37=1),L37,L37*O37)),IF(L37="","",IF(OR(O37="",O37=0,O37=1),L37*(1+Formulierdata!$A$29),L37*(1+Formulierdata!$A$29)*O37))) -> 
C38: =IF(I38="","",IF(ISERROR(VLOOKUP(I38,Prijslijst!A:B,2,FALSE)),"Itemnummer onbekend",VLOOKUP(I38,Prijslijst!A:B,2,FALSE))) ->  | L38: =IF($I38="","",IF('Offerte goederen'!$W$22=1,VLOOKUP($I38,Prijslijst!A:E,5,FALSE),VLOOKUP($I38,Prijslijst!A:E,3,FALSE))) ->  | M38: =IF(I38="","",VLOOKUP($I38,Prijslijst!A:D,4,FALSE)) ->  | Q38: =IF(S38="","",(1/(1+Formulierdata!$A$29))*S38) ->  | S38: =IF('Offerte goederen'!$W$22=1,IF(L38="","",IF(OR(O38="",O38=0,O38=1),L38,L38*O38)),IF(L38="","",IF(OR(O38="",O38=0,O38=1),L38*(1+Formulierdata!$A$29),L38*(1+Formulierdata!$A$29)*O38))) -> 
C39: =IF(I39="","",IF(ISERROR(VLOOKUP(I39,Prijslijst!A:B,2,FALSE)),"Itemnummer onbekend",VLOOKUP(I39,Prijslijst!A:B,2,FALSE))) ->  | L39: =IF($I39="","",IF('Offerte goederen'!$W$22=1,VLOOKUP($I39,Prijslijst!A:E,5,FALSE),VLOOKUP($I39,Prijslijst!A:E,3,FALSE))) ->  | M39: =IF(I39="","",VLOOKUP($I39,Prijslijst!A:D,4,FALSE)) ->  | Q39: =IF(S39="","",(1/(1+Formulierdata!$A$29))*S39) ->  | S39: =IF('Offerte goederen'!$W$22=1,IF(L39="","",IF(OR(O39="",O39=0,O39=1),L39,L39*O39)),IF(L39="","",IF(OR(O39="",O39=0,O39=1),L39*(1+Formulierdata!$A$29),L39*(1+Formulierdata!$A$29)*O39))) -> 
C40: =IF(I40="","",IF(ISERROR(VLOOKUP(I40,Prijslijst!A:B,2,FALSE)),"Itemnummer onbekend",VLOOKUP(I40,Prijslijst!A:B,2,FALSE))) ->  | L40: =IF($I40="","",IF('Offerte goederen'!$W$22=1,VLOOKUP($I40,Prijslijst!A:E,5,FALSE),VLOOKUP($I40,Prijslijst!A:E,3,FALSE))) ->  | M40: =IF(I40="","",VLOOKUP($I40,Prijslijst!A:D,4,FALSE)) ->  | Q40: =IF(S40="","",(1/(1+Formulierdata!$A$29))*S40) ->  | S40: =IF('Offerte goederen'!$W$22=1,IF(L40="","",IF(OR(O40="",O40=0,O40=1),L40,L40*O40)),IF(L40="","",IF(OR(O40="",O40=0,O40=1),L40*(1+Formulierdata!$A$29),L40*(1+Formulierdata!$A$29)*O40))) -> 
C41: =IF(I41="","",IF(ISERROR(VLOOKUP(I41,Prijslijst!A:B,2,FALSE)),"Itemnummer onbekend",VLOOKUP(I41,Prijslijst!A:B,2,FALSE))) ->  | L41: =IF($I41="","",IF('Offerte goederen'!$W$22=1,VLOOKUP($I41,Prijslijst!A:E,5,FALSE),VLOOKUP($I41,Prijslijst!A:E,3,FALSE))) ->  | M41: =IF(I41="","",VLOOKUP($I41,Prijslijst!A:D,4,FALSE)) ->  | Q41: =IF(S41="","",(1/(1+Formulierdata!$A$29))*S41) ->  | S41: =IF('Offerte goederen'!$W$22=1,IF(L41="","",IF(OR(O41="",O41=0,O41=1),L41,L41*O41)),IF(L41="","",IF(OR(O41="",O41=0,O41=1),L41*(1+Formulierdata!$A$29),L41*(1+Formulierdata!$A$29)*O41))) -> 
C42: =IF(I42="","",IF(ISERROR(VLOOKUP(I42,Prijslijst!A:B,2,FALSE)),"Itemnummer onbekend",VLOOKUP(I42,Prijslijst!A:B,2,FALSE))) ->  | L42: =IF($I42="","",IF('Offerte goederen'!$W$22=1,VLOOKUP($I42,Prijslijst!A:E,5,FALSE),VLOOKUP($I42,Prijslijst!A:E,3,FALSE))) ->  | M42: =IF(I42="","",VLOOKUP($I42,Prijslijst!A:D,4,FALSE)) ->  | Q42: =IF(S42="","",(1/(1+Formulierdata!$A$29))*S42) ->  | S42: =IF('Offerte goederen'!$W$22=1,IF(L42="","",IF(OR(O42="",O42=0,O42=1),L42,L42*O42)),IF(L42="","",IF(OR(O42="",O42=0,O42=1),L42*(1+Formulierdata!$A$29),L42*(1+Formulierdata!$A$29)*O42))) -> 
C43: =IF(I43="","",IF(ISERROR(VLOOKUP(I43,Prijslijst!A:B,2,FALSE)),"Itemnummer onbekend",VLOOKUP(I43,Prijslijst!A:B,2,FALSE))) ->  | L43: =IF($I43="","",IF('Offerte goederen'!$W$22=1,VLOOKUP($I43,Prijslijst!A:E,5,FALSE),VLOOKUP($I43,Prijslijst!A:E,3,FALSE))) ->  | M43: =IF(I43="","",VLOOKUP($I43,Prijslijst!A:D,4,FALSE)) ->  | Q43: =IF(S43="","",(1/(1+Formulierdata!$A$29))*S43) ->  | S43: =IF('Offerte goederen'!$W$22=1,IF(L43="","",IF(OR(O43="",O43=0,O43=1),L43,L43*O43)),IF(L43="","",IF(OR(O43="",O43=0,O43=1),L43*(1+Formulierdata!$A$29),L43*(1+Formulierdata!$A$29)*O43))) -> 
C44: =IF(I44="","",IF(ISERROR(VLOOKUP(I44,Prijslijst!A:B,2,FALSE)),"Itemnummer onbekend",VLOOKUP(I44,Prijslijst!A:B,2,FALSE))) ->  | L44: =IF($I44="","",IF('Offerte goederen'!$W$22=1,VLOOKUP($I44,Prijslijst!A:E,5,FALSE),VLOOKUP($I44,Prijslijst!A:E,3,FALSE))) ->  | M44: =IF(I44="","",VLOOKUP($I44,Prijslijst!A:D,4,FALSE)) ->  | Q44: =IF(S44="","",(1/(1+Formulierdata!$A$29))*S44) ->  | S44: =IF('Offerte goederen'!$W$22=1,IF(L44="","",IF(OR(O44="",O44=0,O44=1),L44,L44*O44)),IF(L44="","",IF(OR(O44="",O44=0,O44=1),L44*(1+Formulierdata!$A$29),L44*(1+Formulierdata!$A$29)*O44))) -> 
C45: =IF(I45="","",IF(ISERROR(VLOOKUP(I45,Prijslijst!A:B,2,FALSE)),"Itemnummer onbekend",VLOOKUP(I45,Prijslijst!A:B,2,FALSE))) ->  | L45: =IF($I45="","",IF('Offerte goederen'!$W$22=1,VLOOKUP($I45,Prijslijst!A:E,5,FALSE),VLOOKUP($I45,Prijslijst!A:E,3,FALSE))) ->  | M45: =IF(I45="","",VLOOKUP($I45,Prijslijst!A:D,4,FALSE)) ->  | Q45: =IF(S45="","",(1/(1+Formulierdata!$A$29))*S45) ->  | S45: =IF('Offerte goederen'!$W$22=1,IF(L45="","",IF(OR(O45="",O45=0,O45=1),L45,L45*O45)),IF(L45="","",IF(OR(O45="",O45=0,O45=1),L45*(1+Formulierdata!$A$29),L45*(1+Formulierdata!$A$29)*O45))) -> 
C46: =IF(I46="","",IF(ISERROR(VLOOKUP(I46,Prijslijst!A:B,2,FALSE)),"Itemnummer onbekend",VLOOKUP(I46,Prijslijst!A:B,2,FALSE))) ->  | L46: =IF($I46="","",IF('Offerte goederen'!$W$22=1,VLOOKUP($I46,Prijslijst!A:E,5,FALSE),VLOOKUP($I46,Prijslijst!A:E,3,FALSE))) ->  | M46: =IF(I46="","",VLOOKUP($I46,Prijslijst!A:D,4,FALSE)) ->  | Q46: =IF(S46="","",(1/(1+Formulierdata!$A$29))*S46) ->  | S46: =IF('Offerte goederen'!$W$22=1,IF(L46="","",IF(OR(O46="",O46=0,O46=1),L46,L46*O46)),IF(L46="","",IF(OR(O46="",O46=0,O46=1),L46*(1+Formulierdata!$A$29),L46*(1+Formulierdata!$A$29)*O46))) -> 
C47: =IF(I47="","",IF(ISERROR(VLOOKUP(I47,Prijslijst!A:B,2,FALSE)),"Itemnummer onbekend",VLOOKUP(I47,Prijslijst!A:B,2,FALSE))) ->  | L47: =IF($I47="","",IF('Offerte goederen'!$W$22=1,VLOOKUP($I47,Prijslijst!A:E,5,FALSE),VLOOKUP($I47,Prijslijst!A:E,3,FALSE))) ->  | M47: =IF(I47="","",VLOOKUP($I47,Prijslijst!A:D,4,FALSE)) ->  | Q47: =IF(S47="","",(1/(1+Formulierdata!$A$29))*S47) ->  | S47: =IF('Offerte goederen'!$W$22=1,IF(L47="","",IF(OR(O47="",O47=0,O47=1),L47,L47*O47)),IF(L47="","",IF(OR(O47="",O47=0,O47=1),L47*(1+Formulierdata!$A$29),L47*(1+Formulierdata!$A$29)*O47))) -> 
C48: =IF(I48="","",IF(ISERROR(VLOOKUP(I48,Prijslijst!A:B,2,FALSE)),"Itemnummer onbekend",VLOOKUP(I48,Prijslijst!A:B,2,FALSE))) ->  | L48: =IF($I48="","",IF('Offerte goederen'!$W$22=1,VLOOKUP($I48,Prijslijst!A:E,5,FALSE),VLOOKUP($I48,Prijslijst!A:E,3,FALSE))) ->  | M48: =IF(I48="","",VLOOKUP($I48,Prijslijst!A:D,4,FALSE)) ->  | Q48: =IF(S48="","",(1/(1+Formulierdata!$A$29))*S48) ->  | S48: =IF('Offerte goederen'!$W$22=1,IF(L48="","",IF(OR(O48="",O48=0,O48=1),L48,L48*O48)),IF(L48="","",IF(OR(O48="",O48=0,O48=1),L48*(1+Formulierdata!$A$29),L48*(1+Formulierdata!$A$29)*O48))) -> 
C49: =IF(I49="","",IF(ISERROR(VLOOKUP(I49,Prijslijst!A:B,2,FALSE)),"Itemnummer onbekend",VLOOKUP(I49,Prijslijst!A:B,2,FALSE))) ->  | L49: =IF($I49="","",IF('Offerte goederen'!$W$22=1,VLOOKUP($I49,Prijslijst!A:E,5,FALSE),VLOOKUP($I49,Prijslijst!A:E,3,FALSE))) ->  | M49: =IF(I49="","",VLOOKUP($I49,Prijslijst!A:D,4,FALSE)) ->  | Q49: =IF(S49="","",(1/(1+Formulierdata!$A$29))*S49) ->  | S49: =IF('Offerte goederen'!$W$22=1,IF(L49="","",IF(OR(O49="",O49=0,O49=1),L49,L49*O49)),IF(L49="","",IF(OR(O49="",O49=0,O49=1),L49*(1+Formulierdata!$A$29),L49*(1+Formulierdata!$A$29)*O49))) -> 
C50: =IF(I50="","",IF(ISERROR(VLOOKUP(I50,Prijslijst!A:B,2,FALSE)),"Itemnummer onbekend",VLOOKUP(I50,Prijslijst!A:B,2,FALSE))) ->  | L50: =IF($I50="","",IF('Offerte goederen'!$W$22=1,VLOOKUP($I50,Prijslijst!A:E,5,FALSE),VLOOKUP($I50,Prijslijst!A:E,3,FALSE))) ->  | M50: =IF(I50="","",VLOOKUP($I50,Prijslijst!A:D,4,FALSE)) ->  | Q50: =IF(S50="","",(1/(1+Formulierdata!$A$29))*S50) ->  | S50: =IF('Offerte goederen'!$W$22=1,IF(L50="","",IF(OR(O50="",O50=0,O50=1),L50,L50*O50)),IF(L50="","",IF(OR(O50="",O50=0,O50=1),L50*(1+Formulierdata!$A$29),L50*(1+Formulierdata!$A$29)*O50))) -> 
C51: =IF(I51="","",IF(ISERROR(VLOOKUP(I51,Prijslijst!A:B,2,FALSE)),"Itemnummer onbekend",VLOOKUP(I51,Prijslijst!A:B,2,FALSE))) ->  | L51: =IF($I51="","",IF('Offerte goederen'!$W$22=1,VLOOKUP($I51,Prijslijst!A:E,5,FALSE),VLOOKUP($I51,Prijslijst!A:E,3,FALSE))) ->  | M51: =IF(I51="","",VLOOKUP($I51,Prijslijst!A:D,4,FALSE)) ->  | Q51: =IF(S51="","",(1/(1+Formulierdata!$A$29))*S51) ->  | S51: =IF('Offerte goederen'!$W$22=1,IF(L51="","",IF(OR(O51="",O51=0,O51=1),L51,L51*O51)),IF(L51="","",IF(OR(O51="",O51=0,O51=1),L51*(1+Formulierdata!$A$29),L51*(1+Formulierdata!$A$29)*O51))) -> 
C52: =IF(I52="","",IF(ISERROR(VLOOKUP(I52,Prijslijst!A:B,2,FALSE)),"Itemnummer onbekend",VLOOKUP(I52,Prijslijst!A:B,2,FALSE))) ->  | L52: =IF($I52="","",IF('Offerte goederen'!$W$22=1,VLOOKUP($I52,Prijslijst!A:E,5,FALSE),VLOOKUP($I52,Prijslijst!A:E,3,FALSE))) ->  | M52: =IF(I52="","",VLOOKUP($I52,Prijslijst!A:D,4,FALSE)) ->  | Q52: =IF(S52="","",(1/(1+Formulierdata!$A$29))*S52) ->  | S52: =IF('Offerte goederen'!$W$22=1,IF(L52="","",IF(OR(O52="",O52=0,O52=1),L52,L52*O52)),IF(L52="","",IF(OR(O52="",O52=0,O52=1),L52*(1+Formulierdata!$A$29),L52*(1+Formulierdata!$A$29)*O52))) -> 
C53: =IF(I53="","",IF(ISERROR(VLOOKUP(I53,Prijslijst!A:B,2,FALSE)),"Itemnummer onbekend",VLOOKUP(I53,Prijslijst!A:B,2,FALSE))) ->  | L53: =IF($I53="","",IF('Offerte goederen'!$W$22=1,VLOOKUP($I53,Prijslijst!A:E,5,FALSE),VLOOKUP($I53,Prijslijst!A:E,3,FALSE))) ->  | M53: =IF(I53="","",VLOOKUP($I53,Prijslijst!A:D,4,FALSE)) ->  | Q53: =IF(S53="","",(1/(1+Formulierdata!$A$29))*S53) ->  | S53: =IF('Offerte goederen'!$W$22=1,IF(L53="","",IF(OR(O53="",O53=0,O53=1),L53,L53*O53)),IF(L53="","",IF(OR(O53="",O53=0,O53=1),L53*(1+Formulierdata!$A$29),L53*(1+Formulierdata!$A$29)*O53))) -> 
C54: =IF(I54="","",IF(ISERROR(VLOOKUP(I54,Prijslijst!A:B,2,FALSE)),"Itemnummer onbekend",VLOOKUP(I54,Prijslijst!A:B,2,FALSE))) ->  | L54: =IF($I54="","",IF('Offerte goederen'!$W$22=1,VLOOKUP($I54,Prijslijst!A:E,5,FALSE),VLOOKUP($I54,Prijslijst!A:E,3,FALSE))) ->  | M54: =IF(I54="","",VLOOKUP($I54,Prijslijst!A:D,4,FALSE)) ->  | Q54: =IF(S54="","",(1/(1+Formulierdata!$A$29))*S54) ->  | S54: =IF('Offerte goederen'!$W$22=1,IF(L54="","",IF(OR(O54="",O54=0,O54=1),L54,L54*O54)),IF(L54="","",IF(OR(O54="",O54=0,O54=1),L54*(1+Formulierdata!$A$29),L54*(1+Formulierdata!$A$29)*O54))) -> 
C55: =IF(I55="","",IF(ISERROR(VLOOKUP(I55,Prijslijst!A:B,2,FALSE)),"Itemnummer onbekend",VLOOKUP(I55,Prijslijst!A:B,2,FALSE))) ->  | L55: =IF($I55="","",IF('Offerte goederen'!$W$22=1,VLOOKUP($I55,Prijslijst!A:E,5,FALSE),VLOOKUP($I55,Prijslijst!A:E,3,FALSE))) ->  | M55: =IF(I55="","",VLOOKUP($I55,Prijslijst!A:D,4,FALSE)) ->  | Q55: =IF(S55="","",(1/(1+Formulierdata!$A$29))*S55) ->  | S55: =IF('Offerte goederen'!$W$22=1,IF(L55="","",IF(OR(O55="",O55=0,O55=1),L55,L55*O55)),IF(L55="","",IF(OR(O55="",O55=0,O55=1),L55*(1+Formulierdata!$A$29),L55*(1+Formulierdata!$A$29)*O55))) -> 
C56: =IF(I56="","",IF(ISERROR(VLOOKUP(I56,Prijslijst!A:B,2,FALSE)),"Itemnummer onbekend",VLOOKUP(I56,Prijslijst!A:B,2,FALSE))) ->  | L56: =IF($I56="","",IF('Offerte goederen'!$W$22=1,VLOOKUP($I56,Prijslijst!A:E,5,FALSE),VLOOKUP($I56,Prijslijst!A:E,3,FALSE))) ->  | M56: =IF(I56="","",VLOOKUP($I56,Prijslijst!A:D,4,FALSE)) ->  | Q56: =IF(S56="","",(1/(1+Formulierdata!$A$29))*S56) ->  | S56: =IF('Offerte goederen'!$W$22=1,IF(L56="","",IF(OR(O56="",O56=0,O56=1),L56,L56*O56)),IF(L56="","",IF(OR(O56="",O56=0,O56=1),L56*(1+Formulierdata!$A$29),L56*(1+Formulierdata!$A$29)*O56))) -> 
C57: =IF(I57="","",IF(ISERROR(VLOOKUP(I57,Prijslijst!A:B,2,FALSE)),"Itemnummer onbekend",VLOOKUP(I57,Prijslijst!A:B,2,FALSE))) ->  | L57: =IF($I57="","",IF('Offerte goederen'!$W$22=1,VLOOKUP($I57,Prijslijst!A:E,5,FALSE),VLOOKUP($I57,Prijslijst!A:E,3,FALSE))) ->  | M57: =IF(I57="","",VLOOKUP($I57,Prijslijst!A:D,4,FALSE)) ->  | Q57: =IF(S57="","",(1/(1+Formulierdata!$A$29))*S57) ->  | S57: =IF('Offerte goederen'!$W$22=1,IF(L57="","",IF(OR(O57="",O57=0,O57=1),L57,L57*O57)),IF(L57="","",IF(OR(O57="",O57=0,O57=1),L57*(1+Formulierdata!$A$29),L57*(1+Formulierdata!$A$29)*O57))) -> 
C58: =IF(I58="","",IF(ISERROR(VLOOKUP(I58,Prijslijst!A:B,2,FALSE)),"Itemnummer onbekend",VLOOKUP(I58,Prijslijst!A:B,2,FALSE))) ->  | L58: =IF($I58="","",IF('Offerte goederen'!$W$22=1,VLOOKUP($I58,Prijslijst!A:E,5,FALSE),VLOOKUP($I58,Prijslijst!A:E,3,FALSE))) ->  | M58: =IF(I58="","",VLOOKUP($I58,Prijslijst!A:D,4,FALSE)) ->  | Q58: =IF(S58="","",(1/(1+Formulierdata!$A$29))*S58) ->  | S58: =IF('Offerte goederen'!$W$22=1,IF(L58="","",IF(OR(O58="",O58=0,O58=1),L58,L58*O58)),IF(L58="","",IF(OR(O58="",O58=0,O58=1),L58*(1+Formulierdata!$A$29),L58*(1+Formulierdata!$A$29)*O58))) -> 
C59: =IF(I59="","",IF(ISERROR(VLOOKUP(I59,Prijslijst!A:B,2,FALSE)),"Itemnummer onbekend",VLOOKUP(I59,Prijslijst!A:B,2,FALSE))) ->  | L59: =IF($I59="","",IF('Offerte goederen'!$W$22=1,VLOOKUP($I59,Prijslijst!A:E,5,FALSE),VLOOKUP($I59,Prijslijst!A:E,3,FALSE))) ->  | M59: =IF(I59="","",VLOOKUP($I59,Prijslijst!A:D,4,FALSE)) ->  | Q59: =IF(S59="","",(1/(1+Formulierdata!$A$29))*S59) ->  | S59: =IF('Offerte goederen'!$W$22=1,IF(L59="","",IF(OR(O59="",O59=0,O59=1),L59,L59*O59)),IF(L59="","",IF(OR(O59="",O59=0,O59=1),L59*(1+Formulierdata!$A$29),L59*(1+Formulierdata!$A$29)*O59))) -> 
C60: =IF(I60="","",IF(ISERROR(VLOOKUP(I60,Prijslijst!A:B,2,FALSE)),"Itemnummer onbekend",VLOOKUP(I60,Prijslijst!A:B,2,FALSE))) ->  | L60: =IF($I60="","",IF('Offerte goederen'!$W$22=1,VLOOKUP($I60,Prijslijst!A:E,5,FALSE),VLOOKUP($I60,Prijslijst!A:E,3,FALSE))) ->  | M60: =IF(I60="","",VLOOKUP($I60,Prijslijst!A:D,4,FALSE)) ->  | Q60: =IF(S60="","",(1/(1+Formulierdata!$A$29))*S60) ->  | S60: =IF('Offerte goederen'!$W$22=1,IF(L60="","",IF(OR(O60="",O60=0,O60=1),L60,L60*O60)),IF(L60="","",IF(OR(O60="",O60=0,O60=1),L60*(1+Formulierdata!$A$29),L60*(1+Formulierdata!$A$29)*O60))) -> 
C61: =IF(I61="","",IF(ISERROR(VLOOKUP(I61,Prijslijst!A:B,2,FALSE)),"Itemnummer onbekend",VLOOKUP(I61,Prijslijst!A:B,2,FALSE))) ->  | L61: =IF($I61="","",IF('Offerte goederen'!$W$22=1,VLOOKUP($I61,Prijslijst!A:E,5,FALSE),VLOOKUP($I61,Prijslijst!A:E,3,FALSE))) ->  | M61: =IF(I61="","",VLOOKUP($I61,Prijslijst!A:D,4,FALSE)) ->  | Q61: =IF(S61="","",(1/(1+Formulierdata!$A$29))*S61) ->  | S61: =IF('Offerte goederen'!$W$22=1,IF(L61="","",IF(OR(O61="",O61=0,O61=1),L61,L61*O61)),IF(L61="","",IF(OR(O61="",O61=0,O61=1),L61*(1+Formulierdata!$A$29),L61*(1+Formulierdata!$A$29)*O61))) -> 
C62: =IF(I62="","",IF(ISERROR(VLOOKUP(I62,Prijslijst!A:B,2,FALSE)),"Itemnummer onbekend",VLOOKUP(I62,Prijslijst!A:B,2,FALSE))) ->  | L62: =IF($I62="","",IF('Offerte goederen'!$W$22=1,VLOOKUP($I62,Prijslijst!A:E,5,FALSE),VLOOKUP($I62,Prijslijst!A:E,3,FALSE))) ->  | M62: =IF(I62="","",VLOOKUP($I62,Prijslijst!A:D,4,FALSE)) ->  | Q62: =IF(S62="","",(1/(1+Formulierdata!$A$29))*S62) ->  | S62: =IF('Offerte goederen'!$W$22=1,IF(L62="","",IF(OR(O62="",O62=0,O62=1),L62,L62*O62)),IF(L62="","",IF(OR(O62="",O62=0,O62=1),L62*(1+Formulierdata!$A$29),L62*(1+Formulierdata!$A$29)*O62))) -> 
C63: =IF(I63="","",IF(ISERROR(VLOOKUP(I63,Prijslijst!A:B,2,FALSE)),"Itemnummer onbekend",VLOOKUP(I63,Prijslijst!A:B,2,FALSE))) ->  | L63: =IF($I63="","",IF('Offerte goederen'!$W$22=1,VLOOKUP($I63,Prijslijst!A:E,5,FALSE),VLOOKUP($I63,Prijslijst!A:E,3,FALSE))) ->  | M63: =IF(I63="","",VLOOKUP($I63,Prijslijst!A:D,4,FALSE)) ->  | Q63: =IF(S63="","",(1/(1+Formulierdata!$A$29))*S63) ->  | S63: =IF('Offerte goederen'!$W$22=1,IF(L63="","",IF(OR(O63="",O63=0,O63=1),L63,L63*O63)),IF(L63="","",IF(OR(O63="",O63=0,O63=1),L63*(1+Formulierdata!$A$29),L63*(1+Formulierdata!$A$29)*O63))) -> 
C64: =IF(I64="","",IF(ISERROR(VLOOKUP(I64,Prijslijst!A:B,2,FALSE)),"Itemnummer onbekend",VLOOKUP(I64,Prijslijst!A:B,2,FALSE))) ->  | L64: =IF($I64="","",IF('Offerte goederen'!$W$22=1,VLOOKUP($I64,Prijslijst!A:E,5,FALSE),VLOOKUP($I64,Prijslijst!A:E,3,FALSE))) ->  | M64: =IF(I64="","",VLOOKUP($I64,Prijslijst!A:D,4,FALSE)) ->  | Q64: =IF(S64="","",(1/(1+Formulierdata!$A$29))*S64) ->  | S64: =IF('Offerte goederen'!$W$22=1,IF(L64="","",IF(OR(O64="",O64=0,O64=1),L64,L64*O64)),IF(L64="","",IF(OR(O64="",O64=0,O64=1),L64*(1+Formulierdata!$A$29),L64*(1+Formulierdata!$A$29)*O64))) -> 
C65: =IF(I65="","",IF(ISERROR(VLOOKUP(I65,Prijslijst!A:B,2,FALSE)),"Itemnummer onbekend",VLOOKUP(I65,Prijslijst!A:B,2,FALSE))) ->  | L65: =IF($I65="","",IF('Offerte goederen'!$W$22=1,VLOOKUP($I65,Prijslijst!A:E,5,FALSE),VLOOKUP($I65,Prijslijst!A:E,3,FALSE))) ->  | M65: =IF(I65="","",VLOOKUP($I65,Prijslijst!A:D,4,FALSE)) ->  | Q65: =IF(S65="","",(1/(1+Formulierdata!$A$29))*S65) ->  | S65: =IF('Offerte goederen'!$W$22=1,IF(L65="","",IF(OR(O65="",O65=0,O65=1),L65,L65*O65)),IF(L65="","",IF(OR(O65="",O65=0,O65=1),L65*(1+Formulierdata!$A$29),L65*(1+Formulierdata!$A$29)*O65))) -> 
C66: =IF(I66="","",IF(ISERROR(VLOOKUP(I66,Prijslijst!A:B,2,FALSE)),"Itemnummer onbekend",VLOOKUP(I66,Prijslijst!A:B,2,FALSE))) ->  | L66: =IF($I66="","",IF('Offerte goederen'!$W$22=1,VLOOKUP($I66,Prijslijst!A:E,5,FALSE),VLOOKUP($I66,Prijslijst!A:E,3,FALSE))) ->  | M66: =IF(I66="","",VLOOKUP($I66,Prijslijst!A:D,4,FALSE)) ->  | Q66: =IF(S66="","",(1/(1+Formulierdata!$A$29))*S66) ->  | S66: =IF('Offerte goederen'!$W$22=1,IF(L66="","",IF(OR(O66="",O66=0,O66=1),L66,L66*O66)),IF(L66="","",IF(OR(O66="",O66=0,O66=1),L66*(1+Formulierdata!$A$29),L66*(1+Formulierdata!$A$29)*O66))) -> 
C67: =IF(I67="","",IF(ISERROR(VLOOKUP(I67,Prijslijst!A:B,2,FALSE)),"Itemnummer onbekend",VLOOKUP(I67,Prijslijst!A:B,2,FALSE))) ->  | L67: =IF($I67="","",IF('Offerte goederen'!$W$22=1,VLOOKUP($I67,Prijslijst!A:E,5,FALSE),VLOOKUP($I67,Prijslijst!A:E,3,FALSE))) ->  | M67: =IF(I67="","",VLOOKUP($I67,Prijslijst!A:D,4,FALSE)) ->  | Q67: =IF(S67="","",(1/(1+Formulierdata!$A$29))*S67) ->  | S67: =IF('Offerte goederen'!$W$22=1,IF(L67="","",IF(OR(O67="",O67=0,O67=1),L67,L67*O67)),IF(L67="","",IF(OR(O67="",O67=0,O67=1),L67*(1+Formulierdata!$A$29),L67*(1+Formulierdata!$A$29)*O67))) -> 
C68: =IF(I68="","",IF(ISERROR(VLOOKUP(I68,Prijslijst!A:B,2,FALSE)),"Itemnummer onbekend",VLOOKUP(I68,Prijslijst!A:B,2,FALSE))) ->  | L68: =IF($I68="","",IF('Offerte goederen'!$W$22=1,VLOOKUP($I68,Prijslijst!A:E,5,FALSE),VLOOKUP($I68,Prijslijst!A:E,3,FALSE))) ->  | M68: =IF(I68="","",VLOOKUP($I68,Prijslijst!A:D,4,FALSE)) ->  | Q68: =IF(S68="","",(1/(1+Formulierdata!$A$29))*S68) ->  | S68: =IF('Offerte goederen'!$W$22=1,IF(L68="","",IF(OR(O68="",O68=0,O68=1),L68,L68*O68)),IF(L68="","",IF(OR(O68="",O68=0,O68=1),L68*(1+Formulierdata!$A$29),L68*(1+Formulierdata!$A$29)*O68))) -> 
C69: =IF(I69="","",IF(ISERROR(VLOOKUP(I69,Prijslijst!A:B,2,FALSE)),"Itemnummer onbekend",VLOOKUP(I69,Prijslijst!A:B,2,FALSE))) ->  | L69: =IF($I69="","",IF('Offerte goederen'!$W$22=1,VLOOKUP($I69,Prijslijst!A:E,5,FALSE),VLOOKUP($I69,Prijslijst!A:E,3,FALSE))) ->  | M69: =IF(I69="","",VLOOKUP($I69,Prijslijst!A:D,4,FALSE)) ->  | Q69: =IF(S69="","",(1/(1+Formulierdata!$A$29))*S69) ->  | S69: =IF('Offerte goederen'!$W$22=1,IF(L69="","",IF(OR(O69="",O69=0,O69=1),L69,L69*O69)),IF(L69="","",IF(OR(O69="",O69=0,O69=1),L69*(1+Formulierdata!$A$29),L69*(1+Formulierdata!$A$29)*O69))) -> 
C70: =IF(I70="","",IF(ISERROR(VLOOKUP(I70,Prijslijst!A:B,2,FALSE)),"Itemnummer onbekend",VLOOKUP(I70,Prijslijst!A:B,2,FALSE))) ->  | L70: =IF($I70="","",IF('Offerte goederen'!$W$22=1,VLOOKUP($I70,Prijslijst!A:E,5,FALSE),VLOOKUP($I70,Prijslijst!A:E,3,FALSE))) ->  | M70: =IF(I70="","",VLOOKUP($I70,Prijslijst!A:D,4,FALSE)) ->  | Q70: =IF(S70="","",(1/(1+Formulierdata!$A$29))*S70) ->  | S70: =IF('Offerte goederen'!$W$22=1,IF(L70="","",IF(OR(O70="",O70=0,O70=1),L70,L70*O70)),IF(L70="","",IF(OR(O70="",O70=0,O70=1),L70*(1+Formulierdata!$A$29),L70*(1+Formulierdata!$A$29)*O70))) -> 
C71: =IF(I71="","",IF(ISERROR(VLOOKUP(I71,Prijslijst!A:B,2,FALSE)),"Itemnummer onbekend",VLOOKUP(I71,Prijslijst!A:B,2,FALSE))) ->  | L71: =IF($I71="","",IF('Offerte goederen'!$W$22=1,VLOOKUP($I71,Prijslijst!A:E,5,FALSE),VLOOKUP($I71,Prijslijst!A:E,3,FALSE))) ->  | M71: =IF(I71="","",VLOOKUP($I71,Prijslijst!A:D,4,FALSE)) ->  | Q71: =IF(S71="","",(1/(1+Formulierdata!$A$29))*S71) ->  | S71: =IF('Offerte goederen'!$W$22=1,IF(L71="","",IF(OR(O71="",O71=0,O71=1),L71,L71*O71)),IF(L71="","",IF(OR(O71="",O71=0,O71=1),L71*(1+Formulierdata!$A$29),L71*(1+Formulierdata!$A$29)*O71))) -> 
C72: =IF(I72="","",IF(ISERROR(VLOOKUP(I72,Prijslijst!A:B,2,FALSE)),"Itemnummer onbekend",VLOOKUP(I72,Prijslijst!A:B,2,FALSE))) ->  | L72: =IF($I72="","",IF('Offerte goederen'!$W$22=1,VLOOKUP($I72,Prijslijst!A:E,5,FALSE),VLOOKUP($I72,Prijslijst!A:E,3,FALSE))) ->  | M72: =IF(I72="","",VLOOKUP($I72,Prijslijst!A:D,4,FALSE)) ->  | Q72: =IF(S72="","",(1/(1+Formulierdata!$A$29))*S72) ->  | S72: =IF('Offerte goederen'!$W$22=1,IF(L72="","",IF(OR(O72="",O72=0,O72=1),L72,L72*O72)),IF(L72="","",IF(OR(O72="",O72=0,O72=1),L72*(1+Formulierdata!$A$29),L72*(1+Formulierdata!$A$29)*O72))) -> 
C73: =IF(I73="","",IF(ISERROR(VLOOKUP(I73,Prijslijst!A:B,2,FALSE)),"Itemnummer onbekend",VLOOKUP(I73,Prijslijst!A:B,2,FALSE))) ->  | L73: =IF($I73="","",IF('Offerte goederen'!$W$22=1,VLOOKUP($I73,Prijslijst!A:E,5,FALSE),VLOOKUP($I73,Prijslijst!A:E,3,FALSE))) ->  | M73: =IF(I73="","",VLOOKUP($I73,Prijslijst!A:D,4,FALSE)) ->  | Q73: =IF(S73="","",(1/(1+Formulierdata!$A$29))*S73) ->  | S73: =IF('Offerte goederen'!$W$22=1,IF(L73="","",IF(OR(O73="",O73=0,O73=1),L73,L73*O73)),IF(L73="","",IF(OR(O73="",O73=0,O73=1),L73*(1+Formulierdata!$A$29),L73*(1+Formulierdata!$A$29)*O73))) -> 
C74: =IF(I74="","",IF(ISERROR(VLOOKUP(I74,Prijslijst!A:B,2,FALSE)),"Itemnummer onbekend",VLOOKUP(I74,Prijslijst!A:B,2,FALSE))) ->  | L74: =IF($I74="","",IF('Offerte goederen'!$W$22=1,VLOOKUP($I74,Prijslijst!A:E,5,FALSE),VLOOKUP($I74,Prijslijst!A:E,3,FALSE))) ->  | M74: =IF(I74="","",VLOOKUP($I74,Prijslijst!A:D,4,FALSE)) ->  | Q74: =IF(S74="","",(1/(1+Formulierdata!$A$29))*S74) ->  | S74: =IF('Offerte goederen'!$W$22=1,IF(L74="","",IF(OR(O74="",O74=0,O74=1),L74,L74*O74)),IF(L74="","",IF(OR(O74="",O74=0,O74=1),L74*(1+Formulierdata!$A$29),L74*(1+Formulierdata!$A$29)*O74))) -> 
C75: =IF(I75="","",IF(ISERROR(VLOOKUP(I75,Prijslijst!A:B,2,FALSE)),"Itemnummer onbekend",VLOOKUP(I75,Prijslijst!A:B,2,FALSE))) ->  | L75: =IF($I75="","",IF('Offerte goederen'!$W$22=1,VLOOKUP($I75,Prijslijst!A:E,5,FALSE),VLOOKUP($I75,Prijslijst!A:E,3,FALSE))) ->  | M75: =IF(I75="","",VLOOKUP($I75,Prijslijst!A:D,4,FALSE)) ->  | Q75: =IF(S75="","",(1/(1+Formulierdata!$A$29))*S75) ->  | S75: =IF('Offerte goederen'!$W$22=1,IF(L75="","",IF(OR(O75="",O75=0,O75=1),L75,L75*O75)),IF(L75="","",IF(OR(O75="",O75=0,O75=1),L75*(1+Formulierdata!$A$29),L75*(1+Formulierdata!$A$29)*O75))) -> 
C76: =IF(I76="","",IF(ISERROR(VLOOKUP(I76,Prijslijst!A:B,2,FALSE)),"Itemnummer onbekend",VLOOKUP(I76,Prijslijst!A:B,2,FALSE))) ->  | L76: =IF($I76="","",IF('Offerte goederen'!$W$22=1,VLOOKUP($I76,Prijslijst!A:E,5,FALSE),VLOOKUP($I76,Prijslijst!A:E,3,FALSE))) ->  | M76: =IF(I76="","",VLOOKUP($I76,Prijslijst!A:D,4,FALSE)) ->  | Q76: =IF(S76="","",(1/(1+Formulierdata!$A$29))*S76) ->  | S76: =IF('Offerte goederen'!$W$22=1,IF(L76="","",IF(OR(O76="",O76=0,O76=1),L76,L76*O76)),IF(L76="","",IF(OR(O76="",O76=0,O76=1),L76*(1+Formulierdata!$A$29),L76*(1+Formulierdata!$A$29)*O76))) -> 
C77: =IF(I77="","",IF(ISERROR(VLOOKUP(I77,Prijslijst!A:B,2,FALSE)),"Itemnummer onbekend",VLOOKUP(I77,Prijslijst!A:B,2,FALSE))) ->  | L77: =IF($I77="","",IF('Offerte goederen'!$W$22=1,VLOOKUP($I77,Prijslijst!A:E,5,FALSE),VLOOKUP($I77,Prijslijst!A:E,3,FALSE))) ->  | M77: =IF(I77="","",VLOOKUP($I77,Prijslijst!A:D,4,FALSE)) ->  | Q77: =IF(S77="","",(1/(1+Formulierdata!$A$29))*S77) ->  | S77: =IF('Offerte goederen'!$W$22=1,IF(L77="","",IF(OR(O77="",O77=0,O77=1),L77,L77*O77)),IF(L77="","",IF(OR(O77="",O77=0,O77=1),L77*(1+Formulierdata!$A$29),L77*(1+Formulierdata!$A$29)*O77))) -> 
C78: =IF(I78="","",IF(ISERROR(VLOOKUP(I78,Prijslijst!A:B,2,FALSE)),"Itemnummer onbekend",VLOOKUP(I78,Prijslijst!A:B,2,FALSE))) ->  | L78: =IF($I78="","",IF('Offerte goederen'!$W$22=1,VLOOKUP($I78,Prijslijst!A:E,5,FALSE),VLOOKUP($I78,Prijslijst!A:E,3,FALSE))) ->  | M78: =IF(I78="","",VLOOKUP($I78,Prijslijst!A:D,4,FALSE)) ->  | Q78: =IF(S78="","",(1/(1+Formulierdata!$A$29))*S78) ->  | S78: =IF('Offerte goederen'!$W$22=1,IF(L78="","",IF(OR(O78="",O78=0,O78=1),L78,L78*O78)),IF(L78="","",IF(OR(O78="",O78=0,O78=1),L78*(1+Formulierdata!$A$29),L78*(1+Formulierdata!$A$29)*O78))) -> 
C79: =IF(I79="","",IF(ISERROR(VLOOKUP(I79,Prijslijst!A:B,2,FALSE)),"Itemnummer onbekend",VLOOKUP(I79,Prijslijst!A:B,2,FALSE))) ->  | L79: =IF($I79="","",IF('Offerte goederen'!$W$22=1,VLOOKUP($I79,Prijslijst!A:E,5,FALSE),VLOOKUP($I79,Prijslijst!A:E,3,FALSE))) ->  | M79: =IF(I79="","",VLOOKUP($I79,Prijslijst!A:D,4,FALSE)) ->  | Q79: =IF(S79="","",(1/(1+Formulierdata!$A$29))*S79) ->  | S79: =IF('Offerte goederen'!$W$22=1,IF(L79="","",IF(OR(O79="",O79=0,O79=1),L79,L79*O79)),IF(L79="","",IF(OR(O79="",O79=0,O79=1),L79*(1+Formulierdata!$A$29),L79*(1+Formulierdata!$A$29)*O79))) -> 
C80: =IF(I80="","",IF(ISERROR(VLOOKUP(I80,Prijslijst!A:B,2,FALSE)),"Itemnummer onbekend",VLOOKUP(I80,Prijslijst!A:B,2,FALSE))) ->  | L80: =IF($I80="","",IF('Offerte goederen'!$W$22=1,VLOOKUP($I80,Prijslijst!A:E,5,FALSE),VLOOKUP($I80,Prijslijst!A:E,3,FALSE))) ->  | M80: =IF(I80="","",VLOOKUP($I80,Prijslijst!A:D,4,FALSE)) ->  | Q80: =IF(S80="","",(1/(1+Formulierdata!$A$29))*S80) ->  | S80: =IF('Offerte goederen'!$W$22=1,IF(L80="","",IF(OR(O80="",O80=0,O80=1),L80,L80*O80)),IF(L80="","",IF(OR(O80="",O80=0,O80=1),L80*(1+Formulierdata!$A$29),L80*(1+Formulierdata!$A$29)*O80))) -> 
C81: =IF(I81="","",IF(ISERROR(VLOOKUP(I81,Prijslijst!A:B,2,FALSE)),"Itemnummer onbekend",VLOOKUP(I81,Prijslijst!A:B,2,FALSE))) ->  | L81: =IF($I81="","",IF('Offerte goederen'!$W$22=1,VLOOKUP($I81,Prijslijst!A:E,5,FALSE),VLOOKUP($I81,Prijslijst!A:E,3,FALSE))) ->  | M81: =IF(I81="","",VLOOKUP($I81,Prijslijst!A:D,4,FALSE)) ->  | Q81: =IF(S81="","",(1/(1+Formulierdata!$A$29))*S81) ->  | S81: =IF('Offerte goederen'!$W$22=1,IF(L81="","",IF(OR(O81="",O81=0,O81=1),L81,L81*O81)),IF(L81="","",IF(OR(O81="",O81=0,O81=1),L81*(1+Formulierdata!$A$29),L81*(1+Formulierdata!$A$29)*O81))) -> 
C82: =IF(I82="","",IF(ISERROR(VLOOKUP(I82,Prijslijst!A:B,2,FALSE)),"Itemnummer onbekend",VLOOKUP(I82,Prijslijst!A:B,2,FALSE))) ->  | L82: =IF($I82="","",IF('Offerte goederen'!$W$22=1,VLOOKUP($I82,Prijslijst!A:E,5,FALSE),VLOOKUP($I82,Prijslijst!A:E,3,FALSE))) ->  | M82: =IF(I82="","",VLOOKUP($I82,Prijslijst!A:D,4,FALSE)) ->  | Q82: =IF(S82="","",(1/(1+Formulierdata!$A$29))*S82) ->  | S82: =IF('Offerte goederen'!$W$22=1,IF(L82="","",IF(OR(O82="",O82=0,O82=1),L82,L82*O82)),IF(L82="","",IF(OR(O82="",O82=0,O82=1),L82*(1+Formulierdata!$A$29),L82*(1+Formulierdata!$A$29)*O82))) -> 
C83: =IF(I83="","",IF(ISERROR(VLOOKUP(I83,Prijslijst!A:B,2,FALSE)),"Itemnummer onbekend",VLOOKUP(I83,Prijslijst!A:B,2,FALSE))) ->  | L83: =IF($I83="","",IF('Offerte goederen'!$W$22=1,VLOOKUP($I83,Prijslijst!A:E,5,FALSE),VLOOKUP($I83,Prijslijst!A:E,3,FALSE))) ->  | M83: =IF(I83="","",VLOOKUP($I83,Prijslijst!A:D,4,FALSE)) ->  | Q83: =IF(S83="","",(1/(1+Formulierdata!$A$29))*S83) ->  | S83: =IF('Offerte goederen'!$W$22=1,IF(L83="","",IF(OR(O83="",O83=0,O83=1),L83,L83*O83)),IF(L83="","",IF(OR(O83="",O83=0,O83=1),L83*(1+Formulierdata!$A$29),L83*(1+Formulierdata!$A$29)*O83))) -> 
C84: =IF(I84="","",IF(ISERROR(VLOOKUP(I84,Prijslijst!A:B,2,FALSE)),"Itemnummer onbekend",VLOOKUP(I84,Prijslijst!A:B,2,FALSE))) ->  | L84: =IF($I84="","",IF('Offerte goederen'!$W$22=1,VLOOKUP($I84,Prijslijst!A:E,5,FALSE),VLOOKUP($I84,Prijslijst!A:E,3,FALSE))) ->  | M84: =IF(I84="","",VLOOKUP($I84,Prijslijst!A:D,4,FALSE)) ->  | Q84: =IF(S84="","",(1/(1+Formulierdata!$A$29))*S84) ->  | S84: =IF('Offerte goederen'!$W$22=1,IF(L84="","",IF(OR(O84="",O84=0,O84=1),L84,L84*O84)),IF(L84="","",IF(OR(O84="",O84=0,O84=1),L84*(1+Formulierdata!$A$29),L84*(1+Formulierdata!$A$29)*O84))) -> 
C85: =IF(I85="","",IF(ISERROR(VLOOKUP(I85,Prijslijst!A:B,2,FALSE)),"Itemnummer onbekend",VLOOKUP(I85,Prijslijst!A:B,2,FALSE))) ->  | L85: =IF($I85="","",IF('Offerte goederen'!$W$22=1,VLOOKUP($I85,Prijslijst!A:E,5,FALSE),VLOOKUP($I85,Prijslijst!A:E,3,FALSE))) ->  | M85: =IF(I85="","",VLOOKUP($I85,Prijslijst!A:D,4,FALSE)) ->  | Q85: =IF(S85="","",(1/(1+Formulierdata!$A$29))*S85) ->  | S85: =IF('Offerte goederen'!$W$22=1,IF(L85="","",IF(OR(O85="",O85=0,O85=1),L85,L85*O85)),IF(L85="","",IF(OR(O85="",O85=0,O85=1),L85*(1+Formulierdata!$A$29),L85*(1+Formulierdata!$A$29)*O85))) -> 
C86: =IF(I86="","",IF(ISERROR(VLOOKUP(I86,Prijslijst!A:B,2,FALSE)),"Itemnummer onbekend",VLOOKUP(I86,Prijslijst!A:B,2,FALSE))) ->  | L86: =IF($I86="","",IF('Offerte goederen'!$W$22=1,VLOOKUP($I86,Prijslijst!A:E,5,FALSE),VLOOKUP($I86,Prijslijst!A:E,3,FALSE))) ->  | M86: =IF(I86="","",VLOOKUP($I86,Prijslijst!A:D,4,FALSE)) ->  | Q86: =IF(S86="","",(1/(1+Formulierdata!$A$29))*S86) ->  | S86: =IF('Offerte goederen'!$W$22=1,IF(L86="","",IF(OR(O86="",O86=0,O86=1),L86,L86*O86)),IF(L86="","",IF(OR(O86="",O86=0,O86=1),L86*(1+Formulierdata!$A$29),L86*(1+Formulierdata!$A$29)*O86))) -> 
C87: =IF(I87="","",IF(ISERROR(VLOOKUP(I87,Prijslijst!A:B,2,FALSE)),"Itemnummer onbekend",VLOOKUP(I87,Prijslijst!A:B,2,FALSE))) ->  | L87: =IF($I87="","",IF('Offerte goederen'!$W$22=1,VLOOKUP($I87,Prijslijst!A:E,5,FALSE),VLOOKUP($I87,Prijslijst!A:E,3,FALSE))) ->  | M87: =IF(I87="","",VLOOKUP($I87,Prijslijst!A:D,4,FALSE)) ->  | Q87: =IF(S87="","",(1/(1+Formulierdata!$A$29))*S87) ->  | S87: =IF('Offerte goederen'!$W$22=1,IF(L87="","",IF(OR(O87="",O87=0,O87=1),L87,L87*O87)),IF(L87="","",IF(OR(O87="",O87=0,O87=1),L87*(1+Formulierdata!$A$29),L87*(1+Formulierdata!$A$29)*O87))) -> 
C88: =IF(I88="","",IF(ISERROR(VLOOKUP(I88,Prijslijst!A:B,2,FALSE)),"Itemnummer onbekend",VLOOKUP(I88,Prijslijst!A:B,2,FALSE))) ->  | L88: =IF($I88="","",IF('Offerte goederen'!$W$22=1,VLOOKUP($I88,Prijslijst!A:E,5,FALSE),VLOOKUP($I88,Prijslijst!A:E,3,FALSE))) ->  | M88: =IF(I88="","",VLOOKUP($I88,Prijslijst!A:D,4,FALSE)) ->  | Q88: =IF(S88="","",(1/(1+Formulierdata!$A$29))*S88) ->  | S88: =IF('Offerte goederen'!$W$22=1,IF(L88="","",IF(OR(O88="",O88=0,O88=1),L88,L88*O88)),IF(L88="","",IF(OR(O88="",O88=0,O88=1),L88*(1+Formulierdata!$A$29),L88*(1+Formulierdata!$A$29)*O88))) -> 
C89: =IF(I89="","",IF(ISERROR(VLOOKUP(I89,Prijslijst!A:B,2,FALSE)),"Itemnummer onbekend",VLOOKUP(I89,Prijslijst!A:B,2,FALSE))) ->  | L89: =IF($I89="","",IF('Offerte goederen'!$W$22=1,VLOOKUP($I89,Prijslijst!A:E,5,FALSE),VLOOKUP($I89,Prijslijst!A:E,3,FALSE))) ->  | M89: =IF(I89="","",VLOOKUP($I89,Prijslijst!A:D,4,FALSE)) ->  | Q89: =IF(S89="","",(1/(1+Formulierdata!$A$29))*S89) ->  | S89: =IF('Offerte goederen'!$W$22=1,IF(L89="","",IF(OR(O89="",O89=0,O89=1),L89,L89*O89)),IF(L89="","",IF(OR(O89="",O89=0,O89=1),L89*(1+Formulierdata!$A$29),L89*(1+Formulierdata!$A$29)*O89))) -> 
C90: =IF(I90="","",IF(ISERROR(VLOOKUP(I90,Prijslijst!A:B,2,FALSE)),"Itemnummer onbekend",VLOOKUP(I90,Prijslijst!A:B,2,FALSE))) ->  | L90: =IF($I90="","",IF('Offerte goederen'!$W$22=1,VLOOKUP($I90,Prijslijst!A:E,5,FALSE),VLOOKUP($I90,Prijslijst!A:E,3,FALSE))) ->  | M90: =IF(I90="","",VLOOKUP($I90,Prijslijst!A:D,4,FALSE)) ->  | Q90: =IF(S90="","",(1/(1+Formulierdata!$A$29))*S90) ->  | S90: =IF('Offerte goederen'!$W$22=1,IF(L90="","",IF(OR(O90="",O90=0,O90=1),L90,L90*O90)),IF(L90="","",IF(OR(O90="",O90=0,O90=1),L90*(1+Formulierdata!$A$29),L90*(1+Formulierdata!$A$29)*O90))) -> 
C91: =IF(I91="","",IF(ISERROR(VLOOKUP(I91,Prijslijst!A:B,2,FALSE)),"Itemnummer onbekend",VLOOKUP(I91,Prijslijst!A:B,2,FALSE))) ->  | L91: =IF($I91="","",IF('Offerte goederen'!$W$22=1,VLOOKUP($I91,Prijslijst!A:E,5,FALSE),VLOOKUP($I91,Prijslijst!A:E,3,FALSE))) ->  | M91: =IF(I91="","",VLOOKUP($I91,Prijslijst!A:D,4,FALSE)) ->  | Q91: =IF(S91="","",(1/(1+Formulierdata!$A$29))*S91) ->  | S91: =IF('Offerte goederen'!$W$22=1,IF(L91="","",IF(OR(O91="",O91=0,O91=1),L91,L91*O91)),IF(L91="","",IF(OR(O91="",O91=0,O91=1),L91*(1+Formulierdata!$A$29),L91*(1+Formulierdata!$A$29)*O91))) -> 
C92: =IF(I92="","",IF(ISERROR(VLOOKUP(I92,Prijslijst!A:B,2,FALSE)),"Itemnummer onbekend",VLOOKUP(I92,Prijslijst!A:B,2,FALSE))) ->  | L92: =IF($I92="","",IF('Offerte goederen'!$W$22=1,VLOOKUP($I92,Prijslijst!A:E,5,FALSE),VLOOKUP($I92,Prijslijst!A:E,3,FALSE))) ->  | M92: =IF(I92="","",VLOOKUP($I92,Prijslijst!A:D,4,FALSE)) ->  | Q92: =IF(S92="","",(1/(1+Formulierdata!$A$29))*S92) ->  | S92: =IF('Offerte goederen'!$W$22=1,IF(L92="","",IF(OR(O92="",O92=0,O92=1),L92,L92*O92)),IF(L92="","",IF(OR(O92="",O92=0,O92=1),L92*(1+Formulierdata!$A$29),L92*(1+Formulierdata!$A$29)*O92))) -> 
C93: =IF(I93="","",IF(ISERROR(VLOOKUP(I93,Prijslijst!A:B,2,FALSE)),"Itemnummer onbekend",VLOOKUP(I93,Prijslijst!A:B,2,FALSE))) ->  | L93: =IF($I93="","",IF('Offerte goederen'!$W$22=1,VLOOKUP($I93,Prijslijst!A:E,5,FALSE),VLOOKUP($I93,Prijslijst!A:E,3,FALSE))) ->  | M93: =IF(I93="","",VLOOKUP($I93,Prijslijst!A:D,4,FALSE)) ->  | Q93: =IF(S93="","",(1/(1+Formulierdata!$A$29))*S93) ->  | S93: =IF('Offerte goederen'!$W$22=1,IF(L93="","",IF(OR(O93="",O93=0,O93=1),L93,L93*O93)),IF(L93="","",IF(OR(O93="",O93=0,O93=1),L93*(1+Formulierdata!$A$29),L93*(1+Formulierdata!$A$29)*O93))) -> 
C94: =IF(I94="","",IF(ISERROR(VLOOKUP(I94,Prijslijst!A:B,2,FALSE)),"Itemnummer onbekend",VLOOKUP(I94,Prijslijst!A:B,2,FALSE))) ->  | L94: =IF($I94="","",IF('Offerte goederen'!$W$22=1,VLOOKUP($I94,Prijslijst!A:E,5,FALSE),VLOOKUP($I94,Prijslijst!A:E,3,FALSE))) ->  | M94: =IF(I94="","",VLOOKUP($I94,Prijslijst!A:D,4,FALSE)) ->  | Q94: =IF(S94="","",(1/(1+Formulierdata!$A$29))*S94) ->  | S94: =IF('Offerte goederen'!$W$22=1,IF(L94="","",IF(OR(O94="",O94=0,O94=1),L94,L94*O94)),IF(L94="","",IF(OR(O94="",O94=0,O94=1),L94*(1+Formulierdata!$A$29),L94*(1+Formulierdata!$A$29)*O94))) -> 
C95: =IF(I95="","",IF(ISERROR(VLOOKUP(I95,Prijslijst!A:B,2,FALSE)),"Itemnummer onbekend",VLOOKUP(I95,Prijslijst!A:B,2,FALSE))) ->  | L95: =IF($I95="","",IF('Offerte goederen'!$W$22=1,VLOOKUP($I95,Prijslijst!A:E,5,FALSE),VLOOKUP($I95,Prijslijst!A:E,3,FALSE))) ->  | M95: =IF(I95="","",VLOOKUP($I95,Prijslijst!A:D,4,FALSE)) ->  | Q95: =IF(S95="","",(1/(1+Formulierdata!$A$29))*S95) ->  | S95: =IF('Offerte goederen'!$W$22=1,IF(L95="","",IF(OR(O95="",O95=0,O95=1),L95,L95*O95)),IF(L95="","",IF(OR(O95="",O95=0,O95=1),L95*(1+Formulierdata!$A$29),L95*(1+Formulierdata!$A$29)*O95))) -> 
C96: =IF(I96="","",IF(ISERROR(VLOOKUP(I96,Prijslijst!A:B,2,FALSE)),"Itemnummer onbekend",VLOOKUP(I96,Prijslijst!A:B,2,FALSE))) ->  | L96: =IF($I96="","",IF('Offerte goederen'!$W$22=1,VLOOKUP($I96,Prijslijst!A:E,5,FALSE),VLOOKUP($I96,Prijslijst!A:E,3,FALSE))) ->  | M96: =IF(I96="","",VLOOKUP($I96,Prijslijst!A:D,4,FALSE)) ->  | Q96: =IF(S96="","",(1/(1+Formulierdata!$A$29))*S96) ->  | S96: =IF('Offerte goederen'!$W$22=1,IF(L96="","",IF(OR(O96="",O96=0,O96=1),L96,L96*O96)),IF(L96="","",IF(OR(O96="",O96=0,O96=1),L96*(1+Formulierdata!$A$29),L96*(1+Formulierdata!$A$29)*O96))) -> 
C97: =IF(I97="","",IF(ISERROR(VLOOKUP(I97,Prijslijst!A:B,2,FALSE)),"Itemnummer onbekend",VLOOKUP(I97,Prijslijst!A:B,2,FALSE))) ->  | L97: =IF($I97="","",IF('Offerte goederen'!$W$22=1,VLOOKUP($I97,Prijslijst!A:E,5,FALSE),VLOOKUP($I97,Prijslijst!A:E,3,FALSE))) ->  | M97: =IF(I97="","",VLOOKUP($I97,Prijslijst!A:D,4,FALSE)) ->  | Q97: =IF(S97="","",(1/(1+Formulierdata!$A$29))*S97) ->  | S97: =IF('Offerte goederen'!$W$22=1,IF(L97="","",IF(OR(O97="",O97=0,O97=1),L97,L97*O97)),IF(L97="","",IF(OR(O97="",O97=0,O97=1),L97*(1+Formulierdata!$A$29),L97*(1+Formulierdata!$A$29)*O97))) -> 
C98: =IF(I98="","",IF(ISERROR(VLOOKUP(I98,Prijslijst!A:B,2,FALSE)),"Itemnummer onbekend",VLOOKUP(I98,Prijslijst!A:B,2,FALSE))) ->  | L98: =IF($I98="","",IF('Offerte goederen'!$W$22=1,VLOOKUP($I98,Prijslijst!A:E,5,FALSE),VLOOKUP($I98,Prijslijst!A:E,3,FALSE))) ->  | M98: =IF(I98="","",VLOOKUP($I98,Prijslijst!A:D,4,FALSE)) ->  | Q98: =IF(S98="","",(1/(1+Formulierdata!$A$29))*S98) ->  | S98: =IF('Offerte goederen'!$W$22=1,IF(L98="","",IF(OR(O98="",O98=0,O98=1),L98,L98*O98)),IF(L98="","",IF(OR(O98="",O98=0,O98=1),L98*(1+Formulierdata!$A$29),L98*(1+Formulierdata!$A$29)*O98))) -> 
C99: =IF(I99="","",IF(ISERROR(VLOOKUP(I99,Prijslijst!A:B,2,FALSE)),"Itemnummer onbekend",VLOOKUP(I99,Prijslijst!A:B,2,FALSE))) ->  | L99: =IF($I99="","",IF('Offerte goederen'!$W$22=1,VLOOKUP($I99,Prijslijst!A:E,5,FALSE),VLOOKUP($I99,Prijslijst!A:E,3,FALSE))) ->  | M99: =IF(I99="","",VLOOKUP($I99,Prijslijst!A:D,4,FALSE)) ->  | Q99: =IF(S99="","",(1/(1+Formulierdata!$A$29))*S99) ->  | S99: =IF('Offerte goederen'!$W$22=1,IF(L99="","",IF(OR(O99="",O99=0,O99=1),L99,L99*O99)),IF(L99="","",IF(OR(O99="",O99=0,O99=1),L99*(1+Formulierdata!$A$29),L99*(1+Formulierdata!$A$29)*O99))) -> 
C100: =IF(I100="","",IF(ISERROR(VLOOKUP(I100,Prijslijst!A:B,2,FALSE)),"Itemnummer onbekend",VLOOKUP(I100,Prijslijst!A:B,2,FALSE))) ->  | L100: =IF($I100="","",IF('Offerte goederen'!$W$22=1,VLOOKUP($I100,Prijslijst!A:E,5,FALSE),VLOOKUP($I100,Prijslijst!A:E,3,FALSE))) ->  | M100: =IF(I100="","",VLOOKUP($I100,Prijslijst!A:D,4,FALSE)) ->  | Q100: =IF(S100="","",(1/(1+Formulierdata!$A$29))*S100) ->  | S100: =IF('Offerte goederen'!$W$22=1,IF(L100="","",IF(OR(O100="",O100=0,O100=1),L100,L100*O100)),IF(L100="","",IF(OR(O100="",O100=0,O100=1),L100*(1+Formulierdata!$A$29),L100*(1+Formulierdata!$A$29)*O100))) -> 
C101: =IF(I101="","",IF(ISERROR(VLOOKUP(I101,Prijslijst!A:B,2,FALSE)),"Itemnummer onbekend",VLOOKUP(I101,Prijslijst!A:B,2,FALSE))) ->  | L101: =IF($I101="","",IF('Offerte goederen'!$W$22=1,VLOOKUP($I101,Prijslijst!A:E,5,FALSE),VLOOKUP($I101,Prijslijst!A:E,3,FALSE))) ->  | M101: =IF(I101="","",VLOOKUP($I101,Prijslijst!A:D,4,FALSE)) ->  | Q101: =IF(S101="","",(1/(1+Formulierdata!$A$29))*S101) ->  | S101: =IF('Offerte goederen'!$W$22=1,IF(L101="","",IF(OR(O101="",O101=0,O101=1),L101,L101*O101)),IF(L101="","",IF(OR(O101="",O101=0,O101=1),L101*(1+Formulierdata!$A$29),L101*(1+Formulierdata!$A$29)*O101))) -> 
C102: =IF(I102="","",IF(ISERROR(VLOOKUP(I102,Prijslijst!A:B,2,FALSE)),"Itemnummer onbekend",VLOOKUP(I102,Prijslijst!A:B,2,FALSE))) ->  | L102: =IF($I102="","",IF('Offerte goederen'!$W$22=1,VLOOKUP($I102,Prijslijst!A:E,5,FALSE),VLOOKUP($I102,Prijslijst!A:E,3,FALSE))) ->  | M102: =IF(I102="","",VLOOKUP($I102,Prijslijst!A:D,4,FALSE)) ->  | Q102: =IF(S102="","",(1/(1+Formulierdata!$A$29))*S102) ->  | S102: =IF('Offerte goederen'!$W$22=1,IF(L102="","",IF(OR(O102="",O102=0,O102=1),L102,L102*O102)),IF(L102="","",IF(OR(O102="",O102=0,O102=1),L102*(1+Formulierdata!$A$29),L102*(1+Formulierdata!$A$29)*O102))) -> 
C103: =IF(I103="","",IF(ISERROR(VLOOKUP(I103,Prijslijst!A:B,2,FALSE)),"Itemnummer onbekend",VLOOKUP(I103,Prijslijst!A:B,2,FALSE))) ->  | L103: =IF($I103="","",IF('Offerte goederen'!$W$22=1,VLOOKUP($I103,Prijslijst!A:E,5,FALSE),VLOOKUP($I103,Prijslijst!A:E,3,FALSE))) ->  | M103: =IF(I103="","",VLOOKUP($I103,Prijslijst!A:D,4,FALSE)) ->  | Q103: =IF(S103="","",(1/(1+Formulierdata!$A$29))*S103) ->  | S103: =IF('Offerte goederen'!$W$22=1,IF(L103="","",IF(OR(O103="",O103=0,O103=1),L103,L103*O103)),IF(L103="","",IF(OR(O103="",O103=0,O103=1),L103*(1+Formulierdata!$A$29),L103*(1+Formulierdata!$A$29)*O103))) -> 
C104: =IF(I104="","",IF(ISERROR(VLOOKUP(I104,Prijslijst!A:B,2,FALSE)),"Itemnummer onbekend",VLOOKUP(I104,Prijslijst!A:B,2,FALSE))) ->  | L104: =IF($I104="","",IF('Offerte goederen'!$W$22=1,VLOOKUP($I104,Prijslijst!A:E,5,FALSE),VLOOKUP($I104,Prijslijst!A:E,3,FALSE))) ->  | M104: =IF(I104="","",VLOOKUP($I104,Prijslijst!A:D,4,FALSE)) ->  | Q104: =IF(S104="","",(1/(1+Formulierdata!$A$29))*S104) ->  | S104: =IF('Offerte goederen'!$W$22=1,IF(L104="","",IF(OR(O104="",O104=0,O104=1),L104,L104*O104)),IF(L104="","",IF(OR(O104="",O104=0,O104=1),L104*(1+Formulierdata!$A$29),L104*(1+Formulierdata!$A$29)*O104))) -> 
C105: =IF(I105="","",IF(ISERROR(VLOOKUP(I105,Prijslijst!A:B,2,FALSE)),"Itemnummer onbekend",VLOOKUP(I105,Prijslijst!A:B,2,FALSE))) ->  | L105: =IF($I105="","",IF('Offerte goederen'!$W$22=1,VLOOKUP($I105,Prijslijst!A:E,5,FALSE),VLOOKUP($I105,Prijslijst!A:E,3,FALSE))) ->  | M105: =IF(I105="","",VLOOKUP($I105,Prijslijst!A:D,4,FALSE)) ->  | Q105: =IF(S105="","",(1/(1+Formulierdata!$A$29))*S105) ->  | S105: =IF('Offerte goederen'!$W$22=1,IF(L105="","",IF(OR(O105="",O105=0,O105=1),L105,L105*O105)),IF(L105="","",IF(OR(O105="",O105=0,O105=1),L105*(1+Formulierdata!$A$29),L105*(1+Formulierdata!$A$29)*O105))) -> 
C106: =IF(I106="","",IF(ISERROR(VLOOKUP(I106,Prijslijst!A:B,2,FALSE)),"Itemnummer onbekend",VLOOKUP(I106,Prijslijst!A:B,2,FALSE))) ->  | L106: =IF($I106="","",IF('Offerte goederen'!$W$22=1,VLOOKUP($I106,Prijslijst!A:E,5,FALSE),VLOOKUP($I106,Prijslijst!A:E,3,FALSE))) ->  | M106: =IF(I106="","",VLOOKUP($I106,Prijslijst!A:D,4,FALSE)) ->  | Q106: =IF(S106="","",(1/(1+Formulierdata!$A$29))*S106) ->  | S106: =IF('Offerte goederen'!$W$22=1,IF(L106="","",IF(OR(O106="",O106=0,O106=1),L106,L106*O106)),IF(L106="","",IF(OR(O106="",O106=0,O106=1),L106*(1+Formulierdata!$A$29),L106*(1+Formulierdata!$A$29)*O106))) -> 
C107: =IF(I107="","",IF(ISERROR(VLOOKUP(I107,Prijslijst!A:B,2,FALSE)),"Itemnummer onbekend",VLOOKUP(I107,Prijslijst!A:B,2,FALSE))) ->  | L107: =IF($I107="","",IF('Offerte goederen'!$W$22=1,VLOOKUP($I107,Prijslijst!A:E,5,FALSE),VLOOKUP($I107,Prijslijst!A:E,3,FALSE))) ->  | M107: =IF(I107="","",VLOOKUP($I107,Prijslijst!A:D,4,FALSE)) ->  | Q107: =IF(S107="","",(1/(1+Formulierdata!$A$29))*S107) ->  | S107: =IF('Offerte goederen'!$W$22=1,IF(L107="","",IF(OR(O107="",O107=0,O107=1),L107,L107*O107)),IF(L107="","",IF(OR(O107="",O107=0,O107=1),L107*(1+Formulierdata!$A$29),L107*(1+Formulierdata!$A$29)*O107))) -> 
C108: =IF(I108="","",IF(ISERROR(VLOOKUP(I108,Prijslijst!A:B,2,FALSE)),"Itemnummer onbekend",VLOOKUP(I108,Prijslijst!A:B,2,FALSE))) ->  | L108: =IF($I108="","",IF('Offerte goederen'!$W$22=1,VLOOKUP($I108,Prijslijst!A:E,5,FALSE),VLOOKUP($I108,Prijslijst!A:E,3,FALSE))) ->  | M108: =IF(I108="","",VLOOKUP($I108,Prijslijst!A:D,4,FALSE)) ->  | Q108: =IF(S108="","",(1/(1+Formulierdata!$A$29))*S108) ->  | S108: =IF('Offerte goederen'!$W$22=1,IF(L108="","",IF(OR(O108="",O108=0,O108=1),L108,L108*O108)),IF(L108="","",IF(OR(O108="",O108=0,O108=1),L108*(1+Formulierdata!$A$29),L108*(1+Formulierdata!$A$29)*O108))) -> 
C109: =IF(I109="","",IF(ISERROR(VLOOKUP(I109,Prijslijst!A:B,2,FALSE)),"Itemnummer onbekend",VLOOKUP(I109,Prijslijst!A:B,2,FALSE))) ->  | L109: =IF($I109="","",IF('Offerte goederen'!$W$22=1,VLOOKUP($I109,Prijslijst!A:E,5,FALSE),VLOOKUP($I109,Prijslijst!A:E,3,FALSE))) ->  | M109: =IF(I109="","",VLOOKUP($I109,Prijslijst!A:D,4,FALSE)) ->  | Q109: =IF(S109="","",(1/(1+Formulierdata!$A$29))*S109) ->  | S109: =IF('Offerte goederen'!$W$22=1,IF(L109="","",IF(OR(O109="",O109=0,O109=1),L109,L109*O109)),IF(L109="","",IF(OR(O109="",O109=0,O109=1),L109*(1+Formulierdata!$A$29),L109*(1+Formulierdata!$A$29)*O109))) -> 
C110: =IF(I110="","",IF(ISERROR(VLOOKUP(I110,Prijslijst!A:B,2,FALSE)),"Itemnummer onbekend",VLOOKUP(I110,Prijslijst!A:B,2,FALSE))) ->  | L110: =IF($I110="","",IF('Offerte goederen'!$W$22=1,VLOOKUP($I110,Prijslijst!A:E,5,FALSE),VLOOKUP($I110,Prijslijst!A:E,3,FALSE))) ->  | M110: =IF(I110="","",VLOOKUP($I110,Prijslijst!A:D,4,FALSE)) ->  | Q110: =IF(S110="","",(1/(1+Formulierdata!$A$29))*S110) ->  | S110: =IF('Offerte goederen'!$W$22=1,IF(L110="","",IF(OR(O110="",O110=0,O110=1),L110,L110*O110)),IF(L110="","",IF(OR(O110="",O110=0,O110=1),L110*(1+Formulierdata!$A$29),L110*(1+Formulierdata!$A$29)*O110))) -> 
C111: =IF(I111="","",IF(ISERROR(VLOOKUP(I111,Prijslijst!A:B,2,FALSE)),"Itemnummer onbekend",VLOOKUP(I111,Prijslijst!A:B,2,FALSE))) ->  | L111: =IF($I111="","",IF('Offerte goederen'!$W$22=1,VLOOKUP($I111,Prijslijst!A:E,5,FALSE),VLOOKUP($I111,Prijslijst!A:E,3,FALSE))) ->  | M111: =IF(I111="","",VLOOKUP($I111,Prijslijst!A:D,4,FALSE)) ->  | Q111: =IF(S111="","",(1/(1+Formulierdata!$A$29))*S111) ->  | S111: =IF('Offerte goederen'!$W$22=1,IF(L111="","",IF(OR(O111="",O111=0,O111=1),L111,L111*O111)),IF(L111="","",IF(OR(O111="",O111=0,O111=1),L111*(1+Formulierdata!$A$29),L111*(1+Formulierdata!$A$29)*O111))) -> 
C112: =IF(I112="","",IF(ISERROR(VLOOKUP(I112,Prijslijst!A:B,2,FALSE)),"Itemnummer onbekend",VLOOKUP(I112,Prijslijst!A:B,2,FALSE))) ->  | L112: =IF($I112="","",IF('Offerte goederen'!$W$22=1,VLOOKUP($I112,Prijslijst!A:E,5,FALSE),VLOOKUP($I112,Prijslijst!A:E,3,FALSE))) ->  | M112: =IF(I112="","",VLOOKUP($I112,Prijslijst!A:D,4,FALSE)) ->  | Q112: =IF(S112="","",(1/(1+Formulierdata!$A$29))*S112) ->  | S112: =IF('Offerte goederen'!$W$22=1,IF(L112="","",IF(OR(O112="",O112=0,O112=1),L112,L112*O112)),IF(L112="","",IF(OR(O112="",O112=0,O112=1),L112*(1+Formulierdata!$A$29),L112*(1+Formulierdata!$A$29)*O112))) -> 
C113: =IF(I113="","",IF(ISERROR(VLOOKUP(I113,Prijslijst!A:B,2,FALSE)),"Itemnummer onbekend",VLOOKUP(I113,Prijslijst!A:B,2,FALSE))) ->  | L113: =IF($I113="","",IF('Offerte goederen'!$W$22=1,VLOOKUP($I113,Prijslijst!A:E,5,FALSE),VLOOKUP($I113,Prijslijst!A:E,3,FALSE))) ->  | M113: =IF(I113="","",VLOOKUP($I113,Prijslijst!A:D,4,FALSE)) ->  | Q113: =IF(S113="","",(1/(1+Formulierdata!$A$29))*S113) ->  | S113: =IF('Offerte goederen'!$W$22=1,IF(L113="","",IF(OR(O113="",O113=0,O113=1),L113,L113*O113)),IF(L113="","",IF(OR(O113="",O113=0,O113=1),L113*(1+Formulierdata!$A$29),L113*(1+Formulierdata!$A$29)*O113))) -> 
C114: =IF(I114="","",IF(ISERROR(VLOOKUP(I114,Prijslijst!A:B,2,FALSE)),"Itemnummer onbekend",VLOOKUP(I114,Prijslijst!A:B,2,FALSE))) ->  | L114: =IF($I114="","",IF('Offerte goederen'!$W$22=1,VLOOKUP($I114,Prijslijst!A:E,5,FALSE),VLOOKUP($I114,Prijslijst!A:E,3,FALSE))) ->  | M114: =IF(I114="","",VLOOKUP($I114,Prijslijst!A:D,4,FALSE)) ->  | Q114: =IF(S114="","",(1/(1+Formulierdata!$A$29))*S114) ->  | S114: =IF('Offerte goederen'!$W$22=1,IF(L114="","",IF(OR(O114="",O114=0,O114=1),L114,L114*O114)),IF(L114="","",IF(OR(O114="",O114=0,O114=1),L114*(1+Formulierdata!$A$29),L114*(1+Formulierdata!$A$29)*O114))) -> 
C115: =IF(I115="","",IF(ISERROR(VLOOKUP(I115,Prijslijst!A:B,2,FALSE)),"Itemnummer onbekend",VLOOKUP(I115,Prijslijst!A:B,2,FALSE))) ->  | L115: =IF($I115="","",IF('Offerte goederen'!$W$22=1,VLOOKUP($I115,Prijslijst!A:E,5,FALSE),VLOOKUP($I115,Prijslijst!A:E,3,FALSE))) ->  | M115: =IF(I115="","",VLOOKUP($I115,Prijslijst!A:D,4,FALSE)) ->  | Q115: =IF(S115="","",(1/(1+Formulierdata!$A$29))*S115) ->  | S115: =IF('Offerte goederen'!$W$22=1,IF(L115="","",IF(OR(O115="",O115=0,O115=1),L115,L115*O115)),IF(L115="","",IF(OR(O115="",O115=0,O115=1),L115*(1+Formulierdata!$A$29),L115*(1+Formulierdata!$A$29)*O115))) -> 
C116: =IF(I116="","",IF(ISERROR(VLOOKUP(I116,Prijslijst!A:B,2,FALSE)),"Itemnummer onbekend",VLOOKUP(I116,Prijslijst!A:B,2,FALSE))) ->  | L116: =IF($I116="","",IF('Offerte goederen'!$W$22=1,VLOOKUP($I116,Prijslijst!A:E,5,FALSE),VLOOKUP($I116,Prijslijst!A:E,3,FALSE))) ->  | M116: =IF(I116="","",VLOOKUP($I116,Prijslijst!A:D,4,FALSE)) ->  | Q116: =IF(S116="","",(1/(1+Formulierdata!$A$29))*S116) ->  | S116: =IF('Offerte goederen'!$W$22=1,IF(L116="","",IF(OR(O116="",O116=0,O116=1),L116,L116*O116)),IF(L116="","",IF(OR(O116="",O116=0,O116=1),L116*(1+Formulierdata!$A$29),L116*(1+Formulierdata!$A$29)*O116))) -> 
C117: =IF(I117="","",IF(ISERROR(VLOOKUP(I117,Prijslijst!A:B,2,FALSE)),"Itemnummer onbekend",VLOOKUP(I117,Prijslijst!A:B,2,FALSE))) ->  | L117: =IF($I117="","",IF('Offerte goederen'!$W$22=1,VLOOKUP($I117,Prijslijst!A:E,5,FALSE),VLOOKUP($I117,Prijslijst!A:E,3,FALSE))) ->  | M117: =IF(I117="","",VLOOKUP($I117,Prijslijst!A:D,4,FALSE)) ->  | Q117: =IF(S117="","",(1/(1+Formulierdata!$A$29))*S117) ->  | S117: =IF('Offerte goederen'!$W$22=1,IF(L117="","",IF(OR(O117="",O117=0,O117=1),L117,L117*O117)),IF(L117="","",IF(OR(O117="",O117=0,O117=1),L117*(1+Formulierdata!$A$29),L117*(1+Formulierdata!$A$29)*O117))) -> 
C118: =IF(I118="","",IF(ISERROR(VLOOKUP(I118,Prijslijst!A:B,2,FALSE)),"Itemnummer onbekend",VLOOKUP(I118,Prijslijst!A:B,2,FALSE))) ->  | L118: =IF($I118="","",IF('Offerte goederen'!$W$22=1,VLOOKUP($I118,Prijslijst!A:E,5,FALSE),VLOOKUP($I118,Prijslijst!A:E,3,FALSE))) ->  | M118: =IF(I118="","",VLOOKUP($I118,Prijslijst!A:D,4,FALSE)) ->  | Q118: =IF(S118="","",(1/(1+Formulierdata!$A$29))*S118) ->  | S118: =IF('Offerte goederen'!$W$22=1,IF(L118="","",IF(OR(O118="",O118=0,O118=1),L118,L118*O118)),IF(L118="","",IF(OR(O118="",O118=0,O118=1),L118*(1+Formulierdata!$A$29),L118*(1+Formulierdata!$A$29)*O118))) -> 
C119: =IF(I119="","",IF(ISERROR(VLOOKUP(I119,Prijslijst!A:B,2,FALSE)),"Itemnummer onbekend",VLOOKUP(I119,Prijslijst!A:B,2,FALSE))) ->  | L119: =IF($I119="","",IF('Offerte goederen'!$W$22=1,VLOOKUP($I119,Prijslijst!A:E,5,FALSE),VLOOKUP($I119,Prijslijst!A:E,3,FALSE))) ->  | M119: =IF(I119="","",VLOOKUP($I119,Prijslijst!A:D,4,FALSE)) ->  | Q119: =IF(S119="","",(1/(1+Formulierdata!$A$29))*S119) ->  | S119: =IF('Offerte goederen'!$W$22=1,IF(L119="","",IF(OR(O119="",O119=0,O119=1),L119,L119*O119)),IF(L119="","",IF(OR(O119="",O119=0,O119=1),L119*(1+Formulierdata!$A$29),L119*(1+Formulierdata!$A$29)*O119))) -> 
C120: =IF(I120="","",IF(ISERROR(VLOOKUP(I120,Prijslijst!A:B,2,FALSE)),"Itemnummer onbekend",VLOOKUP(I120,Prijslijst!A:B,2,FALSE))) ->  | L120: =IF($I120="","",IF('Offerte goederen'!$W$22=1,VLOOKUP($I120,Prijslijst!A:E,5,FALSE),VLOOKUP($I120,Prijslijst!A:E,3,FALSE))) ->  | M120: =IF(I120="","",VLOOKUP($I120,Prijslijst!A:D,4,FALSE)) ->  | Q120: =IF(S120="","",(1/(1+Formulierdata!$A$29))*S120) ->  | S120: =IF('Offerte goederen'!$W$22=1,IF(L120="","",IF(OR(O120="",O120=0,O120=1),L120,L120*O120)),IF(L120="","",IF(OR(O120="",O120=0,O120=1),L120*(1+Formulierdata!$A$29),L120*(1+Formulierdata!$A$29)*O120))) -> 
C121: =IF(I121="","",IF(ISERROR(VLOOKUP(I121,Prijslijst!A:B,2,FALSE)),"Itemnummer onbekend",VLOOKUP(I121,Prijslijst!A:B,2,FALSE))) ->  | L121: =IF($I121="","",IF('Offerte goederen'!$W$22=1,VLOOKUP($I121,Prijslijst!A:E,5,FALSE),VLOOKUP($I121,Prijslijst!A:E,3,FALSE))) ->  | M121: =IF(I121="","",VLOOKUP($I121,Prijslijst!A:D,4,FALSE)) ->  | Q121: =IF(S121="","",(1/(1+Formulierdata!$A$29))*S121) ->  | S121: =IF('Offerte goederen'!$W$22=1,IF(L121="","",IF(OR(O121="",O121=0,O121=1),L121,L121*O121)),IF(L121="","",IF(OR(O121="",O121=0,O121=1),L121*(1+Formulierdata!$A$29),L121*(1+Formulierdata!$A$29)*O121))) -> 
C122: =IF(I122="","",IF(ISERROR(VLOOKUP(I122,Prijslijst!A:B,2,FALSE)),"Itemnummer onbekend",VLOOKUP(I122,Prijslijst!A:B,2,FALSE))) ->  | L122: =IF($I122="","",IF('Offerte goederen'!$W$22=1,VLOOKUP($I122,Prijslijst!A:E,5,FALSE),VLOOKUP($I122,Prijslijst!A:E,3,FALSE))) ->  | M122: =IF(I122="","",VLOOKUP($I122,Prijslijst!A:D,4,FALSE)) ->  | Q122: =IF(S122="","",(1/(1+Formulierdata!$A$29))*S122) ->  | S122: =IF('Offerte goederen'!$W$22=1,IF(L122="","",IF(OR(O122="",O122=0,O122=1),L122,L122*O122)),IF(L122="","",IF(OR(O122="",O122=0,O122=1),L122*(1+Formulierdata!$A$29),L122*(1+Formulierdata!$A$29)*O122))) -> 
C123: =IF(I123="","",IF(ISERROR(VLOOKUP(I123,Prijslijst!A:B,2,FALSE)),"Itemnummer onbekend",VLOOKUP(I123,Prijslijst!A:B,2,FALSE))) ->  | L123: =IF($I123="","",IF('Offerte goederen'!$W$22=1,VLOOKUP($I123,Prijslijst!A:E,5,FALSE),VLOOKUP($I123,Prijslijst!A:E,3,FALSE))) ->  | M123: =IF(I123="","",VLOOKUP($I123,Prijslijst!A:D,4,FALSE)) ->  | Q123: =IF(S123="","",(1/(1+Formulierdata!$A$29))*S123) ->  | S123: =IF('Offerte goederen'!$W$22=1,IF(L123="","",IF(OR(O123="",O123=0,O123=1),L123,L123*O123)),IF(L123="","",IF(OR(O123="",O123=0,O123=1),L123*(1+Formulierdata!$A$29),L123*(1+Formulierdata!$A$29)*O123))) -> 
C124: =IF(I124="","",IF(ISERROR(VLOOKUP(I124,Prijslijst!A:B,2,FALSE)),"Itemnummer onbekend",VLOOKUP(I124,Prijslijst!A:B,2,FALSE))) ->  | L124: =IF($I124="","",IF('Offerte goederen'!$W$22=1,VLOOKUP($I124,Prijslijst!A:E,5,FALSE),VLOOKUP($I124,Prijslijst!A:E,3,FALSE))) ->  | M124: =IF(I124="","",VLOOKUP($I124,Prijslijst!A:D,4,FALSE)) ->  | Q124: =IF(S124="","",(1/(1+Formulierdata!$A$29))*S124) ->  | S124: =IF('Offerte goederen'!$W$22=1,IF(L124="","",IF(OR(O124="",O124=0,O124=1),L124,L124*O124)),IF(L124="","",IF(OR(O124="",O124=0,O124=1),L124*(1+Formulierdata!$A$29),L124*(1+Formulierdata!$A$29)*O124))) -> 
C125: =IF(I125="","",IF(ISERROR(VLOOKUP(I125,Prijslijst!A:B,2,FALSE)),"Itemnummer onbekend",VLOOKUP(I125,Prijslijst!A:B,2,FALSE))) ->  | L125: =IF($I125="","",IF('Offerte goederen'!$W$22=1,VLOOKUP($I125,Prijslijst!A:E,5,FALSE),VLOOKUP($I125,Prijslijst!A:E,3,FALSE))) ->  | M125: =IF(I125="","",VLOOKUP($I125,Prijslijst!A:D,4,FALSE)) ->  | Q125: =IF(S125="","",(1/(1+Formulierdata!$A$29))*S125) ->  | S125: =IF('Offerte goederen'!$W$22=1,IF(L125="","",IF(OR(O125="",O125=0,O125=1),L125,L125*O125)),IF(L125="","",IF(OR(O125="",O125=0,O125=1),L125*(1+Formulierdata!$A$29),L125*(1+Formulierdata!$A$29)*O125))) -> 

Sheet Vertrekaanduidingen (hidden)
A1: Vertrekaanduiding (1) | B1: *
A2: =IF(Inmeetformulier!B25="","",Inmeetformulier!B25) -> 
A3: =IF(Inmeetformulier!B26="","",Inmeetformulier!B26) -> 
A4: =IF(Inmeetformulier!B27="","",Inmeetformulier!B27) -> 
A5: =IF(Inmeetformulier!B28="","",Inmeetformulier!B28) -> 
A6: =IF(Inmeetformulier!B29="","",Inmeetformulier!B29) -> 
A7: =IF(Inmeetformulier!B30="","",Inmeetformulier!B30) -> 
A8: =IF(Inmeetformulier!B31="","",Inmeetformulier!B31) -> 
A9: =IF(Inmeetformulier!B32="","",Inmeetformulier!B32) -> 
A10: =IF(Inmeetformulier!B33="","",Inmeetformulier!B33) -> 
A11: =IF(Inmeetformulier!B34="","",Inmeetformulier!B34) -> 
A12: =IF(Inmeetformulier!B35="","",Inmeetformulier!B35) -> 
A13: =IF(Inmeetformulier!B36="","",Inmeetformulier!B36) -> 
A14: =IF(Inmeetformulier!B37="","",Inmeetformulier!B37) -> 
A15: =IF(Inmeetformulier!B38="","",Inmeetformulier!B38) -> 
A16: =IF(Inmeetformulier!B39="","",Inmeetformulier!B39) -> 
A17: =IF(Inmeetformulier!B40="","",Inmeetformulier!B40) -> 
A18: =IF(Inmeetformulier!B41="","",Inmeetformulier!B41) -> 
A19: =IF(Inmeetformulier!B42="","",Inmeetformulier!B42) -> 
A20: =IF(Inmeetformulier!B43="","",Inmeetformulier!B43) -> 
A21: =IF(Inmeetformulier!B44="","",Inmeetformulier!B44) -> 
A22: =IF(Inmeetformulier!B45="","",Inmeetformulier!B45) -> 
A23: =IF(Inmeetformulier!B46="","",Inmeetformulier!B46) -> 
A24: =IF(Inmeetformulier!B47="","",Inmeetformulier!B47) -> 
A25: =IF(Inmeetformulier!B48="","",Inmeetformulier!B48) -> 
A26: =IF(Inmeetformulier!B49="","",Inmeetformulier!B49) -> 
A27: =IF(Inmeetformulier!B50="","",Inmeetformulier!B50) -> 
A28: =IF(Inmeetformulier!B51="","",Inmeetformulier!B51) -> 
A29: =IF(Inmeetformulier!B52="","",Inmeetformulier!B52) -> 
A30: =IF(Inmeetformulier!B53="","",Inmeetformulier!B53) -> 
A31: =IF(Inmeetformulier!B54="","",Inmeetformulier!B54) -> 
A32: =IF(Inmeetformulier!B55="","",Inmeetformulier!B55) -> 
A33: =IF(Inmeetformulier!B56="","",Inmeetformulier!B56) -> 
A34: =IF(Inmeetformulier!B57="","",Inmeetformulier!B57) -> 
A35: =IF(Inmeetformulier!B58="","",Inmeetformulier!B58) -> 
A36: =IF(Inmeetformulier!B59="","",Inmeetformulier!B59) -> 
A37: =IF(Inmeetformulier!B60="","",Inmeetformulier!B60) -> 
A38: =IF(Inmeetformulier!B61="","",Inmeetformulier!B61) -> 
A39: =IF(Inmeetformulier!B62="","",Inmeetformulier!B62) -> 
A40: =IF(Inmeetformulier!B63="","",Inmeetformulier!B63) -> 
A41: =IF(Inmeetformulier!B64="","",Inmeetformulier!B64) -> 
A42: =IF(Inmeetformulier!B65="","",Inmeetformulier!B65) -> 
A43: =IF(Inmeetformulier!B66="","",Inmeetformulier!B66) -> 
A44: =IF(Inmeetformulier!B67="","",Inmeetformulier!B67) -> 
A45: =IF(Inmeetformulier!B68="","",Inmeetformulier!B68) -> 
A46: =IF(Inmeetformulier!B69="","",Inmeetformulier!B69) -> 
A47: =IF(Inmeetformulier!B70="","",Inmeetformulier!B70) -> 
A48: =IF(Inmeetformulier!B71="","",Inmeetformulier!B71) -> 
A49: =IF(Inmeetformulier!B72="","",Inmeetformulier!B72) -> 
A50: =IF(Inmeetformulier!B73="","",Inmeetformulier!B73) -> 
A51: =IF(Inmeetformulier!B74="","",Inmeetformulier!B74) -> 
A52: =IF(Inmeetformulier!B75="","",Inmeetformulier!B75) -> 
A53: =IF(Inmeetformulier!B76="","",Inmeetformulier!B76) -> 
A54: =IF(Inmeetformulier!B77="","",Inmeetformulier!B77) -> 
A55: =IF(Inmeetformulier!B78="","",Inmeetformulier!B78) -> 
A56: =IF(Inmeetformulier!B79="","",Inmeetformulier!B79) -> 
A57: =IF(Inmeetformulier!B80="","",Inmeetformulier!B80) -> 
A58: =IF(Inmeetformulier!B81="","",Inmeetformulier!B81) -> 
A59: =IF(Inmeetformulier!B82="","",Inmeetformulier!B82) -> 
A60: =IF(Inmeetformulier!B83="","",Inmeetformulier!B83) -> 
A61: =IF(Inmeetformulier!B84="","",Inmeetformulier!B84) -> 
A62: =IF(Inmeetformulier!B85="","",Inmeetformulier!B85) -> 
A63: =IF(Inmeetformulier!B86="","",Inmeetformulier!B86) -> 
A64: =IF(Inmeetformulier!B87="","",Inmeetformulier!B87) -> 
A65: =IF(Inmeetformulier!B88="","",Inmeetformulier!B88) -> 
A66: =IF(Inmeetformulier!B89="","",Inmeetformulier!B89) -> 
A67: =IF(Inmeetformulier!B90="","",Inmeetformulier!B90) -> 
A68: =IF(Inmeetformulier!B91="","",Inmeetformulier!B91) -> 
A69: =IF(Inmeetformulier!B92="","",Inmeetformulier!B92) -> 
A70: =IF(Inmeetformulier!B93="","",Inmeetformulier!B93) -> 
A71: =IF(Inmeetformulier!B94="","",Inmeetformulier!B94) -> 
A72: =IF(Inmeetformulier!B95="","",Inmeetformulier!B95) -> 
A73: =IF(Inmeetformulier!B96="","",Inmeetformulier!B96) -> 
A74: =IF(Inmeetformulier!B97="","",Inmeetformulier!B97) -> 
A75: =IF(Inmeetformulier!B98="","",Inmeetformulier!B98) -> 
A76: =IF(Inmeetformulier!B99="","",Inmeetformulier!B99) -> 
A77: =IF(Inmeetformulier!B100="","",Inmeetformulier!B100) -> 
A78: =IF(Inmeetformulier!B101="","",Inmeetformulier!B101) -> 
A79: =IF(Inmeetformulier!B102="","",Inmeetformulier!B102) -> 
A80: =IF(Inmeetformulier!B103="","",Inmeetformulier!B103) -> 
A81: =IF(Inmeetformulier!B104="","",Inmeetformulier!B104) -> 
A82: =IF(Inmeetformulier!B105="","",Inmeetformulier!B105) -> 
A83: =IF(Inmeetformulier!B106="","",Inmeetformulier!B106) -> 
A84: =IF(Inmeetformulier!B107="","",Inmeetformulier!B107) -> 
A85: =IF(Inmeetformulier!B108="","",Inmeetformulier!B108) -> 
A86: =IF(Inmeetformulier!B109="","",Inmeetformulier!B109) -> 
A87: =IF(Inmeetformulier!B110="","",Inmeetformulier!B110) -> 
A88: =IF(Inmeetformulier!B111="","",Inmeetformulier!B111) -> 
A89: =IF(Inmeetformulier!B112="","",Inmeetformulier!B112) -> 
A90: =IF(Inmeetformulier!B113="","",Inmeetformulier!B113) -> 
A91: =IF(Inmeetformulier!B114="","",Inmeetformulier!B114) -> 
A92: =IF(Inmeetformulier!B115="","",Inmeetformulier!B115) -> 
A93: =IF(Inmeetformulier!B116="","",Inmeetformulier!B116) -> 
A94: =IF(Inmeetformulier!B117="","",Inmeetformulier!B117) -> 
A95: =IF(Inmeetformulier!B118="","",Inmeetformulier!B118) -> 
A96: =IF(Inmeetformulier!B119="","",Inmeetformulier!B119) -> 
A97: =IF(Inmeetformulier!B120="","",Inmeetformulier!B120) -> 
A98: =IF(Inmeetformulier!B121="","",Inmeetformulier!B121) -> 
A99: =IF(Inmeetformulier!B122="","",Inmeetformulier!B122) -> 
A100: =IF(Inmeetformulier!B123="","",Inmeetformulier!B123) -> 
A101: =IF(Inmeetformulier!B124="","",Inmeetformulier!B124) -> 
A102: =IF(Inmeetformulier!B125="","",Inmeetformulier!B125) -> 

Sheet Prijslijst (hidden)
A1: Item | B1: Omschrijving | C1: Prijs per eenh. (excl. BTW) | D1: Eenheid | E1: Prijs per eenh. (incl. BTW)
A2: 1 | B2: KS-Rail compleet incl. runners en plafondsteunen (zwart of wit) | C2: 9.5 | D2: /m | E2: =IF(C2="","",C2*(1+Formulierdata!$A$29)) -> 11.495
A3: 2 | B3: DS-Rail compleet incl. runners en plafondsteunen (zwart of wit) | C3: 10.75 | D3: /m | E3: =IF(C3="","",C3*(1+Formulierdata!$A$29)) -> 13.0075
A4: 3 | B4: Meerprijs bij KS/DS voor wandsteunen 35 mm | C4: 2.75 | D4: /m | E4: =IF(C4="","",C4*(1+Formulierdata!$A$29)) -> 3.3275
A5: 4 | B5: Meerprijs bij KS/DS voor wandsteunen 75 mm | C5: 4.5 | D5: /m | E5: =IF(C5="","",C5*(1+Formulierdata!$A$29)) -> 5.445
A6: 5 | B6: G-rail 2100 compleet incl. runners en plafondsteunen | C6: 10 | D6: /m | E6: =IF(C6="","",C6*(1+Formulierdata!$A$29)) -> 12.1
A7: 6 | B7: Buigen KS- en G-rail per bocht | C7: 7.5 | D7: /st | E7: =IF(C7="","",C7*(1+Formulierdata!$A$29)) -> 9.075
A8: 7 | B8: Buigen DS-rail per bocht | C8: 12.5 | D8: /st | E8: =IF(C8="","",C8*(1+Formulierdata!$A$29)) -> 15.125
A9: 8 | B9: Montage rails op plafondsteunen | C9: 5 | D9: /m | E9: =IF(C9="","",C9*(1+Formulierdata!$A$29)) -> 6.05
A10: 9 | B10: Montage rails op wandsteunen | C10: 6.5 | D10: /m | E10: =IF(C10="","",C10*(1+Formulierdata!$A$29)) -> 7.865
A11: 10 | B11: Gordijnen hangen en stomen | C11: 9 | D11: /m | E11: =IF(C11="","",C11*(1+Formulierdata!$A$29)) -> 10.89
A12: 11 | B12: Montage railroede aan wandsteunen | C12: 7.5 | D12: /m | E12: =IF(C12="","",C12*(1+Formulierdata!$A$29)) -> 9.075
A13: 12 | B13: Montage railroede aan plafondsteunen | C13: 8.75 | D13: /m | E13: =IF(C13="","",C13*(1+Formulierdata!$A$29)) -> 10.5875
A14: 13 | B14: Montage jaloezie, duette, vouw- of rolgordijn | C14: 17.5 | D14: /st | E14: =IF(C14="","",C14*(1+Formulierdata!$A$29)) -> 21.175
A15: 14 | B15: Montage verticale lamellen | C15: 25 | D15: /st | E15: =IF(C15="","",C15*(1+Formulierdata!$A$29)) -> 30.25
A16: 15 | B16: Montage inklemhorren | C16: 7.5 | D16: /st | E16: =IF(C16="","",C16*(1+Formulierdata!$A$29)) -> 9.075
A17: 16 | B17: Montage plissé hordeuren | C17: 25 | D17: /st | E17: =IF(C17="","",C17*(1+Formulierdata!$A$29)) -> 30.25
A18: 17 | B18: Inmeten en verwerking inmeetbonnen regio Groot-Eindhoven | C18: 100 | D18: /st | E18: =IF(C18="","",C18*(1+Formulierdata!$A$29)) -> 121
A19: 18 | B19: Inmeten en verwerking inmeetbonnen < 50 km vanaf Eindhoven | C19: 150 | D19: /st | E19: =IF(C19="","",C19*(1+Formulierdata!$A$29)) -> 181.5
A20: 19 | B20: Inmeten en verwerking inmeetbonnen > 50 km vanaf Eindhoven | C20: 200 | D20: /st | E20: =IF(C20="","",C20*(1+Formulierdata!$A$29)) -> 242
A21: 20 | B21: Extra arbeid | C21: 50 | D21: /u | E21: =IF(C21="","",C21*(1+Formulierdata!$A$29)) -> 60.5
A22: 21 | B22: Kilometervergoeding | C22: 0.3 | D22: /km | E22: =IF(C22="","",C22*(1+Formulierdata!$A$29)) -> 0.363
A23: 22 | E23: =IF(C23="","",C23*(1+Formulierdata!$A$29)) -> 
A24: 23 | E24: =IF(C24="","",C24*(1+Formulierdata!$A$29)) -> 
A25: 24 | E25: =IF(C25="","",C25*(1+Formulierdata!$A$29)) -> 
A26: 25 | E26: =IF(C26="","",C26*(1+Formulierdata!$A$29)) -> 
A27: 26 | E27: =IF(C27="","",C27*(1+Formulierdata!$A$29)) -> 
A28: 27 | E28: =IF(C28="","",C28*(1+Formulierdata!$A$29)) -> 
A29: 28 | E29: =IF(C29="","",C29*(1+Formulierdata!$A$29)) -> 
A30: 29 | E30: =IF(C30="","",C30*(1+Formulierdata!$A$29)) -> 
A31: 30 | E31: =IF(C31="","",C31*(1+Formulierdata!$A$29)) -> 
A32: 31 | E32: =IF(C32="","",C32*(1+Formulierdata!$A$29)) -> 
A33: 32 | E33: =IF(C33="","",C33*(1+Formulierdata!$A$29)) -> 
A34: 33 | E34: =IF(C34="","",C34*(1+Formulierdata!$A$29)) -> 
A35: 34 | E35: =IF(C35="","",C35*(1+Formulierdata!$A$29)) -> 
A36: 35 | E36: =IF(C36="","",C36*(1+Formulierdata!$A$29)) -> 
A37: 36 | E37: =IF(C37="","",C37*(1+Formulierdata!$A$29)) -> 
A38: 37 | E38: =IF(C38="","",C38*(1+Formulierdata!$A$29)) -> 
A39: 38 | E39: =IF(C39="","",C39*(1+Formulierdata!$A$29)) -> 
A40: 39 | E40: =IF(C40="","",C40*(1+Formulierdata!$A$29)) -> 
A41: 40 | E41: =IF(C41="","",C41*(1+Formulierdata!$A$29)) -> 
A42: 41 | E42: =IF(C42="","",C42*(1+Formulierdata!$A$29)) -> 
A43: 42 | E43: =IF(C43="","",C43*(1+Formulierdata!$A$29)) -> 
A44: 43 | E44: =IF(C44="","",C44*(1+Formulierdata!$A$29)) -> 
A45: 44 | E45: =IF(C45="","",C45*(1+Formulierdata!$A$29)) -> 
A46: 45 | E46: =IF(C46="","",C46*(1+Formulierdata!$A$29)) -> 
A47: 46 | E47: =IF(C47="","",C47*(1+Formulierdata!$A$29)) -> 
A48: 47 | E48: =IF(C48="","",C48*(1+Formulierdata!$A$29)) -> 
A49: 48 | E49: =IF(C49="","",C49*(1+Formulierdata!$A$29)) -> 
A50: 49 | E50: =IF(C50="","",C50*(1+Formulierdata!$A$29)) -> 
A51: 50 | B51: Kopje koffie drinken | C51: 25 | D51: /u | E51: =IF(C51="","",C51*(1+Formulierdata!$A$29)) -> 30.25
A52: 51 | E52: =IF(C52="","",C52*(1+Formulierdata!$A$29)) -> 
A53: 52 | E53: =IF(C53="","",C53*(1+Formulierdata!$A$29)) -> 
A54: 53 | E54: =IF(C54="","",C54*(1+Formulierdata!$A$29)) -> 
A55: 54 | E55: =IF(C55="","",C55*(1+Formulierdata!$A$29)) -> 
A56: 55 | E56: =IF(C56="","",C56*(1+Formulierdata!$A$29)) -> 
A57: 56 | E57: =IF(C57="","",C57*(1+Formulierdata!$A$29)) -> 
A58: 57 | E58: =IF(C58="","",C58*(1+Formulierdata!$A$29)) -> 
A59: 58 | E59: =IF(C59="","",C59*(1+Formulierdata!$A$29)) -> 
A60: 59 | E60: =IF(C60="","",C60*(1+Formulierdata!$A$29)) -> 
A61: 60 | E61: =IF(C61="","",C61*(1+Formulierdata!$A$29)) -> 
A62: 61 | E62: =IF(C62="","",C62*(1+Formulierdata!$A$29)) -> 
A63: 62 | E63: =IF(C63="","",C63*(1+Formulierdata!$A$29)) -> 
A64: 63 | E64: =IF(C64="","",C64*(1+Formulierdata!$A$29)) -> 
A65: 64 | E65: =IF(C65="","",C65*(1+Formulierdata!$A$29)) -> 
A66: 65 | E66: =IF(C66="","",C66*(1+Formulierdata!$A$29)) -> 
A67: 66 | E67: =IF(C67="","",C67*(1+Formulierdata!$A$29)) -> 
A68: 67 | E68: =IF(C68="","",C68*(1+Formulierdata!$A$29)) -> 
A69: 68 | E69: =IF(C69="","",C69*(1+Formulierdata!$A$29)) -> 
A70: 69 | E70: =IF(C70="","",C70*(1+Formulierdata!$A$29)) -> 
A71: 70 | E71: =IF(C71="","",C71*(1+Formulierdata!$A$29)) -> 
A72: 71 | E72: =IF(C72="","",C72*(1+Formulierdata!$A$29)) -> 
A73: 72 | E73: =IF(C73="","",C73*(1+Formulierdata!$A$29)) -> 
A74: 73 | E74: =IF(C74="","",C74*(1+Formulierdata!$A$29)) -> 
A75: 74 | E75: =IF(C75="","",C75*(1+Formulierdata!$A$29)) -> 
A76: 75 | E76: =IF(C76="","",C76*(1+Formulierdata!$A$29)) -> 
A77: 76 | E77: =IF(C77="","",C77*(1+Formulierdata!$A$29)) -> 
A78: 77 | E78: =IF(C78="","",C78*(1+Formulierdata!$A$29)) -> 
A79: 78 | E79: =IF(C79="","",C79*(1+Formulierdata!$A$29)) -> 
A80: 79 | E80: =IF(C80="","",C80*(1+Formulierdata!$A$29)) -> 
A81: 80 | E81: =IF(C81="","",C81*(1+Formulierdata!$A$29)) -> 
A82: 81 | E82: =IF(C82="","",C82*(1+Formulierdata!$A$29)) -> 
A83: 82 | E83: =IF(C83="","",C83*(1+Formulierdata!$A$29)) -> 
A84: 83 | E84: =IF(C84="","",C84*(1+Formulierdata!$A$29)) -> 
A85: 84 | E85: =IF(C85="","",C85*(1+Formulierdata!$A$29)) -> 
A86: 85 | E86: =IF(C86="","",C86*(1+Formulierdata!$A$29)) -> 
A87: 86 | E87: =IF(C87="","",C87*(1+Formulierdata!$A$29)) -> 
A88: 87 | E88: =IF(C88="","",C88*(1+Formulierdata!$A$29)) -> 
A89: 88 | E89: =IF(C89="","",C89*(1+Formulierdata!$A$29)) -> 
A90: 89 | E90: =IF(C90="","",C90*(1+Formulierdata!$A$29)) -> 
A91: 90 | E91: =IF(C91="","",C91*(1+Formulierdata!$A$29)) -> 
A92: 91 | E92: =IF(C92="","",C92*(1+Formulierdata!$A$29)) -> 
A93: 92 | E93: =IF(C93="","",C93*(1+Formulierdata!$A$29)) -> 
A94: 93 | E94: =IF(C94="","",C94*(1+Formulierdata!$A$29)) -> 
A95: 94 | E95: =IF(C95="","",C95*(1+Formulierdata!$A$29)) -> 
A96: 95 | E96: =IF(C96="","",C96*(1+Formulierdata!$A$29)) -> 
A97: 96 | E97: =IF(C97="","",C97*(1+Formulierdata!$A$29)) -> 
A98: 97 | E98: =IF(C98="","",C98*(1+Formulierdata!$A$29)) -> 
A99: 98 | E99: =IF(C99="","",C99*(1+Formulierdata!$A$29)) -> 
A100: 99 | E100: =IF(C100="","",C100*(1+Formulierdata!$A$29)) -> 
A101: 100 | B101: Anders, zie toelichting | E101: =IF(C101="","",C101*(1+Formulierdata!$A$29)) -> 

Sheet Offerte totaal (hidden)
C2: =IF(Dossier!C21="","Klantofferte","Klantofferte (bevestigd)") -> Klantofferte
I3: 4
B5: Naam klant/contactpers.: | C5: =CONCATENATE(IF('Offerte goederen'!C5=0,"",'Offerte goederen'!C5)," ",IF('Offerte goederen'!D5=0,"",'Offerte goederen'!D5)," ",IF('Offerte goederen'!E5=0,"",'Offerte goederen'!E5)) -> 
B6: Organisatie: | C6: ='Offerte goederen'!C6 -> 0
B7: Montage-adres: | C7: ='Offerte goederen'!C7 -> 0
B8: Postcode/Wplts.: | C8: =CONCATENATE(IF('Offerte goederen'!C8=0,"",'Offerte goederen'!C8)," ",IF('Offerte goederen'!D8=0,"",'Offerte goederen'!D8)) -> 
B9: Land: | C9: ='Offerte goederen'!C9 -> 0
B10: E-mailadres: | C10: ='Offerte goederen'!C10 -> 0
B12: Telefoon 1: | C12: =CONCATENATE(IF('Offerte goederen'!C12=0,"",CONCATENATE("+",'Offerte goederen'!C12))," ",IF('Offerte goederen'!D12=0,"",'Offerte goederen'!D12)) -> 
B13: Telefoon 2: | C13: =CONCATENATE(IF('Offerte goederen'!C13=0,"",CONCATENATE("+",'Offerte goederen'!C13))," ",IF('Offerte goederen'!D13=0,"",'Offerte goederen'!D13)) -> 
M14: =IF(AND(M15=FALSE,M16="% na"),"j",IF(AND(M15=FALSE,M16="% voor"),"i",IF(AND(M15=FALSE,M16="EUR na"),"h",IF(AND(M15=FALSE,M16="EUR voor"),"g",IF(AND(M15=FALSE,M16="x"),"f",IF(AND(M15=TRUE,M16="% na"),"e",IF(AND(M15=TRUE,M16="% voor"),"d",IF(AND(M15=TRUE,M16="EUR na"),"c",IF(AND(M15=TRUE,M16="EUR voor"),"b","a"))))))))) -> a
B15: Datum: | M15: TRUE
B16: Behorend bij inmeting d.d.: | E16: =IF(AND(M15=TRUE,M16="x"),"Totaalbedrag (excl. BTW): ",IF(M15=FALSE,"Totaalbedrag (BTW verlegd): ","Totaalbedrag voor korting (excl. BTW): ")) -> Totaalbedrag (excl. BTW): | J16: =SUBTOTAL(9,L25:L205) -> 0 | M16: x
E17: =IF(OR(M14="c",M14="e"),CONCATENATE("+ BTW (",100*Formulierdata!A29,"%): "),IF(OR(M14="b",M14="d"),"-/- Korting: ","")) ->  | J17: 0
B18: Projectomschrijving klant: | C18: ='Offerte goederen'!C18 -> 0 | E18: =IF(OR(M14="b",M14="d"),"Totaalbedrag na korting (excl. BTW): ",IF(OR(M14="c",M14="e"),"Totaalbedrag voor korting (incl. BTW): ","")) ->  | J18: =IF(OR($M$14="a",$M$14="f",$M$14="g",$M$14="h",$M$14="i",$M$14="j"),$J$16,IF($M$14="b",$J$16-$J$17,IF($M$14="d",$J$16-($J$17*$J$16),IF(OR($M$14="c",$M$14="e"),$J$16+($J$16*Formulierdata!$A$29))))) -> 0
C19: ='Offerte goederen'!C19 -> 0 | E19: =IF(OR(M14="a",M14="b",M14="d"),CONCATENATE("+ BTW (",100*Formulierdata!A29,"%): "),IF(OR(M14="c",M14="e",M14="g",M14="h",M14="i",M14="j"),"-/- Korting: ","")) -> + BTW (21%): | J19: =IF(OR($M$14="f",$M$14="g",$M$14="h",$M$14="i"),"",IF($M$14="a",Formulierdata!$A$29*$J$16,IF(OR($M$14="b",$M$14="d"),Formulierdata!$A$29*$J$18,0))) -> 0
C20: ='Offerte goederen'!C20 -> 0 | E20: =IF(OR(M14="b",M14="d",M14="c",M14="e"),"Totaalbedrag na korting (incl. BTW): ",IF(M14="a","Totaalbedrag (incl. BTW): ",IF(OR(M14="g",M14="h",M14="i",M14="j"),"Totaalbedrag na korting (BTW verlegd): ",""))) -> Totaalbedrag (incl. BTW): | J20: =IF(OR($M$14="a",$M$14="b",$M$14="d"),$J$18+$J$19,IF(OR($M$14="c",$M$14="g", $M$14="h"),$J$18-$J$19,IF(OR($M$14="e",$M$14="i",$M$14="j"),$J$18-($J$19*$J$18),""))) -> 0
B24: Vertrek | C24: Omschrijving (G = Goederen, M = Montage- en overige kosten) | E24: Toelichting (evt.) | G24: ='Offerte goederen'!R24 -> Prijs (excl. BTW) | H24: per | J24: Aantal eenh. | L24: Bedrag (excl. BTW) | N24: Bedrag (incl. BTW)

Sheet Bestelformulier (hidden)
C2: Bestelformulier
B5: Merk
B6: Leverancier | C6: =IF(ISERROR(VLOOKUP($C$5,Leveranciersdata!$A:$G,2,FALSE)),"",VLOOKUP($C$5,Leveranciersdata!$A:$G,2,FALSE)) -> 
B7: T.a.v. | C7: =IF(ISERROR(VLOOKUP($C$5,Leveranciersdata!$A:$G,3,FALSE)),"",VLOOKUP($C$5,Leveranciersdata!$A:$G,3,FALSE)) -> 
B8: Adres | C8: =IF(ISERROR(VLOOKUP($C$5,Leveranciersdata!$A:$G,4,FALSE)),"",VLOOKUP($C$5,Leveranciersdata!$A:$G,4,FALSE)) -> 
B9: Postcode/Wplts.: | C9: =IF(ISERROR(VLOOKUP($C$5,Leveranciersdata!$A:$G,5,FALSE)),"",VLOOKUP($C$5,Leveranciersdata!$A:$G,5,FALSE)) ->  | D9: =IF(ISERROR(VLOOKUP($C$5,Leveranciersdata!$A:$G,6,FALSE)),"",VLOOKUP($C$5,Leveranciersdata!$A:$G,6,FALSE)) ->  | E9: =VLOOKUP($C$5,Leveranciersdata!$A:$G,5,FALSE) ->  | F9: =VLOOKUP($C$5,Leveranciersdata!$A:$G,5,FALSE) ->  | G9: =VLOOKUP($C$5,Leveranciersdata!$A:$G,5,FALSE) ->  | H9: =VLOOKUP($C$5,Leveranciersdata!$A:$G,5,FALSE) -> 
C11: Wij verzoeken u om levering van onderstaande artikelen ten behoeve van een project met de volgende kenmerken:
B13: Organisatie: | C13: =Inmeetformulier!C6 -> 0 | D13: =Inmeetaanvraag!D6 -> 0 | E13: =Inmeetaanvraag!E6 -> 0 | F13: =Inmeetaanvraag!F6 -> 0 | G13: =Inmeetaanvraag!G6 -> 0 | H13: =Inmeetaanvraag!H6 -> 0
B14: Montage-adres: | C14: =Inmeetformulier!C7 -> 0 | D14: =Inmeetaanvraag!D7 -> 0 | E14: =Inmeetaanvraag!E7 -> 0 | F14: =Inmeetaanvraag!F7 -> 0 | G14: =Inmeetaanvraag!G7 -> 0 | H14: =Inmeetaanvraag!H7 -> 0
B15: Postcode/Wplts.: | C15: =Inmeetformulier!C8 -> 0 | D15: =Inmeetformulier!D8 -> 0 | E15: =Inmeetaanvraag!E8 -> 0 | F15: =Inmeetaanvraag!F8 -> 0 | G15: =Inmeetaanvraag!G8 -> 0 | H15: =Inmeetaanvraag!H8 -> 0
B16: Land: | C16: =Inmeetformulier!C9 -> 0 | D16: =Inmeetaanvraag!D9 -> 0 | E16: =Inmeetaanvraag!E9 -> 0 | F16: =Inmeetaanvraag!F9 -> 0 | G16: =Inmeetaanvraag!G9 -> 0 | H16: =Inmeetaanvraag!H9 -> 0
B18: Projectomschrijving: | C18: =Inmeetformulier!C18 -> 0 | D18: =Inmeetaanvraag!#REF! ->  | E18: =Inmeetaanvraag!#REF! ->  | F18: =Inmeetaanvraag!#REF! ->  | G18: =Inmeetaanvraag!#REF! ->  | H18: =Inmeetaanvraag!#REF! ->  | J18: Levering gewenst op:
C19: =Inmeetformulier!C19 -> 0 | D19: =Inmeetaanvraag!#REF! ->  | E19: =Inmeetaanvraag!#REF! ->  | F19: =Inmeetaanvraag!#REF! ->  | G19: =Inmeetaanvraag!#REF! ->  | H19: =Inmeetaanvraag!#REF! ->  | K19: Afleveradres:
C20: =Inmeetformulier!C20 -> 0 | D20: =Inmeetaanvraag!#REF! ->  | E20: =Inmeetaanvraag!#REF! ->  | F20: =Inmeetaanvraag!#REF! ->  | G20: =Inmeetaanvraag!#REF! ->  | H20: =Inmeetaanvraag!#REF! -> 
B22: Artikelomschrijving | C22: Merk | D22: Breedte (cm) | E22: Hoogte (cm) | F22: Strak/ Blijv. | G22: Stel/ Stuk | H22: Plooi | I22: Rail-lngt. (cm) | J22: Rail- type | K22: Rail- kleur | L22: Bevest. | M22: Mate- riaal | N22: Bedie- ning | O22: Hoofdje | P22: Vertrek | Q22: Opmerkingen
B23: =IF(Inmeetformulier!P25="","",Inmeetformulier!P25) ->  | C23: =IF(Inmeetformulier!Q25="","",Inmeetformulier!Q25) ->  | D23: =IF(Inmeetformulier!D25="","",Inmeetformulier!D25) ->  | E23: =IF(Inmeetformulier!E25="","",Inmeetformulier!E25) ->  | F23: =IF(Inmeetformulier!F25="","",Inmeetformulier!F25) ->  | G23: =IF(Inmeetformulier!G25="","",Inmeetformulier!G25) ->  | H23: =IF(Inmeetformulier!H25="","",Inmeetformulier!H25) ->  | I23: =IF(Inmeetformulier!I25="","",Inmeetformulier!I25) ->  | J23: =IF(Inmeetformulier!J25="","",Inmeetformulier!J25) ->  | K23: =IF(Inmeetformulier!K25="","",Inmeetformulier!K25) ->  | L23: =IF(Inmeetformulier!L25="","",Inmeetformulier!L25) ->  | M23: =IF(Inmeetformulier!M25="","",Inmeetformulier!M25) ->  | N23: =IF(Inmeetformulier!N25="","",Inmeetformulier!N25) ->  | O23: =IF(Inmeetformulier!O25="","",Inmeetformulier!O25) ->  | P23: =IF(Inmeetformulier!B25="","",Inmeetformulier!B25) ->  | Q23: =IF(Inmeetformulier!S25="","",Inmeetformulier!S25) -> 
B24: =IF(Inmeetformulier!P26="","",Inmeetformulier!P26) ->  | C24: =IF(Inmeetformulier!Q26="","",Inmeetformulier!Q26) ->  | D24: =IF(Inmeetformulier!D26="","",Inmeetformulier!D26) ->  | E24: =IF(Inmeetformulier!E26="","",Inmeetformulier!E26) ->  | F24: =IF(Inmeetformulier!F26="","",Inmeetformulier!F26) ->  | G24: =IF(Inmeetformulier!G26="","",Inmeetformulier!G26) ->  | H24: =IF(Inmeetformulier!H26="","",Inmeetformulier!H26) ->  | I24: =IF(Inmeetformulier!I26="","",Inmeetformulier!I26) ->  | J24: =IF(Inmeetformulier!J26="","",Inmeetformulier!J26) ->  | K24: =IF(Inmeetformulier!K26="","",Inmeetformulier!K26) ->  | L24: =IF(Inmeetformulier!L26="","",Inmeetformulier!L26) ->  | M24: =IF(Inmeetformulier!M26="","",Inmeetformulier!M26) ->  | N24: =IF(Inmeetformulier!N26="","",Inmeetformulier!N26) ->  | O24: =IF(Inmeetformulier!O26="","",Inmeetformulier!O26) ->  | P24: =IF(Inmeetformulier!B26="","",Inmeetformulier!B26) ->  | Q24: =IF(Inmeetformulier!S26="","",Inmeetformulier!S26) -> 
B25: =IF(Inmeetformulier!P27="","",Inmeetformulier!P27) ->  | C25: =IF(Inmeetformulier!Q27="","",Inmeetformulier!Q27) ->  | D25: =IF(Inmeetformulier!D27="","",Inmeetformulier!D27) ->  | E25: =IF(Inmeetformulier!E27="","",Inmeetformulier!E27) ->  | F25: =IF(Inmeetformulier!F27="","",Inmeetformulier!F27) ->  | G25: =IF(Inmeetformulier!G27="","",Inmeetformulier!G27) ->  | H25: =IF(Inmeetformulier!H27="","",Inmeetformulier!H27) ->  | I25: =IF(Inmeetformulier!I27="","",Inmeetformulier!I27) ->  | J25: =IF(Inmeetformulier!J27="","",Inmeetformulier!J27) ->  | K25: =IF(Inmeetformulier!K27="","",Inmeetformulier!K27) ->  | L25: =IF(Inmeetformulier!L27="","",Inmeetformulier!L27) ->  | M25: =IF(Inmeetformulier!M27="","",Inmeetformulier!M27) ->  | N25: =IF(Inmeetformulier!N27="","",Inmeetformulier!N27) ->  | O25: =IF(Inmeetformulier!O27="","",Inmeetformulier!O27) ->  | P25: =IF(Inmeetformulier!B27="","",Inmeetformulier!B27) ->  | Q25: =IF(Inmeetformulier!S27="","",Inmeetformulier!S27) -> 
B26: =IF(Inmeetformulier!P28="","",Inmeetformulier!P28) ->  | C26: =IF(Inmeetformulier!Q28="","",Inmeetformulier!Q28) ->  | D26: =IF(Inmeetformulier!D28="","",Inmeetformulier!D28) ->  | E26: =IF(Inmeetformulier!E28="","",Inmeetformulier!E28) ->  | F26: =IF(Inmeetformulier!F28="","",Inmeetformulier!F28) ->  | G26: =IF(Inmeetformulier!G28="","",Inmeetformulier!G28) ->  | H26: =IF(Inmeetformulier!H28="","",Inmeetformulier!H28) ->  | I26: =IF(Inmeetformulier!I28="","",Inmeetformulier!I28) ->  | J26: =IF(Inmeetformulier!J28="","",Inmeetformulier!J28) ->  | K26: =IF(Inmeetformulier!K28="","",Inmeetformulier!K28) ->  | L26: =IF(Inmeetformulier!L28="","",Inmeetformulier!L28) ->  | M26: =IF(Inmeetformulier!M28="","",Inmeetformulier!M28) ->  | N26: =IF(Inmeetformulier!N28="","",Inmeetformulier!N28) ->  | O26: =IF(Inmeetformulier!O28="","",Inmeetformulier!O28) ->  | P26: =IF(Inmeetformulier!B28="","",Inmeetformulier!B28) ->  | Q26: =IF(Inmeetformulier!S28="","",Inmeetformulier!S28) -> 
B27: =IF(Inmeetformulier!P29="","",Inmeetformulier!P29) ->  | C27: =IF(Inmeetformulier!Q29="","",Inmeetformulier!Q29) ->  | D27: =IF(Inmeetformulier!D29="","",Inmeetformulier!D29) ->  | E27: =IF(Inmeetformulier!E29="","",Inmeetformulier!E29) ->  | F27: =IF(Inmeetformulier!F29="","",Inmeetformulier!F29) ->  | G27: =IF(Inmeetformulier!G29="","",Inmeetformulier!G29) ->  | H27: =IF(Inmeetformulier!H29="","",Inmeetformulier!H29) ->  | I27: =IF(Inmeetformulier!I29="","",Inmeetformulier!I29) ->  | J27: =IF(Inmeetformulier!J29="","",Inmeetformulier!J29) ->  | K27: =IF(Inmeetformulier!K29="","",Inmeetformulier!K29) ->  | L27: =IF(Inmeetformulier!L29="","",Inmeetformulier!L29) ->  | M27: =IF(Inmeetformulier!M29="","",Inmeetformulier!M29) ->  | N27: =IF(Inmeetformulier!N29="","",Inmeetformulier!N29) ->  | O27: =IF(Inmeetformulier!O29="","",Inmeetformulier!O29) ->  | P27: =IF(Inmeetformulier!B29="","",Inmeetformulier!B29) ->  | Q27: =IF(Inmeetformulier!S29="","",Inmeetformulier!S29) -> 
B28: =IF(Inmeetformulier!P30="","",Inmeetformulier!P30) ->  | C28: =IF(Inmeetformulier!Q30="","",Inmeetformulier!Q30) ->  | D28: =IF(Inmeetformulier!D30="","",Inmeetformulier!D30) ->  | E28: =IF(Inmeetformulier!E30="","",Inmeetformulier!E30) ->  | F28: =IF(Inmeetformulier!F30="","",Inmeetformulier!F30) ->  | G28: =IF(Inmeetformulier!G30="","",Inmeetformulier!G30) ->  | H28: =IF(Inmeetformulier!H30="","",Inmeetformulier!H30) ->  | I28: =IF(Inmeetformulier!I30="","",Inmeetformulier!I30) ->  | J28: =IF(Inmeetformulier!J30="","",Inmeetformulier!J30) ->  | K28: =IF(Inmeetformulier!K30="","",Inmeetformulier!K30) ->  | L28: =IF(Inmeetformulier!L30="","",Inmeetformulier!L30) ->  | M28: =IF(Inmeetformulier!M30="","",Inmeetformulier!M30) ->  | N28: =IF(Inmeetformulier!N30="","",Inmeetformulier!N30) ->  | O28: =IF(Inmeetformulier!O30="","",Inmeetformulier!O30) ->  | P28: =IF(Inmeetformulier!B30="","",Inmeetformulier!B30) ->  | Q28: =IF(Inmeetformulier!S30="","",Inmeetformulier!S30) -> 
B29: =IF(Inmeetformulier!P31="","",Inmeetformulier!P31) ->  | C29: =IF(Inmeetformulier!Q31="","",Inmeetformulier!Q31) ->  | D29: =IF(Inmeetformulier!D31="","",Inmeetformulier!D31) ->  | E29: =IF(Inmeetformulier!E31="","",Inmeetformulier!E31) ->  | F29: =IF(Inmeetformulier!F31="","",Inmeetformulier!F31) ->  | G29: =IF(Inmeetformulier!G31="","",Inmeetformulier!G31) ->  | H29: =IF(Inmeetformulier!H31="","",Inmeetformulier!H31) ->  | I29: =IF(Inmeetformulier!I31="","",Inmeetformulier!I31) ->  | J29: =IF(Inmeetformulier!J31="","",Inmeetformulier!J31) ->  | K29: =IF(Inmeetformulier!K31="","",Inmeetformulier!K31) ->  | L29: =IF(Inmeetformulier!L31="","",Inmeetformulier!L31) ->  | M29: =IF(Inmeetformulier!M31="","",Inmeetformulier!M31) ->  | N29: =IF(Inmeetformulier!N31="","",Inmeetformulier!N31) ->  | O29: =IF(Inmeetformulier!O31="","",Inmeetformulier!O31) ->  | P29: =IF(Inmeetformulier!B31="","",Inmeetformulier!B31) ->  | Q29: =IF(Inmeetformulier!S31="","",Inmeetformulier!S31) -> 
B30: =IF(Inmeetformulier!P32="","",Inmeetformulier!P32) ->  | C30: =IF(Inmeetformulier!Q32="","",Inmeetformulier!Q32) ->  | D30: =IF(Inmeetformulier!D32="","",Inmeetformulier!D32) ->  | E30: =IF(Inmeetformulier!E32="","",Inmeetformulier!E32) ->  | F30: =IF(Inmeetformulier!F32="","",Inmeetformulier!F32) ->  | G30: =IF(Inmeetformulier!G32="","",Inmeetformulier!G32) ->  | H30: =IF(Inmeetformulier!H32="","",Inmeetformulier!H32) ->  | I30: =IF(Inmeetformulier!I32="","",Inmeetformulier!I32) ->  | J30: =IF(Inmeetformulier!J32="","",Inmeetformulier!J32) ->  | K30: =IF(Inmeetformulier!K32="","",Inmeetformulier!K32) ->  | L30: =IF(Inmeetformulier!L32="","",Inmeetformulier!L32) ->  | M30: =IF(Inmeetformulier!M32="","",Inmeetformulier!M32) ->  | N30: =IF(Inmeetformulier!N32="","",Inmeetformulier!N32) ->  | O30: =IF(Inmeetformulier!O32="","",Inmeetformulier!O32) ->  | P30: =IF(Inmeetformulier!B32="","",Inmeetformulier!B32) ->  | Q30: =IF(Inmeetformulier!S32="","",Inmeetformulier!S32) -> 
B31: =IF(Inmeetformulier!P33="","",Inmeetformulier!P33) ->  | C31: =IF(Inmeetformulier!Q33="","",Inmeetformulier!Q33) ->  | D31: =IF(Inmeetformulier!D33="","",Inmeetformulier!D33) ->  | E31: =IF(Inmeetformulier!E33="","",Inmeetformulier!E33) ->  | F31: =IF(Inmeetformulier!F33="","",Inmeetformulier!F33) ->  | G31: =IF(Inmeetformulier!G33="","",Inmeetformulier!G33) ->  | H31: =IF(Inmeetformulier!H33="","",Inmeetformulier!H33) ->  | I31: =IF(Inmeetformulier!I33="","",Inmeetformulier!I33) ->  | J31: =IF(Inmeetformulier!J33="","",Inmeetformulier!J33) ->  | K31: =IF(Inmeetformulier!K33="","",Inmeetformulier!K33) ->  | L31: =IF(Inmeetformulier!L33="","",Inmeetformulier!L33) ->  | M31: =IF(Inmeetformulier!M33="","",Inmeetformulier!M33) ->  | N31: =IF(Inmeetformulier!N33="","",Inmeetformulier!N33) ->  | O31: =IF(Inmeetformulier!O33="","",Inmeetformulier!O33) ->  | P31: =IF(Inmeetformulier!B33="","",Inmeetformulier!B33) ->  | Q31: =IF(Inmeetformulier!S33="","",Inmeetformulier!S33) -> 
B32: =IF(Inmeetformulier!P34="","",Inmeetformulier!P34) ->  | C32: =IF(Inmeetformulier!Q34="","",Inmeetformulier!Q34) ->  | D32: =IF(Inmeetformulier!D34="","",Inmeetformulier!D34) ->  | E32: =IF(Inmeetformulier!E34="","",Inmeetformulier!E34) ->  | F32: =IF(Inmeetformulier!F34="","",Inmeetformulier!F34) ->  | G32: =IF(Inmeetformulier!G34="","",Inmeetformulier!G34) ->  | H32: =IF(Inmeetformulier!H34="","",Inmeetformulier!H34) ->  | I32: =IF(Inmeetformulier!I34="","",Inmeetformulier!I34) ->  | J32: =IF(Inmeetformulier!J34="","",Inmeetformulier!J34) ->  | K32: =IF(Inmeetformulier!K34="","",Inmeetformulier!K34) ->  | L32: =IF(Inmeetformulier!L34="","",Inmeetformulier!L34) ->  | M32: =IF(Inmeetformulier!M34="","",Inmeetformulier!M34) ->  | N32: =IF(Inmeetformulier!N34="","",Inmeetformulier!N34) ->  | O32: =IF(Inmeetformulier!O34="","",Inmeetformulier!O34) ->  | P32: =IF(Inmeetformulier!B34="","",Inmeetformulier!B34) ->  | Q32: =IF(Inmeetformulier!S34="","",Inmeetformulier!S34) -> 
B33: =IF(Inmeetformulier!P35="","",Inmeetformulier!P35) ->  | C33: =IF(Inmeetformulier!Q35="","",Inmeetformulier!Q35) ->  | D33: =IF(Inmeetformulier!D35="","",Inmeetformulier!D35) ->  | E33: =IF(Inmeetformulier!E35="","",Inmeetformulier!E35) ->  | F33: =IF(Inmeetformulier!F35="","",Inmeetformulier!F35) ->  | G33: =IF(Inmeetformulier!G35="","",Inmeetformulier!G35) ->  | H33: =IF(Inmeetformulier!H35="","",Inmeetformulier!H35) ->  | I33: =IF(Inmeetformulier!I35="","",Inmeetformulier!I35) ->  | J33: =IF(Inmeetformulier!J35="","",Inmeetformulier!J35) ->  | K33: =IF(Inmeetformulier!K35="","",Inmeetformulier!K35) ->  | L33: =IF(Inmeetformulier!L35="","",Inmeetformulier!L35) ->  | M33: =IF(Inmeetformulier!M35="","",Inmeetformulier!M35) ->  | N33: =IF(Inmeetformulier!N35="","",Inmeetformulier!N35) ->  | O33: =IF(Inmeetformulier!O35="","",Inmeetformulier!O35) ->  | P33: =IF(Inmeetformulier!B35="","",Inmeetformulier!B35) ->  | Q33: =IF(Inmeetformulier!S35="","",Inmeetformulier!S35) -> 
B34: =IF(Inmeetformulier!P36="","",Inmeetformulier!P36) ->  | C34: =IF(Inmeetformulier!Q36="","",Inmeetformulier!Q36) ->  | D34: =IF(Inmeetformulier!D36="","",Inmeetformulier!D36) ->  | E34: =IF(Inmeetformulier!E36="","",Inmeetformulier!E36) ->  | F34: =IF(Inmeetformulier!F36="","",Inmeetformulier!F36) ->  | G34: =IF(Inmeetformulier!G36="","",Inmeetformulier!G36) ->  | H34: =IF(Inmeetformulier!H36="","",Inmeetformulier!H36) ->  | I34: =IF(Inmeetformulier!I36="","",Inmeetformulier!I36) ->  | J34: =IF(Inmeetformulier!J36="","",Inmeetformulier!J36) ->  | K34: =IF(Inmeetformulier!K36="","",Inmeetformulier!K36) ->  | L34: =IF(Inmeetformulier!L36="","",Inmeetformulier!L36) ->  | M34: =IF(Inmeetformulier!M36="","",Inmeetformulier!M36) ->  | N34: =IF(Inmeetformulier!N36="","",Inmeetformulier!N36) ->  | O34: =IF(Inmeetformulier!O36="","",Inmeetformulier!O36) ->  | P34: =IF(Inmeetformulier!B36="","",Inmeetformulier!B36) ->  | Q34: =IF(Inmeetformulier!S36="","",Inmeetformulier!S36) -> 
B35: =IF(Inmeetformulier!P37="","",Inmeetformulier!P37) ->  | C35: =IF(Inmeetformulier!Q37="","",Inmeetformulier!Q37) ->  | D35: =IF(Inmeetformulier!D37="","",Inmeetformulier!D37) ->  | E35: =IF(Inmeetformulier!E37="","",Inmeetformulier!E37) ->  | F35: =IF(Inmeetformulier!F37="","",Inmeetformulier!F37) ->  | G35: =IF(Inmeetformulier!G37="","",Inmeetformulier!G37) ->  | H35: =IF(Inmeetformulier!H37="","",Inmeetformulier!H37) ->  | I35: =IF(Inmeetformulier!I37="","",Inmeetformulier!I37) ->  | J35: =IF(Inmeetformulier!J37="","",Inmeetformulier!J37) ->  | K35: =IF(Inmeetformulier!K37="","",Inmeetformulier!K37) ->  | L35: =IF(Inmeetformulier!L37="","",Inmeetformulier!L37) ->  | M35: =IF(Inmeetformulier!M37="","",Inmeetformulier!M37) ->  | N35: =IF(Inmeetformulier!N37="","",Inmeetformulier!N37) ->  | O35: =IF(Inmeetformulier!O37="","",Inmeetformulier!O37) ->  | P35: =IF(Inmeetformulier!B37="","",Inmeetformulier!B37) ->  | Q35: =IF(Inmeetformulier!S37="","",Inmeetformulier!S37) -> 
B36: =IF(Inmeetformulier!P38="","",Inmeetformulier!P38) ->  | C36: =IF(Inmeetformulier!Q38="","",Inmeetformulier!Q38) ->  | D36: =IF(Inmeetformulier!D38="","",Inmeetformulier!D38) ->  | E36: =IF(Inmeetformulier!E38="","",Inmeetformulier!E38) ->  | F36: =IF(Inmeetformulier!F38="","",Inmeetformulier!F38) ->  | G36: =IF(Inmeetformulier!G38="","",Inmeetformulier!G38) ->  | H36: =IF(Inmeetformulier!H38="","",Inmeetformulier!H38) ->  | I36: =IF(Inmeetformulier!I38="","",Inmeetformulier!I38) ->  | J36: =IF(Inmeetformulier!J38="","",Inmeetformulier!J38) ->  | K36: =IF(Inmeetformulier!K38="","",Inmeetformulier!K38) ->  | L36: =IF(Inmeetformulier!L38="","",Inmeetformulier!L38) ->  | M36: =IF(Inmeetformulier!M38="","",Inmeetformulier!M38) ->  | N36: =IF(Inmeetformulier!N38="","",Inmeetformulier!N38) ->  | O36: =IF(Inmeetformulier!O38="","",Inmeetformulier!O38) ->  | P36: =IF(Inmeetformulier!B38="","",Inmeetformulier!B38) ->  | Q36: =IF(Inmeetformulier!S38="","",Inmeetformulier!S38) -> 
B37: =IF(Inmeetformulier!P39="","",Inmeetformulier!P39) ->  | C37: =IF(Inmeetformulier!Q39="","",Inmeetformulier!Q39) ->  | D37: =IF(Inmeetformulier!D39="","",Inmeetformulier!D39) ->  | E37: =IF(Inmeetformulier!E39="","",Inmeetformulier!E39) ->  | F37: =IF(Inmeetformulier!F39="","",Inmeetformulier!F39) ->  | G37: =IF(Inmeetformulier!G39="","",Inmeetformulier!G39) ->  | H37: =IF(Inmeetformulier!H39="","",Inmeetformulier!H39) ->  | I37: =IF(Inmeetformulier!I39="","",Inmeetformulier!I39) ->  | J37: =IF(Inmeetformulier!J39="","",Inmeetformulier!J39) ->  | K37: =IF(Inmeetformulier!K39="","",Inmeetformulier!K39) ->  | L37: =IF(Inmeetformulier!L39="","",Inmeetformulier!L39) ->  | M37: =IF(Inmeetformulier!M39="","",Inmeetformulier!M39) ->  | N37: =IF(Inmeetformulier!N39="","",Inmeetformulier!N39) ->  | O37: =IF(Inmeetformulier!O39="","",Inmeetformulier!O39) ->  | P37: =IF(Inmeetformulier!B39="","",Inmeetformulier!B39) ->  | Q37: =IF(Inmeetformulier!S39="","",Inmeetformulier!S39) -> 
B38: =IF(Inmeetformulier!P40="","",Inmeetformulier!P40) ->  | C38: =IF(Inmeetformulier!Q40="","",Inmeetformulier!Q40) ->  | D38: =IF(Inmeetformulier!D40="","",Inmeetformulier!D40) ->  | E38: =IF(Inmeetformulier!E40="","",Inmeetformulier!E40) ->  | F38: =IF(Inmeetformulier!F40="","",Inmeetformulier!F40) ->  | G38: =IF(Inmeetformulier!G40="","",Inmeetformulier!G40) ->  | H38: =IF(Inmeetformulier!H40="","",Inmeetformulier!H40) ->  | I38: =IF(Inmeetformulier!I40="","",Inmeetformulier!I40) ->  | J38: =IF(Inmeetformulier!J40="","",Inmeetformulier!J40) ->  | K38: =IF(Inmeetformulier!K40="","",Inmeetformulier!K40) ->  | L38: =IF(Inmeetformulier!L40="","",Inmeetformulier!L40) ->  | M38: =IF(Inmeetformulier!M40="","",Inmeetformulier!M40) ->  | N38: =IF(Inmeetformulier!N40="","",Inmeetformulier!N40) ->  | O38: =IF(Inmeetformulier!O40="","",Inmeetformulier!O40) ->  | P38: =IF(Inmeetformulier!B40="","",Inmeetformulier!B40) ->  | Q38: =IF(Inmeetformulier!S40="","",Inmeetformulier!S40) -> 
B39: =IF(Inmeetformulier!P41="","",Inmeetformulier!P41) ->  | C39: =IF(Inmeetformulier!Q41="","",Inmeetformulier!Q41) ->  | D39: =IF(Inmeetformulier!D41="","",Inmeetformulier!D41) ->  | E39: =IF(Inmeetformulier!E41="","",Inmeetformulier!E41) ->  | F39: =IF(Inmeetformulier!F41="","",Inmeetformulier!F41) ->  | G39: =IF(Inmeetformulier!G41="","",Inmeetformulier!G41) ->  | H39: =IF(Inmeetformulier!H41="","",Inmeetformulier!H41) ->  | I39: =IF(Inmeetformulier!I41="","",Inmeetformulier!I41) ->  | J39: =IF(Inmeetformulier!J41="","",Inmeetformulier!J41) ->  | K39: =IF(Inmeetformulier!K41="","",Inmeetformulier!K41) ->  | L39: =IF(Inmeetformulier!L41="","",Inmeetformulier!L41) ->  | M39: =IF(Inmeetformulier!M41="","",Inmeetformulier!M41) ->  | N39: =IF(Inmeetformulier!N41="","",Inmeetformulier!N41) ->  | O39: =IF(Inmeetformulier!O41="","",Inmeetformulier!O41) ->  | P39: =IF(Inmeetformulier!B41="","",Inmeetformulier!B41) ->  | Q39: =IF(Inmeetformulier!S41="","",Inmeetformulier!S41) -> 
B40: =IF(Inmeetformulier!P42="","",Inmeetformulier!P42) ->  | C40: =IF(Inmeetformulier!Q42="","",Inmeetformulier!Q42) ->  | D40: =IF(Inmeetformulier!D42="","",Inmeetformulier!D42) ->  | E40: =IF(Inmeetformulier!E42="","",Inmeetformulier!E42) ->  | F40: =IF(Inmeetformulier!F42="","",Inmeetformulier!F42) ->  | G40: =IF(Inmeetformulier!G42="","",Inmeetformulier!G42) ->  | H40: =IF(Inmeetformulier!H42="","",Inmeetformulier!H42) ->  | I40: =IF(Inmeetformulier!I42="","",Inmeetformulier!I42) ->  | J40: =IF(Inmeetformulier!J42="","",Inmeetformulier!J42) ->  | K40: =IF(Inmeetformulier!K42="","",Inmeetformulier!K42) ->  | L40: =IF(Inmeetformulier!L42="","",Inmeetformulier!L42) ->  | M40: =IF(Inmeetformulier!M42="","",Inmeetformulier!M42) ->  | N40: =IF(Inmeetformulier!N42="","",Inmeetformulier!N42) ->  | O40: =IF(Inmeetformulier!O42="","",Inmeetformulier!O42) ->  | P40: =IF(Inmeetformulier!B42="","",Inmeetformulier!B42) ->  | Q40: =IF(Inmeetformulier!S42="","",Inmeetformulier!S42) -> 
B41: =IF(Inmeetformulier!P43="","",Inmeetformulier!P43) ->  | C41: =IF(Inmeetformulier!Q43="","",Inmeetformulier!Q43) ->  | D41: =IF(Inmeetformulier!D43="","",Inmeetformulier!D43) ->  | E41: =IF(Inmeetformulier!E43="","",Inmeetformulier!E43) ->  | F41: =IF(Inmeetformulier!F43="","",Inmeetformulier!F43) ->  | G41: =IF(Inmeetformulier!G43="","",Inmeetformulier!G43) ->  | H41: =IF(Inmeetformulier!H43="","",Inmeetformulier!H43) ->  | I41: =IF(Inmeetformulier!I43="","",Inmeetformulier!I43) ->  | J41: =IF(Inmeetformulier!J43="","",Inmeetformulier!J43) ->  | K41: =IF(Inmeetformulier!K43="","",Inmeetformulier!K43) ->  | L41: =IF(Inmeetformulier!L43="","",Inmeetformulier!L43) ->  | M41: =IF(Inmeetformulier!M43="","",Inmeetformulier!M43) ->  | N41: =IF(Inmeetformulier!N43="","",Inmeetformulier!N43) ->  | O41: =IF(Inmeetformulier!O43="","",Inmeetformulier!O43) ->  | P41: =IF(Inmeetformulier!B43="","",Inmeetformulier!B43) ->  | Q41: =IF(Inmeetformulier!S43="","",Inmeetformulier!S43) -> 
B42: =IF(Inmeetformulier!P44="","",Inmeetformulier!P44) ->  | C42: =IF(Inmeetformulier!Q44="","",Inmeetformulier!Q44) ->  | D42: =IF(Inmeetformulier!D44="","",Inmeetformulier!D44) ->  | E42: =IF(Inmeetformulier!E44="","",Inmeetformulier!E44) ->  | F42: =IF(Inmeetformulier!F44="","",Inmeetformulier!F44) ->  | G42: =IF(Inmeetformulier!G44="","",Inmeetformulier!G44) ->  | H42: =IF(Inmeetformulier!H44="","",Inmeetformulier!H44) ->  | I42: =IF(Inmeetformulier!I44="","",Inmeetformulier!I44) ->  | J42: =IF(Inmeetformulier!J44="","",Inmeetformulier!J44) ->  | K42: =IF(Inmeetformulier!K44="","",Inmeetformulier!K44) ->  | L42: =IF(Inmeetformulier!L44="","",Inmeetformulier!L44) ->  | M42: =IF(Inmeetformulier!M44="","",Inmeetformulier!M44) ->  | N42: =IF(Inmeetformulier!N44="","",Inmeetformulier!N44) ->  | O42: =IF(Inmeetformulier!O44="","",Inmeetformulier!O44) ->  | P42: =IF(Inmeetformulier!B44="","",Inmeetformulier!B44) ->  | Q42: =IF(Inmeetformulier!S44="","",Inmeetformulier!S44) -> 
B43: =IF(Inmeetformulier!P45="","",Inmeetformulier!P45) ->  | C43: =IF(Inmeetformulier!Q45="","",Inmeetformulier!Q45) ->  | D43: =IF(Inmeetformulier!D45="","",Inmeetformulier!D45) ->  | E43: =IF(Inmeetformulier!E45="","",Inmeetformulier!E45) ->  | F43: =IF(Inmeetformulier!F45="","",Inmeetformulier!F45) ->  | G43: =IF(Inmeetformulier!G45="","",Inmeetformulier!G45) ->  | H43: =IF(Inmeetformulier!H45="","",Inmeetformulier!H45) ->  | I43: =IF(Inmeetformulier!I45="","",Inmeetformulier!I45) ->  | J43: =IF(Inmeetformulier!J45="","",Inmeetformulier!J45) ->  | K43: =IF(Inmeetformulier!K45="","",Inmeetformulier!K45) ->  | L43: =IF(Inmeetformulier!L45="","",Inmeetformulier!L45) ->  | M43: =IF(Inmeetformulier!M45="","",Inmeetformulier!M45) ->  | N43: =IF(Inmeetformulier!N45="","",Inmeetformulier!N45) ->  | O43: =IF(Inmeetformulier!O45="","",Inmeetformulier!O45) ->  | P43: =IF(Inmeetformulier!B45="","",Inmeetformulier!B45) ->  | Q43: =IF(Inmeetformulier!S45="","",Inmeetformulier!S45) -> 
B44: =IF(Inmeetformulier!P46="","",Inmeetformulier!P46) ->  | C44: =IF(Inmeetformulier!Q46="","",Inmeetformulier!Q46) ->  | D44: =IF(Inmeetformulier!D46="","",Inmeetformulier!D46) ->  | E44: =IF(Inmeetformulier!E46="","",Inmeetformulier!E46) ->  | F44: =IF(Inmeetformulier!F46="","",Inmeetformulier!F46) ->  | G44: =IF(Inmeetformulier!G46="","",Inmeetformulier!G46) ->  | H44: =IF(Inmeetformulier!H46="","",Inmeetformulier!H46) ->  | I44: =IF(Inmeetformulier!I46="","",Inmeetformulier!I46) ->  | J44: =IF(Inmeetformulier!J46="","",Inmeetformulier!J46) ->  | K44: =IF(Inmeetformulier!K46="","",Inmeetformulier!K46) ->  | L44: =IF(Inmeetformulier!L46="","",Inmeetformulier!L46) ->  | M44: =IF(Inmeetformulier!M46="","",Inmeetformulier!M46) ->  | N44: =IF(Inmeetformulier!N46="","",Inmeetformulier!N46) ->  | O44: =IF(Inmeetformulier!O46="","",Inmeetformulier!O46) ->  | P44: =IF(Inmeetformulier!B46="","",Inmeetformulier!B46) ->  | Q44: =IF(Inmeetformulier!S46="","",Inmeetformulier!S46) -> 
B45: =IF(Inmeetformulier!P47="","",Inmeetformulier!P47) ->  | C45: =IF(Inmeetformulier!Q47="","",Inmeetformulier!Q47) ->  | D45: =IF(Inmeetformulier!D47="","",Inmeetformulier!D47) ->  | E45: =IF(Inmeetformulier!E47="","",Inmeetformulier!E47) ->  | F45: =IF(Inmeetformulier!F47="","",Inmeetformulier!F47) ->  | G45: =IF(Inmeetformulier!G47="","",Inmeetformulier!G47) ->  | H45: =IF(Inmeetformulier!H47="","",Inmeetformulier!H47) ->  | I45: =IF(Inmeetformulier!I47="","",Inmeetformulier!I47) ->  | J45: =IF(Inmeetformulier!J47="","",Inmeetformulier!J47) ->  | K45: =IF(Inmeetformulier!K47="","",Inmeetformulier!K47) ->  | L45: =IF(Inmeetformulier!L47="","",Inmeetformulier!L47) ->  | M45: =IF(Inmeetformulier!M47="","",Inmeetformulier!M47) ->  | N45: =IF(Inmeetformulier!N47="","",Inmeetformulier!N47) ->  | O45: =IF(Inmeetformulier!O47="","",Inmeetformulier!O47) ->  | P45: =IF(Inmeetformulier!B47="","",Inmeetformulier!B47) ->  | Q45: =IF(Inmeetformulier!S47="","",Inmeetformulier!S47) -> 
B46: =IF(Inmeetformulier!P48="","",Inmeetformulier!P48) ->  | C46: =IF(Inmeetformulier!Q48="","",Inmeetformulier!Q48) ->  | D46: =IF(Inmeetformulier!D48="","",Inmeetformulier!D48) ->  | E46: =IF(Inmeetformulier!E48="","",Inmeetformulier!E48) ->  | F46: =IF(Inmeetformulier!F48="","",Inmeetformulier!F48) ->  | G46: =IF(Inmeetformulier!G48="","",Inmeetformulier!G48) ->  | H46: =IF(Inmeetformulier!H48="","",Inmeetformulier!H48) ->  | I46: =IF(Inmeetformulier!I48="","",Inmeetformulier!I48) ->  | J46: =IF(Inmeetformulier!J48="","",Inmeetformulier!J48) ->  | K46: =IF(Inmeetformulier!K48="","",Inmeetformulier!K48) ->  | L46: =IF(Inmeetformulier!L48="","",Inmeetformulier!L48) ->  | M46: =IF(Inmeetformulier!M48="","",Inmeetformulier!M48) ->  | N46: =IF(Inmeetformulier!N48="","",Inmeetformulier!N48) ->  | O46: =IF(Inmeetformulier!O48="","",Inmeetformulier!O48) ->  | P46: =IF(Inmeetformulier!B48="","",Inmeetformulier!B48) ->  | Q46: =IF(Inmeetformulier!S48="","",Inmeetformulier!S48) -> 
B47: =IF(Inmeetformulier!P49="","",Inmeetformulier!P49) ->  | C47: =IF(Inmeetformulier!Q49="","",Inmeetformulier!Q49) ->  | D47: =IF(Inmeetformulier!D49="","",Inmeetformulier!D49) ->  | E47: =IF(Inmeetformulier!E49="","",Inmeetformulier!E49) ->  | F47: =IF(Inmeetformulier!F49="","",Inmeetformulier!F49) ->  | G47: =IF(Inmeetformulier!G49="","",Inmeetformulier!G49) ->  | H47: =IF(Inmeetformulier!H49="","",Inmeetformulier!H49) ->  | I47: =IF(Inmeetformulier!I49="","",Inmeetformulier!I49) ->  | J47: =IF(Inmeetformulier!J49="","",Inmeetformulier!J49) ->  | K47: =IF(Inmeetformulier!K49="","",Inmeetformulier!K49) ->  | L47: =IF(Inmeetformulier!L49="","",Inmeetformulier!L49) ->  | M47: =IF(Inmeetformulier!M49="","",Inmeetformulier!M49) ->  | N47: =IF(Inmeetformulier!N49="","",Inmeetformulier!N49) ->  | O47: =IF(Inmeetformulier!O49="","",Inmeetformulier!O49) ->  | P47: =IF(Inmeetformulier!B49="","",Inmeetformulier!B49) ->  | Q47: =IF(Inmeetformulier!S49="","",Inmeetformulier!S49) -> 
B48: =IF(Inmeetformulier!P50="","",Inmeetformulier!P50) ->  | C48: =IF(Inmeetformulier!Q50="","",Inmeetformulier!Q50) ->  | D48: =IF(Inmeetformulier!D50="","",Inmeetformulier!D50) ->  | E48: =IF(Inmeetformulier!E50="","",Inmeetformulier!E50) ->  | F48: =IF(Inmeetformulier!F50="","",Inmeetformulier!F50) ->  | G48: =IF(Inmeetformulier!G50="","",Inmeetformulier!G50) ->  | H48: =IF(Inmeetformulier!H50="","",Inmeetformulier!H50) ->  | I48: =IF(Inmeetformulier!I50="","",Inmeetformulier!I50) ->  | J48: =IF(Inmeetformulier!J50="","",Inmeetformulier!J50) ->  | K48: =IF(Inmeetformulier!K50="","",Inmeetformulier!K50) ->  | L48: =IF(Inmeetformulier!L50="","",Inmeetformulier!L50) ->  | M48: =IF(Inmeetformulier!M50="","",Inmeetformulier!M50) ->  | N48: =IF(Inmeetformulier!N50="","",Inmeetformulier!N50) ->  | O48: =IF(Inmeetformulier!O50="","",Inmeetformulier!O50) ->  | P48: =IF(Inmeetformulier!B50="","",Inmeetformulier!B50) ->  | Q48: =IF(Inmeetformulier!S50="","",Inmeetformulier!S50) -> 
B49: =IF(Inmeetformulier!P51="","",Inmeetformulier!P51) ->  | C49: =IF(Inmeetformulier!Q51="","",Inmeetformulier!Q51) ->  | D49: =IF(Inmeetformulier!D51="","",Inmeetformulier!D51) ->  | E49: =IF(Inmeetformulier!E51="","",Inmeetformulier!E51) ->  | F49: =IF(Inmeetformulier!F51="","",Inmeetformulier!F51) ->  | G49: =IF(Inmeetformulier!G51="","",Inmeetformulier!G51) ->  | H49: =IF(Inmeetformulier!H51="","",Inmeetformulier!H51) ->  | I49: =IF(Inmeetformulier!I51="","",Inmeetformulier!I51) ->  | J49: =IF(Inmeetformulier!J51="","",Inmeetformulier!J51) ->  | K49: =IF(Inmeetformulier!K51="","",Inmeetformulier!K51) ->  | L49: =IF(Inmeetformulier!L51="","",Inmeetformulier!L51) ->  | M49: =IF(Inmeetformulier!M51="","",Inmeetformulier!M51) ->  | N49: =IF(Inmeetformulier!N51="","",Inmeetformulier!N51) ->  | O49: =IF(Inmeetformulier!O51="","",Inmeetformulier!O51) ->  | P49: =IF(Inmeetformulier!B51="","",Inmeetformulier!B51) ->  | Q49: =IF(Inmeetformulier!S51="","",Inmeetformulier!S51) -> 
B50: =IF(Inmeetformulier!P52="","",Inmeetformulier!P52) ->  | C50: =IF(Inmeetformulier!Q52="","",Inmeetformulier!Q52) ->  | D50: =IF(Inmeetformulier!D52="","",Inmeetformulier!D52) ->  | E50: =IF(Inmeetformulier!E52="","",Inmeetformulier!E52) ->  | F50: =IF(Inmeetformulier!F52="","",Inmeetformulier!F52) ->  | G50: =IF(Inmeetformulier!G52="","",Inmeetformulier!G52) ->  | H50: =IF(Inmeetformulier!H52="","",Inmeetformulier!H52) ->  | I50: =IF(Inmeetformulier!I52="","",Inmeetformulier!I52) ->  | J50: =IF(Inmeetformulier!J52="","",Inmeetformulier!J52) ->  | K50: =IF(Inmeetformulier!K52="","",Inmeetformulier!K52) ->  | L50: =IF(Inmeetformulier!L52="","",Inmeetformulier!L52) ->  | M50: =IF(Inmeetformulier!M52="","",Inmeetformulier!M52) ->  | N50: =IF(Inmeetformulier!N52="","",Inmeetformulier!N52) ->  | O50: =IF(Inmeetformulier!O52="","",Inmeetformulier!O52) ->  | P50: =IF(Inmeetformulier!B52="","",Inmeetformulier!B52) ->  | Q50: =IF(Inmeetformulier!S52="","",Inmeetformulier!S52) -> 
B51: =IF(Inmeetformulier!P53="","",Inmeetformulier!P53) ->  | C51: =IF(Inmeetformulier!Q53="","",Inmeetformulier!Q53) ->  | D51: =IF(Inmeetformulier!D53="","",Inmeetformulier!D53) ->  | E51: =IF(Inmeetformulier!E53="","",Inmeetformulier!E53) ->  | F51: =IF(Inmeetformulier!F53="","",Inmeetformulier!F53) ->  | G51: =IF(Inmeetformulier!G53="","",Inmeetformulier!G53) ->  | H51: =IF(Inmeetformulier!H53="","",Inmeetformulier!H53) ->  | I51: =IF(Inmeetformulier!I53="","",Inmeetformulier!I53) ->  | J51: =IF(Inmeetformulier!J53="","",Inmeetformulier!J53) ->  | K51: =IF(Inmeetformulier!K53="","",Inmeetformulier!K53) ->  | L51: =IF(Inmeetformulier!L53="","",Inmeetformulier!L53) ->  | M51: =IF(Inmeetformulier!M53="","",Inmeetformulier!M53) ->  | N51: =IF(Inmeetformulier!N53="","",Inmeetformulier!N53) ->  | O51: =IF(Inmeetformulier!O53="","",Inmeetformulier!O53) ->  | P51: =IF(Inmeetformulier!B53="","",Inmeetformulier!B53) ->  | Q51: =IF(Inmeetformulier!S53="","",Inmeetformulier!S53) -> 
B52: =IF(Inmeetformulier!P54="","",Inmeetformulier!P54) ->  | C52: =IF(Inmeetformulier!Q54="","",Inmeetformulier!Q54) ->  | D52: =IF(Inmeetformulier!D54="","",Inmeetformulier!D54) ->  | E52: =IF(Inmeetformulier!E54="","",Inmeetformulier!E54) ->  | F52: =IF(Inmeetformulier!F54="","",Inmeetformulier!F54) ->  | G52: =IF(Inmeetformulier!G54="","",Inmeetformulier!G54) ->  | H52: =IF(Inmeetformulier!H54="","",Inmeetformulier!H54) ->  | I52: =IF(Inmeetformulier!I54="","",Inmeetformulier!I54) ->  | J52: =IF(Inmeetformulier!J54="","",Inmeetformulier!J54) ->  | K52: =IF(Inmeetformulier!K54="","",Inmeetformulier!K54) ->  | L52: =IF(Inmeetformulier!L54="","",Inmeetformulier!L54) ->  | M52: =IF(Inmeetformulier!M54="","",Inmeetformulier!M54) ->  | N52: =IF(Inmeetformulier!N54="","",Inmeetformulier!N54) ->  | O52: =IF(Inmeetformulier!O54="","",Inmeetformulier!O54) ->  | P52: =IF(Inmeetformulier!B54="","",Inmeetformulier!B54) ->  | Q52: =IF(Inmeetformulier!S54="","",Inmeetformulier!S54) -> 
B53: =IF(Inmeetformulier!P55="","",Inmeetformulier!P55) ->  | C53: =IF(Inmeetformulier!Q55="","",Inmeetformulier!Q55) ->  | D53: =IF(Inmeetformulier!D55="","",Inmeetformulier!D55) ->  | E53: =IF(Inmeetformulier!E55="","",Inmeetformulier!E55) ->  | F53: =IF(Inmeetformulier!F55="","",Inmeetformulier!F55) ->  | G53: =IF(Inmeetformulier!G55="","",Inmeetformulier!G55) ->  | H53: =IF(Inmeetformulier!H55="","",Inmeetformulier!H55) ->  | I53: =IF(Inmeetformulier!I55="","",Inmeetformulier!I55) ->  | J53: =IF(Inmeetformulier!J55="","",Inmeetformulier!J55) ->  | K53: =IF(Inmeetformulier!K55="","",Inmeetformulier!K55) ->  | L53: =IF(Inmeetformulier!L55="","",Inmeetformulier!L55) ->  | M53: =IF(Inmeetformulier!M55="","",Inmeetformulier!M55) ->  | N53: =IF(Inmeetformulier!N55="","",Inmeetformulier!N55) ->  | O53: =IF(Inmeetformulier!O55="","",Inmeetformulier!O55) ->  | P53: =IF(Inmeetformulier!B55="","",Inmeetformulier!B55) ->  | Q53: =IF(Inmeetformulier!S55="","",Inmeetformulier!S55) -> 
B54: =IF(Inmeetformulier!P56="","",Inmeetformulier!P56) ->  | C54: =IF(Inmeetformulier!Q56="","",Inmeetformulier!Q56) ->  | D54: =IF(Inmeetformulier!D56="","",Inmeetformulier!D56) ->  | E54: =IF(Inmeetformulier!E56="","",Inmeetformulier!E56) ->  | F54: =IF(Inmeetformulier!F56="","",Inmeetformulier!F56) ->  | G54: =IF(Inmeetformulier!G56="","",Inmeetformulier!G56) ->  | H54: =IF(Inmeetformulier!H56="","",Inmeetformulier!H56) ->  | I54: =IF(Inmeetformulier!I56="","",Inmeetformulier!I56) ->  | J54: =IF(Inmeetformulier!J56="","",Inmeetformulier!J56) ->  | K54: =IF(Inmeetformulier!K56="","",Inmeetformulier!K56) ->  | L54: =IF(Inmeetformulier!L56="","",Inmeetformulier!L56) ->  | M54: =IF(Inmeetformulier!M56="","",Inmeetformulier!M56) ->  | N54: =IF(Inmeetformulier!N56="","",Inmeetformulier!N56) ->  | O54: =IF(Inmeetformulier!O56="","",Inmeetformulier!O56) ->  | P54: =IF(Inmeetformulier!B56="","",Inmeetformulier!B56) ->  | Q54: =IF(Inmeetformulier!S56="","",Inmeetformulier!S56) -> 
B55: =IF(Inmeetformulier!P57="","",Inmeetformulier!P57) ->  | C55: =IF(Inmeetformulier!Q57="","",Inmeetformulier!Q57) ->  | D55: =IF(Inmeetformulier!D57="","",Inmeetformulier!D57) ->  | E55: =IF(Inmeetformulier!E57="","",Inmeetformulier!E57) ->  | F55: =IF(Inmeetformulier!F57="","",Inmeetformulier!F57) ->  | G55: =IF(Inmeetformulier!G57="","",Inmeetformulier!G57) ->  | H55: =IF(Inmeetformulier!H57="","",Inmeetformulier!H57) ->  | I55: =IF(Inmeetformulier!I57="","",Inmeetformulier!I57) ->  | J55: =IF(Inmeetformulier!J57="","",Inmeetformulier!J57) ->  | K55: =IF(Inmeetformulier!K57="","",Inmeetformulier!K57) ->  | L55: =IF(Inmeetformulier!L57="","",Inmeetformulier!L57) ->  | M55: =IF(Inmeetformulier!M57="","",Inmeetformulier!M57) ->  | N55: =IF(Inmeetformulier!N57="","",Inmeetformulier!N57) ->  | O55: =IF(Inmeetformulier!O57="","",Inmeetformulier!O57) ->  | P55: =IF(Inmeetformulier!B57="","",Inmeetformulier!B57) ->  | Q55: =IF(Inmeetformulier!S57="","",Inmeetformulier!S57) -> 
B56: =IF(Inmeetformulier!P58="","",Inmeetformulier!P58) ->  | C56: =IF(Inmeetformulier!Q58="","",Inmeetformulier!Q58) ->  | D56: =IF(Inmeetformulier!D58="","",Inmeetformulier!D58) ->  | E56: =IF(Inmeetformulier!E58="","",Inmeetformulier!E58) ->  | F56: =IF(Inmeetformulier!F58="","",Inmeetformulier!F58) ->  | G56: =IF(Inmeetformulier!G58="","",Inmeetformulier!G58) ->  | H56: =IF(Inmeetformulier!H58="","",Inmeetformulier!H58) ->  | I56: =IF(Inmeetformulier!I58="","",Inmeetformulier!I58) ->  | J56: =IF(Inmeetformulier!J58="","",Inmeetformulier!J58) ->  | K56: =IF(Inmeetformulier!K58="","",Inmeetformulier!K58) ->  | L56: =IF(Inmeetformulier!L58="","",Inmeetformulier!L58) ->  | M56: =IF(Inmeetformulier!M58="","",Inmeetformulier!M58) ->  | N56: =IF(Inmeetformulier!N58="","",Inmeetformulier!N58) ->  | O56: =IF(Inmeetformulier!O58="","",Inmeetformulier!O58) ->  | P56: =IF(Inmeetformulier!B58="","",Inmeetformulier!B58) ->  | Q56: =IF(Inmeetformulier!S58="","",Inmeetformulier!S58) -> 
B57: =IF(Inmeetformulier!P59="","",Inmeetformulier!P59) ->  | C57: =IF(Inmeetformulier!Q59="","",Inmeetformulier!Q59) ->  | D57: =IF(Inmeetformulier!D59="","",Inmeetformulier!D59) ->  | E57: =IF(Inmeetformulier!E59="","",Inmeetformulier!E59) ->  | F57: =IF(Inmeetformulier!F59="","",Inmeetformulier!F59) ->  | G57: =IF(Inmeetformulier!G59="","",Inmeetformulier!G59) ->  | H57: =IF(Inmeetformulier!H59="","",Inmeetformulier!H59) ->  | I57: =IF(Inmeetformulier!I59="","",Inmeetformulier!I59) ->  | J57: =IF(Inmeetformulier!J59="","",Inmeetformulier!J59) ->  | K57: =IF(Inmeetformulier!K59="","",Inmeetformulier!K59) ->  | L57: =IF(Inmeetformulier!L59="","",Inmeetformulier!L59) ->  | M57: =IF(Inmeetformulier!M59="","",Inmeetformulier!M59) ->  | N57: =IF(Inmeetformulier!N59="","",Inmeetformulier!N59) ->  | O57: =IF(Inmeetformulier!O59="","",Inmeetformulier!O59) ->  | P57: =IF(Inmeetformulier!B59="","",Inmeetformulier!B59) ->  | Q57: =IF(Inmeetformulier!S59="","",Inmeetformulier!S59) -> 
B58: =IF(Inmeetformulier!P60="","",Inmeetformulier!P60) ->  | C58: =IF(Inmeetformulier!Q60="","",Inmeetformulier!Q60) ->  | D58: =IF(Inmeetformulier!D60="","",Inmeetformulier!D60) ->  | E58: =IF(Inmeetformulier!E60="","",Inmeetformulier!E60) ->  | F58: =IF(Inmeetformulier!F60="","",Inmeetformulier!F60) ->  | G58: =IF(Inmeetformulier!G60="","",Inmeetformulier!G60) ->  | H58: =IF(Inmeetformulier!H60="","",Inmeetformulier!H60) ->  | I58: =IF(Inmeetformulier!I60="","",Inmeetformulier!I60) ->  | J58: =IF(Inmeetformulier!J60="","",Inmeetformulier!J60) ->  | K58: =IF(Inmeetformulier!K60="","",Inmeetformulier!K60) ->  | L58: =IF(Inmeetformulier!L60="","",Inmeetformulier!L60) ->  | M58: =IF(Inmeetformulier!M60="","",Inmeetformulier!M60) ->  | N58: =IF(Inmeetformulier!N60="","",Inmeetformulier!N60) ->  | O58: =IF(Inmeetformulier!O60="","",Inmeetformulier!O60) ->  | P58: =IF(Inmeetformulier!B60="","",Inmeetformulier!B60) ->  | Q58: =IF(Inmeetformulier!S60="","",Inmeetformulier!S60) -> 
B59: =IF(Inmeetformulier!P61="","",Inmeetformulier!P61) ->  | C59: =IF(Inmeetformulier!Q61="","",Inmeetformulier!Q61) ->  | D59: =IF(Inmeetformulier!D61="","",Inmeetformulier!D61) ->  | E59: =IF(Inmeetformulier!E61="","",Inmeetformulier!E61) ->  | F59: =IF(Inmeetformulier!F61="","",Inmeetformulier!F61) ->  | G59: =IF(Inmeetformulier!G61="","",Inmeetformulier!G61) ->  | H59: =IF(Inmeetformulier!H61="","",Inmeetformulier!H61) ->  | I59: =IF(Inmeetformulier!I61="","",Inmeetformulier!I61) ->  | J59: =IF(Inmeetformulier!J61="","",Inmeetformulier!J61) ->  | K59: =IF(Inmeetformulier!K61="","",Inmeetformulier!K61) ->  | L59: =IF(Inmeetformulier!L61="","",Inmeetformulier!L61) ->  | M59: =IF(Inmeetformulier!M61="","",Inmeetformulier!M61) ->  | N59: =IF(Inmeetformulier!N61="","",Inmeetformulier!N61) ->  | O59: =IF(Inmeetformulier!O61="","",Inmeetformulier!O61) ->  | P59: =IF(Inmeetformulier!B61="","",Inmeetformulier!B61) ->  | Q59: =IF(Inmeetformulier!S61="","",Inmeetformulier!S61) -> 
B60: =IF(Inmeetformulier!P62="","",Inmeetformulier!P62) ->  | C60: =IF(Inmeetformulier!Q62="","",Inmeetformulier!Q62) ->  | D60: =IF(Inmeetformulier!D62="","",Inmeetformulier!D62) ->  | E60: =IF(Inmeetformulier!E62="","",Inmeetformulier!E62) ->  | F60: =IF(Inmeetformulier!F62="","",Inmeetformulier!F62) ->  | G60: =IF(Inmeetformulier!G62="","",Inmeetformulier!G62) ->  | H60: =IF(Inmeetformulier!H62="","",Inmeetformulier!H62) ->  | I60: =IF(Inmeetformulier!I62="","",Inmeetformulier!I62) ->  | J60: =IF(Inmeetformulier!J62="","",Inmeetformulier!J62) ->  | K60: =IF(Inmeetformulier!K62="","",Inmeetformulier!K62) ->  | L60: =IF(Inmeetformulier!L62="","",Inmeetformulier!L62) ->  | M60: =IF(Inmeetformulier!M62="","",Inmeetformulier!M62) ->  | N60: =IF(Inmeetformulier!N62="","",Inmeetformulier!N62) ->  | O60: =IF(Inmeetformulier!O62="","",Inmeetformulier!O62) ->  | P60: =IF(Inmeetformulier!B62="","",Inmeetformulier!B62) ->  | Q60: =IF(Inmeetformulier!S62="","",Inmeetformulier!S62) -> 
B61: =IF(Inmeetformulier!P63="","",Inmeetformulier!P63) ->  | C61: =IF(Inmeetformulier!Q63="","",Inmeetformulier!Q63) ->  | D61: =IF(Inmeetformulier!D63="","",Inmeetformulier!D63) ->  | E61: =IF(Inmeetformulier!E63="","",Inmeetformulier!E63) ->  | F61: =IF(Inmeetformulier!F63="","",Inmeetformulier!F63) ->  | G61: =IF(Inmeetformulier!G63="","",Inmeetformulier!G63) ->  | H61: =IF(Inmeetformulier!H63="","",Inmeetformulier!H63) ->  | I61: =IF(Inmeetformulier!I63="","",Inmeetformulier!I63) ->  | J61: =IF(Inmeetformulier!J63="","",Inmeetformulier!J63) ->  | K61: =IF(Inmeetformulier!K63="","",Inmeetformulier!K63) ->  | L61: =IF(Inmeetformulier!L63="","",Inmeetformulier!L63) ->  | M61: =IF(Inmeetformulier!M63="","",Inmeetformulier!M63) ->  | N61: =IF(Inmeetformulier!N63="","",Inmeetformulier!N63) ->  | O61: =IF(Inmeetformulier!O63="","",Inmeetformulier!O63) ->  | P61: =IF(Inmeetformulier!B63="","",Inmeetformulier!B63) ->  | Q61: =IF(Inmeetformulier!S63="","",Inmeetformulier!S63) -> 
B62: =IF(Inmeetformulier!P64="","",Inmeetformulier!P64) ->  | C62: =IF(Inmeetformulier!Q64="","",Inmeetformulier!Q64) ->  | D62: =IF(Inmeetformulier!D64="","",Inmeetformulier!D64) ->  | E62: =IF(Inmeetformulier!E64="","",Inmeetformulier!E64) ->  | F62: =IF(Inmeetformulier!F64="","",Inmeetformulier!F64) ->  | G62: =IF(Inmeetformulier!G64="","",Inmeetformulier!G64) ->  | H62: =IF(Inmeetformulier!H64="","",Inmeetformulier!H64) ->  | I62: =IF(Inmeetformulier!I64="","",Inmeetformulier!I64) ->  | J62: =IF(Inmeetformulier!J64="","",Inmeetformulier!J64) ->  | K62: =IF(Inmeetformulier!K64="","",Inmeetformulier!K64) ->  | L62: =IF(Inmeetformulier!L64="","",Inmeetformulier!L64) ->  | M62: =IF(Inmeetformulier!M64="","",Inmeetformulier!M64) ->  | N62: =IF(Inmeetformulier!N64="","",Inmeetformulier!N64) ->  | O62: =IF(Inmeetformulier!O64="","",Inmeetformulier!O64) ->  | P62: =IF(Inmeetformulier!B64="","",Inmeetformulier!B64) ->  | Q62: =IF(Inmeetformulier!S64="","",Inmeetformulier!S64) -> 
B63: =IF(Inmeetformulier!P65="","",Inmeetformulier!P65) ->  | C63: =IF(Inmeetformulier!Q65="","",Inmeetformulier!Q65) ->  | D63: =IF(Inmeetformulier!D65="","",Inmeetformulier!D65) ->  | E63: =IF(Inmeetformulier!E65="","",Inmeetformulier!E65) ->  | F63: =IF(Inmeetformulier!F65="","",Inmeetformulier!F65) ->  | G63: =IF(Inmeetformulier!G65="","",Inmeetformulier!G65) ->  | H63: =IF(Inmeetformulier!H65="","",Inmeetformulier!H65) ->  | I63: =IF(Inmeetformulier!I65="","",Inmeetformulier!I65) ->  | J63: =IF(Inmeetformulier!J65="","",Inmeetformulier!J65) ->  | K63: =IF(Inmeetformulier!K65="","",Inmeetformulier!K65) ->  | L63: =IF(Inmeetformulier!L65="","",Inmeetformulier!L65) ->  | M63: =IF(Inmeetformulier!M65="","",Inmeetformulier!M65) ->  | N63: =IF(Inmeetformulier!N65="","",Inmeetformulier!N65) ->  | O63: =IF(Inmeetformulier!O65="","",Inmeetformulier!O65) ->  | P63: =IF(Inmeetformulier!B65="","",Inmeetformulier!B65) ->  | Q63: =IF(Inmeetformulier!S65="","",Inmeetformulier!S65) -> 
B64: =IF(Inmeetformulier!P66="","",Inmeetformulier!P66) ->  | C64: =IF(Inmeetformulier!Q66="","",Inmeetformulier!Q66) ->  | D64: =IF(Inmeetformulier!D66="","",Inmeetformulier!D66) ->  | E64: =IF(Inmeetformulier!E66="","",Inmeetformulier!E66) ->  | F64: =IF(Inmeetformulier!F66="","",Inmeetformulier!F66) ->  | G64: =IF(Inmeetformulier!G66="","",Inmeetformulier!G66) ->  | H64: =IF(Inmeetformulier!H66="","",Inmeetformulier!H66) ->  | I64: =IF(Inmeetformulier!I66="","",Inmeetformulier!I66) ->  | J64: =IF(Inmeetformulier!J66="","",Inmeetformulier!J66) ->  | K64: =IF(Inmeetformulier!K66="","",Inmeetformulier!K66) ->  | L64: =IF(Inmeetformulier!L66="","",Inmeetformulier!L66) ->  | M64: =IF(Inmeetformulier!M66="","",Inmeetformulier!M66) ->  | N64: =IF(Inmeetformulier!N66="","",Inmeetformulier!N66) ->  | O64: =IF(Inmeetformulier!O66="","",Inmeetformulier!O66) ->  | P64: =IF(Inmeetformulier!B66="","",Inmeetformulier!B66) ->  | Q64: =IF(Inmeetformulier!S66="","",Inmeetformulier!S66) -> 
B65: =IF(Inmeetformulier!P67="","",Inmeetformulier!P67) ->  | C65: =IF(Inmeetformulier!Q67="","",Inmeetformulier!Q67) ->  | D65: =IF(Inmeetformulier!D67="","",Inmeetformulier!D67) ->  | E65: =IF(Inmeetformulier!E67="","",Inmeetformulier!E67) ->  | F65: =IF(Inmeetformulier!F67="","",Inmeetformulier!F67) ->  | G65: =IF(Inmeetformulier!G67="","",Inmeetformulier!G67) ->  | H65: =IF(Inmeetformulier!H67="","",Inmeetformulier!H67) ->  | I65: =IF(Inmeetformulier!I67="","",Inmeetformulier!I67) ->  | J65: =IF(Inmeetformulier!J67="","",Inmeetformulier!J67) ->  | K65: =IF(Inmeetformulier!K67="","",Inmeetformulier!K67) ->  | L65: =IF(Inmeetformulier!L67="","",Inmeetformulier!L67) ->  | M65: =IF(Inmeetformulier!M67="","",Inmeetformulier!M67) ->  | N65: =IF(Inmeetformulier!N67="","",Inmeetformulier!N67) ->  | O65: =IF(Inmeetformulier!O67="","",Inmeetformulier!O67) ->  | P65: =IF(Inmeetformulier!B67="","",Inmeetformulier!B67) ->  | Q65: =IF(Inmeetformulier!S67="","",Inmeetformulier!S67) -> 
B66: =IF(Inmeetformulier!P68="","",Inmeetformulier!P68) ->  | C66: =IF(Inmeetformulier!Q68="","",Inmeetformulier!Q68) ->  | D66: =IF(Inmeetformulier!D68="","",Inmeetformulier!D68) ->  | E66: =IF(Inmeetformulier!E68="","",Inmeetformulier!E68) ->  | F66: =IF(Inmeetformulier!F68="","",Inmeetformulier!F68) ->  | G66: =IF(Inmeetformulier!G68="","",Inmeetformulier!G68) ->  | H66: =IF(Inmeetformulier!H68="","",Inmeetformulier!H68) ->  | I66: =IF(Inmeetformulier!I68="","",Inmeetformulier!I68) ->  | J66: =IF(Inmeetformulier!J68="","",Inmeetformulier!J68) ->  | K66: =IF(Inmeetformulier!K68="","",Inmeetformulier!K68) ->  | L66: =IF(Inmeetformulier!L68="","",Inmeetformulier!L68) ->  | M66: =IF(Inmeetformulier!M68="","",Inmeetformulier!M68) ->  | N66: =IF(Inmeetformulier!N68="","",Inmeetformulier!N68) ->  | O66: =IF(Inmeetformulier!O68="","",Inmeetformulier!O68) ->  | P66: =IF(Inmeetformulier!B68="","",Inmeetformulier!B68) ->  | Q66: =IF(Inmeetformulier!S68="","",Inmeetformulier!S68) -> 
B67: =IF(Inmeetformulier!P69="","",Inmeetformulier!P69) ->  | C67: =IF(Inmeetformulier!Q69="","",Inmeetformulier!Q69) ->  | D67: =IF(Inmeetformulier!D69="","",Inmeetformulier!D69) ->  | E67: =IF(Inmeetformulier!E69="","",Inmeetformulier!E69) ->  | F67: =IF(Inmeetformulier!F69="","",Inmeetformulier!F69) ->  | G67: =IF(Inmeetformulier!G69="","",Inmeetformulier!G69) ->  | H67: =IF(Inmeetformulier!H69="","",Inmeetformulier!H69) ->  | I67: =IF(Inmeetformulier!I69="","",Inmeetformulier!I69) ->  | J67: =IF(Inmeetformulier!J69="","",Inmeetformulier!J69) ->  | K67: =IF(Inmeetformulier!K69="","",Inmeetformulier!K69) ->  | L67: =IF(Inmeetformulier!L69="","",Inmeetformulier!L69) ->  | M67: =IF(Inmeetformulier!M69="","",Inmeetformulier!M69) ->  | N67: =IF(Inmeetformulier!N69="","",Inmeetformulier!N69) ->  | O67: =IF(Inmeetformulier!O69="","",Inmeetformulier!O69) ->  | P67: =IF(Inmeetformulier!B69="","",Inmeetformulier!B69) ->  | Q67: =IF(Inmeetformulier!S69="","",Inmeetformulier!S69) -> 
B68: =IF(Inmeetformulier!P70="","",Inmeetformulier!P70) ->  | C68: =IF(Inmeetformulier!Q70="","",Inmeetformulier!Q70) ->  | D68: =IF(Inmeetformulier!D70="","",Inmeetformulier!D70) ->  | E68: =IF(Inmeetformulier!E70="","",Inmeetformulier!E70) ->  | F68: =IF(Inmeetformulier!F70="","",Inmeetformulier!F70) ->  | G68: =IF(Inmeetformulier!G70="","",Inmeetformulier!G70) ->  | H68: =IF(Inmeetformulier!H70="","",Inmeetformulier!H70) ->  | I68: =IF(Inmeetformulier!I70="","",Inmeetformulier!I70) ->  | J68: =IF(Inmeetformulier!J70="","",Inmeetformulier!J70) ->  | K68: =IF(Inmeetformulier!K70="","",Inmeetformulier!K70) ->  | L68: =IF(Inmeetformulier!L70="","",Inmeetformulier!L70) ->  | M68: =IF(Inmeetformulier!M70="","",Inmeetformulier!M70) ->  | N68: =IF(Inmeetformulier!N70="","",Inmeetformulier!N70) ->  | O68: =IF(Inmeetformulier!O70="","",Inmeetformulier!O70) ->  | P68: =IF(Inmeetformulier!B70="","",Inmeetformulier!B70) ->  | Q68: =IF(Inmeetformulier!S70="","",Inmeetformulier!S70) -> 
B69: =IF(Inmeetformulier!P71="","",Inmeetformulier!P71) ->  | C69: =IF(Inmeetformulier!Q71="","",Inmeetformulier!Q71) ->  | D69: =IF(Inmeetformulier!D71="","",Inmeetformulier!D71) ->  | E69: =IF(Inmeetformulier!E71="","",Inmeetformulier!E71) ->  | F69: =IF(Inmeetformulier!F71="","",Inmeetformulier!F71) ->  | G69: =IF(Inmeetformulier!G71="","",Inmeetformulier!G71) ->  | H69: =IF(Inmeetformulier!H71="","",Inmeetformulier!H71) ->  | I69: =IF(Inmeetformulier!I71="","",Inmeetformulier!I71) ->  | J69: =IF(Inmeetformulier!J71="","",Inmeetformulier!J71) ->  | K69: =IF(Inmeetformulier!K71="","",Inmeetformulier!K71) ->  | L69: =IF(Inmeetformulier!L71="","",Inmeetformulier!L71) ->  | M69: =IF(Inmeetformulier!M71="","",Inmeetformulier!M71) ->  | N69: =IF(Inmeetformulier!N71="","",Inmeetformulier!N71) ->  | O69: =IF(Inmeetformulier!O71="","",Inmeetformulier!O71) ->  | P69: =IF(Inmeetformulier!B71="","",Inmeetformulier!B71) ->  | Q69: =IF(Inmeetformulier!S71="","",Inmeetformulier!S71) -> 
B70: =IF(Inmeetformulier!P72="","",Inmeetformulier!P72) ->  | C70: =IF(Inmeetformulier!Q72="","",Inmeetformulier!Q72) ->  | D70: =IF(Inmeetformulier!D72="","",Inmeetformulier!D72) ->  | E70: =IF(Inmeetformulier!E72="","",Inmeetformulier!E72) ->  | F70: =IF(Inmeetformulier!F72="","",Inmeetformulier!F72) ->  | G70: =IF(Inmeetformulier!G72="","",Inmeetformulier!G72) ->  | H70: =IF(Inmeetformulier!H72="","",Inmeetformulier!H72) ->  | I70: =IF(Inmeetformulier!I72="","",Inmeetformulier!I72) ->  | J70: =IF(Inmeetformulier!J72="","",Inmeetformulier!J72) ->  | K70: =IF(Inmeetformulier!K72="","",Inmeetformulier!K72) ->  | L70: =IF(Inmeetformulier!L72="","",Inmeetformulier!L72) ->  | M70: =IF(Inmeetformulier!M72="","",Inmeetformulier!M72) ->  | N70: =IF(Inmeetformulier!N72="","",Inmeetformulier!N72) ->  | O70: =IF(Inmeetformulier!O72="","",Inmeetformulier!O72) ->  | P70: =IF(Inmeetformulier!B72="","",Inmeetformulier!B72) ->  | Q70: =IF(Inmeetformulier!S72="","",Inmeetformulier!S72) -> 
B71: =IF(Inmeetformulier!P73="","",Inmeetformulier!P73) ->  | C71: =IF(Inmeetformulier!Q73="","",Inmeetformulier!Q73) ->  | D71: =IF(Inmeetformulier!D73="","",Inmeetformulier!D73) ->  | E71: =IF(Inmeetformulier!E73="","",Inmeetformulier!E73) ->  | F71: =IF(Inmeetformulier!F73="","",Inmeetformulier!F73) ->  | G71: =IF(Inmeetformulier!G73="","",Inmeetformulier!G73) ->  | H71: =IF(Inmeetformulier!H73="","",Inmeetformulier!H73) ->  | I71: =IF(Inmeetformulier!I73="","",Inmeetformulier!I73) ->  | J71: =IF(Inmeetformulier!J73="","",Inmeetformulier!J73) ->  | K71: =IF(Inmeetformulier!K73="","",Inmeetformulier!K73) ->  | L71: =IF(Inmeetformulier!L73="","",Inmeetformulier!L73) ->  | M71: =IF(Inmeetformulier!M73="","",Inmeetformulier!M73) ->  | N71: =IF(Inmeetformulier!N73="","",Inmeetformulier!N73) ->  | O71: =IF(Inmeetformulier!O73="","",Inmeetformulier!O73) ->  | P71: =IF(Inmeetformulier!B73="","",Inmeetformulier!B73) ->  | Q71: =IF(Inmeetformulier!S73="","",Inmeetformulier!S73) -> 
B72: =IF(Inmeetformulier!P74="","",Inmeetformulier!P74) ->  | C72: =IF(Inmeetformulier!Q74="","",Inmeetformulier!Q74) ->  | D72: =IF(Inmeetformulier!D74="","",Inmeetformulier!D74) ->  | E72: =IF(Inmeetformulier!E74="","",Inmeetformulier!E74) ->  | F72: =IF(Inmeetformulier!F74="","",Inmeetformulier!F74) ->  | G72: =IF(Inmeetformulier!G74="","",Inmeetformulier!G74) ->  | H72: =IF(Inmeetformulier!H74="","",Inmeetformulier!H74) ->  | I72: =IF(Inmeetformulier!I74="","",Inmeetformulier!I74) ->  | J72: =IF(Inmeetformulier!J74="","",Inmeetformulier!J74) ->  | K72: =IF(Inmeetformulier!K74="","",Inmeetformulier!K74) ->  | L72: =IF(Inmeetformulier!L74="","",Inmeetformulier!L74) ->  | M72: =IF(Inmeetformulier!M74="","",Inmeetformulier!M74) ->  | N72: =IF(Inmeetformulier!N74="","",Inmeetformulier!N74) ->  | O72: =IF(Inmeetformulier!O74="","",Inmeetformulier!O74) ->  | P72: =IF(Inmeetformulier!B74="","",Inmeetformulier!B74) ->  | Q72: =IF(Inmeetformulier!S74="","",Inmeetformulier!S74) -> 
B73: =IF(Inmeetformulier!P75="","",Inmeetformulier!P75) ->  | C73: =IF(Inmeetformulier!Q75="","",Inmeetformulier!Q75) ->  | D73: =IF(Inmeetformulier!D75="","",Inmeetformulier!D75) ->  | E73: =IF(Inmeetformulier!E75="","",Inmeetformulier!E75) ->  | F73: =IF(Inmeetformulier!F75="","",Inmeetformulier!F75) ->  | G73: =IF(Inmeetformulier!G75="","",Inmeetformulier!G75) ->  | H73: =IF(Inmeetformulier!H75="","",Inmeetformulier!H75) ->  | I73: =IF(Inmeetformulier!I75="","",Inmeetformulier!I75) ->  | J73: =IF(Inmeetformulier!J75="","",Inmeetformulier!J75) ->  | K73: =IF(Inmeetformulier!K75="","",Inmeetformulier!K75) ->  | L73: =IF(Inmeetformulier!L75="","",Inmeetformulier!L75) ->  | M73: =IF(Inmeetformulier!M75="","",Inmeetformulier!M75) ->  | N73: =IF(Inmeetformulier!N75="","",Inmeetformulier!N75) ->  | O73: =IF(Inmeetformulier!O75="","",Inmeetformulier!O75) ->  | P73: =IF(Inmeetformulier!B75="","",Inmeetformulier!B75) ->  | Q73: =IF(Inmeetformulier!S75="","",Inmeetformulier!S75) -> 
B74: =IF(Inmeetformulier!P76="","",Inmeetformulier!P76) ->  | C74: =IF(Inmeetformulier!Q76="","",Inmeetformulier!Q76) ->  | D74: =IF(Inmeetformulier!D76="","",Inmeetformulier!D76) ->  | E74: =IF(Inmeetformulier!E76="","",Inmeetformulier!E76) ->  | F74: =IF(Inmeetformulier!F76="","",Inmeetformulier!F76) ->  | G74: =IF(Inmeetformulier!G76="","",Inmeetformulier!G76) ->  | H74: =IF(Inmeetformulier!H76="","",Inmeetformulier!H76) ->  | I74: =IF(Inmeetformulier!I76="","",Inmeetformulier!I76) ->  | J74: =IF(Inmeetformulier!J76="","",Inmeetformulier!J76) ->  | K74: =IF(Inmeetformulier!K76="","",Inmeetformulier!K76) ->  | L74: =IF(Inmeetformulier!L76="","",Inmeetformulier!L76) ->  | M74: =IF(Inmeetformulier!M76="","",Inmeetformulier!M76) ->  | N74: =IF(Inmeetformulier!N76="","",Inmeetformulier!N76) ->  | O74: =IF(Inmeetformulier!O76="","",Inmeetformulier!O76) ->  | P74: =IF(Inmeetformulier!B76="","",Inmeetformulier!B76) ->  | Q74: =IF(Inmeetformulier!S76="","",Inmeetformulier!S76) -> 
B75: =IF(Inmeetformulier!P77="","",Inmeetformulier!P77) ->  | C75: =IF(Inmeetformulier!Q77="","",Inmeetformulier!Q77) ->  | D75: =IF(Inmeetformulier!D77="","",Inmeetformulier!D77) ->  | E75: =IF(Inmeetformulier!E77="","",Inmeetformulier!E77) ->  | F75: =IF(Inmeetformulier!F77="","",Inmeetformulier!F77) ->  | G75: =IF(Inmeetformulier!G77="","",Inmeetformulier!G77) ->  | H75: =IF(Inmeetformulier!H77="","",Inmeetformulier!H77) ->  | I75: =IF(Inmeetformulier!I77="","",Inmeetformulier!I77) ->  | J75: =IF(Inmeetformulier!J77="","",Inmeetformulier!J77) ->  | K75: =IF(Inmeetformulier!K77="","",Inmeetformulier!K77) ->  | L75: =IF(Inmeetformulier!L77="","",Inmeetformulier!L77) ->  | M75: =IF(Inmeetformulier!M77="","",Inmeetformulier!M77) ->  | N75: =IF(Inmeetformulier!N77="","",Inmeetformulier!N77) ->  | O75: =IF(Inmeetformulier!O77="","",Inmeetformulier!O77) ->  | P75: =IF(Inmeetformulier!B77="","",Inmeetformulier!B77) ->  | Q75: =IF(Inmeetformulier!S77="","",Inmeetformulier!S77) -> 
B76: =IF(Inmeetformulier!P78="","",Inmeetformulier!P78) ->  | C76: =IF(Inmeetformulier!Q78="","",Inmeetformulier!Q78) ->  | D76: =IF(Inmeetformulier!D78="","",Inmeetformulier!D78) ->  | E76: =IF(Inmeetformulier!E78="","",Inmeetformulier!E78) ->  | F76: =IF(Inmeetformulier!F78="","",Inmeetformulier!F78) ->  | G76: =IF(Inmeetformulier!G78="","",Inmeetformulier!G78) ->  | H76: =IF(Inmeetformulier!H78="","",Inmeetformulier!H78) ->  | I76: =IF(Inmeetformulier!I78="","",Inmeetformulier!I78) ->  | J76: =IF(Inmeetformulier!J78="","",Inmeetformulier!J78) ->  | K76: =IF(Inmeetformulier!K78="","",Inmeetformulier!K78) ->  | L76: =IF(Inmeetformulier!L78="","",Inmeetformulier!L78) ->  | M76: =IF(Inmeetformulier!M78="","",Inmeetformulier!M78) ->  | N76: =IF(Inmeetformulier!N78="","",Inmeetformulier!N78) ->  | O76: =IF(Inmeetformulier!O78="","",Inmeetformulier!O78) ->  | P76: =IF(Inmeetformulier!B78="","",Inmeetformulier!B78) ->  | Q76: =IF(Inmeetformulier!S78="","",Inmeetformulier!S78) -> 
B77: =IF(Inmeetformulier!P79="","",Inmeetformulier!P79) ->  | C77: =IF(Inmeetformulier!Q79="","",Inmeetformulier!Q79) ->  | D77: =IF(Inmeetformulier!D79="","",Inmeetformulier!D79) ->  | E77: =IF(Inmeetformulier!E79="","",Inmeetformulier!E79) ->  | F77: =IF(Inmeetformulier!F79="","",Inmeetformulier!F79) ->  | G77: =IF(Inmeetformulier!G79="","",Inmeetformulier!G79) ->  | H77: =IF(Inmeetformulier!H79="","",Inmeetformulier!H79) ->  | I77: =IF(Inmeetformulier!I79="","",Inmeetformulier!I79) ->  | J77: =IF(Inmeetformulier!J79="","",Inmeetformulier!J79) ->  | K77: =IF(Inmeetformulier!K79="","",Inmeetformulier!K79) ->  | L77: =IF(Inmeetformulier!L79="","",Inmeetformulier!L79) ->  | M77: =IF(Inmeetformulier!M79="","",Inmeetformulier!M79) ->  | N77: =IF(Inmeetformulier!N79="","",Inmeetformulier!N79) ->  | O77: =IF(Inmeetformulier!O79="","",Inmeetformulier!O79) ->  | P77: =IF(Inmeetformulier!B79="","",Inmeetformulier!B79) ->  | Q77: =IF(Inmeetformulier!S79="","",Inmeetformulier!S79) -> 
B78: =IF(Inmeetformulier!P80="","",Inmeetformulier!P80) ->  | C78: =IF(Inmeetformulier!Q80="","",Inmeetformulier!Q80) ->  | D78: =IF(Inmeetformulier!D80="","",Inmeetformulier!D80) ->  | E78: =IF(Inmeetformulier!E80="","",Inmeetformulier!E80) ->  | F78: =IF(Inmeetformulier!F80="","",Inmeetformulier!F80) ->  | G78: =IF(Inmeetformulier!G80="","",Inmeetformulier!G80) ->  | H78: =IF(Inmeetformulier!H80="","",Inmeetformulier!H80) ->  | I78: =IF(Inmeetformulier!I80="","",Inmeetformulier!I80) ->  | J78: =IF(Inmeetformulier!J80="","",Inmeetformulier!J80) ->  | K78: =IF(Inmeetformulier!K80="","",Inmeetformulier!K80) ->  | L78: =IF(Inmeetformulier!L80="","",Inmeetformulier!L80) ->  | M78: =IF(Inmeetformulier!M80="","",Inmeetformulier!M80) ->  | N78: =IF(Inmeetformulier!N80="","",Inmeetformulier!N80) ->  | O78: =IF(Inmeetformulier!O80="","",Inmeetformulier!O80) ->  | P78: =IF(Inmeetformulier!B80="","",Inmeetformulier!B80) ->  | Q78: =IF(Inmeetformulier!S80="","",Inmeetformulier!S80) -> 
B79: =IF(Inmeetformulier!P81="","",Inmeetformulier!P81) ->  | C79: =IF(Inmeetformulier!Q81="","",Inmeetformulier!Q81) ->  | D79: =IF(Inmeetformulier!D81="","",Inmeetformulier!D81) ->  | E79: =IF(Inmeetformulier!E81="","",Inmeetformulier!E81) ->  | F79: =IF(Inmeetformulier!F81="","",Inmeetformulier!F81) ->  | G79: =IF(Inmeetformulier!G81="","",Inmeetformulier!G81) ->  | H79: =IF(Inmeetformulier!H81="","",Inmeetformulier!H81) ->  | I79: =IF(Inmeetformulier!I81="","",Inmeetformulier!I81) ->  | J79: =IF(Inmeetformulier!J81="","",Inmeetformulier!J81) ->  | K79: =IF(Inmeetformulier!K81="","",Inmeetformulier!K81) ->  | L79: =IF(Inmeetformulier!L81="","",Inmeetformulier!L81) ->  | M79: =IF(Inmeetformulier!M81="","",Inmeetformulier!M81) ->  | N79: =IF(Inmeetformulier!N81="","",Inmeetformulier!N81) ->  | O79: =IF(Inmeetformulier!O81="","",Inmeetformulier!O81) ->  | P79: =IF(Inmeetformulier!B81="","",Inmeetformulier!B81) ->  | Q79: =IF(Inmeetformulier!S81="","",Inmeetformulier!S81) -> 
B80: =IF(Inmeetformulier!P82="","",Inmeetformulier!P82) ->  | C80: =IF(Inmeetformulier!Q82="","",Inmeetformulier!Q82) ->  | D80: =IF(Inmeetformulier!D82="","",Inmeetformulier!D82) ->  | E80: =IF(Inmeetformulier!E82="","",Inmeetformulier!E82) ->  | F80: =IF(Inmeetformulier!F82="","",Inmeetformulier!F82) ->  | G80: =IF(Inmeetformulier!G82="","",Inmeetformulier!G82) ->  | H80: =IF(Inmeetformulier!H82="","",Inmeetformulier!H82) ->  | I80: =IF(Inmeetformulier!I82="","",Inmeetformulier!I82) ->  | J80: =IF(Inmeetformulier!J82="","",Inmeetformulier!J82) ->  | K80: =IF(Inmeetformulier!K82="","",Inmeetformulier!K82) ->  | L80: =IF(Inmeetformulier!L82="","",Inmeetformulier!L82) ->  | M80: =IF(Inmeetformulier!M82="","",Inmeetformulier!M82) ->  | N80: =IF(Inmeetformulier!N82="","",Inmeetformulier!N82) ->  | O80: =IF(Inmeetformulier!O82="","",Inmeetformulier!O82) ->  | P80: =IF(Inmeetformulier!B82="","",Inmeetformulier!B82) ->  | Q80: =IF(Inmeetformulier!S82="","",Inmeetformulier!S82) -> 
B81: =IF(Inmeetformulier!P83="","",Inmeetformulier!P83) ->  | C81: =IF(Inmeetformulier!Q83="","",Inmeetformulier!Q83) ->  | D81: =IF(Inmeetformulier!D83="","",Inmeetformulier!D83) ->  | E81: =IF(Inmeetformulier!E83="","",Inmeetformulier!E83) ->  | F81: =IF(Inmeetformulier!F83="","",Inmeetformulier!F83) ->  | G81: =IF(Inmeetformulier!G83="","",Inmeetformulier!G83) ->  | H81: =IF(Inmeetformulier!H83="","",Inmeetformulier!H83) ->  | I81: =IF(Inmeetformulier!I83="","",Inmeetformulier!I83) ->  | J81: =IF(Inmeetformulier!J83="","",Inmeetformulier!J83) ->  | K81: =IF(Inmeetformulier!K83="","",Inmeetformulier!K83) ->  | L81: =IF(Inmeetformulier!L83="","",Inmeetformulier!L83) ->  | M81: =IF(Inmeetformulier!M83="","",Inmeetformulier!M83) ->  | N81: =IF(Inmeetformulier!N83="","",Inmeetformulier!N83) ->  | O81: =IF(Inmeetformulier!O83="","",Inmeetformulier!O83) ->  | P81: =IF(Inmeetformulier!B83="","",Inmeetformulier!B83) ->  | Q81: =IF(Inmeetformulier!S83="","",Inmeetformulier!S83) -> 
B82: =IF(Inmeetformulier!P84="","",Inmeetformulier!P84) ->  | C82: =IF(Inmeetformulier!Q84="","",Inmeetformulier!Q84) ->  | D82: =IF(Inmeetformulier!D84="","",Inmeetformulier!D84) ->  | E82: =IF(Inmeetformulier!E84="","",Inmeetformulier!E84) ->  | F82: =IF(Inmeetformulier!F84="","",Inmeetformulier!F84) ->  | G82: =IF(Inmeetformulier!G84="","",Inmeetformulier!G84) ->  | H82: =IF(Inmeetformulier!H84="","",Inmeetformulier!H84) ->  | I82: =IF(Inmeetformulier!I84="","",Inmeetformulier!I84) ->  | J82: =IF(Inmeetformulier!J84="","",Inmeetformulier!J84) ->  | K82: =IF(Inmeetformulier!K84="","",Inmeetformulier!K84) ->  | L82: =IF(Inmeetformulier!L84="","",Inmeetformulier!L84) ->  | M82: =IF(Inmeetformulier!M84="","",Inmeetformulier!M84) ->  | N82: =IF(Inmeetformulier!N84="","",Inmeetformulier!N84) ->  | O82: =IF(Inmeetformulier!O84="","",Inmeetformulier!O84) ->  | P82: =IF(Inmeetformulier!B84="","",Inmeetformulier!B84) ->  | Q82: =IF(Inmeetformulier!S84="","",Inmeetformulier!S84) -> 
B83: =IF(Inmeetformulier!P85="","",Inmeetformulier!P85) ->  | C83: =IF(Inmeetformulier!Q85="","",Inmeetformulier!Q85) ->  | D83: =IF(Inmeetformulier!D85="","",Inmeetformulier!D85) ->  | E83: =IF(Inmeetformulier!E85="","",Inmeetformulier!E85) ->  | F83: =IF(Inmeetformulier!F85="","",Inmeetformulier!F85) ->  | G83: =IF(Inmeetformulier!G85="","",Inmeetformulier!G85) ->  | H83: =IF(Inmeetformulier!H85="","",Inmeetformulier!H85) ->  | I83: =IF(Inmeetformulier!I85="","",Inmeetformulier!I85) ->  | J83: =IF(Inmeetformulier!J85="","",Inmeetformulier!J85) ->  | K83: =IF(Inmeetformulier!K85="","",Inmeetformulier!K85) ->  | L83: =IF(Inmeetformulier!L85="","",Inmeetformulier!L85) ->  | M83: =IF(Inmeetformulier!M85="","",Inmeetformulier!M85) ->  | N83: =IF(Inmeetformulier!N85="","",Inmeetformulier!N85) ->  | O83: =IF(Inmeetformulier!O85="","",Inmeetformulier!O85) ->  | P83: =IF(Inmeetformulier!B85="","",Inmeetformulier!B85) ->  | Q83: =IF(Inmeetformulier!S85="","",Inmeetformulier!S85) -> 
B84: =IF(Inmeetformulier!P86="","",Inmeetformulier!P86) ->  | C84: =IF(Inmeetformulier!Q86="","",Inmeetformulier!Q86) ->  | D84: =IF(Inmeetformulier!D86="","",Inmeetformulier!D86) ->  | E84: =IF(Inmeetformulier!E86="","",Inmeetformulier!E86) ->  | F84: =IF(Inmeetformulier!F86="","",Inmeetformulier!F86) ->  | G84: =IF(Inmeetformulier!G86="","",Inmeetformulier!G86) ->  | H84: =IF(Inmeetformulier!H86="","",Inmeetformulier!H86) ->  | I84: =IF(Inmeetformulier!I86="","",Inmeetformulier!I86) ->  | J84: =IF(Inmeetformulier!J86="","",Inmeetformulier!J86) ->  | K84: =IF(Inmeetformulier!K86="","",Inmeetformulier!K86) ->  | L84: =IF(Inmeetformulier!L86="","",Inmeetformulier!L86) ->  | M84: =IF(Inmeetformulier!M86="","",Inmeetformulier!M86) ->  | N84: =IF(Inmeetformulier!N86="","",Inmeetformulier!N86) ->  | O84: =IF(Inmeetformulier!O86="","",Inmeetformulier!O86) ->  | P84: =IF(Inmeetformulier!B86="","",Inmeetformulier!B86) ->  | Q84: =IF(Inmeetformulier!S86="","",Inmeetformulier!S86) -> 
B85: =IF(Inmeetformulier!P87="","",Inmeetformulier!P87) ->  | C85: =IF(Inmeetformulier!Q87="","",Inmeetformulier!Q87) ->  | D85: =IF(Inmeetformulier!D87="","",Inmeetformulier!D87) ->  | E85: =IF(Inmeetformulier!E87="","",Inmeetformulier!E87) ->  | F85: =IF(Inmeetformulier!F87="","",Inmeetformulier!F87) ->  | G85: =IF(Inmeetformulier!G87="","",Inmeetformulier!G87) ->  | H85: =IF(Inmeetformulier!H87="","",Inmeetformulier!H87) ->  | I85: =IF(Inmeetformulier!I87="","",Inmeetformulier!I87) ->  | J85: =IF(Inmeetformulier!J87="","",Inmeetformulier!J87) ->  | K85: =IF(Inmeetformulier!K87="","",Inmeetformulier!K87) ->  | L85: =IF(Inmeetformulier!L87="","",Inmeetformulier!L87) ->  | M85: =IF(Inmeetformulier!M87="","",Inmeetformulier!M87) ->  | N85: =IF(Inmeetformulier!N87="","",Inmeetformulier!N87) ->  | O85: =IF(Inmeetformulier!O87="","",Inmeetformulier!O87) ->  | P85: =IF(Inmeetformulier!B87="","",Inmeetformulier!B87) ->  | Q85: =IF(Inmeetformulier!S87="","",Inmeetformulier!S87) -> 
B86: =IF(Inmeetformulier!P88="","",Inmeetformulier!P88) ->  | C86: =IF(Inmeetformulier!Q88="","",Inmeetformulier!Q88) ->  | D86: =IF(Inmeetformulier!D88="","",Inmeetformulier!D88) ->  | E86: =IF(Inmeetformulier!E88="","",Inmeetformulier!E88) ->  | F86: =IF(Inmeetformulier!F88="","",Inmeetformulier!F88) ->  | G86: =IF(Inmeetformulier!G88="","",Inmeetformulier!G88) ->  | H86: =IF(Inmeetformulier!H88="","",Inmeetformulier!H88) ->  | I86: =IF(Inmeetformulier!I88="","",Inmeetformulier!I88) ->  | J86: =IF(Inmeetformulier!J88="","",Inmeetformulier!J88) ->  | K86: =IF(Inmeetformulier!K88="","",Inmeetformulier!K88) ->  | L86: =IF(Inmeetformulier!L88="","",Inmeetformulier!L88) ->  | M86: =IF(Inmeetformulier!M88="","",Inmeetformulier!M88) ->  | N86: =IF(Inmeetformulier!N88="","",Inmeetformulier!N88) ->  | O86: =IF(Inmeetformulier!O88="","",Inmeetformulier!O88) ->  | P86: =IF(Inmeetformulier!B88="","",Inmeetformulier!B88) ->  | Q86: =IF(Inmeetformulier!S88="","",Inmeetformulier!S88) -> 
B87: =IF(Inmeetformulier!P89="","",Inmeetformulier!P89) ->  | C87: =IF(Inmeetformulier!Q89="","",Inmeetformulier!Q89) ->  | D87: =IF(Inmeetformulier!D89="","",Inmeetformulier!D89) ->  | E87: =IF(Inmeetformulier!E89="","",Inmeetformulier!E89) ->  | F87: =IF(Inmeetformulier!F89="","",Inmeetformulier!F89) ->  | G87: =IF(Inmeetformulier!G89="","",Inmeetformulier!G89) ->  | H87: =IF(Inmeetformulier!H89="","",Inmeetformulier!H89) ->  | I87: =IF(Inmeetformulier!I89="","",Inmeetformulier!I89) ->  | J87: =IF(Inmeetformulier!J89="","",Inmeetformulier!J89) ->  | K87: =IF(Inmeetformulier!K89="","",Inmeetformulier!K89) ->  | L87: =IF(Inmeetformulier!L89="","",Inmeetformulier!L89) ->  | M87: =IF(Inmeetformulier!M89="","",Inmeetformulier!M89) ->  | N87: =IF(Inmeetformulier!N89="","",Inmeetformulier!N89) ->  | O87: =IF(Inmeetformulier!O89="","",Inmeetformulier!O89) ->  | P87: =IF(Inmeetformulier!B89="","",Inmeetformulier!B89) ->  | Q87: =IF(Inmeetformulier!S89="","",Inmeetformulier!S89) -> 
B88: =IF(Inmeetformulier!P90="","",Inmeetformulier!P90) ->  | C88: =IF(Inmeetformulier!Q90="","",Inmeetformulier!Q90) ->  | D88: =IF(Inmeetformulier!D90="","",Inmeetformulier!D90) ->  | E88: =IF(Inmeetformulier!E90="","",Inmeetformulier!E90) ->  | F88: =IF(Inmeetformulier!F90="","",Inmeetformulier!F90) ->  | G88: =IF(Inmeetformulier!G90="","",Inmeetformulier!G90) ->  | H88: =IF(Inmeetformulier!H90="","",Inmeetformulier!H90) ->  | I88: =IF(Inmeetformulier!I90="","",Inmeetformulier!I90) ->  | J88: =IF(Inmeetformulier!J90="","",Inmeetformulier!J90) ->  | K88: =IF(Inmeetformulier!K90="","",Inmeetformulier!K90) ->  | L88: =IF(Inmeetformulier!L90="","",Inmeetformulier!L90) ->  | M88: =IF(Inmeetformulier!M90="","",Inmeetformulier!M90) ->  | N88: =IF(Inmeetformulier!N90="","",Inmeetformulier!N90) ->  | O88: =IF(Inmeetformulier!O90="","",Inmeetformulier!O90) ->  | P88: =IF(Inmeetformulier!B90="","",Inmeetformulier!B90) ->  | Q88: =IF(Inmeetformulier!S90="","",Inmeetformulier!S90) -> 
B89: =IF(Inmeetformulier!P91="","",Inmeetformulier!P91) ->  | C89: =IF(Inmeetformulier!Q91="","",Inmeetformulier!Q91) ->  | D89: =IF(Inmeetformulier!D91="","",Inmeetformulier!D91) ->  | E89: =IF(Inmeetformulier!E91="","",Inmeetformulier!E91) ->  | F89: =IF(Inmeetformulier!F91="","",Inmeetformulier!F91) ->  | G89: =IF(Inmeetformulier!G91="","",Inmeetformulier!G91) ->  | H89: =IF(Inmeetformulier!H91="","",Inmeetformulier!H91) ->  | I89: =IF(Inmeetformulier!I91="","",Inmeetformulier!I91) ->  | J89: =IF(Inmeetformulier!J91="","",Inmeetformulier!J91) ->  | K89: =IF(Inmeetformulier!K91="","",Inmeetformulier!K91) ->  | L89: =IF(Inmeetformulier!L91="","",Inmeetformulier!L91) ->  | M89: =IF(Inmeetformulier!M91="","",Inmeetformulier!M91) ->  | N89: =IF(Inmeetformulier!N91="","",Inmeetformulier!N91) ->  | O89: =IF(Inmeetformulier!O91="","",Inmeetformulier!O91) ->  | P89: =IF(Inmeetformulier!B91="","",Inmeetformulier!B91) ->  | Q89: =IF(Inmeetformulier!S91="","",Inmeetformulier!S91) -> 
B90: =IF(Inmeetformulier!P92="","",Inmeetformulier!P92) ->  | C90: =IF(Inmeetformulier!Q92="","",Inmeetformulier!Q92) ->  | D90: =IF(Inmeetformulier!D92="","",Inmeetformulier!D92) ->  | E90: =IF(Inmeetformulier!E92="","",Inmeetformulier!E92) ->  | F90: =IF(Inmeetformulier!F92="","",Inmeetformulier!F92) ->  | G90: =IF(Inmeetformulier!G92="","",Inmeetformulier!G92) ->  | H90: =IF(Inmeetformulier!H92="","",Inmeetformulier!H92) ->  | I90: =IF(Inmeetformulier!I92="","",Inmeetformulier!I92) ->  | J90: =IF(Inmeetformulier!J92="","",Inmeetformulier!J92) ->  | K90: =IF(Inmeetformulier!K92="","",Inmeetformulier!K92) ->  | L90: =IF(Inmeetformulier!L92="","",Inmeetformulier!L92) ->  | M90: =IF(Inmeetformulier!M92="","",Inmeetformulier!M92) ->  | N90: =IF(Inmeetformulier!N92="","",Inmeetformulier!N92) ->  | O90: =IF(Inmeetformulier!O92="","",Inmeetformulier!O92) ->  | P90: =IF(Inmeetformulier!B92="","",Inmeetformulier!B92) ->  | Q90: =IF(Inmeetformulier!S92="","",Inmeetformulier!S92) -> 
B91: =IF(Inmeetformulier!P93="","",Inmeetformulier!P93) ->  | C91: =IF(Inmeetformulier!Q93="","",Inmeetformulier!Q93) ->  | D91: =IF(Inmeetformulier!D93="","",Inmeetformulier!D93) ->  | E91: =IF(Inmeetformulier!E93="","",Inmeetformulier!E93) ->  | F91: =IF(Inmeetformulier!F93="","",Inmeetformulier!F93) ->  | G91: =IF(Inmeetformulier!G93="","",Inmeetformulier!G93) ->  | H91: =IF(Inmeetformulier!H93="","",Inmeetformulier!H93) ->  | I91: =IF(Inmeetformulier!I93="","",Inmeetformulier!I93) ->  | J91: =IF(Inmeetformulier!J93="","",Inmeetformulier!J93) ->  | K91: =IF(Inmeetformulier!K93="","",Inmeetformulier!K93) ->  | L91: =IF(Inmeetformulier!L93="","",Inmeetformulier!L93) ->  | M91: =IF(Inmeetformulier!M93="","",Inmeetformulier!M93) ->  | N91: =IF(Inmeetformulier!N93="","",Inmeetformulier!N93) ->  | O91: =IF(Inmeetformulier!O93="","",Inmeetformulier!O93) ->  | P91: =IF(Inmeetformulier!B93="","",Inmeetformulier!B93) ->  | Q91: =IF(Inmeetformulier!S93="","",Inmeetformulier!S93) -> 
B92: =IF(Inmeetformulier!P94="","",Inmeetformulier!P94) ->  | C92: =IF(Inmeetformulier!Q94="","",Inmeetformulier!Q94) ->  | D92: =IF(Inmeetformulier!D94="","",Inmeetformulier!D94) ->  | E92: =IF(Inmeetformulier!E94="","",Inmeetformulier!E94) ->  | F92: =IF(Inmeetformulier!F94="","",Inmeetformulier!F94) ->  | G92: =IF(Inmeetformulier!G94="","",Inmeetformulier!G94) ->  | H92: =IF(Inmeetformulier!H94="","",Inmeetformulier!H94) ->  | I92: =IF(Inmeetformulier!I94="","",Inmeetformulier!I94) ->  | J92: =IF(Inmeetformulier!J94="","",Inmeetformulier!J94) ->  | K92: =IF(Inmeetformulier!K94="","",Inmeetformulier!K94) ->  | L92: =IF(Inmeetformulier!L94="","",Inmeetformulier!L94) ->  | M92: =IF(Inmeetformulier!M94="","",Inmeetformulier!M94) ->  | N92: =IF(Inmeetformulier!N94="","",Inmeetformulier!N94) ->  | O92: =IF(Inmeetformulier!O94="","",Inmeetformulier!O94) ->  | P92: =IF(Inmeetformulier!B94="","",Inmeetformulier!B94) ->  | Q92: =IF(Inmeetformulier!S94="","",Inmeetformulier!S94) -> 
B93: =IF(Inmeetformulier!P95="","",Inmeetformulier!P95) ->  | C93: =IF(Inmeetformulier!Q95="","",Inmeetformulier!Q95) ->  | D93: =IF(Inmeetformulier!D95="","",Inmeetformulier!D95) ->  | E93: =IF(Inmeetformulier!E95="","",Inmeetformulier!E95) ->  | F93: =IF(Inmeetformulier!F95="","",Inmeetformulier!F95) ->  | G93: =IF(Inmeetformulier!G95="","",Inmeetformulier!G95) ->  | H93: =IF(Inmeetformulier!H95="","",Inmeetformulier!H95) ->  | I93: =IF(Inmeetformulier!I95="","",Inmeetformulier!I95) ->  | J93: =IF(Inmeetformulier!J95="","",Inmeetformulier!J95) ->  | K93: =IF(Inmeetformulier!K95="","",Inmeetformulier!K95) ->  | L93: =IF(Inmeetformulier!L95="","",Inmeetformulier!L95) ->  | M93: =IF(Inmeetformulier!M95="","",Inmeetformulier!M95) ->  | N93: =IF(Inmeetformulier!N95="","",Inmeetformulier!N95) ->  | O93: =IF(Inmeetformulier!O95="","",Inmeetformulier!O95) ->  | P93: =IF(Inmeetformulier!B95="","",Inmeetformulier!B95) ->  | Q93: =IF(Inmeetformulier!S95="","",Inmeetformulier!S95) -> 
B94: =IF(Inmeetformulier!P96="","",Inmeetformulier!P96) ->  | C94: =IF(Inmeetformulier!Q96="","",Inmeetformulier!Q96) ->  | D94: =IF(Inmeetformulier!D96="","",Inmeetformulier!D96) ->  | E94: =IF(Inmeetformulier!E96="","",Inmeetformulier!E96) ->  | F94: =IF(Inmeetformulier!F96="","",Inmeetformulier!F96) ->  | G94: =IF(Inmeetformulier!G96="","",Inmeetformulier!G96) ->  | H94: =IF(Inmeetformulier!H96="","",Inmeetformulier!H96) ->  | I94: =IF(Inmeetformulier!I96="","",Inmeetformulier!I96) ->  | J94: =IF(Inmeetformulier!J96="","",Inmeetformulier!J96) ->  | K94: =IF(Inmeetformulier!K96="","",Inmeetformulier!K96) ->  | L94: =IF(Inmeetformulier!L96="","",Inmeetformulier!L96) ->  | M94: =IF(Inmeetformulier!M96="","",Inmeetformulier!M96) ->  | N94: =IF(Inmeetformulier!N96="","",Inmeetformulier!N96) ->  | O94: =IF(Inmeetformulier!O96="","",Inmeetformulier!O96) ->  | P94: =IF(Inmeetformulier!B96="","",Inmeetformulier!B96) ->  | Q94: =IF(Inmeetformulier!S96="","",Inmeetformulier!S96) -> 
B95: =IF(Inmeetformulier!P97="","",Inmeetformulier!P97) ->  | C95: =IF(Inmeetformulier!Q97="","",Inmeetformulier!Q97) ->  | D95: =IF(Inmeetformulier!D97="","",Inmeetformulier!D97) ->  | E95: =IF(Inmeetformulier!E97="","",Inmeetformulier!E97) ->  | F95: =IF(Inmeetformulier!F97="","",Inmeetformulier!F97) ->  | G95: =IF(Inmeetformulier!G97="","",Inmeetformulier!G97) ->  | H95: =IF(Inmeetformulier!H97="","",Inmeetformulier!H97) ->  | I95: =IF(Inmeetformulier!I97="","",Inmeetformulier!I97) ->  | J95: =IF(Inmeetformulier!J97="","",Inmeetformulier!J97) ->  | K95: =IF(Inmeetformulier!K97="","",Inmeetformulier!K97) ->  | L95: =IF(Inmeetformulier!L97="","",Inmeetformulier!L97) ->  | M95: =IF(Inmeetformulier!M97="","",Inmeetformulier!M97) ->  | N95: =IF(Inmeetformulier!N97="","",Inmeetformulier!N97) ->  | O95: =IF(Inmeetformulier!O97="","",Inmeetformulier!O97) ->  | P95: =IF(Inmeetformulier!B97="","",Inmeetformulier!B97) ->  | Q95: =IF(Inmeetformulier!S97="","",Inmeetformulier!S97) -> 
B96: =IF(Inmeetformulier!P98="","",Inmeetformulier!P98) ->  | C96: =IF(Inmeetformulier!Q98="","",Inmeetformulier!Q98) ->  | D96: =IF(Inmeetformulier!D98="","",Inmeetformulier!D98) ->  | E96: =IF(Inmeetformulier!E98="","",Inmeetformulier!E98) ->  | F96: =IF(Inmeetformulier!F98="","",Inmeetformulier!F98) ->  | G96: =IF(Inmeetformulier!G98="","",Inmeetformulier!G98) ->  | H96: =IF(Inmeetformulier!H98="","",Inmeetformulier!H98) ->  | I96: =IF(Inmeetformulier!I98="","",Inmeetformulier!I98) ->  | J96: =IF(Inmeetformulier!J98="","",Inmeetformulier!J98) ->  | K96: =IF(Inmeetformulier!K98="","",Inmeetformulier!K98) ->  | L96: =IF(Inmeetformulier!L98="","",Inmeetformulier!L98) ->  | M96: =IF(Inmeetformulier!M98="","",Inmeetformulier!M98) ->  | N96: =IF(Inmeetformulier!N98="","",Inmeetformulier!N98) ->  | O96: =IF(Inmeetformulier!O98="","",Inmeetformulier!O98) ->  | P96: =IF(Inmeetformulier!B98="","",Inmeetformulier!B98) ->  | Q96: =IF(Inmeetformulier!S98="","",Inmeetformulier!S98) -> 
B97: =IF(Inmeetformulier!P99="","",Inmeetformulier!P99) ->  | C97: =IF(Inmeetformulier!Q99="","",Inmeetformulier!Q99) ->  | D97: =IF(Inmeetformulier!D99="","",Inmeetformulier!D99) ->  | E97: =IF(Inmeetformulier!E99="","",Inmeetformulier!E99) ->  | F97: =IF(Inmeetformulier!F99="","",Inmeetformulier!F99) ->  | G97: =IF(Inmeetformulier!G99="","",Inmeetformulier!G99) ->  | H97: =IF(Inmeetformulier!H99="","",Inmeetformulier!H99) ->  | I97: =IF(Inmeetformulier!I99="","",Inmeetformulier!I99) ->  | J97: =IF(Inmeetformulier!J99="","",Inmeetformulier!J99) ->  | K97: =IF(Inmeetformulier!K99="","",Inmeetformulier!K99) ->  | L97: =IF(Inmeetformulier!L99="","",Inmeetformulier!L99) ->  | M97: =IF(Inmeetformulier!M99="","",Inmeetformulier!M99) ->  | N97: =IF(Inmeetformulier!N99="","",Inmeetformulier!N99) ->  | O97: =IF(Inmeetformulier!O99="","",Inmeetformulier!O99) ->  | P97: =IF(Inmeetformulier!B99="","",Inmeetformulier!B99) ->  | Q97: =IF(Inmeetformulier!S99="","",Inmeetformulier!S99) -> 
B98: =IF(Inmeetformulier!P100="","",Inmeetformulier!P100) ->  | C98: =IF(Inmeetformulier!Q100="","",Inmeetformulier!Q100) ->  | D98: =IF(Inmeetformulier!D100="","",Inmeetformulier!D100) ->  | E98: =IF(Inmeetformulier!E100="","",Inmeetformulier!E100) ->  | F98: =IF(Inmeetformulier!F100="","",Inmeetformulier!F100) ->  | G98: =IF(Inmeetformulier!G100="","",Inmeetformulier!G100) ->  | H98: =IF(Inmeetformulier!H100="","",Inmeetformulier!H100) ->  | I98: =IF(Inmeetformulier!I100="","",Inmeetformulier!I100) ->  | J98: =IF(Inmeetformulier!J100="","",Inmeetformulier!J100) ->  | K98: =IF(Inmeetformulier!K100="","",Inmeetformulier!K100) ->  | L98: =IF(Inmeetformulier!L100="","",Inmeetformulier!L100) ->  | M98: =IF(Inmeetformulier!M100="","",Inmeetformulier!M100) ->  | N98: =IF(Inmeetformulier!N100="","",Inmeetformulier!N100) ->  | O98: =IF(Inmeetformulier!O100="","",Inmeetformulier!O100) ->  | P98: =IF(Inmeetformulier!B100="","",Inmeetformulier!B100) ->  | Q98: =IF(Inmeetformulier!S100="","",Inmeetformulier!S100) -> 
B99: =IF(Inmeetformulier!P101="","",Inmeetformulier!P101) ->  | C99: =IF(Inmeetformulier!Q101="","",Inmeetformulier!Q101) ->  | D99: =IF(Inmeetformulier!D101="","",Inmeetformulier!D101) ->  | E99: =IF(Inmeetformulier!E101="","",Inmeetformulier!E101) ->  | F99: =IF(Inmeetformulier!F101="","",Inmeetformulier!F101) ->  | G99: =IF(Inmeetformulier!G101="","",Inmeetformulier!G101) ->  | H99: =IF(Inmeetformulier!H101="","",Inmeetformulier!H101) ->  | I99: =IF(Inmeetformulier!I101="","",Inmeetformulier!I101) ->  | J99: =IF(Inmeetformulier!J101="","",Inmeetformulier!J101) ->  | K99: =IF(Inmeetformulier!K101="","",Inmeetformulier!K101) ->  | L99: =IF(Inmeetformulier!L101="","",Inmeetformulier!L101) ->  | M99: =IF(Inmeetformulier!M101="","",Inmeetformulier!M101) ->  | N99: =IF(Inmeetformulier!N101="","",Inmeetformulier!N101) ->  | O99: =IF(Inmeetformulier!O101="","",Inmeetformulier!O101) ->  | P99: =IF(Inmeetformulier!B101="","",Inmeetformulier!B101) ->  | Q99: =IF(Inmeetformulier!S101="","",Inmeetformulier!S101) -> 
B100: =IF(Inmeetformulier!P102="","",Inmeetformulier!P102) ->  | C100: =IF(Inmeetformulier!Q102="","",Inmeetformulier!Q102) ->  | D100: =IF(Inmeetformulier!D102="","",Inmeetformulier!D102) ->  | E100: =IF(Inmeetformulier!E102="","",Inmeetformulier!E102) ->  | F100: =IF(Inmeetformulier!F102="","",Inmeetformulier!F102) ->  | G100: =IF(Inmeetformulier!G102="","",Inmeetformulier!G102) ->  | H100: =IF(Inmeetformulier!H102="","",Inmeetformulier!H102) ->  | I100: =IF(Inmeetformulier!I102="","",Inmeetformulier!I102) ->  | J100: =IF(Inmeetformulier!J102="","",Inmeetformulier!J102) ->  | K100: =IF(Inmeetformulier!K102="","",Inmeetformulier!K102) ->  | L100: =IF(Inmeetformulier!L102="","",Inmeetformulier!L102) ->  | M100: =IF(Inmeetformulier!M102="","",Inmeetformulier!M102) ->  | N100: =IF(Inmeetformulier!N102="","",Inmeetformulier!N102) ->  | O100: =IF(Inmeetformulier!O102="","",Inmeetformulier!O102) ->  | P100: =IF(Inmeetformulier!B102="","",Inmeetformulier!B102) ->  | Q100: =IF(Inmeetformulier!S102="","",Inmeetformulier!S102) -> 
B101: =IF(Inmeetformulier!P103="","",Inmeetformulier!P103) ->  | C101: =IF(Inmeetformulier!Q103="","",Inmeetformulier!Q103) ->  | D101: =IF(Inmeetformulier!D103="","",Inmeetformulier!D103) ->  | E101: =IF(Inmeetformulier!E103="","",Inmeetformulier!E103) ->  | F101: =IF(Inmeetformulier!F103="","",Inmeetformulier!F103) ->  | G101: =IF(Inmeetformulier!G103="","",Inmeetformulier!G103) ->  | H101: =IF(Inmeetformulier!H103="","",Inmeetformulier!H103) ->  | I101: =IF(Inmeetformulier!I103="","",Inmeetformulier!I103) ->  | J101: =IF(Inmeetformulier!J103="","",Inmeetformulier!J103) ->  | K101: =IF(Inmeetformulier!K103="","",Inmeetformulier!K103) ->  | L101: =IF(Inmeetformulier!L103="","",Inmeetformulier!L103) ->  | M101: =IF(Inmeetformulier!M103="","",Inmeetformulier!M103) ->  | N101: =IF(Inmeetformulier!N103="","",Inmeetformulier!N103) ->  | O101: =IF(Inmeetformulier!O103="","",Inmeetformulier!O103) ->  | P101: =IF(Inmeetformulier!B103="","",Inmeetformulier!B103) ->  | Q101: =IF(Inmeetformulier!S103="","",Inmeetformulier!S103) -> 
B102: =IF(Inmeetformulier!P104="","",Inmeetformulier!P104) ->  | C102: =IF(Inmeetformulier!Q104="","",Inmeetformulier!Q104) ->  | D102: =IF(Inmeetformulier!D104="","",Inmeetformulier!D104) ->  | E102: =IF(Inmeetformulier!E104="","",Inmeetformulier!E104) ->  | F102: =IF(Inmeetformulier!F104="","",Inmeetformulier!F104) ->  | G102: =IF(Inmeetformulier!G104="","",Inmeetformulier!G104) ->  | H102: =IF(Inmeetformulier!H104="","",Inmeetformulier!H104) ->  | I102: =IF(Inmeetformulier!I104="","",Inmeetformulier!I104) ->  | J102: =IF(Inmeetformulier!J104="","",Inmeetformulier!J104) ->  | K102: =IF(Inmeetformulier!K104="","",Inmeetformulier!K104) ->  | L102: =IF(Inmeetformulier!L104="","",Inmeetformulier!L104) ->  | M102: =IF(Inmeetformulier!M104="","",Inmeetformulier!M104) ->  | N102: =IF(Inmeetformulier!N104="","",Inmeetformulier!N104) ->  | O102: =IF(Inmeetformulier!O104="","",Inmeetformulier!O104) ->  | P102: =IF(Inmeetformulier!B104="","",Inmeetformulier!B104) ->  | Q102: =IF(Inmeetformulier!S104="","",Inmeetformulier!S104) -> 
B103: =IF(Inmeetformulier!P105="","",Inmeetformulier!P105) ->  | C103: =IF(Inmeetformulier!Q105="","",Inmeetformulier!Q105) ->  | D103: =IF(Inmeetformulier!D105="","",Inmeetformulier!D105) ->  | E103: =IF(Inmeetformulier!E105="","",Inmeetformulier!E105) ->  | F103: =IF(Inmeetformulier!F105="","",Inmeetformulier!F105) ->  | G103: =IF(Inmeetformulier!G105="","",Inmeetformulier!G105) ->  | H103: =IF(Inmeetformulier!H105="","",Inmeetformulier!H105) ->  | I103: =IF(Inmeetformulier!I105="","",Inmeetformulier!I105) ->  | J103: =IF(Inmeetformulier!J105="","",Inmeetformulier!J105) ->  | K103: =IF(Inmeetformulier!K105="","",Inmeetformulier!K105) ->  | L103: =IF(Inmeetformulier!L105="","",Inmeetformulier!L105) ->  | M103: =IF(Inmeetformulier!M105="","",Inmeetformulier!M105) ->  | N103: =IF(Inmeetformulier!N105="","",Inmeetformulier!N105) ->  | O103: =IF(Inmeetformulier!O105="","",Inmeetformulier!O105) ->  | P103: =IF(Inmeetformulier!B105="","",Inmeetformulier!B105) ->  | Q103: =IF(Inmeetformulier!S105="","",Inmeetformulier!S105) -> 
B104: =IF(Inmeetformulier!P106="","",Inmeetformulier!P106) ->  | C104: =IF(Inmeetformulier!Q106="","",Inmeetformulier!Q106) ->  | D104: =IF(Inmeetformulier!D106="","",Inmeetformulier!D106) ->  | E104: =IF(Inmeetformulier!E106="","",Inmeetformulier!E106) ->  | F104: =IF(Inmeetformulier!F106="","",Inmeetformulier!F106) ->  | G104: =IF(Inmeetformulier!G106="","",Inmeetformulier!G106) ->  | H104: =IF(Inmeetformulier!H106="","",Inmeetformulier!H106) ->  | I104: =IF(Inmeetformulier!I106="","",Inmeetformulier!I106) ->  | J104: =IF(Inmeetformulier!J106="","",Inmeetformulier!J106) ->  | K104: =IF(Inmeetformulier!K106="","",Inmeetformulier!K106) ->  | L104: =IF(Inmeetformulier!L106="","",Inmeetformulier!L106) ->  | M104: =IF(Inmeetformulier!M106="","",Inmeetformulier!M106) ->  | N104: =IF(Inmeetformulier!N106="","",Inmeetformulier!N106) ->  | O104: =IF(Inmeetformulier!O106="","",Inmeetformulier!O106) ->  | P104: =IF(Inmeetformulier!B106="","",Inmeetformulier!B106) ->  | Q104: =IF(Inmeetformulier!S106="","",Inmeetformulier!S106) -> 
B105: =IF(Inmeetformulier!P107="","",Inmeetformulier!P107) ->  | C105: =IF(Inmeetformulier!Q107="","",Inmeetformulier!Q107) ->  | D105: =IF(Inmeetformulier!D107="","",Inmeetformulier!D107) ->  | E105: =IF(Inmeetformulier!E107="","",Inmeetformulier!E107) ->  | F105: =IF(Inmeetformulier!F107="","",Inmeetformulier!F107) ->  | G105: =IF(Inmeetformulier!G107="","",Inmeetformulier!G107) ->  | H105: =IF(Inmeetformulier!H107="","",Inmeetformulier!H107) ->  | I105: =IF(Inmeetformulier!I107="","",Inmeetformulier!I107) ->  | J105: =IF(Inmeetformulier!J107="","",Inmeetformulier!J107) ->  | K105: =IF(Inmeetformulier!K107="","",Inmeetformulier!K107) ->  | L105: =IF(Inmeetformulier!L107="","",Inmeetformulier!L107) ->  | M105: =IF(Inmeetformulier!M107="","",Inmeetformulier!M107) ->  | N105: =IF(Inmeetformulier!N107="","",Inmeetformulier!N107) ->  | O105: =IF(Inmeetformulier!O107="","",Inmeetformulier!O107) ->  | P105: =IF(Inmeetformulier!B107="","",Inmeetformulier!B107) ->  | Q105: =IF(Inmeetformulier!S107="","",Inmeetformulier!S107) -> 
B106: =IF(Inmeetformulier!P108="","",Inmeetformulier!P108) ->  | C106: =IF(Inmeetformulier!Q108="","",Inmeetformulier!Q108) ->  | D106: =IF(Inmeetformulier!D108="","",Inmeetformulier!D108) ->  | E106: =IF(Inmeetformulier!E108="","",Inmeetformulier!E108) ->  | F106: =IF(Inmeetformulier!F108="","",Inmeetformulier!F108) ->  | G106: =IF(Inmeetformulier!G108="","",Inmeetformulier!G108) ->  | H106: =IF(Inmeetformulier!H108="","",Inmeetformulier!H108) ->  | I106: =IF(Inmeetformulier!I108="","",Inmeetformulier!I108) ->  | J106: =IF(Inmeetformulier!J108="","",Inmeetformulier!J108) ->  | K106: =IF(Inmeetformulier!K108="","",Inmeetformulier!K108) ->  | L106: =IF(Inmeetformulier!L108="","",Inmeetformulier!L108) ->  | M106: =IF(Inmeetformulier!M108="","",Inmeetformulier!M108) ->  | N106: =IF(Inmeetformulier!N108="","",Inmeetformulier!N108) ->  | O106: =IF(Inmeetformulier!O108="","",Inmeetformulier!O108) ->  | P106: =IF(Inmeetformulier!B108="","",Inmeetformulier!B108) ->  | Q106: =IF(Inmeetformulier!S108="","",Inmeetformulier!S108) -> 
B107: =IF(Inmeetformulier!P109="","",Inmeetformulier!P109) ->  | C107: =IF(Inmeetformulier!Q109="","",Inmeetformulier!Q109) ->  | D107: =IF(Inmeetformulier!D109="","",Inmeetformulier!D109) ->  | E107: =IF(Inmeetformulier!E109="","",Inmeetformulier!E109) ->  | F107: =IF(Inmeetformulier!F109="","",Inmeetformulier!F109) ->  | G107: =IF(Inmeetformulier!G109="","",Inmeetformulier!G109) ->  | H107: =IF(Inmeetformulier!H109="","",Inmeetformulier!H109) ->  | I107: =IF(Inmeetformulier!I109="","",Inmeetformulier!I109) ->  | J107: =IF(Inmeetformulier!J109="","",Inmeetformulier!J109) ->  | K107: =IF(Inmeetformulier!K109="","",Inmeetformulier!K109) ->  | L107: =IF(Inmeetformulier!L109="","",Inmeetformulier!L109) ->  | M107: =IF(Inmeetformulier!M109="","",Inmeetformulier!M109) ->  | N107: =IF(Inmeetformulier!N109="","",Inmeetformulier!N109) ->  | O107: =IF(Inmeetformulier!O109="","",Inmeetformulier!O109) ->  | P107: =IF(Inmeetformulier!B109="","",Inmeetformulier!B109) ->  | Q107: =IF(Inmeetformulier!S109="","",Inmeetformulier!S109) -> 
B108: =IF(Inmeetformulier!P110="","",Inmeetformulier!P110) ->  | C108: =IF(Inmeetformulier!Q110="","",Inmeetformulier!Q110) ->  | D108: =IF(Inmeetformulier!D110="","",Inmeetformulier!D110) ->  | E108: =IF(Inmeetformulier!E110="","",Inmeetformulier!E110) ->  | F108: =IF(Inmeetformulier!F110="","",Inmeetformulier!F110) ->  | G108: =IF(Inmeetformulier!G110="","",Inmeetformulier!G110) ->  | H108: =IF(Inmeetformulier!H110="","",Inmeetformulier!H110) ->  | I108: =IF(Inmeetformulier!I110="","",Inmeetformulier!I110) ->  | J108: =IF(Inmeetformulier!J110="","",Inmeetformulier!J110) ->  | K108: =IF(Inmeetformulier!K110="","",Inmeetformulier!K110) ->  | L108: =IF(Inmeetformulier!L110="","",Inmeetformulier!L110) ->  | M108: =IF(Inmeetformulier!M110="","",Inmeetformulier!M110) ->  | N108: =IF(Inmeetformulier!N110="","",Inmeetformulier!N110) ->  | O108: =IF(Inmeetformulier!O110="","",Inmeetformulier!O110) ->  | P108: =IF(Inmeetformulier!B110="","",Inmeetformulier!B110) ->  | Q108: =IF(Inmeetformulier!S110="","",Inmeetformulier!S110) -> 
B109: =IF(Inmeetformulier!P111="","",Inmeetformulier!P111) ->  | C109: =IF(Inmeetformulier!Q111="","",Inmeetformulier!Q111) ->  | D109: =IF(Inmeetformulier!D111="","",Inmeetformulier!D111) ->  | E109: =IF(Inmeetformulier!E111="","",Inmeetformulier!E111) ->  | F109: =IF(Inmeetformulier!F111="","",Inmeetformulier!F111) ->  | G109: =IF(Inmeetformulier!G111="","",Inmeetformulier!G111) ->  | H109: =IF(Inmeetformulier!H111="","",Inmeetformulier!H111) ->  | I109: =IF(Inmeetformulier!I111="","",Inmeetformulier!I111) ->  | J109: =IF(Inmeetformulier!J111="","",Inmeetformulier!J111) ->  | K109: =IF(Inmeetformulier!K111="","",Inmeetformulier!K111) ->  | L109: =IF(Inmeetformulier!L111="","",Inmeetformulier!L111) ->  | M109: =IF(Inmeetformulier!M111="","",Inmeetformulier!M111) ->  | N109: =IF(Inmeetformulier!N111="","",Inmeetformulier!N111) ->  | O109: =IF(Inmeetformulier!O111="","",Inmeetformulier!O111) ->  | P109: =IF(Inmeetformulier!B111="","",Inmeetformulier!B111) ->  | Q109: =IF(Inmeetformulier!S111="","",Inmeetformulier!S111) -> 
B110: =IF(Inmeetformulier!P112="","",Inmeetformulier!P112) ->  | C110: =IF(Inmeetformulier!Q112="","",Inmeetformulier!Q112) ->  | D110: =IF(Inmeetformulier!D112="","",Inmeetformulier!D112) ->  | E110: =IF(Inmeetformulier!E112="","",Inmeetformulier!E112) ->  | F110: =IF(Inmeetformulier!F112="","",Inmeetformulier!F112) ->  | G110: =IF(Inmeetformulier!G112="","",Inmeetformulier!G112) ->  | H110: =IF(Inmeetformulier!H112="","",Inmeetformulier!H112) ->  | I110: =IF(Inmeetformulier!I112="","",Inmeetformulier!I112) ->  | J110: =IF(Inmeetformulier!J112="","",Inmeetformulier!J112) ->  | K110: =IF(Inmeetformulier!K112="","",Inmeetformulier!K112) ->  | L110: =IF(Inmeetformulier!L112="","",Inmeetformulier!L112) ->  | M110: =IF(Inmeetformulier!M112="","",Inmeetformulier!M112) ->  | N110: =IF(Inmeetformulier!N112="","",Inmeetformulier!N112) ->  | O110: =IF(Inmeetformulier!O112="","",Inmeetformulier!O112) ->  | P110: =IF(Inmeetformulier!B112="","",Inmeetformulier!B112) ->  | Q110: =IF(Inmeetformulier!S112="","",Inmeetformulier!S112) -> 
B111: =IF(Inmeetformulier!P113="","",Inmeetformulier!P113) ->  | C111: =IF(Inmeetformulier!Q113="","",Inmeetformulier!Q113) ->  | D111: =IF(Inmeetformulier!D113="","",Inmeetformulier!D113) ->  | E111: =IF(Inmeetformulier!E113="","",Inmeetformulier!E113) ->  | F111: =IF(Inmeetformulier!F113="","",Inmeetformulier!F113) ->  | G111: =IF(Inmeetformulier!G113="","",Inmeetformulier!G113) ->  | H111: =IF(Inmeetformulier!H113="","",Inmeetformulier!H113) ->  | I111: =IF(Inmeetformulier!I113="","",Inmeetformulier!I113) ->  | J111: =IF(Inmeetformulier!J113="","",Inmeetformulier!J113) ->  | K111: =IF(Inmeetformulier!K113="","",Inmeetformulier!K113) ->  | L111: =IF(Inmeetformulier!L113="","",Inmeetformulier!L113) ->  | M111: =IF(Inmeetformulier!M113="","",Inmeetformulier!M113) ->  | N111: =IF(Inmeetformulier!N113="","",Inmeetformulier!N113) ->  | O111: =IF(Inmeetformulier!O113="","",Inmeetformulier!O113) ->  | P111: =IF(Inmeetformulier!B113="","",Inmeetformulier!B113) ->  | Q111: =IF(Inmeetformulier!S113="","",Inmeetformulier!S113) -> 
B112: =IF(Inmeetformulier!P114="","",Inmeetformulier!P114) ->  | C112: =IF(Inmeetformulier!Q114="","",Inmeetformulier!Q114) ->  | D112: =IF(Inmeetformulier!D114="","",Inmeetformulier!D114) ->  | E112: =IF(Inmeetformulier!E114="","",Inmeetformulier!E114) ->  | F112: =IF(Inmeetformulier!F114="","",Inmeetformulier!F114) ->  | G112: =IF(Inmeetformulier!G114="","",Inmeetformulier!G114) ->  | H112: =IF(Inmeetformulier!H114="","",Inmeetformulier!H114) ->  | I112: =IF(Inmeetformulier!I114="","",Inmeetformulier!I114) ->  | J112: =IF(Inmeetformulier!J114="","",Inmeetformulier!J114) ->  | K112: =IF(Inmeetformulier!K114="","",Inmeetformulier!K114) ->  | L112: =IF(Inmeetformulier!L114="","",Inmeetformulier!L114) ->  | M112: =IF(Inmeetformulier!M114="","",Inmeetformulier!M114) ->  | N112: =IF(Inmeetformulier!N114="","",Inmeetformulier!N114) ->  | O112: =IF(Inmeetformulier!O114="","",Inmeetformulier!O114) ->  | P112: =IF(Inmeetformulier!B114="","",Inmeetformulier!B114) ->  | Q112: =IF(Inmeetformulier!S114="","",Inmeetformulier!S114) -> 
B113: =IF(Inmeetformulier!P115="","",Inmeetformulier!P115) ->  | C113: =IF(Inmeetformulier!Q115="","",Inmeetformulier!Q115) ->  | D113: =IF(Inmeetformulier!D115="","",Inmeetformulier!D115) ->  | E113: =IF(Inmeetformulier!E115="","",Inmeetformulier!E115) ->  | F113: =IF(Inmeetformulier!F115="","",Inmeetformulier!F115) ->  | G113: =IF(Inmeetformulier!G115="","",Inmeetformulier!G115) ->  | H113: =IF(Inmeetformulier!H115="","",Inmeetformulier!H115) ->  | I113: =IF(Inmeetformulier!I115="","",Inmeetformulier!I115) ->  | J113: =IF(Inmeetformulier!J115="","",Inmeetformulier!J115) ->  | K113: =IF(Inmeetformulier!K115="","",Inmeetformulier!K115) ->  | L113: =IF(Inmeetformulier!L115="","",Inmeetformulier!L115) ->  | M113: =IF(Inmeetformulier!M115="","",Inmeetformulier!M115) ->  | N113: =IF(Inmeetformulier!N115="","",Inmeetformulier!N115) ->  | O113: =IF(Inmeetformulier!O115="","",Inmeetformulier!O115) ->  | P113: =IF(Inmeetformulier!B115="","",Inmeetformulier!B115) ->  | Q113: =IF(Inmeetformulier!S115="","",Inmeetformulier!S115) -> 
B114: =IF(Inmeetformulier!P116="","",Inmeetformulier!P116) ->  | C114: =IF(Inmeetformulier!Q116="","",Inmeetformulier!Q116) ->  | D114: =IF(Inmeetformulier!D116="","",Inmeetformulier!D116) ->  | E114: =IF(Inmeetformulier!E116="","",Inmeetformulier!E116) ->  | F114: =IF(Inmeetformulier!F116="","",Inmeetformulier!F116) ->  | G114: =IF(Inmeetformulier!G116="","",Inmeetformulier!G116) ->  | H114: =IF(Inmeetformulier!H116="","",Inmeetformulier!H116) ->  | I114: =IF(Inmeetformulier!I116="","",Inmeetformulier!I116) ->  | J114: =IF(Inmeetformulier!J116="","",Inmeetformulier!J116) ->  | K114: =IF(Inmeetformulier!K116="","",Inmeetformulier!K116) ->  | L114: =IF(Inmeetformulier!L116="","",Inmeetformulier!L116) ->  | M114: =IF(Inmeetformulier!M116="","",Inmeetformulier!M116) ->  | N114: =IF(Inmeetformulier!N116="","",Inmeetformulier!N116) ->  | O114: =IF(Inmeetformulier!O116="","",Inmeetformulier!O116) ->  | P114: =IF(Inmeetformulier!B116="","",Inmeetformulier!B116) ->  | Q114: =IF(Inmeetformulier!S116="","",Inmeetformulier!S116) -> 
B115: =IF(Inmeetformulier!P117="","",Inmeetformulier!P117) ->  | C115: =IF(Inmeetformulier!Q117="","",Inmeetformulier!Q117) ->  | D115: =IF(Inmeetformulier!D117="","",Inmeetformulier!D117) ->  | E115: =IF(Inmeetformulier!E117="","",Inmeetformulier!E117) ->  | F115: =IF(Inmeetformulier!F117="","",Inmeetformulier!F117) ->  | G115: =IF(Inmeetformulier!G117="","",Inmeetformulier!G117) ->  | H115: =IF(Inmeetformulier!H117="","",Inmeetformulier!H117) ->  | I115: =IF(Inmeetformulier!I117="","",Inmeetformulier!I117) ->  | J115: =IF(Inmeetformulier!J117="","",Inmeetformulier!J117) ->  | K115: =IF(Inmeetformulier!K117="","",Inmeetformulier!K117) ->  | L115: =IF(Inmeetformulier!L117="","",Inmeetformulier!L117) ->  | M115: =IF(Inmeetformulier!M117="","",Inmeetformulier!M117) ->  | N115: =IF(Inmeetformulier!N117="","",Inmeetformulier!N117) ->  | O115: =IF(Inmeetformulier!O117="","",Inmeetformulier!O117) ->  | P115: =IF(Inmeetformulier!B117="","",Inmeetformulier!B117) ->  | Q115: =IF(Inmeetformulier!S117="","",Inmeetformulier!S117) -> 
B116: =IF(Inmeetformulier!P118="","",Inmeetformulier!P118) ->  | C116: =IF(Inmeetformulier!Q118="","",Inmeetformulier!Q118) ->  | D116: =IF(Inmeetformulier!D118="","",Inmeetformulier!D118) ->  | E116: =IF(Inmeetformulier!E118="","",Inmeetformulier!E118) ->  | F116: =IF(Inmeetformulier!F118="","",Inmeetformulier!F118) ->  | G116: =IF(Inmeetformulier!G118="","",Inmeetformulier!G118) ->  | H116: =IF(Inmeetformulier!H118="","",Inmeetformulier!H118) ->  | I116: =IF(Inmeetformulier!I118="","",Inmeetformulier!I118) ->  | J116: =IF(Inmeetformulier!J118="","",Inmeetformulier!J118) ->  | K116: =IF(Inmeetformulier!K118="","",Inmeetformulier!K118) ->  | L116: =IF(Inmeetformulier!L118="","",Inmeetformulier!L118) ->  | M116: =IF(Inmeetformulier!M118="","",Inmeetformulier!M118) ->  | N116: =IF(Inmeetformulier!N118="","",Inmeetformulier!N118) ->  | O116: =IF(Inmeetformulier!O118="","",Inmeetformulier!O118) ->  | P116: =IF(Inmeetformulier!B118="","",Inmeetformulier!B118) ->  | Q116: =IF(Inmeetformulier!S118="","",Inmeetformulier!S118) -> 
B117: =IF(Inmeetformulier!P119="","",Inmeetformulier!P119) ->  | C117: =IF(Inmeetformulier!Q119="","",Inmeetformulier!Q119) ->  | D117: =IF(Inmeetformulier!D119="","",Inmeetformulier!D119) ->  | E117: =IF(Inmeetformulier!E119="","",Inmeetformulier!E119) ->  | F117: =IF(Inmeetformulier!F119="","",Inmeetformulier!F119) ->  | G117: =IF(Inmeetformulier!G119="","",Inmeetformulier!G119) ->  | H117: =IF(Inmeetformulier!H119="","",Inmeetformulier!H119) ->  | I117: =IF(Inmeetformulier!I119="","",Inmeetformulier!I119) ->  | J117: =IF(Inmeetformulier!J119="","",Inmeetformulier!J119) ->  | K117: =IF(Inmeetformulier!K119="","",Inmeetformulier!K119) ->  | L117: =IF(Inmeetformulier!L119="","",Inmeetformulier!L119) ->  | M117: =IF(Inmeetformulier!M119="","",Inmeetformulier!M119) ->  | N117: =IF(Inmeetformulier!N119="","",Inmeetformulier!N119) ->  | O117: =IF(Inmeetformulier!O119="","",Inmeetformulier!O119) ->  | P117: =IF(Inmeetformulier!B119="","",Inmeetformulier!B119) ->  | Q117: =IF(Inmeetformulier!S119="","",Inmeetformulier!S119) -> 
B118: =IF(Inmeetformulier!P120="","",Inmeetformulier!P120) ->  | C118: =IF(Inmeetformulier!Q120="","",Inmeetformulier!Q120) ->  | D118: =IF(Inmeetformulier!D120="","",Inmeetformulier!D120) ->  | E118: =IF(Inmeetformulier!E120="","",Inmeetformulier!E120) ->  | F118: =IF(Inmeetformulier!F120="","",Inmeetformulier!F120) ->  | G118: =IF(Inmeetformulier!G120="","",Inmeetformulier!G120) ->  | H118: =IF(Inmeetformulier!H120="","",Inmeetformulier!H120) ->  | I118: =IF(Inmeetformulier!I120="","",Inmeetformulier!I120) ->  | J118: =IF(Inmeetformulier!J120="","",Inmeetformulier!J120) ->  | K118: =IF(Inmeetformulier!K120="","",Inmeetformulier!K120) ->  | L118: =IF(Inmeetformulier!L120="","",Inmeetformulier!L120) ->  | M118: =IF(Inmeetformulier!M120="","",Inmeetformulier!M120) ->  | N118: =IF(Inmeetformulier!N120="","",Inmeetformulier!N120) ->  | O118: =IF(Inmeetformulier!O120="","",Inmeetformulier!O120) ->  | P118: =IF(Inmeetformulier!B120="","",Inmeetformulier!B120) ->  | Q118: =IF(Inmeetformulier!S120="","",Inmeetformulier!S120) -> 
B119: =IF(Inmeetformulier!P121="","",Inmeetformulier!P121) ->  | C119: =IF(Inmeetformulier!Q121="","",Inmeetformulier!Q121) ->  | D119: =IF(Inmeetformulier!D121="","",Inmeetformulier!D121) ->  | E119: =IF(Inmeetformulier!E121="","",Inmeetformulier!E121) ->  | F119: =IF(Inmeetformulier!F121="","",Inmeetformulier!F121) ->  | G119: =IF(Inmeetformulier!G121="","",Inmeetformulier!G121) ->  | H119: =IF(Inmeetformulier!H121="","",Inmeetformulier!H121) ->  | I119: =IF(Inmeetformulier!I121="","",Inmeetformulier!I121) ->  | J119: =IF(Inmeetformulier!J121="","",Inmeetformulier!J121) ->  | K119: =IF(Inmeetformulier!K121="","",Inmeetformulier!K121) ->  | L119: =IF(Inmeetformulier!L121="","",Inmeetformulier!L121) ->  | M119: =IF(Inmeetformulier!M121="","",Inmeetformulier!M121) ->  | N119: =IF(Inmeetformulier!N121="","",Inmeetformulier!N121) ->  | O119: =IF(Inmeetformulier!O121="","",Inmeetformulier!O121) ->  | P119: =IF(Inmeetformulier!B121="","",Inmeetformulier!B121) ->  | Q119: =IF(Inmeetformulier!S121="","",Inmeetformulier!S121) -> 
B120: =IF(Inmeetformulier!P122="","",Inmeetformulier!P122) ->  | C120: =IF(Inmeetformulier!Q122="","",Inmeetformulier!Q122) ->  | D120: =IF(Inmeetformulier!D122="","",Inmeetformulier!D122) ->  | E120: =IF(Inmeetformulier!E122="","",Inmeetformulier!E122) ->  | F120: =IF(Inmeetformulier!F122="","",Inmeetformulier!F122) ->  | G120: =IF(Inmeetformulier!G122="","",Inmeetformulier!G122) ->  | H120: =IF(Inmeetformulier!H122="","",Inmeetformulier!H122) ->  | I120: =IF(Inmeetformulier!I122="","",Inmeetformulier!I122) ->  | J120: =IF(Inmeetformulier!J122="","",Inmeetformulier!J122) ->  | K120: =IF(Inmeetformulier!K122="","",Inmeetformulier!K122) ->  | L120: =IF(Inmeetformulier!L122="","",Inmeetformulier!L122) ->  | M120: =IF(Inmeetformulier!M122="","",Inmeetformulier!M122) ->  | N120: =IF(Inmeetformulier!N122="","",Inmeetformulier!N122) ->  | O120: =IF(Inmeetformulier!O122="","",Inmeetformulier!O122) ->  | P120: =IF(Inmeetformulier!B122="","",Inmeetformulier!B122) ->  | Q120: =IF(Inmeetformulier!S122="","",Inmeetformulier!S122) -> 
B121: =IF(Inmeetformulier!P123="","",Inmeetformulier!P123) ->  | C121: =IF(Inmeetformulier!Q123="","",Inmeetformulier!Q123) ->  | D121: =IF(Inmeetformulier!D123="","",Inmeetformulier!D123) ->  | E121: =IF(Inmeetformulier!E123="","",Inmeetformulier!E123) ->  | F121: =IF(Inmeetformulier!F123="","",Inmeetformulier!F123) ->  | G121: =IF(Inmeetformulier!G123="","",Inmeetformulier!G123) ->  | H121: =IF(Inmeetformulier!H123="","",Inmeetformulier!H123) ->  | I121: =IF(Inmeetformulier!I123="","",Inmeetformulier!I123) ->  | J121: =IF(Inmeetformulier!J123="","",Inmeetformulier!J123) ->  | K121: =IF(Inmeetformulier!K123="","",Inmeetformulier!K123) ->  | L121: =IF(Inmeetformulier!L123="","",Inmeetformulier!L123) ->  | M121: =IF(Inmeetformulier!M123="","",Inmeetformulier!M123) ->  | N121: =IF(Inmeetformulier!N123="","",Inmeetformulier!N123) ->  | O121: =IF(Inmeetformulier!O123="","",Inmeetformulier!O123) ->  | P121: =IF(Inmeetformulier!B123="","",Inmeetformulier!B123) ->  | Q121: =IF(Inmeetformulier!S123="","",Inmeetformulier!S123) -> 
B122: =IF(Inmeetformulier!P124="","",Inmeetformulier!P124) ->  | C122: =IF(Inmeetformulier!Q124="","",Inmeetformulier!Q124) ->  | D122: =IF(Inmeetformulier!D124="","",Inmeetformulier!D124) ->  | E122: =IF(Inmeetformulier!E124="","",Inmeetformulier!E124) ->  | F122: =IF(Inmeetformulier!F124="","",Inmeetformulier!F124) ->  | G122: =IF(Inmeetformulier!G124="","",Inmeetformulier!G124) ->  | H122: =IF(Inmeetformulier!H124="","",Inmeetformulier!H124) ->  | I122: =IF(Inmeetformulier!I124="","",Inmeetformulier!I124) ->  | J122: =IF(Inmeetformulier!J124="","",Inmeetformulier!J124) ->  | K122: =IF(Inmeetformulier!K124="","",Inmeetformulier!K124) ->  | L122: =IF(Inmeetformulier!L124="","",Inmeetformulier!L124) ->  | M122: =IF(Inmeetformulier!M124="","",Inmeetformulier!M124) ->  | N122: =IF(Inmeetformulier!N124="","",Inmeetformulier!N124) ->  | O122: =IF(Inmeetformulier!O124="","",Inmeetformulier!O124) ->  | P122: =IF(Inmeetformulier!B124="","",Inmeetformulier!B124) ->  | Q122: =IF(Inmeetformulier!S124="","",Inmeetformulier!S124) -> 
B123: =IF(Inmeetformulier!P125="","",Inmeetformulier!P125) ->  | C123: =IF(Inmeetformulier!Q125="","",Inmeetformulier!Q125) ->  | D123: =IF(Inmeetformulier!D125="","",Inmeetformulier!D125) ->  | E123: =IF(Inmeetformulier!E125="","",Inmeetformulier!E125) ->  | F123: =IF(Inmeetformulier!F125="","",Inmeetformulier!F125) ->  | G123: =IF(Inmeetformulier!G125="","",Inmeetformulier!G125) ->  | H123: =IF(Inmeetformulier!H125="","",Inmeetformulier!H125) ->  | I123: =IF(Inmeetformulier!I125="","",Inmeetformulier!I125) ->  | J123: =IF(Inmeetformulier!J125="","",Inmeetformulier!J125) ->  | K123: =IF(Inmeetformulier!K125="","",Inmeetformulier!K125) ->  | L123: =IF(Inmeetformulier!L125="","",Inmeetformulier!L125) ->  | M123: =IF(Inmeetformulier!M125="","",Inmeetformulier!M125) ->  | N123: =IF(Inmeetformulier!N125="","",Inmeetformulier!N125) ->  | O123: =IF(Inmeetformulier!O125="","",Inmeetformulier!O125) ->  | P123: =IF(Inmeetformulier!B125="","",Inmeetformulier!B125) ->  | Q123: =IF(Inmeetformulier!S125="","",Inmeetformulier!S125) -> 

Sheet Factuurregels (hidden)
A1: Vertrek | B1: Omschrijving | D1: Toelichting (evt.) | F1: ='Offerte goederen'!R24 -> Prijs (excl. BTW) | G1: per | I1: Aantal eenh. | K1: Bedrag (excl. BTW) | M1: Bedrag (incl. BTW)
A2: ='Offerte goederen'!B25 -> 0 | B2: =CONCATENATE(IF('Offerte goederen'!C25=0,"",CONCATENATE('Offerte goederen'!C25,", ")),IF('Offerte goederen'!O25=0,"",CONCATENATE("merk: ",'Offerte goederen'!O25)),IF('Offerte goederen'!N25=0,"",CONCATENATE(", omschrijving: ",'Offerte goederen'!N25)),IF('Offerte goederen'!H25=0,"",CONCATENATE(", plooi: ",'Offerte goederen'!H25)),IF('Offerte goederen'!J25=0,"",CONCATENATE(", railtype: ",'Offerte goederen'!J25)),IF('Offerte goederen'!K25=0,"",CONCATENATE(", railkleur: ",'Offerte goederen'!K25))) ->  | C2: G | D2: ='Offerte goederen'!P25 -> 0 | F2: =IF(C2="G",'Offerte goederen'!R25,IF(C2="M",'Offerte montage'!L25,"")) -> 0 | G2: =IF(C2="G",'Offerte goederen'!S25,IF(C2="M",'Offerte montage'!M25,"")) -> 0 | I2: =IF(C2="G",'Offerte goederen'!U25,IF(C2="M",'Offerte montage'!O25,"")) -> 0 | K2: =IF(C2="G",'Offerte goederen'!W25,IF(C2="M",'Offerte montage'!Q25,"")) ->  | M2: =IF(C2="G",'Offerte goederen'!Y25,IF(C2="M",'Offerte montage'!S25,"")) -> 
A3: ='Offerte goederen'!B26 -> 0 | B3: =CONCATENATE(IF('Offerte goederen'!C26=0,"",CONCATENATE('Offerte goederen'!C26,", ")),IF('Offerte goederen'!O26=0,"",CONCATENATE("merk: ",'Offerte goederen'!O26)),IF('Offerte goederen'!N26=0,"",CONCATENATE(", omschrijving: ",'Offerte goederen'!N26)),IF('Offerte goederen'!H26=0,"",CONCATENATE(", plooi: ",'Offerte goederen'!H26)),IF('Offerte goederen'!J26=0,"",CONCATENATE(", railtype: ",'Offerte goederen'!J26)),IF('Offerte goederen'!K26=0,"",CONCATENATE(", railkleur: ",'Offerte goederen'!K26))) ->  | C3: G | D3: ='Offerte goederen'!P26 -> 0 | F3: =IF(C3="G",'Offerte goederen'!R26,IF(C3="M",'Offerte montage'!L26,"")) -> 0 | G3: =IF(C3="G",'Offerte goederen'!S26,IF(C3="M",'Offerte montage'!M26,"")) -> 0 | I3: =IF(C3="G",'Offerte goederen'!U26,IF(C3="M",'Offerte montage'!O26,"")) -> 0 | K3: =IF(C3="G",'Offerte goederen'!W26,IF(C3="M",'Offerte montage'!Q26,"")) ->  | M3: =IF(C3="G",'Offerte goederen'!Y26,IF(C3="M",'Offerte montage'!S26,"")) -> 
A4: ='Offerte goederen'!B27 -> 0 | B4: =CONCATENATE(IF('Offerte goederen'!C27=0,"",CONCATENATE('Offerte goederen'!C27,", ")),IF('Offerte goederen'!O27=0,"",CONCATENATE("merk: ",'Offerte goederen'!O27)),IF('Offerte goederen'!N27=0,"",CONCATENATE(", omschrijving: ",'Offerte goederen'!N27)),IF('Offerte goederen'!H27=0,"",CONCATENATE(", plooi: ",'Offerte goederen'!H27)),IF('Offerte goederen'!J27=0,"",CONCATENATE(", railtype: ",'Offerte goederen'!J27)),IF('Offerte goederen'!K27=0,"",CONCATENATE(", railkleur: ",'Offerte goederen'!K27))) ->  | C4: G | D4: ='Offerte goederen'!P27 -> 0 | F4: =IF(C4="G",'Offerte goederen'!R27,IF(C4="M",'Offerte montage'!L27,"")) -> 0 | G4: =IF(C4="G",'Offerte goederen'!S27,IF(C4="M",'Offerte montage'!M27,"")) -> 0 | I4: =IF(C4="G",'Offerte goederen'!U27,IF(C4="M",'Offerte montage'!O27,"")) -> 0 | K4: =IF(C4="G",'Offerte goederen'!W27,IF(C4="M",'Offerte montage'!Q27,"")) ->  | M4: =IF(C4="G",'Offerte goederen'!Y27,IF(C4="M",'Offerte montage'!S27,"")) -> 
A5: ='Offerte goederen'!B28 -> 0 | B5: =CONCATENATE(IF('Offerte goederen'!C28=0,"",CONCATENATE('Offerte goederen'!C28,", ")),IF('Offerte goederen'!O28=0,"",CONCATENATE("merk: ",'Offerte goederen'!O28)),IF('Offerte goederen'!N28=0,"",CONCATENATE(", omschrijving: ",'Offerte goederen'!N28)),IF('Offerte goederen'!H28=0,"",CONCATENATE(", plooi: ",'Offerte goederen'!H28)),IF('Offerte goederen'!J28=0,"",CONCATENATE(", railtype: ",'Offerte goederen'!J28)),IF('Offerte goederen'!K28=0,"",CONCATENATE(", railkleur: ",'Offerte goederen'!K28))) ->  | C5: G | D5: ='Offerte goederen'!P28 -> 0 | F5: =IF(C5="G",'Offerte goederen'!R28,IF(C5="M",'Offerte montage'!L28,"")) -> 0 | G5: =IF(C5="G",'Offerte goederen'!S28,IF(C5="M",'Offerte montage'!M28,"")) -> 0 | I5: =IF(C5="G",'Offerte goederen'!U28,IF(C5="M",'Offerte montage'!O28,"")) -> 0 | K5: =IF(C5="G",'Offerte goederen'!W28,IF(C5="M",'Offerte montage'!Q28,"")) ->  | M5: =IF(C5="G",'Offerte goederen'!Y28,IF(C5="M",'Offerte montage'!S28,"")) -> 
A6: ='Offerte goederen'!B29 -> 0 | B6: =CONCATENATE(IF('Offerte goederen'!C29=0,"",CONCATENATE('Offerte goederen'!C29,", ")),IF('Offerte goederen'!O29=0,"",CONCATENATE("merk: ",'Offerte goederen'!O29)),IF('Offerte goederen'!N29=0,"",CONCATENATE(", omschrijving: ",'Offerte goederen'!N29)),IF('Offerte goederen'!H29=0,"",CONCATENATE(", plooi: ",'Offerte goederen'!H29)),IF('Offerte goederen'!J29=0,"",CONCATENATE(", railtype: ",'Offerte goederen'!J29)),IF('Offerte goederen'!K29=0,"",CONCATENATE(", railkleur: ",'Offerte goederen'!K29))) ->  | C6: G | D6: ='Offerte goederen'!P29 -> 0 | F6: =IF(C6="G",'Offerte goederen'!R29,IF(C6="M",'Offerte montage'!L29,"")) -> 0 | G6: =IF(C6="G",'Offerte goederen'!S29,IF(C6="M",'Offerte montage'!M29,"")) -> 0 | I6: =IF(C6="G",'Offerte goederen'!U29,IF(C6="M",'Offerte montage'!O29,"")) -> 0 | K6: =IF(C6="G",'Offerte goederen'!W29,IF(C6="M",'Offerte montage'!Q29,"")) ->  | M6: =IF(C6="G",'Offerte goederen'!Y29,IF(C6="M",'Offerte montage'!S29,"")) -> 
A7: ='Offerte goederen'!B30 -> 0 | B7: =CONCATENATE(IF('Offerte goederen'!C30=0,"",CONCATENATE('Offerte goederen'!C30,", ")),IF('Offerte goederen'!O30=0,"",CONCATENATE("merk: ",'Offerte goederen'!O30)),IF('Offerte goederen'!N30=0,"",CONCATENATE(", omschrijving: ",'Offerte goederen'!N30)),IF('Offerte goederen'!H30=0,"",CONCATENATE(", plooi: ",'Offerte goederen'!H30)),IF('Offerte goederen'!J30=0,"",CONCATENATE(", railtype: ",'Offerte goederen'!J30)),IF('Offerte goederen'!K30=0,"",CONCATENATE(", railkleur: ",'Offerte goederen'!K30))) ->  | C7: G | D7: ='Offerte goederen'!P30 -> 0 | F7: =IF(C7="G",'Offerte goederen'!R30,IF(C7="M",'Offerte montage'!L30,"")) -> 0 | G7: =IF(C7="G",'Offerte goederen'!S30,IF(C7="M",'Offerte montage'!M30,"")) -> 0 | I7: =IF(C7="G",'Offerte goederen'!U30,IF(C7="M",'Offerte montage'!O30,"")) -> 0 | K7: =IF(C7="G",'Offerte goederen'!W30,IF(C7="M",'Offerte montage'!Q30,"")) ->  | M7: =IF(C7="G",'Offerte goederen'!Y30,IF(C7="M",'Offerte montage'!S30,"")) -> 
A8: ='Offerte goederen'!B31 -> 0 | B8: =CONCATENATE(IF('Offerte goederen'!C31=0,"",CONCATENATE('Offerte goederen'!C31,", ")),IF('Offerte goederen'!O31=0,"",CONCATENATE("merk: ",'Offerte goederen'!O31)),IF('Offerte goederen'!N31=0,"",CONCATENATE(", omschrijving: ",'Offerte goederen'!N31)),IF('Offerte goederen'!H31=0,"",CONCATENATE(", plooi: ",'Offerte goederen'!H31)),IF('Offerte goederen'!J31=0,"",CONCATENATE(", railtype: ",'Offerte goederen'!J31)),IF('Offerte goederen'!K31=0,"",CONCATENATE(", railkleur: ",'Offerte goederen'!K31))) ->  | C8: G | D8: ='Offerte goederen'!P31 -> 0 | F8: =IF(C8="G",'Offerte goederen'!R31,IF(C8="M",'Offerte montage'!L31,"")) -> 0 | G8: =IF(C8="G",'Offerte goederen'!S31,IF(C8="M",'Offerte montage'!M31,"")) -> 0 | I8: =IF(C8="G",'Offerte goederen'!U31,IF(C8="M",'Offerte montage'!O31,"")) -> 0 | K8: =IF(C8="G",'Offerte goederen'!W31,IF(C8="M",'Offerte montage'!Q31,"")) ->  | M8: =IF(C8="G",'Offerte goederen'!Y31,IF(C8="M",'Offerte montage'!S31,"")) -> 
A9: ='Offerte goederen'!B32 -> 0 | B9: =CONCATENATE(IF('Offerte goederen'!C32=0,"",CONCATENATE('Offerte goederen'!C32,", ")),IF('Offerte goederen'!O32=0,"",CONCATENATE("merk: ",'Offerte goederen'!O32)),IF('Offerte goederen'!N32=0,"",CONCATENATE(", omschrijving: ",'Offerte goederen'!N32)),IF('Offerte goederen'!H32=0,"",CONCATENATE(", plooi: ",'Offerte goederen'!H32)),IF('Offerte goederen'!J32=0,"",CONCATENATE(", railtype: ",'Offerte goederen'!J32)),IF('Offerte goederen'!K32=0,"",CONCATENATE(", railkleur: ",'Offerte goederen'!K32))) ->  | C9: G | D9: ='Offerte goederen'!P32 -> 0 | F9: =IF(C9="G",'Offerte goederen'!R32,IF(C9="M",'Offerte montage'!L32,"")) -> 0 | G9: =IF(C9="G",'Offerte goederen'!S32,IF(C9="M",'Offerte montage'!M32,"")) -> 0 | I9: =IF(C9="G",'Offerte goederen'!U32,IF(C9="M",'Offerte montage'!O32,"")) -> 0 | K9: =IF(C9="G",'Offerte goederen'!W32,IF(C9="M",'Offerte montage'!Q32,"")) ->  | M9: =IF(C9="G",'Offerte goederen'!Y32,IF(C9="M",'Offerte montage'!S32,"")) -> 
A10: ='Offerte goederen'!B33 -> 0 | B10: =CONCATENATE(IF('Offerte goederen'!C33=0,"",CONCATENATE('Offerte goederen'!C33,", ")),IF('Offerte goederen'!O33=0,"",CONCATENATE("merk: ",'Offerte goederen'!O33)),IF('Offerte goederen'!N33=0,"",CONCATENATE(", omschrijving: ",'Offerte goederen'!N33)),IF('Offerte goederen'!H33=0,"",CONCATENATE(", plooi: ",'Offerte goederen'!H33)),IF('Offerte goederen'!J33=0,"",CONCATENATE(", railtype: ",'Offerte goederen'!J33)),IF('Offerte goederen'!K33=0,"",CONCATENATE(", railkleur: ",'Offerte goederen'!K33))) ->  | C10: G | D10: ='Offerte goederen'!P33 -> 0 | F10: =IF(C10="G",'Offerte goederen'!R33,IF(C10="M",'Offerte montage'!L33,"")) -> 0 | G10: =IF(C10="G",'Offerte goederen'!S33,IF(C10="M",'Offerte montage'!M33,"")) -> 0 | I10: =IF(C10="G",'Offerte goederen'!U33,IF(C10="M",'Offerte montage'!O33,"")) -> 0 | K10: =IF(C10="G",'Offerte goederen'!W33,IF(C10="M",'Offerte montage'!Q33,"")) ->  | M10: =IF(C10="G",'Offerte goederen'!Y33,IF(C10="M",'Offerte montage'!S33,"")) -> 
A11: ='Offerte goederen'!B34 -> 0 | B11: =CONCATENATE(IF('Offerte goederen'!C34=0,"",CONCATENATE('Offerte goederen'!C34,", ")),IF('Offerte goederen'!O34=0,"",CONCATENATE("merk: ",'Offerte goederen'!O34)),IF('Offerte goederen'!N34=0,"",CONCATENATE(", omschrijving: ",'Offerte goederen'!N34)),IF('Offerte goederen'!H34=0,"",CONCATENATE(", plooi: ",'Offerte goederen'!H34)),IF('Offerte goederen'!J34=0,"",CONCATENATE(", railtype: ",'Offerte goederen'!J34)),IF('Offerte goederen'!K34=0,"",CONCATENATE(", railkleur: ",'Offerte goederen'!K34))) ->  | C11: G | D11: ='Offerte goederen'!P34 -> 0 | F11: =IF(C11="G",'Offerte goederen'!R34,IF(C11="M",'Offerte montage'!L34,"")) -> 0 | G11: =IF(C11="G",'Offerte goederen'!S34,IF(C11="M",'Offerte montage'!M34,"")) -> 0 | I11: =IF(C11="G",'Offerte goederen'!U34,IF(C11="M",'Offerte montage'!O34,"")) -> 0 | K11: =IF(C11="G",'Offerte goederen'!W34,IF(C11="M",'Offerte montage'!Q34,"")) ->  | M11: =IF(C11="G",'Offerte goederen'!Y34,IF(C11="M",'Offerte montage'!S34,"")) -> 
A12: ='Offerte goederen'!B35 -> 0 | B12: =CONCATENATE(IF('Offerte goederen'!C35=0,"",CONCATENATE('Offerte goederen'!C35,", ")),IF('Offerte goederen'!O35=0,"",CONCATENATE("merk: ",'Offerte goederen'!O35)),IF('Offerte goederen'!N35=0,"",CONCATENATE(", omschrijving: ",'Offerte goederen'!N35)),IF('Offerte goederen'!H35=0,"",CONCATENATE(", plooi: ",'Offerte goederen'!H35)),IF('Offerte goederen'!J35=0,"",CONCATENATE(", railtype: ",'Offerte goederen'!J35)),IF('Offerte goederen'!K35=0,"",CONCATENATE(", railkleur: ",'Offerte goederen'!K35))) ->  | C12: G | D12: ='Offerte goederen'!P35 -> 0 | F12: =IF(C12="G",'Offerte goederen'!R35,IF(C12="M",'Offerte montage'!L35,"")) -> 0 | G12: =IF(C12="G",'Offerte goederen'!S35,IF(C12="M",'Offerte montage'!M35,"")) -> 0 | I12: =IF(C12="G",'Offerte goederen'!U35,IF(C12="M",'Offerte montage'!O35,"")) -> 0 | K12: =IF(C12="G",'Offerte goederen'!W35,IF(C12="M",'Offerte montage'!Q35,"")) ->  | M12: =IF(C12="G",'Offerte goederen'!Y35,IF(C12="M",'Offerte montage'!S35,"")) -> 
A13: ='Offerte goederen'!B36 -> 0 | B13: =CONCATENATE(IF('Offerte goederen'!C36=0,"",CONCATENATE('Offerte goederen'!C36,", ")),IF('Offerte goederen'!O36=0,"",CONCATENATE("merk: ",'Offerte goederen'!O36)),IF('Offerte goederen'!N36=0,"",CONCATENATE(", omschrijving: ",'Offerte goederen'!N36)),IF('Offerte goederen'!H36=0,"",CONCATENATE(", plooi: ",'Offerte goederen'!H36)),IF('Offerte goederen'!J36=0,"",CONCATENATE(", railtype: ",'Offerte goederen'!J36)),IF('Offerte goederen'!K36=0,"",CONCATENATE(", railkleur: ",'Offerte goederen'!K36))) ->  | C13: G | D13: ='Offerte goederen'!P36 -> 0 | F13: =IF(C13="G",'Offerte goederen'!R36,IF(C13="M",'Offerte montage'!L36,"")) -> 0 | G13: =IF(C13="G",'Offerte goederen'!S36,IF(C13="M",'Offerte montage'!M36,"")) -> 0 | I13: =IF(C13="G",'Offerte goederen'!U36,IF(C13="M",'Offerte montage'!O36,"")) -> 0 | K13: =IF(C13="G",'Offerte goederen'!W36,IF(C13="M",'Offerte montage'!Q36,"")) ->  | M13: =IF(C13="G",'Offerte goederen'!Y36,IF(C13="M",'Offerte montage'!S36,"")) -> 
A14: ='Offerte goederen'!B37 -> 0 | B14: =CONCATENATE(IF('Offerte goederen'!C37=0,"",CONCATENATE('Offerte goederen'!C37,", ")),IF('Offerte goederen'!O37=0,"",CONCATENATE("merk: ",'Offerte goederen'!O37)),IF('Offerte goederen'!N37=0,"",CONCATENATE(", omschrijving: ",'Offerte goederen'!N37)),IF('Offerte goederen'!H37=0,"",CONCATENATE(", plooi: ",'Offerte goederen'!H37)),IF('Offerte goederen'!J37=0,"",CONCATENATE(", railtype: ",'Offerte goederen'!J37)),IF('Offerte goederen'!K37=0,"",CONCATENATE(", railkleur: ",'Offerte goederen'!K37))) ->  | C14: G | D14: ='Offerte goederen'!P37 -> 0 | F14: =IF(C14="G",'Offerte goederen'!R37,IF(C14="M",'Offerte montage'!L37,"")) -> 0 | G14: =IF(C14="G",'Offerte goederen'!S37,IF(C14="M",'Offerte montage'!M37,"")) -> 0 | I14: =IF(C14="G",'Offerte goederen'!U37,IF(C14="M",'Offerte montage'!O37,"")) -> 0 | K14: =IF(C14="G",'Offerte goederen'!W37,IF(C14="M",'Offerte montage'!Q37,"")) ->  | M14: =IF(C14="G",'Offerte goederen'!Y37,IF(C14="M",'Offerte montage'!S37,"")) -> 
A15: ='Offerte goederen'!B38 -> 0 | B15: =CONCATENATE(IF('Offerte goederen'!C38=0,"",CONCATENATE('Offerte goederen'!C38,", ")),IF('Offerte goederen'!O38=0,"",CONCATENATE("merk: ",'Offerte goederen'!O38)),IF('Offerte goederen'!N38=0,"",CONCATENATE(", omschrijving: ",'Offerte goederen'!N38)),IF('Offerte goederen'!H38=0,"",CONCATENATE(", plooi: ",'Offerte goederen'!H38)),IF('Offerte goederen'!J38=0,"",CONCATENATE(", railtype: ",'Offerte goederen'!J38)),IF('Offerte goederen'!K38=0,"",CONCATENATE(", railkleur: ",'Offerte goederen'!K38))) ->  | C15: G | D15: ='Offerte goederen'!P38 -> 0 | F15: =IF(C15="G",'Offerte goederen'!R38,IF(C15="M",'Offerte montage'!L38,"")) -> 0 | G15: =IF(C15="G",'Offerte goederen'!S38,IF(C15="M",'Offerte montage'!M38,"")) -> 0 | I15: =IF(C15="G",'Offerte goederen'!U38,IF(C15="M",'Offerte montage'!O38,"")) -> 0 | K15: =IF(C15="G",'Offerte goederen'!W38,IF(C15="M",'Offerte montage'!Q38,"")) ->  | M15: =IF(C15="G",'Offerte goederen'!Y38,IF(C15="M",'Offerte montage'!S38,"")) -> 
A16: ='Offerte goederen'!B39 -> 0 | B16: =CONCATENATE(IF('Offerte goederen'!C39=0,"",CONCATENATE('Offerte goederen'!C39,", ")),IF('Offerte goederen'!O39=0,"",CONCATENATE("merk: ",'Offerte goederen'!O39)),IF('Offerte goederen'!N39=0,"",CONCATENATE(", omschrijving: ",'Offerte goederen'!N39)),IF('Offerte goederen'!H39=0,"",CONCATENATE(", plooi: ",'Offerte goederen'!H39)),IF('Offerte goederen'!J39=0,"",CONCATENATE(", railtype: ",'Offerte goederen'!J39)),IF('Offerte goederen'!K39=0,"",CONCATENATE(", railkleur: ",'Offerte goederen'!K39))) ->  | C16: G | D16: ='Offerte goederen'!P39 -> 0 | F16: =IF(C16="G",'Offerte goederen'!R39,IF(C16="M",'Offerte montage'!L39,"")) -> 0 | G16: =IF(C16="G",'Offerte goederen'!S39,IF(C16="M",'Offerte montage'!M39,"")) -> 0 | I16: =IF(C16="G",'Offerte goederen'!U39,IF(C16="M",'Offerte montage'!O39,"")) -> 0 | K16: =IF(C16="G",'Offerte goederen'!W39,IF(C16="M",'Offerte montage'!Q39,"")) ->  | M16: =IF(C16="G",'Offerte goederen'!Y39,IF(C16="M",'Offerte montage'!S39,"")) -> 
A17: ='Offerte goederen'!B40 -> 0 | B17: =CONCATENATE(IF('Offerte goederen'!C40=0,"",CONCATENATE('Offerte goederen'!C40,", ")),IF('Offerte goederen'!O40=0,"",CONCATENATE("merk: ",'Offerte goederen'!O40)),IF('Offerte goederen'!N40=0,"",CONCATENATE(", omschrijving: ",'Offerte goederen'!N40)),IF('Offerte goederen'!H40=0,"",CONCATENATE(", plooi: ",'Offerte goederen'!H40)),IF('Offerte goederen'!J40=0,"",CONCATENATE(", railtype: ",'Offerte goederen'!J40)),IF('Offerte goederen'!K40=0,"",CONCATENATE(", railkleur: ",'Offerte goederen'!K40))) ->  | C17: G | D17: ='Offerte goederen'!P40 -> 0 | F17: =IF(C17="G",'Offerte goederen'!R40,IF(C17="M",'Offerte montage'!L40,"")) -> 0 | G17: =IF(C17="G",'Offerte goederen'!S40,IF(C17="M",'Offerte montage'!M40,"")) -> 0 | I17: =IF(C17="G",'Offerte goederen'!U40,IF(C17="M",'Offerte montage'!O40,"")) -> 0 | K17: =IF(C17="G",'Offerte goederen'!W40,IF(C17="M",'Offerte montage'!Q40,"")) ->  | M17: =IF(C17="G",'Offerte goederen'!Y40,IF(C17="M",'Offerte montage'!S40,"")) -> 
A18: ='Offerte goederen'!B41 -> 0 | B18: =CONCATENATE(IF('Offerte goederen'!C41=0,"",CONCATENATE('Offerte goederen'!C41,", ")),IF('Offerte goederen'!O41=0,"",CONCATENATE("merk: ",'Offerte goederen'!O41)),IF('Offerte goederen'!N41=0,"",CONCATENATE(", omschrijving: ",'Offerte goederen'!N41)),IF('Offerte goederen'!H41=0,"",CONCATENATE(", plooi: ",'Offerte goederen'!H41)),IF('Offerte goederen'!J41=0,"",CONCATENATE(", railtype: ",'Offerte goederen'!J41)),IF('Offerte goederen'!K41=0,"",CONCATENATE(", railkleur: ",'Offerte goederen'!K41))) ->  | C18: G | D18: ='Offerte goederen'!P41 -> 0 | F18: =IF(C18="G",'Offerte goederen'!R41,IF(C18="M",'Offerte montage'!L41,"")) -> 0 | G18: =IF(C18="G",'Offerte goederen'!S41,IF(C18="M",'Offerte montage'!M41,"")) -> 0 | I18: =IF(C18="G",'Offerte goederen'!U41,IF(C18="M",'Offerte montage'!O41,"")) -> 0 | K18: =IF(C18="G",'Offerte goederen'!W41,IF(C18="M",'Offerte montage'!Q41,"")) ->  | M18: =IF(C18="G",'Offerte goederen'!Y41,IF(C18="M",'Offerte montage'!S41,"")) -> 
A19: ='Offerte goederen'!B42 -> 0 | B19: =CONCATENATE(IF('Offerte goederen'!C42=0,"",CONCATENATE('Offerte goederen'!C42,", ")),IF('Offerte goederen'!O42=0,"",CONCATENATE("merk: ",'Offerte goederen'!O42)),IF('Offerte goederen'!N42=0,"",CONCATENATE(", omschrijving: ",'Offerte goederen'!N42)),IF('Offerte goederen'!H42=0,"",CONCATENATE(", plooi: ",'Offerte goederen'!H42)),IF('Offerte goederen'!J42=0,"",CONCATENATE(", railtype: ",'Offerte goederen'!J42)),IF('Offerte goederen'!K42=0,"",CONCATENATE(", railkleur: ",'Offerte goederen'!K42))) ->  | C19: G | D19: ='Offerte goederen'!P42 -> 0 | F19: =IF(C19="G",'Offerte goederen'!R42,IF(C19="M",'Offerte montage'!L42,"")) -> 0 | G19: =IF(C19="G",'Offerte goederen'!S42,IF(C19="M",'Offerte montage'!M42,"")) -> 0 | I19: =IF(C19="G",'Offerte goederen'!U42,IF(C19="M",'Offerte montage'!O42,"")) -> 0 | K19: =IF(C19="G",'Offerte goederen'!W42,IF(C19="M",'Offerte montage'!Q42,"")) ->  | M19: =IF(C19="G",'Offerte goederen'!Y42,IF(C19="M",'Offerte montage'!S42,"")) -> 
A20: ='Offerte goederen'!B43 -> 0 | B20: =CONCATENATE(IF('Offerte goederen'!C43=0,"",CONCATENATE('Offerte goederen'!C43,", ")),IF('Offerte goederen'!O43=0,"",CONCATENATE("merk: ",'Offerte goederen'!O43)),IF('Offerte goederen'!N43=0,"",CONCATENATE(", omschrijving: ",'Offerte goederen'!N43)),IF('Offerte goederen'!H43=0,"",CONCATENATE(", plooi: ",'Offerte goederen'!H43)),IF('Offerte goederen'!J43=0,"",CONCATENATE(", railtype: ",'Offerte goederen'!J43)),IF('Offerte goederen'!K43=0,"",CONCATENATE(", railkleur: ",'Offerte goederen'!K43))) ->  | C20: G | D20: ='Offerte goederen'!P43 -> 0 | F20: =IF(C20="G",'Offerte goederen'!R43,IF(C20="M",'Offerte montage'!L43,"")) -> 0 | G20: =IF(C20="G",'Offerte goederen'!S43,IF(C20="M",'Offerte montage'!M43,"")) -> 0 | I20: =IF(C20="G",'Offerte goederen'!U43,IF(C20="M",'Offerte montage'!O43,"")) -> 0 | K20: =IF(C20="G",'Offerte goederen'!W43,IF(C20="M",'Offerte montage'!Q43,"")) ->  | M20: =IF(C20="G",'Offerte goederen'!Y43,IF(C20="M",'Offerte montage'!S43,"")) -> 
A21: ='Offerte goederen'!B44 -> 0 | B21: =CONCATENATE(IF('Offerte goederen'!C44=0,"",CONCATENATE('Offerte goederen'!C44,", ")),IF('Offerte goederen'!O44=0,"",CONCATENATE("merk: ",'Offerte goederen'!O44)),IF('Offerte goederen'!N44=0,"",CONCATENATE(", omschrijving: ",'Offerte goederen'!N44)),IF('Offerte goederen'!H44=0,"",CONCATENATE(", plooi: ",'Offerte goederen'!H44)),IF('Offerte goederen'!J44=0,"",CONCATENATE(", railtype: ",'Offerte goederen'!J44)),IF('Offerte goederen'!K44=0,"",CONCATENATE(", railkleur: ",'Offerte goederen'!K44))) ->  | C21: G | D21: ='Offerte goederen'!P44 -> 0 | F21: =IF(C21="G",'Offerte goederen'!R44,IF(C21="M",'Offerte montage'!L44,"")) -> 0 | G21: =IF(C21="G",'Offerte goederen'!S44,IF(C21="M",'Offerte montage'!M44,"")) -> 0 | I21: =IF(C21="G",'Offerte goederen'!U44,IF(C21="M",'Offerte montage'!O44,"")) -> 0 | K21: =IF(C21="G",'Offerte goederen'!W44,IF(C21="M",'Offerte montage'!Q44,"")) ->  | M21: =IF(C21="G",'Offerte goederen'!Y44,IF(C21="M",'Offerte montage'!S44,"")) -> 
A22: ='Offerte goederen'!B45 -> 0 | B22: =CONCATENATE(IF('Offerte goederen'!C45=0,"",CONCATENATE('Offerte goederen'!C45,", ")),IF('Offerte goederen'!O45=0,"",CONCATENATE("merk: ",'Offerte goederen'!O45)),IF('Offerte goederen'!N45=0,"",CONCATENATE(", omschrijving: ",'Offerte goederen'!N45)),IF('Offerte goederen'!H45=0,"",CONCATENATE(", plooi: ",'Offerte goederen'!H45)),IF('Offerte goederen'!J45=0,"",CONCATENATE(", railtype: ",'Offerte goederen'!J45)),IF('Offerte goederen'!K45=0,"",CONCATENATE(", railkleur: ",'Offerte goederen'!K45))) ->  | C22: G | D22: ='Offerte goederen'!P45 -> 0 | F22: =IF(C22="G",'Offerte goederen'!R45,IF(C22="M",'Offerte montage'!L45,"")) -> 0 | G22: =IF(C22="G",'Offerte goederen'!S45,IF(C22="M",'Offerte montage'!M45,"")) -> 0 | I22: =IF(C22="G",'Offerte goederen'!U45,IF(C22="M",'Offerte montage'!O45,"")) -> 0 | K22: =IF(C22="G",'Offerte goederen'!W45,IF(C22="M",'Offerte montage'!Q45,"")) ->  | M22: =IF(C22="G",'Offerte goederen'!Y45,IF(C22="M",'Offerte montage'!S45,"")) -> 
A23: ='Offerte goederen'!B46 -> 0 | B23: =CONCATENATE(IF('Offerte goederen'!C46=0,"",CONCATENATE('Offerte goederen'!C46,", ")),IF('Offerte goederen'!O46=0,"",CONCATENATE("merk: ",'Offerte goederen'!O46)),IF('Offerte goederen'!N46=0,"",CONCATENATE(", omschrijving: ",'Offerte goederen'!N46)),IF('Offerte goederen'!H46=0,"",CONCATENATE(", plooi: ",'Offerte goederen'!H46)),IF('Offerte goederen'!J46=0,"",CONCATENATE(", railtype: ",'Offerte goederen'!J46)),IF('Offerte goederen'!K46=0,"",CONCATENATE(", railkleur: ",'Offerte goederen'!K46))) ->  | C23: G | D23: ='Offerte goederen'!P46 -> 0 | F23: =IF(C23="G",'Offerte goederen'!R46,IF(C23="M",'Offerte montage'!L46,"")) -> 0 | G23: =IF(C23="G",'Offerte goederen'!S46,IF(C23="M",'Offerte montage'!M46,"")) -> 0 | I23: =IF(C23="G",'Offerte goederen'!U46,IF(C23="M",'Offerte montage'!O46,"")) -> 0 | K23: =IF(C23="G",'Offerte goederen'!W46,IF(C23="M",'Offerte montage'!Q46,"")) ->  | M23: =IF(C23="G",'Offerte goederen'!Y46,IF(C23="M",'Offerte montage'!S46,"")) -> 
A24: ='Offerte goederen'!B47 -> 0 | B24: =CONCATENATE(IF('Offerte goederen'!C47=0,"",CONCATENATE('Offerte goederen'!C47,", ")),IF('Offerte goederen'!O47=0,"",CONCATENATE("merk: ",'Offerte goederen'!O47)),IF('Offerte goederen'!N47=0,"",CONCATENATE(", omschrijving: ",'Offerte goederen'!N47)),IF('Offerte goederen'!H47=0,"",CONCATENATE(", plooi: ",'Offerte goederen'!H47)),IF('Offerte goederen'!J47=0,"",CONCATENATE(", railtype: ",'Offerte goederen'!J47)),IF('Offerte goederen'!K47=0,"",CONCATENATE(", railkleur: ",'Offerte goederen'!K47))) ->  | C24: G | D24: ='Offerte goederen'!P47 -> 0 | F24: =IF(C24="G",'Offerte goederen'!R47,IF(C24="M",'Offerte montage'!L47,"")) -> 0 | G24: =IF(C24="G",'Offerte goederen'!S47,IF(C24="M",'Offerte montage'!M47,"")) -> 0 | I24: =IF(C24="G",'Offerte goederen'!U47,IF(C24="M",'Offerte montage'!O47,"")) -> 0 | K24: =IF(C24="G",'Offerte goederen'!W47,IF(C24="M",'Offerte montage'!Q47,"")) ->  | M24: =IF(C24="G",'Offerte goederen'!Y47,IF(C24="M",'Offerte montage'!S47,"")) -> 
A25: ='Offerte goederen'!B48 -> 0 | B25: =CONCATENATE(IF('Offerte goederen'!C48=0,"",CONCATENATE('Offerte goederen'!C48,", ")),IF('Offerte goederen'!O48=0,"",CONCATENATE("merk: ",'Offerte goederen'!O48)),IF('Offerte goederen'!N48=0,"",CONCATENATE(", omschrijving: ",'Offerte goederen'!N48)),IF('Offerte goederen'!H48=0,"",CONCATENATE(", plooi: ",'Offerte goederen'!H48)),IF('Offerte goederen'!J48=0,"",CONCATENATE(", railtype: ",'Offerte goederen'!J48)),IF('Offerte goederen'!K48=0,"",CONCATENATE(", railkleur: ",'Offerte goederen'!K48))) ->  | C25: G | D25: ='Offerte goederen'!P48 -> 0 | F25: =IF(C25="G",'Offerte goederen'!R48,IF(C25="M",'Offerte montage'!L48,"")) -> 0 | G25: =IF(C25="G",'Offerte goederen'!S48,IF(C25="M",'Offerte montage'!M48,"")) -> 0 | I25: =IF(C25="G",'Offerte goederen'!U48,IF(C25="M",'Offerte montage'!O48,"")) -> 0 | K25: =IF(C25="G",'Offerte goederen'!W48,IF(C25="M",'Offerte montage'!Q48,"")) ->  | M25: =IF(C25="G",'Offerte goederen'!Y48,IF(C25="M",'Offerte montage'!S48,"")) -> 
A26: ='Offerte goederen'!B49 -> 0 | B26: =CONCATENATE(IF('Offerte goederen'!C49=0,"",CONCATENATE('Offerte goederen'!C49,", ")),IF('Offerte goederen'!O49=0,"",CONCATENATE("merk: ",'Offerte goederen'!O49)),IF('Offerte goederen'!N49=0,"",CONCATENATE(", omschrijving: ",'Offerte goederen'!N49)),IF('Offerte goederen'!H49=0,"",CONCATENATE(", plooi: ",'Offerte goederen'!H49)),IF('Offerte goederen'!J49=0,"",CONCATENATE(", railtype: ",'Offerte goederen'!J49)),IF('Offerte goederen'!K49=0,"",CONCATENATE(", railkleur: ",'Offerte goederen'!K49))) ->  | C26: G | D26: ='Offerte goederen'!P49 -> 0 | F26: =IF(C26="G",'Offerte goederen'!R49,IF(C26="M",'Offerte montage'!L49,"")) -> 0 | G26: =IF(C26="G",'Offerte goederen'!S49,IF(C26="M",'Offerte montage'!M49,"")) -> 0 | I26: =IF(C26="G",'Offerte goederen'!U49,IF(C26="M",'Offerte montage'!O49,"")) -> 0 | K26: =IF(C26="G",'Offerte goederen'!W49,IF(C26="M",'Offerte montage'!Q49,"")) ->  | M26: =IF(C26="G",'Offerte goederen'!Y49,IF(C26="M",'Offerte montage'!S49,"")) -> 
A27: ='Offerte goederen'!B50 -> 0 | B27: =CONCATENATE(IF('Offerte goederen'!C50=0,"",CONCATENATE('Offerte goederen'!C50,", ")),IF('Offerte goederen'!O50=0,"",CONCATENATE("merk: ",'Offerte goederen'!O50)),IF('Offerte goederen'!N50=0,"",CONCATENATE(", omschrijving: ",'Offerte goederen'!N50)),IF('Offerte goederen'!H50=0,"",CONCATENATE(", plooi: ",'Offerte goederen'!H50)),IF('Offerte goederen'!J50=0,"",CONCATENATE(", railtype: ",'Offerte goederen'!J50)),IF('Offerte goederen'!K50=0,"",CONCATENATE(", railkleur: ",'Offerte goederen'!K50))) ->  | C27: G | D27: ='Offerte goederen'!P50 -> 0 | F27: =IF(C27="G",'Offerte goederen'!R50,IF(C27="M",'Offerte montage'!L50,"")) -> 0 | G27: =IF(C27="G",'Offerte goederen'!S50,IF(C27="M",'Offerte montage'!M50,"")) -> 0 | I27: =IF(C27="G",'Offerte goederen'!U50,IF(C27="M",'Offerte montage'!O50,"")) -> 0 | K27: =IF(C27="G",'Offerte goederen'!W50,IF(C27="M",'Offerte montage'!Q50,"")) ->  | M27: =IF(C27="G",'Offerte goederen'!Y50,IF(C27="M",'Offerte montage'!S50,"")) -> 
A28: ='Offerte goederen'!B51 -> 0 | B28: =CONCATENATE(IF('Offerte goederen'!C51=0,"",CONCATENATE('Offerte goederen'!C51,", ")),IF('Offerte goederen'!O51=0,"",CONCATENATE("merk: ",'Offerte goederen'!O51)),IF('Offerte goederen'!N51=0,"",CONCATENATE(", omschrijving: ",'Offerte goederen'!N51)),IF('Offerte goederen'!H51=0,"",CONCATENATE(", plooi: ",'Offerte goederen'!H51)),IF('Offerte goederen'!J51=0,"",CONCATENATE(", railtype: ",'Offerte goederen'!J51)),IF('Offerte goederen'!K51=0,"",CONCATENATE(", railkleur: ",'Offerte goederen'!K51))) ->  | C28: G | D28: ='Offerte goederen'!P51 -> 0 | F28: =IF(C28="G",'Offerte goederen'!R51,IF(C28="M",'Offerte montage'!L51,"")) -> 0 | G28: =IF(C28="G",'Offerte goederen'!S51,IF(C28="M",'Offerte montage'!M51,"")) -> 0 | I28: =IF(C28="G",'Offerte goederen'!U51,IF(C28="M",'Offerte montage'!O51,"")) -> 0 | K28: =IF(C28="G",'Offerte goederen'!W51,IF(C28="M",'Offerte montage'!Q51,"")) ->  | M28: =IF(C28="G",'Offerte goederen'!Y51,IF(C28="M",'Offerte montage'!S51,"")) -> 
A29: ='Offerte goederen'!B52 -> 0 | B29: =CONCATENATE(IF('Offerte goederen'!C52=0,"",CONCATENATE('Offerte goederen'!C52,", ")),IF('Offerte goederen'!O52=0,"",CONCATENATE("merk: ",'Offerte goederen'!O52)),IF('Offerte goederen'!N52=0,"",CONCATENATE(", omschrijving: ",'Offerte goederen'!N52)),IF('Offerte goederen'!H52=0,"",CONCATENATE(", plooi: ",'Offerte goederen'!H52)),IF('Offerte goederen'!J52=0,"",CONCATENATE(", railtype: ",'Offerte goederen'!J52)),IF('Offerte goederen'!K52=0,"",CONCATENATE(", railkleur: ",'Offerte goederen'!K52))) ->  | C29: G | D29: ='Offerte goederen'!P52 -> 0 | F29: =IF(C29="G",'Offerte goederen'!R52,IF(C29="M",'Offerte montage'!L52,"")) -> 0 | G29: =IF(C29="G",'Offerte goederen'!S52,IF(C29="M",'Offerte montage'!M52,"")) -> 0 | I29: =IF(C29="G",'Offerte goederen'!U52,IF(C29="M",'Offerte montage'!O52,"")) -> 0 | K29: =IF(C29="G",'Offerte goederen'!W52,IF(C29="M",'Offerte montage'!Q52,"")) ->  | M29: =IF(C29="G",'Offerte goederen'!Y52,IF(C29="M",'Offerte montage'!S52,"")) -> 
A30: ='Offerte goederen'!B53 -> 0 | B30: =CONCATENATE(IF('Offerte goederen'!C53=0,"",CONCATENATE('Offerte goederen'!C53,", ")),IF('Offerte goederen'!O53=0,"",CONCATENATE("merk: ",'Offerte goederen'!O53)),IF('Offerte goederen'!N53=0,"",CONCATENATE(", omschrijving: ",'Offerte goederen'!N53)),IF('Offerte goederen'!H53=0,"",CONCATENATE(", plooi: ",'Offerte goederen'!H53)),IF('Offerte goederen'!J53=0,"",CONCATENATE(", railtype: ",'Offerte goederen'!J53)),IF('Offerte goederen'!K53=0,"",CONCATENATE(", railkleur: ",'Offerte goederen'!K53))) ->  | C30: G | D30: ='Offerte goederen'!P53 -> 0 | F30: =IF(C30="G",'Offerte goederen'!R53,IF(C30="M",'Offerte montage'!L53,"")) -> 0 | G30: =IF(C30="G",'Offerte goederen'!S53,IF(C30="M",'Offerte montage'!M53,"")) -> 0 | I30: =IF(C30="G",'Offerte goederen'!U53,IF(C30="M",'Offerte montage'!O53,"")) -> 0 | K30: =IF(C30="G",'Offerte goederen'!W53,IF(C30="M",'Offerte montage'!Q53,"")) ->  | M30: =IF(C30="G",'Offerte goederen'!Y53,IF(C30="M",'Offerte montage'!S53,"")) -> 
A31: ='Offerte goederen'!B54 -> 0 | B31: =CONCATENATE(IF('Offerte goederen'!C54=0,"",CONCATENATE('Offerte goederen'!C54,", ")),IF('Offerte goederen'!O54=0,"",CONCATENATE("merk: ",'Offerte goederen'!O54)),IF('Offerte goederen'!N54=0,"",CONCATENATE(", omschrijving: ",'Offerte goederen'!N54)),IF('Offerte goederen'!H54=0,"",CONCATENATE(", plooi: ",'Offerte goederen'!H54)),IF('Offerte goederen'!J54=0,"",CONCATENATE(", railtype: ",'Offerte goederen'!J54)),IF('Offerte goederen'!K54=0,"",CONCATENATE(", railkleur: ",'Offerte goederen'!K54))) ->  | C31: G | D31: ='Offerte goederen'!P54 -> 0 | F31: =IF(C31="G",'Offerte goederen'!R54,IF(C31="M",'Offerte montage'!L54,"")) -> 0 | G31: =IF(C31="G",'Offerte goederen'!S54,IF(C31="M",'Offerte montage'!M54,"")) -> 0 | I31: =IF(C31="G",'Offerte goederen'!U54,IF(C31="M",'Offerte montage'!O54,"")) -> 0 | K31: =IF(C31="G",'Offerte goederen'!W54,IF(C31="M",'Offerte montage'!Q54,"")) ->  | M31: =IF(C31="G",'Offerte goederen'!Y54,IF(C31="M",'Offerte montage'!S54,"")) -> 
A32: ='Offerte goederen'!B55 -> 0 | B32: =CONCATENATE(IF('Offerte goederen'!C55=0,"",CONCATENATE('Offerte goederen'!C55,", ")),IF('Offerte goederen'!O55=0,"",CONCATENATE("merk: ",'Offerte goederen'!O55)),IF('Offerte goederen'!N55=0,"",CONCATENATE(", omschrijving: ",'Offerte goederen'!N55)),IF('Offerte goederen'!H55=0,"",CONCATENATE(", plooi: ",'Offerte goederen'!H55)),IF('Offerte goederen'!J55=0,"",CONCATENATE(", railtype: ",'Offerte goederen'!J55)),IF('Offerte goederen'!K55=0,"",CONCATENATE(", railkleur: ",'Offerte goederen'!K55))) ->  | C32: G | D32: ='Offerte goederen'!P55 -> 0 | F32: =IF(C32="G",'Offerte goederen'!R55,IF(C32="M",'Offerte montage'!L55,"")) -> 0 | G32: =IF(C32="G",'Offerte goederen'!S55,IF(C32="M",'Offerte montage'!M55,"")) -> 0 | I32: =IF(C32="G",'Offerte goederen'!U55,IF(C32="M",'Offerte montage'!O55,"")) -> 0 | K32: =IF(C32="G",'Offerte goederen'!W55,IF(C32="M",'Offerte montage'!Q55,"")) ->  | M32: =IF(C32="G",'Offerte goederen'!Y55,IF(C32="M",'Offerte montage'!S55,"")) -> 
A33: ='Offerte goederen'!B56 -> 0 | B33: =CONCATENATE(IF('Offerte goederen'!C56=0,"",CONCATENATE('Offerte goederen'!C56,", ")),IF('Offerte goederen'!O56=0,"",CONCATENATE("merk: ",'Offerte goederen'!O56)),IF('Offerte goederen'!N56=0,"",CONCATENATE(", omschrijving: ",'Offerte goederen'!N56)),IF('Offerte goederen'!H56=0,"",CONCATENATE(", plooi: ",'Offerte goederen'!H56)),IF('Offerte goederen'!J56=0,"",CONCATENATE(", railtype: ",'Offerte goederen'!J56)),IF('Offerte goederen'!K56=0,"",CONCATENATE(", railkleur: ",'Offerte goederen'!K56))) ->  | C33: G | D33: ='Offerte goederen'!P56 -> 0 | F33: =IF(C33="G",'Offerte goederen'!R56,IF(C33="M",'Offerte montage'!L56,"")) -> 0 | G33: =IF(C33="G",'Offerte goederen'!S56,IF(C33="M",'Offerte montage'!M56,"")) -> 0 | I33: =IF(C33="G",'Offerte goederen'!U56,IF(C33="M",'Offerte montage'!O56,"")) -> 0 | K33: =IF(C33="G",'Offerte goederen'!W56,IF(C33="M",'Offerte montage'!Q56,"")) ->  | M33: =IF(C33="G",'Offerte goederen'!Y56,IF(C33="M",'Offerte montage'!S56,"")) -> 
A34: ='Offerte goederen'!B57 -> 0 | B34: =CONCATENATE(IF('Offerte goederen'!C57=0,"",CONCATENATE('Offerte goederen'!C57,", ")),IF('Offerte goederen'!O57=0,"",CONCATENATE("merk: ",'Offerte goederen'!O57)),IF('Offerte goederen'!N57=0,"",CONCATENATE(", omschrijving: ",'Offerte goederen'!N57)),IF('Offerte goederen'!H57=0,"",CONCATENATE(", plooi: ",'Offerte goederen'!H57)),IF('Offerte goederen'!J57=0,"",CONCATENATE(", railtype: ",'Offerte goederen'!J57)),IF('Offerte goederen'!K57=0,"",CONCATENATE(", railkleur: ",'Offerte goederen'!K57))) ->  | C34: G | D34: ='Offerte goederen'!P57 -> 0 | F34: =IF(C34="G",'Offerte goederen'!R57,IF(C34="M",'Offerte montage'!L57,"")) -> 0 | G34: =IF(C34="G",'Offerte goederen'!S57,IF(C34="M",'Offerte montage'!M57,"")) -> 0 | I34: =IF(C34="G",'Offerte goederen'!U57,IF(C34="M",'Offerte montage'!O57,"")) -> 0 | K34: =IF(C34="G",'Offerte goederen'!W57,IF(C34="M",'Offerte montage'!Q57,"")) ->  | M34: =IF(C34="G",'Offerte goederen'!Y57,IF(C34="M",'Offerte montage'!S57,"")) -> 
A35: ='Offerte goederen'!B58 -> 0 | B35: =CONCATENATE(IF('Offerte goederen'!C58=0,"",CONCATENATE('Offerte goederen'!C58,", ")),IF('Offerte goederen'!O58=0,"",CONCATENATE("merk: ",'Offerte goederen'!O58)),IF('Offerte goederen'!N58=0,"",CONCATENATE(", omschrijving: ",'Offerte goederen'!N58)),IF('Offerte goederen'!H58=0,"",CONCATENATE(", plooi: ",'Offerte goederen'!H58)),IF('Offerte goederen'!J58=0,"",CONCATENATE(", railtype: ",'Offerte goederen'!J58)),IF('Offerte goederen'!K58=0,"",CONCATENATE(", railkleur: ",'Offerte goederen'!K58))) ->  | C35: G | D35: ='Offerte goederen'!P58 -> 0 | F35: =IF(C35="G",'Offerte goederen'!R58,IF(C35="M",'Offerte montage'!L58,"")) -> 0 | G35: =IF(C35="G",'Offerte goederen'!S58,IF(C35="M",'Offerte montage'!M58,"")) -> 0 | I35: =IF(C35="G",'Offerte goederen'!U58,IF(C35="M",'Offerte montage'!O58,"")) -> 0 | K35: =IF(C35="G",'Offerte goederen'!W58,IF(C35="M",'Offerte montage'!Q58,"")) ->  | M35: =IF(C35="G",'Offerte goederen'!Y58,IF(C35="M",'Offerte montage'!S58,"")) -> 
A36: ='Offerte goederen'!B59 -> 0 | B36: =CONCATENATE(IF('Offerte goederen'!C59=0,"",CONCATENATE('Offerte goederen'!C59,", ")),IF('Offerte goederen'!O59=0,"",CONCATENATE("merk: ",'Offerte goederen'!O59)),IF('Offerte goederen'!N59=0,"",CONCATENATE(", omschrijving: ",'Offerte goederen'!N59)),IF('Offerte goederen'!H59=0,"",CONCATENATE(", plooi: ",'Offerte goederen'!H59)),IF('Offerte goederen'!J59=0,"",CONCATENATE(", railtype: ",'Offerte goederen'!J59)),IF('Offerte goederen'!K59=0,"",CONCATENATE(", railkleur: ",'Offerte goederen'!K59))) ->  | C36: G | D36: ='Offerte goederen'!P59 -> 0 | F36: =IF(C36="G",'Offerte goederen'!R59,IF(C36="M",'Offerte montage'!L59,"")) -> 0 | G36: =IF(C36="G",'Offerte goederen'!S59,IF(C36="M",'Offerte montage'!M59,"")) -> 0 | I36: =IF(C36="G",'Offerte goederen'!U59,IF(C36="M",'Offerte montage'!O59,"")) -> 0 | K36: =IF(C36="G",'Offerte goederen'!W59,IF(C36="M",'Offerte montage'!Q59,"")) ->  | M36: =IF(C36="G",'Offerte goederen'!Y59,IF(C36="M",'Offerte montage'!S59,"")) -> 
A37: ='Offerte goederen'!B60 -> 0 | B37: =CONCATENATE(IF('Offerte goederen'!C60=0,"",CONCATENATE('Offerte goederen'!C60,", ")),IF('Offerte goederen'!O60=0,"",CONCATENATE("merk: ",'Offerte goederen'!O60)),IF('Offerte goederen'!N60=0,"",CONCATENATE(", omschrijving: ",'Offerte goederen'!N60)),IF('Offerte goederen'!H60=0,"",CONCATENATE(", plooi: ",'Offerte goederen'!H60)),IF('Offerte goederen'!J60=0,"",CONCATENATE(", railtype: ",'Offerte goederen'!J60)),IF('Offerte goederen'!K60=0,"",CONCATENATE(", railkleur: ",'Offerte goederen'!K60))) ->  | C37: G | D37: ='Offerte goederen'!P60 -> 0 | F37: =IF(C37="G",'Offerte goederen'!R60,IF(C37="M",'Offerte montage'!L60,"")) -> 0 | G37: =IF(C37="G",'Offerte goederen'!S60,IF(C37="M",'Offerte montage'!M60,"")) -> 0 | I37: =IF(C37="G",'Offerte goederen'!U60,IF(C37="M",'Offerte montage'!O60,"")) -> 0 | K37: =IF(C37="G",'Offerte goederen'!W60,IF(C37="M",'Offerte montage'!Q60,"")) ->  | M37: =IF(C37="G",'Offerte goederen'!Y60,IF(C37="M",'Offerte montage'!S60,"")) -> 
